Workbook

Sheet TIEOSAT
D1: Keski-Suomen ELY-keskuksen tieverkon merkittävyysluokitus
D2: PISTEYTYSTEKIJÄT JA PAINOARVOT | N2: PALAUTUS- JA LAJITTELUTYÖKALUT
D3: OSA-ALUEET | J3: Taajama | P3: Tietokannan palauttaminen oletusarvoihin
D4: Säännöllinen henkilöliikenne | G4: Yht. | H4: painotus | J4: tieosasta | K4: 0.5
D5: KVL | F5: 9 | G5: =SUM(F5:F7) -> 15 | H5: =1/3 -> 0.3333333333 | J5: Liikenne | K5: Vähä/loput | L5: KVL YHD
D6: Linja-autovuorot | F6: 3 | J6: KVL | K6: 500 | L6: 20
D7: Työmatkat | F7: 3 | J7: KVLRAS | K7: 20 | P7: Lajittele muutosten/ nollauksen jälkeen
D8: Säännöllinen tavaraliikenne | G8: Yht. | H8: painotus | J8: KKVL | K8: 500 | Q8: JOULUKUU 2024
D9: KVLRAS | F9: 8 | G9: =SUM(F9:F20) -> 25 | H9: 0.3333333333 | J9: Työmatkat | CO9: KVL
D10: KVLYHD | F10: 1 | J10: Pisteet | L10: Työmatkoja | U10: TILASTOTIEDOT | CO10: Linja-auto
D11: Maito | F11: 3 | J11: =F7 -> 3 | K11: =CONCATENATE("≥ ",L11,) -> ≥ 400 | L11: 400 | CO11: Työmatkat
D12: Jäte | F12: 1 | J12: =CONCATENATE("0-",J11) -> 0-3 | K12: 1–399 lineaarisesti | N12: SUODATUS- JA HAKUTYÖKALUT | Q12: TIEJAKSO RAPORTTI | U12: Merkittävyysluokka | X12: % max pisteistä | Z12: Tieosista | CO12: KVLRAS
D13: Maa-aines | F13: 1 | J13: Linja-autovuorot | U13: 1 luokka | X13: =CU27 -> 0.8191290064 | Z13: 0.05 | CO13: Maito
D14: Viljansäilytys | F14: 1 | J14: Pisteet | L14: Vuoromäärä | P14: KVL tekijät poistetaan käytöstä | U14: 2 luokka | X14: =CU28 -> 0.6593016504 | Z14: 0.2 | CO14: Jäte
D15: Kasvihuoneet | F15: 1 | J15: =$F$6 -> 3 | K15: =CONCATENATE("≥ ",L15,) -> ≥ 20 | L15: 20 | U15: 3 luokka | X15: =CU29 -> 0.1849011545 | Z15: 0.5 | CO15: Vilja
D16: Eläintilat | F16: 2 | J16: =CONCATENATE("0-",J15) -> 0-3 | K16: 1–19 lineaariseti | U16: 4 luokka | X16: =CU30 -> 0.0009042120965 | Z16: =1-SUM(Z13:Z15) -> 0.25 | CO16: kasvihuone
D17: Elintarvikelaitos | F17: 2 | J17: Puun kuljetusreitit | P17: Järjestä tieosat luokan mukaan | Q17: NÄYTÄ VAIN SORATIET | CO17: eläintilat
D18: Tuotantolaitos | F18: 2 | J18: Pisteet | L18: Autoa/vrk | U18: Pituus km | W18: Km | X18: Km | Y18: LOPUT | Z18: VÄHÄ | CO18: elintarvirke
D19: Päivittäistavarakauppa | F19: 2 | J19: =$F$20 -> 1 | K19: =CONCATENATE("≥ ",L19,) -> ≥ 10 | L19: 10 | U19: Luokka | V19: 1 | W19: =SUMIFS(X37:X984,N37:N984,"LOPUT",K37:K984,1)/1000 -> 252.362 | X19: =SUMIFS(X37:X984,N37:N984,"VÄHÄ",K37:K984,1)/1000 -> 0 | CO19: tuotanto
D20: Puun kuljetusreitit | F20: 1 | J20: 0-2 | K20: 1–9 lineaariseti | P20: Poista käytössä olevat suodatukset | U20: Luokka | V20: 2 | W20: =SUMIFS(X37:X984,N37:N984,"LOPUT",K37:K984,2)/1000 -> 946.206 | X20: =SUMIFS(X37:X984,N37:N984,"VÄHÄ",K37:K984,2)/1000 -> 23.218 | CO20: päivittäin
D21: Muut tekijät | G21: Yht. | H21: painotus | J21: Eläintilat (tieosalle kumuloitunut lkm) | U21: Luokka | V21: 3 | W21: =SUMIFS(X37:X984,N37:N984,"LOPUT",K37:K984,3)/1000 -> 627.338 | X21: =SUMIFS(X37:X984,N37:N984,"VÄHÄ",K37:K984,3)/1000 -> 1938.617 | CU21: Luokkien min pist.
D22: Koulu | F22: 1 | G22: =SUM(F22:F30) -> 10 | H22: =1/3 -> 0.3333333333 | J22: Pisteet (0-0,5 lineaarisesti) | L22: Eläinten lkm | Q22: TUKITOIMINTOJEN VERKKO | U22: Luokka | V22: 4 | W22: =SUMIFS(X37:X984,N37:N984,"LOPUT",K37:K984,4)/1000 -> 0 | X22: =SUMIFS(X37:X984,N37:N984,"VÄHÄ",K37:K984,4)/1000 -> 1332.024 | CU22: =MIN(IF(K37:K984=V19,G37:G984)) -> 12.36
D23: Eriku-reitti | F23: 1 | J23: =$F$16/4 -> 0.5 | K23: Nauta | L23: 100 | P23: Tienumerojärjestys | U23: Yht. | W23: =SUM(W19:W22) -> 1825.906 | X23: =SUM(X19:X22) -> 3293.859 | CU23: =MIN(IF(K37:K984=V20,G37:G984)) -> 9.948333333
D24: Varareitti | F24: 1 | J24: =$F$16/4 -> 0.5 | K24: Lammas/vuohi/hevonen | L24: 100 | CU24: =MIN(IF(K37:K984=V21,G37:G984)) -> 2.790010184
D25: Taajama | F25: 1 | J25: =$F$16/4 -> 0.5 | K25: Sika | L25: 400 | U25: Tieosia (kpl) | W25: kpl | X25: osuus | Y25: kpl | Z25: osuus | AA25: KAIKKI | CU25: =MIN(IF(K37:K984=V22,G37:G984)) -> 0.01364383562
D26: Asukastiheys | F26: 1 | J26: =$F$16/4 -> 0.5 | K26: Linnut | L26: 1000 | P26: Hae tienumero | U26: Luokka 1 | W26: =COUNTIFS(N37:N984,"LOPUT",K37:K984,1) -> 47 | X26: =W26/$W$30 -> 0.1260053619 | Y26: =COUNTIFS(N37:N984,"VÄHÄ",K37:K984,1) -> 0 | Z26: =Y26/$Y$30 -> 0 | AA26: =(W26+Y26)/($W$30+$Y$30) -> 0.04957805907 | CU26: Osuusmax | CY26: Koulubufferi (3 km tieverkkoa pitkin)
D27: KKVL | F27: 2 | J27: Tuotantolaitokset (kumuloituneet) | Q27: TIENUMEROA TUPLA-KLIKKAAMALLA SIIRTYMINEN KVL-JAKSOIHIN | U27: Luokka 2 | W27: =COUNTIFS(N37:N984,"LOPUT",K37:K984,2) -> 185 | X27: =W27/$W$30 -> 0.4959785523 | Y27: =COUNTIFS(N37:N984,"VÄHÄ",K37:K984,2) -> 4 | Z27: =Y27/$Y$30 -> 0.006956521739 | AA27: =(W27+Y27)/($W$30+$Y$30) -> 0.1993670886 | CN27: Tieosia | CU27: =CU22/$CN$30 -> 0.8191290064 | CY27: Pisteet | DA27: Tieosasta
D28: Matkailureitti | F28: 1 | J28: Pisteet | L28: Laitosten lkm | U28: Luokka 3 | W28: =COUNTIFS(N37:N984,"LOPUT",K37:K984,3) -> 141 | X28: =W28/$W$30 -> 0.3780160858 | Y28: =COUNTIFS(N37:N984,"VÄHÄ",K37:K984,3) -> 333 | Z28: =Y28/$Y$30 -> 0.5791304348 | AA28: =(W28+Y28)/($W$30+$Y$30) -> 0.5 | CN28: =COUNTA(D37:D984) -> 948 | CU28: =CU23/$CN$30 -> 0.6593016504 | CY28: =$F$22 -> 1 | CZ28: =CONCATENATE("≥ ",DA28*100," %") -> ≥ 50 % | DA28: 0.5
D29: Matkailukohde | F29: 1 | J29: =F18 -> 2 | K29: =CONCATENATE("≥ ",L29,) -> ≥ 5 | L29: 5 | P29: Suodata KVL:n perusteella | Q29: TIEOSA JAKAUTUU KVL-JAKSOIHIN | U29: Luokka 4 | W29: =COUNTIFS(N37:N984,"LOPUT",K37:K984,4) -> 0 | X29: =W29/$W$30 -> 0 | Y29: =COUNTIFS(N37:N984,"VÄHÄ",K37:K984,4) -> 238 | Z29: =Y29/$Y$30 -> 0.4139130435 | AA29: =(W29+Y29)/($W$30+$Y$30) -> 0.2510548523 | CN29: MAX | CU29: =CU24/$CN$30 -> 0.1849011545 | CY29: =F22/2 -> 0.5 | CZ29: =CONCATENATE("1-",DA28*100-1," %") -> 1-49 % | EG29: Luokka muuttunut VÄHÄ/LOPUT
D30: Tien verkollinen asema | F30: 1 | J30: 0-1 | K30: 1–4 lineaariseti | U30: Yht. | W30: =SUM(W26:W29) -> 373 | X30: =SUM(X26:X29) -> 1 | Y30: =SUM(Y26:Y29) -> 575 | Z30: =SUM(Z26:Z29) -> 1 | CN30: =MAX(CM37:CM984) -> 15.08919829 | CU30: =CU25/$CN$30 -> 0.0009042120965 | EG30: 6 x VÄHÄ → LOPUT ja 34 x LOPUT → VÄHÄ
A31: 1 | B31: 2 | D31: 1 | E31: 2 | F31: 3 | G31: 4 | K31: 5 | L31: 6 | M31: 7 | N31: 8 | O31: 9 | P31: 10 | U31: 14 | V31: 15 | W31: 16 | X31: 17 | Y31: 18 | Z31: 19 | AA31: 20 | AB31: 21 | AC31: 22 | AD31: 23 | AE31: 24 | AJ31: 28 | AM31: 31 | AR31: 32 | AS31: 33 | AW31: 35 | AX31: 36 | AY31: 37 | AZ31: 38 | BA31: 39 | BB31: 40 | BC31: 41 | BD31: 42 | BE31: 43 | BF31: 44 | BH31: 45 | BI31: 46 | BJ31: 47 | BK31: 48 | BL31: 49 | BR31: 50 | BS31: 51 | BT31: 52 | BU31: 53 | BV31: 54 | BW31: 55 | BX31: 56 | BY31: 57 | BZ31: 58 | CA31: 59 | CB31: 60 | CC31: 61 | CI31: 67 | CJ31: 68 | CK31: 69 | CL31: 70 | CM31: 10.6 | CN31: 71 | CU31: 72 | CV31: 73
A32: Lajittelu, ID | B32: LUOKKA | C32: Lajittelu | D32: Sija | E32: Herkkyys, sija ennen muutosta | F32: Herkkyys, sijamuutos | G32: Pisteet | H32: Sään. henkliik. pisteet | I32: Sään. tavaraliik. pisteet | J32: Muut tekijät pisteet | K32: Merkittävyys-luokka | L32: Luokan muutos | M32: Google Maps | S32: TIEOSAN OMINAISUUDET | AR32: SÄÄNNÖLLINEN HENKILÖLIIKENNE | AY32: PISTEET YHTEENSÄ (max. 15) | AZ32: PISTEET YHTEENSÄ, PAINOTETTU | BA32: SÄÄNNÖLLINEN TAVARALIIKENNE | BR32: PISTEET YHTEENSÄ (max. 25) | BS32: PISTEET YHTEENSÄ, PAINOTETTU | BT32: MUUT TEKIJÄT | CJ32: PISTEET YHTEENSÄ (max. 10) | CK32: PISTEET YHTEENSÄ, PAINOTETTU | CL32: PISTEET YHTEENSÄ (max. 50) | CM32: PISTEET YHTEENSÄ, PAINOTETTU | CN32: MERKITTÄVYYS-LUOKKA | CQ32: Tukitoiminnot | EA32: Pistotie = 1 | EG32: Muutokset 2020-2024
AN33: Kaduksi muutettava % | AO33: Jkpp-väylä % | AR33: Liikennemäärä | AS33: Linja-autoliikenne (matka.fi) | AW33: Työmatkareitti | BA33: Liikennemäärä | BF33: Maatilat | BP33: Puukuljetusreitit | BT33: 3 km koulu-bufferi | BW33: Erikois-kuljetusreitti | BZ33: Vara-reitti | CA33: Taajama | CD33: Asukastiheys | CF33: Liikennemäärä | CG33: Matkailureitti | CH33: Matkailukohde | CI33: Tien verkollinen asema | CQ33: Pisteet | CR33: Sään. henkliik. pisteet | CS33: Sään. tavaraliik. pisteet | CT33: Muut tekijät pisteet | DZ33: vertailu | EG33: VERKKO 2020 | EH33: Verkko muutos | EI33: Sija 2020 | EJ33: Sija-muutos | EK33: Luokka 2020 | EL33: Luokanmuutos
A34: Lajittelu, ID | B34: Lajittelu, KVL | N34: LUOKKA | O34: TOIML | P34: Tien nimi | Q34: Kunta | S34: TIE | T34: AOSA | U34: AET | V34: LOSA | W34: LET | X34: PITUUS | Y34: KVL, ka | Z34: KVLRAS | AA34: KKVL | AB34: KVL | AC34: Nopeusrajoitus | AD34: Hoitoluokka | AE34: Päällyste | AF34: PK | AG34: HEVAT 19-23 | AH34: kaikki onn. 19-23 | AI34: Huonokuntoinen päällyste | AJ34: KVLYHD | AK34: TEN-T | AL34: PÄÄVÄYLÄ | AM34: HCT | AR34: KVL pisteet | AS34: Vuorot | AT34: Uusi | AV34: Pisteet | AW34: Työmatkat | AX34: Pisteet | BA34: KVLRAS pisteet | BB34: KVLyhd | BC34: Maito | BD34: Jäte | BE34: Maa-aines | BF34: Vilja | BG34: Kasvih. | BH34: Nauta | BI34: Lammas | BJ34: Sika | BK34: Siipikarja | BL34: Elintarvikelaitos | BM34: Tuotantolaitos | BN34: Logistiikka-alue | BO34: Päivittäistavarakauppa | BP34: Autoa/vrk | BQ34: Pisteet | CD34: Asukkaat | CE34: Pisteet | CF34: KKVL pisteet | CG34: Pisteet | CH34: Pisteet | CI34: Pisteet | CO34: KVLosuus | CV34: Gmaps linkki | CY34: Maito, reititys lypsytilat | CZ34: Maito, Arla | DA34: Maito, Valio | DB34: Maito yht. | DC34: Jäte | DD34: Maa-aines | DE34: Turve | DF34: Viljan säilytys | DG34: Kasvihuone | DH34: Nauta | DI34: Lammas/Vuohi/Hevonen | DJ34: Sika | DK34: Siipikarja | DL34: Elintarvikelaitos | DN34: Koulubufferi | DO34: Tuotanto | DP34: Logistiikka | DQ34: Varareitit | DR34: Taajama | DS34: jos kkvl > raja | DT34: jos kkvl/kvl > 1,5 kertainen | DU34: kkvl yhteensä | DV34: Matkailukohde reititys | DW34: Matkailureitti | DX34: Pyörämatkailureitti | DY34: Matkailureitit yht | DZ34: Matkailukohde | EA34: Tien verkollinen asema | EB34: Kauppa | EC34: Katukohde, osuus | ED34: jkp-osuus | EE34: Logistiikka kerrosala | EN34: 2020 tiedot
G35: 15
D36: Sija | E36: Ennen muutosta | F36: Sijamuutos | G36: Pisteet | K36: Luokka | L36: Luokan muutos | M36: ID | N36: Gmaps | O36: LUOKKA | S36: TIE | T36: AOSA | U36: AET | V36: LOSA | W36: LET | X36: PITUUS | Y36: KVL | Z36: KVLRAS | AA36: KKVL | AB36: KVL, ketjutus | AC36: Nopeusrajoitus | AD36: Hoitoluokka | AE36: Päällyste | AF36: Kunta | AG36: HEVA 09-13 | AH36: kaikki onn. | AI36: Asukkaat (500m) | AJ36: Siltanumero | AK36: Kuntoluokka | AM36: Painorajoitus | AR36: KVL pisteet | AS36: Vuorot | AV36: Pisteet | AW36: Työmatkat | AX36: Pisteet | AY36: PISTEET YHTEENSÄ (max. 15) | AZ36: PISTEET YHTEENSÄ, PAINOTETTU | BA36: KVLRAS pisteet | BC36: Maito | BD36: Jäte | BE36: Maa-aines | BF36: Maatalousrakennukset | BI36: Lammas | BJ36: Sika | BK36: Siipikarja | BL36: Elintarvikelaitos | BM36: Tuotantolaitos | BN36: Logistiikka-alue | BR36: PISTEET YHTEENSÄ (max. 15) | BS36: PISTEET YHTEENSÄ, PAINOTETTU | BT36: Pituus | BU36: Prosentti | BV36: KOULU | BW36: Pituus | BX36: Prosentti | BY36: ERIKU | BZ36: VARAREITTI | CA36: Pituus | CB36: Prosentti | CC36: TAAJAMA | CD36: Asukkaat | CE36: KYLÄ | CF36: KKVL pisteet | CG36: Matkailureitti | CH36: Matkailukohde | CI36: Tien verkollinen asema | CJ36: PISTEET YHTEENSÄ (max. 15) | CK36: PISTEET YHTEENSÄ, PAINOTETTU | CL36: PISTEET YHTEENSÄ (max. 45) | CM36: PISTEET YHTEENSÄ, PAINOTETTU | CN36: MERKITSEVYYS-LUOKKA
A37: =CONCATENATE(S37,"_",T37) -> 637_1 | B37: 1 | D37: =RANK(CM37,$CM$37:$CM$984) -> 1 | E37: 1 | F37: =E37-D37 -> 0 | G37: =CM37 -> 15.08919829 | H37: =AZ37 -> 5 | I37: =BS37 -> 7.422531619 | J37: =CK37 -> 2.666666667 | K37: =CN37 -> 1 | L37: =B37-K37 -> 0 | M37: =HYPERLINK(CV37,"Gmaps") -> Gmaps | N37: =IF(Y37>$K$6,"LOPUT","VÄHÄ") -> LOPUT | O37: =IF(S37<40,"Valta",IF(S37<100,"Kanta",IF(S37<1000,"Seutu",IF(S37>999,"Yhdys")))) -> Seutu | P37: Laukaantie, Lohikoskentie | Q37: Jyväskylä | S37: 637 | T37: 1 | U37: 0 | V37: 1 | W37: 5244 | X37: 5244 | Y37: 14844.2807 | Z37: 1016.768116 | AA37: 15073 | AB37: 12388 (69 %), 20300 (31 %) | AC37: 50 (57 %), 60 (41 %) | AD37: Is (99 %) | AE37: Asfalttibetoni (18 %), Kivimastiksiasfaltti (81 %) | AF37: PK2 (99 %) | AG37: 7 | AH37: 37 | AI37: 0.04806371876 | AJ37: 436.8451564 | AR37: =+IF(Y37>=$K$6,$F$5,($F$5/($K$6))*Y37) -> 9 | AS37: 781 | AV37: =+IF(AS37>=$L$15,$J$15,IF(AS37<($L$15),AS37*($J$15/($L$15)),)) -> 3 | AW37: 9512 | AX37: =+IF(AW37>=$L$11,$J$11,IF(AW37<($L$11),AW37*($J$11/($L$11)),)) -> 3 | AY37: =SUM(AR37,AV37,AX37) -> 15 | AZ37: =+AY37*$H$5 -> 5 | BA37: =+IF(Z37=0,0,IF(Z37>$K$7,$F$9,($F$9/$K$7)*Z37)) -> 8 | BB37: =+IF(AJ37=0,0,IF(AJ37>$L$6,$F$10,($F$10/$L$6)*AJ37)) -> 1 | BC37: =IF(DB37>0,$F$11,0) -> 3 | BD37: =IF(DC37>0,$F$12,0) -> 1 | BE37: =IF(DD37>0,$F$13,0) -> 1 | BF37: =IF(DF37>0,$F$14,0) -> 1 | BG37: =IF(DG37>0,$F$15,0) -> 1 | BH37: =+IF(DH37>=$L$23,$J$23,IF(DH37<($L$23),DH37*($J$23/($L$23)),)) -> 0 | BI37: =+IF(DI37>=$L$24,$J$24,IF(DI37<($L$24),DI37*($J$24/($L$24)),)) -> 0.085 | BJ37: =+IF(DJ37>=$L$25,$J$25,IF(DJ37<($L$25),DJ37*($J$25/($L$25)),)) -> 0 | BK37: =+IF(DK37>=$L$26,$J$26,IF(DK37<($L$26),DK37*($J$26/($L$26)),)) -> 0 | BL37: =IF(DL37>0,$F$17,0) -> 2 | BM37: =+IF(DO37>=$L$29,$J$29,IF(DO37<($L$29),DO37*($J$29/($L$29)),)) -> 2 | BO37: =IF(EB37>0,$F$19,0) -> 2 | BP37: 1.825948582 | BQ37: =+IF(BP37>=$L$19,$J$19,IF(BP37<($L$19),BP37*($J$19/($L$19)),)) -> 0.1825948582 | BR37: =SUM(BA37+BC37+BD37+BE37+BB37+BF37+BL37+BH37+BI37+BJ37+BK37+BM37+BO37+BQ37+BG37) -> 22.26759486 | BS37: =+BR37*$H$9 -> 7.422531619 | BT37: =DN37 -> 4357.28 | BU37: =BT37/X37 -> 0.830907704 | BV37: =IF(BU37>0,IF(BU37>=$DA$28,$CY$28,IF(BU37<$DA$28,$CY$29,0)),0) -> 1 | BW37: 5180.58 | BX37: =BW37/X37 -> 0.9879061785 | BY37: =IF(BX37,$F$23,0) -> 1 | BZ37: =IF(DQ37>0,$F$24,0) -> 1 | CA37: =DR37 -> 5174.62 | CB37: =CA37/X37 -> 0.9867696415 | CC37: =+IF(CB37>=$K$4,$F$25,0) -> 1 | CD37: 610.2578185 | CE37: =IF(CD37>0,IF(CD37>=100,$F$26,IF(CD37<100,$F$26/2)),0) -> 1 | CF37: =SUM(DU37) -> 1 | CG37: =IF(DY37>0,$F$28,0) -> 1 | CH37: =IF(DV37>0,$F$29,0) -> 0 | CI37: =IF(EA37=0,$F$30,0) -> 1 | CJ37: =SUM(BV37,BY37,CE37,BZ37,CC37,CF37,CG37,CH37,CI37) -> 8 | CK37: =+CJ37*$H$22 -> 2.666666667 | CL37: =SUM(AY37,BR37,CJ37) -> 45.26759486 | CM37: =SUM(AZ37,BS37,CK37) -> 15.08919829 | CN37: =IF(D37<($Z$13*$CN$28),1,IF(D37<(($Z$14+$Z$13)*$CN$28),2,IF(D37<(($Z$15+$Z$13+$Z$14)*$CN$28),3,4))) -> 1 | CO37: =VLOOKUP(A37,Taul1!$F$6:$G$953,2,FALSE) -> 2 | CQ37: =AR37+AV37+AX37+BA37+BC37+BD37+BF37+BG37+BH37+BI37+BJ37+BK37+BL37+BM37+BO37+BV37+BY37+BZ37+CF37+CI37 -> 40.085 | CR37: =AY37 -> 15 | CS37: =BA37+BC37+BD37+BF37+BG37+BH37+BI37+BJ37+BK37+BL37+BM37+BO37 -> 20.085 | CT37: =BV37+BY37+BZ37+CF37+CI37 -> 5 | CV37: https://www.google.com/maps/@62.25688153,25.75580776,3a,75y,90t/data=!3m3!1e1!3m1!2e0 | DA37: 26 | DB37: =SUM(CY37:DA37) -> 26 | DC37: 7 | DD37: 3 | DE37: 0 | DF37: 1 | DG37: 2 | DH37: 0 | DI37: 17 | DJ37: 0 | DK37: 0 | DL37: 3 | DN37: 4357.28 | DO37: 33 | DQ37: 29 | DR37: 5174.62 | DS37: =+IF(AA37>$K$8,$F$27/2,0) -> 1 | DT37: =+IF(AA37/Y37>1.5,$F$27/2,0) -> 0 | DU37: =SUM(DS37:DT37) -> 1 | DV37: 0 | DW37: 0 | DX37: 2 | DY37: =SUM(DW37:DX37) -> 2 | EA37: 0 | EB37: 7 | EG37: =IFERROR(VLOOKUP(A37,$EN$37:$EP$992,2,FALSE),"--") -> LOPUT | EH37: =IF(EG37="--","--",IF(N37="LOPUT",IF(EG37="VÄHÄ","--> LOPUT",""),IF(N37="VÄHÄ",IF(EG37="LOPUT","-->VÄHÄ","")))) ->  | EI37: =IFERROR(VLOOKUP(A37,$EN$37:$EP$992,3,FALSE),"--") -> 1 | EJ37: =IFERROR(EI37-D37,"--") -> 0 | EK37: =IFERROR(VLOOKUP(A37,$EN$37:$EQ$992,4,FALSE),"--") -> 1 | EL37: =IFERROR(EK37-K37,"--") -> 0 | EN37: 659_11 | EO37: VÄHÄ | EP37: 1 | EQ37: 1
A38: =CONCATENATE(S38,"_",T38) -> 4_301 | B38: 1 | D38: =RANK(CM38,$CM$37:$CM$984) -> 2 | E38: 2 | F38: =E38-D38 -> 0 | G38: =CM38 -> 14.85276294 | H38: =AZ38 -> 5 | I38: =BS38 -> 7.519429607 | J38: =CK38 -> 2.333333333 | K38: =CN38 -> 1 | L38: =B38-K38 -> 0 | M38: =HYPERLINK(CV38,"Gmaps") -> Gmaps | N38: =IF(Y38>$K$6,"LOPUT","VÄHÄ") -> LOPUT | O38: =IF(S38<40,"Valta",IF(S38<100,"Kanta",IF(S38<1000,"Seutu",IF(S38>999,"Yhdys")))) -> Valta | P38: Nelostie | Q38: Jyväskylä | S38: 4 | T38: 301 | U38: 0 | V38: 301 | W38: 7173 | X38: 7173 | Y38: 23211.65802 | Z38: 1462.927924 | AA38: 24345 | AB38: 19131 (17 %), 23245 (61 %), 26127 (23 %) | AC38: 100 (71 %), 70 (29 %) | AD38: Ise (100 %) | AE38: Asfalttibetoni (12 %), Kivimastiksiasfaltti (88 %) | AF38: PK1 (100 %) | AG38: 8 | AH38: 42 | AI38: 0.003798968354 | AJ38: 963.696919 | AR38: =+IF(Y38>=$K$6,$F$5,($F$5/($K$6))*Y38) -> 9 | AS38: 2691 | AV38: =+IF(AS38>=$L$15,$J$15,IF(AS38<($L$15),AS38*($J$15/($L$15)),)) -> 3 | AW38: 19964 | AX38: =+IF(AW38>=$L$11,$J$11,IF(AW38<($L$11),AW38*($J$11/($L$11)),)) -> 3 | AY38: =SUM(AR38,AV38,AX38) -> 15 | AZ38: =+AY38*$H$5 -> 5 | BA38: =+IF(Z38=0,0,IF(Z38>$K$7,$F$9,($F$9/$K$7)*Z38)) -> 8 | BB38: =+IF(AJ38=0,0,IF(AJ38>$L$6,$F$10,($F$10/$L$6)*AJ38)) -> 1 | BC38: =IF(DB38>0,$F$11,0) -> 3 | BD38: =IF(DC38>0,$F$12,0) -> 1 | BE38: =IF(DD38>0,$F$13,0) -> 1 | BF38: =IF(DF38>0,$F$14,0) -> 1 | BG38: =IF(DG38>0,$F$15,0) -> 1 | BH38: =+IF(DH38>=$L$23,$J$23,IF(DH38<($L$23),DH38*($J$23/($L$23)),)) -> 0 | BI38: =+IF(DI38>=$L$24,$J$24,IF(DI38<($L$24),DI38*($J$24/($L$24)),)) -> 0.085 | BJ38: =+IF(DJ38>=$L$25,$J$25,IF(DJ38<($L$25),DJ38*($J$25/($L$25)),)) -> 0 | BK38: =+IF(DK38>=$L$26,$J$26,IF(DK38<($L$26),DK38*($J$26/($L$26)),)) -> 0.0095 | BL38: =IF(DL38>0,$F$17,0) -> 2 | BM38: =+IF(DO38>=$L$29,$J$29,IF(DO38<($L$29),DO38*($J$29/($L$29)),)) -> 2 | BO38: =IF(EB38>0,$F$19,0) -> 2 | BP38: 4.637888219 | BQ38: =+IF(BP38>=$L$19,$J$19,IF(BP38<($L$19),BP38*($J$19/($L$19)),)) -> 0.4637888219 | BR38: =SUM(BA38+BC38+BD38+BE38+BB38+BF38+BL38+BH38+BI38+BJ38+BK38+BM38+BO38+BQ38+BG38) -> 22.55828882 | BS38: =+BR38*$H$9 -> 7.519429607 | BT38: =DN38 -> 7186.54 | BU38: =BT38/X38 -> 1.001887634 | BV38: =IF(BU38>0,IF(BU38>=$DA$28,$CY$28,IF(BU38<$DA$28,$CY$29,0)),0) -> 1 | BW38: 6635.49 | BX38: =BW38/X38 -> 0.9250648264 | BY38: =IF(BX38,$F$23,0) -> 1 | BZ38: =IF(DQ38>0,$F$24,0) -> 1 | CA38: =DR38 -> 5637.71 | CB38: =CA38/X38 -> 0.7859626377 | CC38: =+IF(CB38>=$K$4,$F$25,0) -> 1 | CD38: 982.4912868 | CE38: =IF(CD38>0,IF(CD38>=100,$F$26,IF(CD38<100,$F$26/2)),0) -> 1 | CF38: =SUM(DU38) -> 1 | CG38: =IF(DY38>0,$F$28,0) -> 0 | CH38: =IF(DV38>0,$F$29,0) -> 0 | CI38: =IF(EA38=0,$F$30,0) -> 1 | CJ38: =SUM(BV38,BY38,CE38,BZ38,CC38,CF38,CG38,CH38,CI38) -> 7 | CK38: =+CJ38*$H$22 -> 2.333333333 | CL38: =SUM(AY38,BR38,CJ38) -> 44.55828882 | CM38: =SUM(AZ38,BS38,CK38) -> 14.85276294 | CN38: =IF(D38<($Z$13*$CN$28),1,IF(D38<(($Z$14+$Z$13)*$CN$28),2,IF(D38<(($Z$15+$Z$13+$Z$14)*$CN$28),3,4))) -> 1 | CO38: =VLOOKUP(A38,Taul1!$F$6:$G$953,2,FALSE) -> 3 | CQ38: =AR38+AV38+AX38+BA38+BC38+BD38+BF38+BG38+BH38+BI38+BJ38+BK38+BL38+BM38+BO38+BV38+BY38+BZ38+CF38+CI38 -> 40.0945 | CR38: =AY38 -> 15 | CS38: =BA38+BC38+BD38+BF38+BG38+BH38+BI38+BJ38+BK38+BL38+BM38+BO38 -> 20.0945 | CT38: =BV38+BY38+BZ38+CF38+CI38 -> 5 | CV38: https://www.google.com/maps/@62.24653765,25.76999781,3a,75y,90t/data=!3m3!1e1!3m1!2e0 | DA38: 26 | DB38: =SUM(CY38:DA38) -> 26 | DC38: 12 | DD38: 5 | DE38: 0 | DF38: 3 | DG38: 2 | DH38: 0 | DI38: 17 | DJ38: 0 | DK38: 19 | DL38: 3 | DN38: 7186.54 | DO38: 66 | DQ38: 12 | DR38: 5637.71 | DS38: =+IF(AA38>$K$8,$F$27/2,0) -> 1 | DT38: =+IF(AA38/Y38>1.5,$F$27/2,0) -> 0 | DU38: =SUM(DS38:DT38) -> 1 | DV38: 0 | DW38: 0 | DX38: 0 | DY38: =SUM(DW38:DX38) -> 0 | EA38: 0 | EB38: 20 | EG38: =IFERROR(VLOOKUP(A38,$EN$37:$EP$992,2,FALSE),"--") -> -- | EH38: =IF(EG38="--","--",IF(N38="LOPUT",IF(EG38="VÄHÄ","--> LOPUT",""),IF(N38="VÄHÄ",IF(EG38="LOPUT","-->VÄHÄ","")))) -> -- | EI38: =IFERROR(VLOOKUP(A38,$EN$37:$EP$992,3,FALSE),"--") -> -- | EJ38: =IFERROR(EI38-D38,"--") -> -- | EK38: =IFERROR(VLOOKUP(A38,$EN$37:$EQ$992,4,FALSE),"--") -> -- | EL38: =IFERROR(EK38-K38,"--") -> -- | EN38: 612_8 | EO38: VÄHÄ | EP38: 2 | EQ38: 1
A39: =CONCATENATE(S39,"_",T39) -> 4_304 | B39: 1 | D39: =RANK(CM39,$CM$37:$CM$984) -> 3 | E39: 3 | F39: =E39-D39 -> 0 | G39: =CM39 -> 14.50833333 | H39: =AZ39 -> 5 | I39: =BS39 -> 7.508333333 | J39: =CK39 -> 2 | K39: =CN39 -> 1 | L39: =B39-K39 -> 0 | M39: =HYPERLINK(CV39,"Gmaps") -> Gmaps | N39: =IF(Y39>$K$6,"LOPUT","VÄHÄ") -> LOPUT | O39: =IF(S39<40,"Valta",IF(S39<100,"Kanta",IF(S39<1000,"Seutu",IF(S39>999,"Yhdys")))) -> Valta | P39: Nelostie | Q39: Jyväskylä, Laukaa | S39: 4 | T39: 304 | U39: 0 | V39: 304 | W39: 5563 | X39: 5563 | Y39: 11408.58997 | Z39: 1000.933669 | AA39: 12549 | AB39: 11302 (51 %), 11520 (49 %) | AC39: 100 (100 %) | AD39: Ise (100 %) | AE39: Asfalttibetoni (100 %) | AF39: PK1 (100 %) | AG39: 0 | AH39: 3 | AI39: 0 | AJ39: 601.6020133 | AR39: =+IF(Y39>=$K$6,$F$5,($F$5/($K$6))*Y39) -> 9 | AS39: 86 | AV39: =+IF(AS39>=$L$15,$J$15,IF(AS39<($L$15),AS39*($J$15/($L$15)),)) -> 3 | AW39: 3724 | AX39: =+IF(AW39>=$L$11,$J$11,IF(AW39<($L$11),AW39*($J$11/($L$11)),)) -> 3 | AY39: =SUM(AR39,AV39,AX39) -> 15 | AZ39: =+AY39*$H$5 -> 5 | BA39: =+IF(Z39=0,0,IF(Z39>$K$7,$F$9,($F$9/$K$7)*Z39)) -> 8 | BB39: =+IF(AJ39=0,0,IF(AJ39>$L$6,$F$10,($F$10/$L$6)*AJ39)) -> 1 | BC39: =IF(DB39>0,$F$11,0) -> 3 | BD39: =IF(DC39>0,$F$12,0) -> 1 | BE39: =IF(DD39>0,$F$13,0) -> 1 | BF39: =IF(DF39>0,$F$14,0) -> 1 | BG39: =IF(DG39>0,$F$15,0) -> 1 | BH39: =+IF(DH39>=$L$23,$J$23,IF(DH39<($L$23),DH39*($J$23/($L$23)),)) -> 0.5 | BI39: =+IF(DI39>=$L$24,$J$24,IF(DI39<($L$24),DI39*($J$24/($L$24)),)) -> 0.025 | BJ39: =+IF(DJ39>=$L$25,$J$25,IF(DJ39<($L$25),DJ39*($J$25/($L$25)),)) -> 0 | BK39: =+IF(DK39>=$L$26,$J$26,IF(DK39<($L$26),DK39*($J$26/($L$26)),)) -> 0 | BL39: =IF(DL39>0,$F$17,0) -> 2 | BM39: =+IF(DO39>=$L$29,$J$29,IF(DO39<($L$29),DO39*($J$29/($L$29)),)) -> 2 | BO39: =IF(EB39>0,$F$19,0) -> 2 | BP39: 0 | BQ39: =+IF(BP39>=$L$19,$J$19,IF(BP39<($L$19),BP39*($J$19/($L$19)),)) -> 0 | BR39: =SUM(BA39+BC39+BD39+BE39+BB39+BF39+BL39+BH39+BI39+BJ39+BK39+BM39+BO39+BQ39+BG39) -> 22.525 | BS39: =+BR39*$H$9 -> 7.508333333 | BT39: =DN39 -> 2070.12 | BU39: =BT39/X39 -> 0.3721229552 | BV39: =IF(BU39>0,IF(BU39>=$DA$28,$CY$28,IF(BU39<$DA$28,$CY$29,0)),0) -> 0.5 | BW39: 5563.29 | BX39: =BW39/X39 -> 1.00005213 | BY39: =IF(BX39,$F$23,0) -> 1 | BZ39: =IF(DQ39>0,$F$24,0) -> 1 | CA39: =DR39 -> 0 | CB39: =CA39/X39 -> 0 | CC39: =+IF(CB39>=$K$4,$F$25,0) -> 0 | CD39: 14.12906705 | CE39: =IF(CD39>0,IF(CD39>=100,$F$26,IF(CD39<100,$F$26/2)),0) -> 0.5 | CF39: =SUM(DU39) -> 1 | CG39: =IF(DY39>0,$F$28,0) -> 0 | CH39: =IF(DV39>0,$F$29,0) -> 1 | CI39: =IF(EA39=0,$F$30,0) -> 1 | CJ39: =SUM(BV39,BY39,CE39,BZ39,CC39,CF39,CG39,CH39,CI39) -> 6 | CK39: =+CJ39*$H$22 -> 2 | CL39: =SUM(AY39,BR39,CJ39) -> 43.525 | CM39: =SUM(AZ39,BS39,CK39) -> 14.50833333 | CN39: =IF(D39<($Z$13*$CN$28),1,IF(D39<(($Z$14+$Z$13)*$CN$28),2,IF(D39<(($Z$15+$Z$13+$Z$14)*$CN$28),3,4))) -> 1 | CO39: =VLOOKUP(A39,Taul1!$F$6:$G$953,2,FALSE) -> 2 | CQ39: =AR39+AV39+AX39+BA39+BC39+BD39+BF39+BG39+BH39+BI39+BJ39+BK39+BL39+BM39+BO39+BV39+BY39+BZ39+CF39+CI39 -> 40.025 | CR39: =AY39 -> 15 | CS39: =BA39+BC39+BD39+BF39+BG39+BH39+BI39+BJ39+BK39+BL39+BM39+BO39 -> 20.525 | CT39: =BV39+BY39+BZ39+CF39+CI39 -> 4.5 | CV39: https://www.google.com/maps/@62.38513303,25.70733758,3a,75y,90t/data=!3m3!1e1!3m1!2e0 | DA39: 8 | DB39: =SUM(CY39:DA39) -> 8 | DC39: 8 | DD39: 10 | DE39: 0 | DF39: 16 | DG39: 5 | DH39: 201 | DI39: 5 | DJ39: 0 | DK39: 0 | DL39: 1 | DN39: 2070.12 | DO39: 7 | DQ39: 10 | DR39: 0 | DS39: =+IF(AA39>$K$8,$F$27/2,0) -> 1 | DT39: =+IF(AA39/Y39>1.5,$F$27/2,0) -> 0 | DU39: =SUM(DS39:DT39) -> 1 | DV39: 1 | DW39: 0 | DX39: 0 | DY39: =SUM(DW39:DX39) -> 0 | EA39: 0 | EB39: 7 | EG39: =IFERROR(VLOOKUP(A39,$EN$37:$EP$992,2,FALSE),"--") -> -- | EH39: =IF(EG39="--","--",IF(N39="LOPUT",IF(EG39="VÄHÄ","--> LOPUT",""),IF(N39="VÄHÄ",IF(EG39="LOPUT","-->VÄHÄ","")))) -> -- | EI39: =IFERROR(VLOOKUP(A39,$EN$37:$EP$992,3,FALSE),"--") -> -- | EJ39: =IFERROR(EI39-D39,"--") -> -- | EK39: =IFERROR(VLOOKUP(A39,$EN$37:$EQ$992,4,FALSE),"--") -> -- | EL39: =IFERROR(EK39-K39,"--") -> -- | EN39: 6271_1 | EO39: VÄHÄ | EP39: 3 | EQ39: 1
A40: =CONCATENATE(S40,"_",T40) -> 642_4 | B40: 1 | D40: =RANK(CM40,$CM$37:$CM$984) -> 4 | E40: 4 | F40: =E40-D40 -> 0 | G40: =CM40 -> 14.31666667 | H40: =AZ40 -> 5 | I40: =BS40 -> 6.816666667 | J40: =CK40 -> 2.5 | K40: =CN40 -> 1 | L40: =B40-K40 -> 0 | M40: =HYPERLINK(CV40,"Gmaps") -> Gmaps | N40: =IF(Y40>$K$6,"LOPUT","VÄHÄ") -> LOPUT | O40: =IF(S40<40,"Valta",IF(S40<100,"Kanta",IF(S40<1000,"Seutu",IF(S40>999,"Yhdys")))) -> Seutu | P40: Äänekoskentie | Q40: Äänekoski | S40: 642 | T40: 4 | U40: 0 | V40: 4 | W40: 6919 | X40: 6919 | Y40: 5049.388206 | Z40: 258.2949848 | AA40: 5451 | AB40: 4999 (75 %), 5203 (25 %) | AC40: 50 (4 %), 60 (17 %), 70 (79 %) | AD40: Is (100 %) | AE40: Kivimastiksiasfaltti (94 %) | AF40: PK2 (100 %) | AG40: 2 | AH40: 7 | AI40: 0.02890591126 | AJ40: 84.75299899 | AR40: =+IF(Y40>=$K$6,$F$5,($F$5/($K$6))*Y40) -> 9 | AS40: 108 | AV40: =+IF(AS40>=$L$15,$J$15,IF(AS40<($L$15),AS40*($J$15/($L$15)),)) -> 3 | AW40: 1746 | AX40: =+IF(AW40>=$L$11,$J$11,IF(AW40<($L$11),AW40*($J$11/($L$11)),)) -> 3 | AY40: =SUM(AR40,AV40,AX40) -> 15 | AZ40: =+AY40*$H$5 -> 5 | BA40: =+IF(Z40=0,0,IF(Z40>$K$7,$F$9,($F$9/$K$7)*Z40)) -> 8 | BB40: =+IF(AJ40=0,0,IF(AJ40>$L$6,$F$10,($F$10/$L$6)*AJ40)) -> 1 | BC40: =IF(DB40>0,$F$11,0) -> 3 | BD40: =IF(DC40>0,$F$12,0) -> 1 | BE40: =IF(DD40>0,$F$13,0) -> 0 | BF40: =IF(DF40>0,$F$14,0) -> 1 | BG40: =IF(DG40>0,$F$15,0) -> 1 | BH40: =+IF(DH40>=$L$23,$J$23,IF(DH40<($L$23),DH40*($J$23/($L$23)),)) -> 0.45 | BI40: =+IF(DI40>=$L$24,$J$24,IF(DI40<($L$24),DI40*($J$24/($L$24)),)) -> 0 | BJ40: =+IF(DJ40>=$L$25,$J$25,IF(DJ40<($L$25),DJ40*($J$25/($L$25)),)) -> 0 | BK40: =+IF(DK40>=$L$26,$J$26,IF(DK40<($L$26),DK40*($J$26/($L$26)),)) -> 0 | BL40: =IF(DL40>0,$F$17,0) -> 2 | BM40: =+IF(DO40>=$L$29,$J$29,IF(DO40<($L$29),DO40*($J$29/($L$29)),)) -> 0 | BO40: =IF(EB40>0,$F$19,0) -> 2 | BP40: 19.79905796 | BQ40: =+IF(BP40>=$L$19,$J$19,IF(BP40<($L$19),BP40*($J$19/($L$19)),)) -> 1 | BR40: =SUM(BA40+BC40+BD40+BE40+BB40+BF40+BL40+BH40+BI40+BJ40+BK40+BM40+BO40+BQ40+BG40) -> 20.45 | BS40: =+BR40*$H$9 -> 6.816666667 | BT40: =DN40 -> 1291.17 | BU40: =BT40/X40 -> 0.1866122272 | BV40: =IF(BU40>0,IF(BU40>=$DA$28,$CY$28,IF(BU40<$DA$28,$CY$29,0)),0) -> 0.5 | BW40: 6532.33 | BX40: =BW40/X40 -> 0.9441147565 | BY40: =IF(BX40,$F$23,0) -> 1 | BZ40: =IF(DQ40>0,$F$24,0) -> 1 | CA40: =DR40 -> 5219.57 | CB40: =CA40/X40 -> 0.7543821361 | CC40: =+IF(CB40>=$K$4,$F$25,0) -> 1 | CD40: 165.8910247 | CE40: =IF(CD40>0,IF(CD40>=100,$F$26,IF(CD40<100,$F$26/2)),0) -> 1 | CF40: =SUM(DU40) -> 1 | CG40: =IF(DY40>0,$F$28,0) -> 1 | CH40: =IF(DV40>0,$F$29,0) -> 0 | CI40: =IF(EA40=0,$F$30,0) -> 1 | CJ40: =SUM(BV40,BY40,CE40,BZ40,CC40,CF40,CG40,CH40,CI40) -> 7.5 | CK40: =+CJ40*$H$22 -> 2.5 | CL40: =SUM(AY40,BR40,CJ40) -> 42.95 | CM40: =SUM(AZ40,BS40,CK40) -> 14.31666667 | CN40: =IF(D40<($Z$13*$CN$28),1,IF(D40<(($Z$14+$Z$13)*$CN$28),2,IF(D40<(($Z$15+$Z$13+$Z$14)*$CN$28),3,4))) -> 1 | CO40: =VLOOKUP(A40,Taul1!$F$6:$G$953,2,FALSE) -> 2 | CQ40: =AR40+AV40+AX40+BA40+BC40+BD40+BF40+BG40+BH40+BI40+BJ40+BK40+BL40+BM40+BO40+BV40+BY40+BZ40+CF40+CI40 -> 37.95 | CR40: =AY40 -> 15 | CS40: =BA40+BC40+BD40+BF40+BG40+BH40+BI40+BJ40+BK40+BL40+BM40+BO40 -> 18.45 | CT40: =BV40+BY40+BZ40+CF40+CI40 -> 4.5 | CV40: https://www.google.com/maps/@62.56351828,25.84144018,3a,75y,90t/data=!3m3!1e1!3m1!2e0 | DA40: 1 | DB40: =SUM(CY40:DA40) -> 1 | DC40: 2 | DD40: 0 | DE40: 0 | DF40: 1 | DG40: 1 | DH40: 90 | DI40: 0 | DJ40: 0 | DK40: 0 | DL40: 1 | DN40: 1291.17 | DO40: 0 | DQ40: 1 | DR40: 5219.57 | DS40: =+IF(AA40>$K$8,$F$27/2,0) -> 1 | DT40: =+IF(AA40/Y40>1.5,$F$27/2,0) -> 0 | DU40: =SUM(DS40:DT40) -> 1 | DV40: 0 | DW40: 0 | DX40: 2 | DY40: =SUM(DW40:DX40) -> 2 | EA40: 0 | EB40: 1 | EG40: =IFERROR(VLOOKUP(A40,$EN$37:$EP$992,2,FALSE),"--") -> LOPUT | EH40: =IF(EG40="--","--",IF(N40="LOPUT",IF(EG40="VÄHÄ","--> LOPUT",""),IF(N40="VÄHÄ",IF(EG40="LOPUT","-->VÄHÄ","")))) ->  | EI40: =IFERROR(VLOOKUP(A40,$EN$37:$EP$992,3,FALSE),"--") -> 45 | EJ40: =IFERROR(EI40-D40,"--") -> 41 | EK40: =IFERROR(VLOOKUP(A40,$EN$37:$EQ$992,4,FALSE),"--") -> 1 | EL40: =IFERROR(EK40-K40,"--") -> 0 | EN40: 16574_1 | EO40: VÄHÄ | EP40: 5 | EQ40: 1
A41: =CONCATENATE(S41,"_",T41) -> 13_134 | B41: 1 | D41: =RANK(CM41,$CM$37:$CM$984) -> 5 | E41: 5 | F41: =E41-D41 -> 0 | G41: =CM41 -> 14.185 | H41: =AZ41 -> 5 | I41: =BS41 -> 6.518333333 | J41: =CK41 -> 2.666666667 | K41: =CN41 -> 1 | L41: =B41-K41 -> 0 | M41: =HYPERLINK(CV41,"Gmaps") -> Gmaps | N41: =IF(Y41>$K$6,"LOPUT","VÄHÄ") -> LOPUT | O41: =IF(S41<40,"Valta",IF(S41<100,"Kanta",IF(S41<1000,"Seutu",IF(S41>999,"Yhdys")))) -> Valta | P41: Jyväskyläntie | Q41: Saarijärvi | S41: 13 | T41: 134 | U41: 0 | V41: 134 | W41: 4044 | X41: 4044 | Y41: 5729.813056 | Z41: 455.6913947 | AA41: 6990 | AB41: 5171 (48 %), 6241 (52 %) | AC41: 50 (7 %), 60 (93 %) | AD41: Is (100 %) | AE41: Kivimastiksiasfaltti (97 %) | AF41: PK1 (100 %) | AG41: 3 | AH41: 7 | AI41: 0.04006410256 | AJ41: 262.5905045 | AR41: =+IF(Y41>=$K$6,$F$5,($F$5/($K$6))*Y41) -> 9 | AS41: 31 | AV41: =+IF(AS41>=$L$15,$J$15,IF(AS41<($L$15),AS41*($J$15/($L$15)),)) -> 3 | AW41: 1541 | AX41: =+IF(AW41>=$L$11,$J$11,IF(AW41<($L$11),AW41*($J$11/($L$11)),)) -> 3 | AY41: =SUM(AR41,AV41,AX41) -> 15 | AZ41: =+AY41*$H$5 -> 5 | BA41: =+IF(Z41=0,0,IF(Z41>$K$7,$F$9,($F$9/$K$7)*Z41)) -> 8 | BB41: =+IF(AJ41=0,0,IF(AJ41>$L$6,$F$10,($F$10/$L$6)*AJ41)) -> 1 | BC41: =IF(DB41>0,$F$11,0) -> 3 | BD41: =IF(DC41>0,$F$12,0) -> 0 | BE41: =IF(DD41>0,$F$13,0) -> 0 | BF41: =IF(DF41>0,$F$14,0) -> 1 | BG41: =IF(DG41>0,$F$15,0) -> 1 | BH41: =+IF(DH41>=$L$23,$J$23,IF(DH41<($L$23),DH41*($J$23/($L$23)),)) -> 0.5 | BI41: =+IF(DI41>=$L$24,$J$24,IF(DI41<($L$24),DI41*($J$24/($L$24)),)) -> 0.055 | BJ41: =+IF(DJ41>=$L$25,$J$25,IF(DJ41<($L$25),DJ41*($J$25/($L$25)),)) -> 0 | BK41: =+IF(DK41>=$L$26,$J$26,IF(DK41<($L$26),DK41*($J$26/($L$26)),)) -> 0 | BL41: =IF(DL41>0,$F$17,0) -> 2 | BM41: =+IF(DO41>=$L$29,$J$29,IF(DO41<($L$29),DO41*($J$29/($L$29)),)) -> 0 | BO41: =IF(EB41>0,$F$19,0) -> 2 | BP41: 23.80297762 | BQ41: =+IF(BP41>=$L$19,$J$19,IF(BP41<($L$19),BP41*($J$19/($L$19)),)) -> 1 | BR41: =SUM(BA41+BC41+BD41+BE41+BB41+BF41+BL41+BH41+BI41+BJ41+BK41+BM41+BO41+BQ41+BG41) -> 19.555 | BS41: =+BR41*$H$9 -> 6.518333333 | BT41: =DN41 -> 2739.38 | BU41: =BT41/X41 -> 0.6773936696 | BV41: =IF(BU41>0,IF(BU41>=$DA$28,$CY$28,IF(BU41<$DA$28,$CY$29,0)),0) -> 1 | BW41: 3905.54 | BX41: =BW41/X41 -> 0.9657616222 | BY41: =IF(BX41,$F$23,0) -> 1 | BZ41: =IF(DQ41>0,$F$24,0) -> 1 | CA41: =DR41 -> 4039.89 | CB41: =CA41/X41 -> 0.9989836795 | CC41: =+IF(CB41>=$K$4,$F$25,0) -> 1 | CD41: 149.7012859 | CE41: =IF(CD41>0,IF(CD41>=100,$F$26,IF(CD41<100,$F$26/2)),0) -> 1 | CF41: =SUM(DU41) -> 1 | CG41: =IF(DY41>0,$F$28,0) -> 1 | CH41: =IF(DV41>0,$F$29,0) -> 0 | CI41: =IF(EA41=0,$F$30,0) -> 1 | CJ41: =SUM(BV41,BY41,CE41,BZ41,CC41,CF41,CG41,CH41,CI41) -> 8 | CK41: =+CJ41*$H$22 -> 2.666666667 | CL41: =SUM(AY41,BR41,CJ41) -> 42.555 | CM41: =SUM(AZ41,BS41,CK41) -> 14.185 | CN41: =IF(D41<($Z$13*$CN$28),1,IF(D41<(($Z$14+$Z$13)*$CN$28),2,IF(D41<(($Z$15+$Z$13+$Z$14)*$CN$28),3,4))) -> 1 | CO41: =VLOOKUP(A41,Taul1!$F$6:$G$953,2,FALSE) -> 2 | CQ41: =AR41+AV41+AX41+BA41+BC41+BD41+BF41+BG41+BH41+BI41+BJ41+BK41+BL41+BM41+BO41+BV41+BY41+BZ41+CF41+CI41 -> 37.555 | CR41: =AY41 -> 15 | CS41: =BA41+BC41+BD41+BF41+BG41+BH41+BI41+BJ41+BK41+BL41+BM41+BO41 -> 17.555 | CT41: =BV41+BY41+BZ41+CF41+CI41 -> 5 | CV41: https://www.google.com/maps/@62.69596744,25.2945793,3a,75y,90t/data=!3m3!1e1!3m1!2e0 | DA41: 8 | DB41: =SUM(CY41:DA41) -> 8 | DC41: 0 | DD41: 0 | DE41: 3 | DF41: 6 | DG41: 2 | DH41: 490 | DI41: 11 | DJ41: 0 | DK41: 0 | DL41: 1 | DN41: 2739.38 | DO41: 0 | DQ41: 23 | DR41: 4039.89 | DS41: =+IF(AA41>$K$8,$F$27/2,0) -> 1 | DT41: =+IF(AA41/Y41>1.5,$F$27/2,0) -> 0 | DU41: =SUM(DS41:DT41) -> 1 | DV41: 0 | DW41: 0 | DX41: 1 | DY41: =SUM(DW41:DX41) -> 1 | EA41: 0 | EB41: 5 | EG41: =IFERROR(VLOOKUP(A41,$EN$37:$EP$992,2,FALSE),"--") -> -- | EH41: =IF(EG41="--","--",IF(N41="LOPUT",IF(EG41="VÄHÄ","--> LOPUT",""),IF(N41="VÄHÄ",IF(EG41="LOPUT","-->VÄHÄ","")))) -> -- | EI41: =IFERROR(VLOOKUP(A41,$EN$37:$EP$992,3,FALSE),"--") -> -- | EJ41: =IFERROR(EI41-D41,"--") -> -- | EK41: =IFERROR(VLOOKUP(A41,$EN$37:$EQ$992,4,FALSE),"--") -> -- | EL41: =IFERROR(EK41-K41,"--") -> -- | EN41: 6071_1 | EO41: VÄHÄ | EP41: 6 | EQ41: 1
A42: =CONCATENATE(S42,"_",T42) -> 9_309 | B42: 1 | D42: =RANK(CM42,$CM$37:$CM$984) -> 6 | E42: 6 | F42: =E42-D42 -> 0 | G42: =CM42 -> 14.17 | H42: =AZ42 -> 5 | I42: =BS42 -> 6.67 | J42: =CK42 -> 2.5 | K42: =CN42 -> 1 | L42: =B42-K42 -> 0 | M42: =HYPERLINK(CV42,"Gmaps") -> Gmaps | N42: =IF(Y42>$K$6,"LOPUT","VÄHÄ") -> LOPUT | O42: =IF(S42<40,"Valta",IF(S42<100,"Kanta",IF(S42<1000,"Seutu",IF(S42>999,"Yhdys")))) -> Valta | P42: Ysitie | Q42: Hankasalmi | S42: 9 | T42: 309 | U42: 0 | V42: 309 | W42: 5740 | X42: 5740 | Y42: 4753.580488 | Z42: 518.2522648 | AA42: 5799 | AB42: 4341 (51 %), 5188 (49 %) | AC42: 100 (63 %), 80 (36 %) | AD42: Is (100 %) | AE42: Kivimastiksiasfaltti (100 %) | AF42: PK1 (100 %) | AG42: 2 | AH42: 3 | AI42: 0.006482982172 | AJ42: 339.3066202 | AR42: =+IF(Y42>=$K$6,$F$5,($F$5/($K$6))*Y42) -> 9 | AS42: 51 | AV42: =+IF(AS42>=$L$15,$J$15,IF(AS42<($L$15),AS42*($J$15/($L$15)),)) -> 3 | AW42: 1495 | AX42: =+IF(AW42>=$L$11,$J$11,IF(AW42<($L$11),AW42*($J$11/($L$11)),)) -> 3 | AY42: =SUM(AR42,AV42,AX42) -> 15 | AZ42: =+AY42*$H$5 -> 5 | BA42: =+IF(Z42=0,0,IF(Z42>$K$7,$F$9,($F$9/$K$7)*Z42)) -> 8 | BB42: =+IF(AJ42=0,0,IF(AJ42>$L$6,$F$10,($F$10/$L$6)*AJ42)) -> 1 | BC42: =IF(DB42>0,$F$11,0) -> 3 | BD42: =IF(DC42>0,$F$12,0) -> 1 | BE42: =IF(DD42>0,$F$13,0) -> 1 | BF42: =IF(DF42>0,$F$14,0) -> 1 | BG42: =IF(DG42>0,$F$15,0) -> 1 | BH42: =+IF(DH42>=$L$23,$J$23,IF(DH42<($L$23),DH42*($J$23/($L$23)),)) -> 0.5 | BI42: =+IF(DI42>=$L$24,$J$24,IF(DI42<($L$24),DI42*($J$24/($L$24)),)) -> 0.11 | BJ42: =+IF(DJ42>=$L$25,$J$25,IF(DJ42<($L$25),DJ42*($J$25/($L$25)),)) -> 0 | BK42: =+IF(DK42>=$L$26,$J$26,IF(DK42<($L$26),DK42*($J$26/($L$26)),)) -> 0 | BL42: =IF(DL42>0,$F$17,0) -> 0 | BM42: =+IF(DO42>=$L$29,$J$29,IF(DO42<($L$29),DO42*($J$29/($L$29)),)) -> 0.4 | BO42: =IF(EB42>0,$F$19,0) -> 2 | BP42: 25.61807914 | BQ42: =+IF(BP42>=$L$19,$J$19,IF(BP42<($L$19),BP42*($J$19/($L$19)),)) -> 1 | BR42: =SUM(BA42+BC42+BD42+BE42+BB42+BF42+BL42+BH42+BI42+BJ42+BK42+BM42+BO42+BQ42+BG42) -> 20.01 | BS42: =+BR42*$H$9 -> 6.67 | BT42: =DN42 -> 4131.84 | BU42: =BT42/X42 -> 0.7198327526 | BV42: =IF(BU42>0,IF(BU42>=$DA$28,$CY$28,IF(BU42<$DA$28,$CY$29,0)),0) -> 1 | BW42: 5711.7 | BX42: =BW42/X42 -> 0.9950696864 | BY42: =IF(BX42,$F$23,0) -> 1 | BZ42: =IF(DQ42>0,$F$24,0) -> 1 | CA42: =DR42 -> 1325.14 | CB42: =CA42/X42 -> 0.2308606272 | CC42: =+IF(CB42>=$K$4,$F$25,0) -> 0 | CD42: 38.81533101 | CE42: =IF(CD42>0,IF(CD42>=100,$F$26,IF(CD42<100,$F$26/2)),0) -> 0.5 | CF42: =SUM(DU42) -> 1 | CG42: =IF(DY42>0,$F$28,0) -> 1 | CH42: =IF(DV42>0,$F$29,0) -> 1 | CI42: =IF(EA42=0,$F$30,0) -> 1 | CJ42: =SUM(BV42,BY42,CE42,BZ42,CC42,CF42,CG42,CH42,CI42) -> 7.5 | CK42: =+CJ42*$H$22 -> 2.5 | CL42: =SUM(AY42,BR42,CJ42) -> 42.51 | CM42: =SUM(AZ42,BS42,CK42) -> 14.17 | CN42: =IF(D42<($Z$13*$CN$28),1,IF(D42<(($Z$14+$Z$13)*$CN$28),2,IF(D42<(($Z$15+$Z$13+$Z$14)*$CN$28),3,4))) -> 1 | CO42: =VLOOKUP(A42,Taul1!$F$6:$G$953,2,FALSE) -> 2 | CQ42: =AR42+AV42+AX42+BA42+BC42+BD42+BF42+BG42+BH42+BI42+BJ42+BK42+BL42+BM42+BO42+BV42+BY42+BZ42+CF42+CI42 -> 37.01 | CR42: =AY42 -> 15 | CS42: =BA42+BC42+BD42+BF42+BG42+BH42+BI42+BJ42+BK42+BL42+BM42+BO42 -> 17.01 | CT42: =BV42+BY42+BZ42+CF42+CI42 -> 5 | CV42: https://www.google.com/maps/@62.29881512,26.45416159,3a,75y,90t/data=!3m3!1e1!3m1!2e0 | DA42: 2 | DB42: =SUM(CY42:DA42) -> 2 | DC42: 4 | DD42: 1 | DE42: 3 | DF42: 8 | DG42: 1 | DH42: 251 | DI42: 22 | DJ42: 0 | DK42: 0 | DL42: 0 | DN42: 4131.84 | DO42: 1 | DQ42: 3 | DR42: 1325.14 | DS42: =+IF(AA42>$K$8,$F$27/2,0) -> 1 | DT42: =+IF(AA42/Y42>1.5,$F$27/2,0) -> 0 | DU42: =SUM(DS42:DT42) -> 1 | DV42: 1 | DW42: 0 | DX42: 1 | DY42: =SUM(DW42:DX42) -> 1 | EA42: 0 | EB42: 4 | EG42: =IFERROR(VLOOKUP(A42,$EN$37:$EP$992,2,FALSE),"--") -> -- | EH42: =IF(EG42="--","--",IF(N42="LOPUT",IF(EG42="VÄHÄ","--> LOPUT",""),IF(N42="VÄHÄ",IF(EG42="LOPUT","-->VÄHÄ","")))) -> -- | EI42: =IFERROR(VLOOKUP(A42,$EN$37:$EP$992,3,FALSE),"--") -> -- | EJ42: =IFERROR(EI42-D42,"--") -> -- | EK42: =IFERROR(VLOOKUP(A42,$EN$37:$EQ$992,4,FALSE),"--") -> -- | EL42: =IFERROR(EK42-K42,"--") -> -- | EN42: 6414_1 | EO42: VÄHÄ | EP42: 13 | EQ42: 1
A43: =CONCATENATE(S43,"_",T43) -> 56_1 | B43: 1 | D43: =RANK(CM43,$CM$37:$CM$984) -> 7 | E43: 7 | F43: =E43-D43 -> 0 | G43: =CM43 -> 14.085 | H43: =AZ43 -> 4.75 | I43: =BS43 -> 7.001666667 | J43: =CK43 -> 2.333333333 | K43: =CN43 -> 1 | L43: =B43-K43 -> 0 | M43: =HYPERLINK(CV43,"Gmaps") -> Gmaps | N43: =IF(Y43>$K$6,"LOPUT","VÄHÄ") -> LOPUT | O43: =IF(S43<40,"Valta",IF(S43<100,"Kanta",IF(S43<1000,"Seutu",IF(S43>999,"Yhdys")))) -> Kanta | P43: Kauhkialantie, Pääskysmäentie | Q43: Jämsä | S43: 56 | T43: 1 | U43: 0 | V43: 1 | W43: 7077 | X43: 7077 | Y43: 3807.410343 | Z43: 262.1449767 | AA43: 3880 | AB43: 3423 (82 %), 5527 (18 %) | AC43: 50 (36 %), 60 (38 %), 80 (26 %) | AD43: Is (100 %) | AE43: Asfalttibetoni (93 %), Kivimastiksiasfaltti (7 %) | AF43: PK2 (100 %) | AG43: 2 | AH43: 7 | AI43: 0 | AJ43: 120.3179313 | AR43: =+IF(Y43>=$K$6,$F$5,($F$5/($K$6))*Y43) -> 9 | AS43: 15 | AV43: =+IF(AS43>=$L$15,$J$15,IF(AS43<($L$15),AS43*($J$15/($L$15)),)) -> 2.25 | AW43: 1850 | AX43: =+IF(AW43>=$L$11,$J$11,IF(AW43<($L$11),AW43*($J$11/($L$11)),)) -> 3 | AY43: =SUM(AR43,AV43,AX43) -> 14.25 | AZ43: =+AY43*$H$5 -> 4.75 | BA43: =+IF(Z43=0,0,IF(Z43>$K$7,$F$9,($F$9/$K$7)*Z43)) -> 8 | BB43: =+IF(AJ43=0,0,IF(AJ43>$L$6,$F$10,($F$10/$L$6)*AJ43)) -> 1 | BC43: =IF(DB43>0,$F$11,0) -> 3 | BD43: =IF(DC43>0,$F$12,0) -> 1 | BE43: =IF(DD43>0,$F$13,0) -> 1 | BF43: =IF(DF43>0,$F$14,0) -> 1 | BG43: =IF(DG43>0,$F$15,0) -> 1 | BH43: =+IF(DH43>=$L$23,$J$23,IF(DH43<($L$23),DH43*($J$23/($L$23)),)) -> 0.005 | BI43: =+IF(DI43>=$L$24,$J$24,IF(DI43<($L$24),DI43*($J$24/($L$24)),)) -> 0 | BJ43: =+IF(DJ43>=$L$25,$J$25,IF(DJ43<($L$25),DJ43*($J$25/($L$25)),)) -> 0 | BK43: =+IF(DK43>=$L$26,$J$26,IF(DK43<($L$26),DK43*($J$26/($L$26)),)) -> 0 | BL43: =IF(DL43>0,$F$17,0) -> 0 | BM43: =+IF(DO43>=$L$29,$J$29,IF(DO43<($L$29),DO43*($J$29/($L$29)),)) -> 2 | BO43: =IF(EB43>0,$F$19,0) -> 2 | BP43: 19.75097258 | BQ43: =+IF(BP43>=$L$19,$J$19,IF(BP43<($L$19),BP43*($J$19/($L$19)),)) -> 1 | BR43: =SUM(BA43+BC43+BD43+BE43+BB43+BF43+BL43+BH43+BI43+BJ43+BK43+BM43+BO43+BQ43+BG43) -> 21.005 | BS43: =+BR43*$H$9 -> 7.001666667 | BT43: =DN43 -> 4172.78 | BU43: =BT43/X43 -> 0.5896255475 | BV43: =IF(BU43>0,IF(BU43>=$DA$28,$CY$28,IF(BU43<$DA$28,$CY$29,0)),0) -> 1 | BW43: 7047.61 | BX43: =BW43/X43 -> 0.9958471104 | BY43: =IF(BX43,$F$23,0) -> 1 | BZ43: =IF(DQ43>0,$F$24,0) -> 1 | CA43: =DR43 -> 4868.57 | CB43: =CA43/X43 -> 0.6879426311 | CC43: =+IF(CB43>=$K$4,$F$25,0) -> 1 | CD43: 140.5314399 | CE43: =IF(CD43>0,IF(CD43>=100,$F$26,IF(CD43<100,$F$26/2)),0) -> 1 | CF43: =SUM(DU43) -> 1 | CG43: =IF(DY43>0,$F$28,0) -> 0 | CH43: =IF(DV43>0,$F$29,0) -> 0 | CI43: =IF(EA43=0,$F$30,0) -> 1 | CJ43: =SUM(BV43,BY43,CE43,BZ43,CC43,CF43,CG43,CH43,CI43) -> 7 | CK43: =+CJ43*$H$22 -> 2.333333333 | CL43: =SUM(AY43,BR43,CJ43) -> 42.255 | CM43: =SUM(AZ43,BS43,CK43) -> 14.085 | CN43: =IF(D43<($Z$13*$CN$28),1,IF(D43<(($Z$14+$Z$13)*$CN$28),2,IF(D43<(($Z$15+$Z$13+$Z$14)*$CN$28),3,4))) -> 1 | CO43: =VLOOKUP(A43,Taul1!$F$6:$G$953,2,FALSE) -> 2 | CQ43: =AR43+AV43+AX43+BA43+BC43+BD43+BF43+BG43+BH43+BI43+BJ43+BK43+BL43+BM43+BO43+BV43+BY43+BZ43+CF43+CI43 -> 37.255 | CR43: =AY43 -> 14.25 | CS43: =BA43+BC43+BD43+BF43+BG43+BH43+BI43+BJ43+BK43+BL43+BM43+BO43 -> 18.005 | CT43: =BV43+BY43+BZ43+CF43+CI43 -> 5 | CV43: https://www.google.com/maps/@61.85076907,25.17533908,3a,75y,90t/data=!3m3!1e1!3m1!2e0 | DA43: 1 | DB43: =SUM(CY43:DA43) -> 1 | DC43: 1 | DD43: 1 | DE43: 0 | DF43: 4 | DG43: 1 | DH43: 1 | DI43: 0 | DJ43: 0 | DK43: 0 | DL43: 0 | DN43: 4172.78 | DO43: 9 | DQ43: 46 | DR43: 4868.57 | DS43: =+IF(AA43>$K$8,$F$27/2,0) -> 1 | DT43: =+IF(AA43/Y43>1.5,$F$27/2,0) -> 0 | DU43: =SUM(DS43:DT43) -> 1 | DV43: 0 | DW43: 0 | DX43: 0 | DY43: =SUM(DW43:DX43) -> 0 | EA43: 0 | EB43: 6 | EG43: =IFERROR(VLOOKUP(A43,$EN$37:$EP$992,2,FALSE),"--") -> LOPUT | EH43: =IF(EG43="--","--",IF(N43="LOPUT",IF(EG43="VÄHÄ","--> LOPUT",""),IF(N43="VÄHÄ",IF(EG43="LOPUT","-->VÄHÄ","")))) ->  | EI43: =IFERROR(VLOOKUP(A43,$EN$37:$EP$992,3,FALSE),"--") -> 5 | EJ43: =IFERROR(EI43-D43,"--") -> -2 | EK43: =IFERROR(VLOOKUP(A43,$EN$37:$EQ$992,4,FALSE),"--") -> 1 | EL43: =IFERROR(EK43-K43,"--") -> 0 | EN43: 16615_1 | EO43: VÄHÄ | EP43: 4 | EQ43: 1
A44: =CONCATENATE(S44,"_",T44) -> 16619_1 | B44: 1 | D44: =RANK(CM44,$CM$37:$CM$984) -> 8 | E44: 8 | F44: =E44-D44 -> 0 | G44: =CM44 -> 14.04253894 | H44: =AZ44 -> 5 | I44: =BS44 -> 6.375872275 | J44: =CK44 -> 2.666666667 | K44: =CN44 -> 1 | L44: =B44-K44 -> 0 | M44: =HYPERLINK(CV44,"Gmaps") -> Gmaps | N44: =IF(Y44>$K$6,"LOPUT","VÄHÄ") -> LOPUT | O44: =IF(S44<40,"Valta",IF(S44<100,"Kanta",IF(S44<1000,"Seutu",IF(S44>999,"Yhdys")))) -> Yhdys | P44: Muuramentie, Teollisuustie | Q44: Muurame | S44: 16619 | T44: 1 | U44: 0 | V44: 1 | W44: 4775 | X44: 4775 | Y44: 2448.845026 | Z44: 103.4712042 | AA44: 2594 | AB44: 1695 (55 %), 3381 (45 %) | AC44: 40 (54 %), 50 (34 %), 60 (12 %) | AD44: Ic (100 %) | AE44: Asfalttibetoni (100 %) | AF44: PK2 (100 %) | AG44: 1 | AH44: 3 | AI44: 0.1993801653 | AJ44: 27.12984293 | AR44: =+IF(Y44>=$K$6,$F$5,($F$5/($K$6))*Y44) -> 9 | AS44: 482 | AV44: =+IF(AS44>=$L$15,$J$15,IF(AS44<($L$15),AS44*($J$15/($L$15)),)) -> 3 | AW44: 2152 | AX44: =+IF(AW44>=$L$11,$J$11,IF(AW44<($L$11),AW44*($J$11/($L$11)),)) -> 3 | AY44: =SUM(AR44,AV44,AX44) -> 15 | AZ44: =+AY44*$H$5 -> 5 | BA44: =+IF(Z44=0,0,IF(Z44>$K$7,$F$9,($F$9/$K$7)*Z44)) -> 8 | BB44: =+IF(AJ44=0,0,IF(AJ44>$L$6,$F$10,($F$10/$L$6)*AJ44)) -> 1 | BC44: =IF(DB44>0,$F$11,0) -> 3 | BD44: =IF(DC44>0,$F$12,0) -> 0 | BE44: =IF(DD44>0,$F$13,0) -> 1 | BF44: =IF(DF44>0,$F$14,0) -> 1 | BG44: =IF(DG44>0,$F$15,0) -> 1 | BH44: =+IF(DH44>=$L$23,$J$23,IF(DH44<($L$23),DH44*($J$23/($L$23)),)) -> 0.125 | BI44: =+IF(DI44>=$L$24,$J$24,IF(DI44<($L$24),DI44*($J$24/($L$24)),)) -> 0 | BJ44: =+IF(DJ44>=$L$25,$J$25,IF(DJ44<($L$25),DJ44*($J$25/($L$25)),)) -> 0 | BK44: =+IF(DK44>=$L$26,$J$26,IF(DK44<($L$26),DK44*($J$26/($L$26)),)) -> 0 | BL44: =IF(DL44>0,$F$17,0) -> 2 | BM44: =+IF(DO44>=$L$29,$J$29,IF(DO44<($L$29),DO44*($J$29/($L$29)),)) -> 0 | BO44: =IF(EB44>0,$F$19,0) -> 2 | BP44: 0.02616825478 | BQ44: =+IF(BP44>=$L$19,$J$19,IF(BP44<($L$19),BP44*($J$19/($L$19)),)) -> 0.002616825478 | BR44: =SUM(BA44+BC44+BD44+BE44+BB44+BF44+BL44+BH44+BI44+BJ44+BK44+BM44+BO44+BQ44+BG44) -> 19.12761683 | BS44: =+BR44*$H$9 -> 6.375872275 | BT44: =DN44 -> 3749.33 | BU44: =BT44/X44 -> 0.7852 | BV44: =IF(BU44>0,IF(BU44>=$DA$28,$CY$28,IF(BU44<$DA$28,$CY$29,0)),0) -> 1 | BW44: 0 | BX44: =BW44/X44 -> 0 | BY44: =IF(BX44,$F$23,0) -> 0 | BZ44: =IF(DQ44>0,$F$24,0) -> 1 | CA44: =DR44 -> 4713.59 | CB44: =CA44/X44 -> 0.987139267 | CC44: =+IF(CB44>=$K$4,$F$25,0) -> 1 | CD44: 472 | CE44: =IF(CD44>0,IF(CD44>=100,$F$26,IF(CD44<100,$F$26/2)),0) -> 1 | CF44: =SUM(DU44) -> 1 | CG44: =IF(DY44>0,$F$28,0) -> 1 | CH44: =IF(DV44>0,$F$29,0) -> 1 | CI44: =IF(EA44=0,$F$30,0) -> 1 | CJ44: =SUM(BV44,BY44,CE44,BZ44,CC44,CF44,CG44,CH44,CI44) -> 8 | CK44: =+CJ44*$H$22 -> 2.666666667 | CL44: =SUM(AY44,BR44,CJ44) -> 42.12761683 | CM44: =SUM(AZ44,BS44,CK44) -> 14.04253894 | CN44: =IF(D44<($Z$13*$CN$28),1,IF(D44<(($Z$14+$Z$13)*$CN$28),2,IF(D44<(($Z$15+$Z$13+$Z$14)*$CN$28),3,4))) -> 1 | CO44: =VLOOKUP(A44,Taul1!$F$6:$G$953,2,FALSE) -> 2 | CQ44: =AR44+AV44+AX44+BA44+BC44+BD44+BF44+BG44+BH44+BI44+BJ44+BK44+BL44+BM44+BO44+BV44+BY44+BZ44+CF44+CI44 -> 36.125 | CR44: =AY44 -> 15 | CS44: =BA44+BC44+BD44+BF44+BG44+BH44+BI44+BJ44+BK44+BL44+BM44+BO44 -> 17.125 | CT44: =BV44+BY44+BZ44+CF44+CI44 -> 4 | CV44: https://www.google.com/maps/@62.10474915,25.64163166,3a,75y,90t/data=!3m3!1e1!3m1!2e0 | DA44: 1 | DB44: =SUM(CY44:DA44) -> 1 | DC44: 0 | DD44: 1 | DE44: 0 | DF44: 1 | DG44: 2 | DH44: 25 | DI44: 0 | DJ44: 0 | DK44: 0 | DL44: 1 | DN44: 3749.33 | DO44: 0 | DQ44: 3 | DR44: 4713.59 | DS44: =+IF(AA44>$K$8,$F$27/2,0) -> 1 | DT44: =+IF(AA44/Y44>1.5,$F$27/2,0) -> 0 | DU44: =SUM(DS44:DT44) -> 1 | DV44: 1 | DW44: 0 | DX44: 1 | DY44: =SUM(DW44:DX44) -> 1 | EA44: 0 | EB44: 2 | EG44: =IFERROR(VLOOKUP(A44,$EN$37:$EP$992,2,FALSE),"--") -> LOPUT | EH44: =IF(EG44="--","--",IF(N44="LOPUT",IF(EG44="VÄHÄ","--> LOPUT",""),IF(N44="VÄHÄ",IF(EG44="LOPUT","-->VÄHÄ","")))) ->  | EI44: =IFERROR(VLOOKUP(A44,$EN$37:$EP$992,3,FALSE),"--") -> 7 | EJ44: =IFERROR(EI44-D44,"--") -> -1 | EK44: =IFERROR(VLOOKUP(A44,$EN$37:$EQ$992,4,FALSE),"--") -> 1 | EL44: =IFERROR(EK44-K44,"--") -> 0 | EN44: 637_15 | EO44: VÄHÄ | EP44: 7 | EQ44: 1
A45: =CONCATENATE(S45,"_",T45) -> 16685_1 | B45: 1 | D45: =RANK(CM45,$CM$37:$CM$984) -> 9 | E45: 9 | F45: =E45-D45 -> 0 | G45: =CM45 -> 14.03347311 | H45: =AZ45 -> 5 | I45: =BS45 -> 6.366806443 | J45: =CK45 -> 2.666666667 | K45: =CN45 -> 1 | L45: =B45-K45 -> 0 | M45: =HYPERLINK(CV45,"Gmaps") -> Gmaps | N45: =IF(Y45>$K$6,"LOPUT","VÄHÄ") -> LOPUT | O45: =IF(S45<40,"Valta",IF(S45<100,"Kanta",IF(S45<1000,"Seutu",IF(S45>999,"Yhdys")))) -> Yhdys | P45: Palokanorsi, Ruokkeentie | Q45: Jyväskylä | S45: 16685 | T45: 1 | U45: 0 | V45: 1 | W45: 9542 | X45: 9542 | Y45: 4395.397401 | Z45: 226.6977573 | AA45: 4804 | AB45: 1758 (69 %), 8676 (13 %), 10849 (8 %), 12336 (9 %) | AC45: 40 (26 %), 50 (37 %), 60 (37 %) | AD45: Is (100 %) | AE45: Asfalttibetoni (77 %), Kantavan kerroksen asfalttibetoni (ABK) (2 %), Kivimastiksiasfaltti (22 %) | AF45: PK2 (100 %) | AG45: 6 | AH45: 19 | AI45: 0.04281989571 | AJ45: 67.78830434 | AR45: =+IF(Y45>=$K$6,$F$5,($F$5/($K$6))*Y45) -> 9 | AS45: 1390 | AV45: =+IF(AS45>=$L$15,$J$15,IF(AS45<($L$15),AS45*($J$15/($L$15)),)) -> 3 | AW45: 4515 | AX45: =+IF(AW45>=$L$11,$J$11,IF(AW45<($L$11),AW45*($J$11/($L$11)),)) -> 3 | AY45: =SUM(AR45,AV45,AX45) -> 15 | AZ45: =+AY45*$H$5 -> 5 | BA45: =+IF(Z45=0,0,IF(Z45>$K$7,$F$9,($F$9/$K$7)*Z45)) -> 8 | BB45: =+IF(AJ45=0,0,IF(AJ45>$L$6,$F$10,($F$10/$L$6)*AJ45)) -> 1 | BC45: =IF(DB45>0,$F$11,0) -> 3 | BD45: =IF(DC45>0,$F$12,0) -> 0 | BE45: =IF(DD45>0,$F$13,0) -> 1 | BF45: =IF(DF45>0,$F$14,0) -> 1 | BG45: =IF(DG45>0,$F$15,0) -> 1 | BH45: =+IF(DH45>=$L$23,$J$23,IF(DH45<($L$23),DH45*($J$23/($L$23)),)) -> 0 | BI45: =+IF(DI45>=$L$24,$J$24,IF(DI45<($L$24),DI45*($J$24/($L$24)),)) -> 0 | BJ45: =+IF(DJ45>=$L$25,$J$25,IF(DJ45<($L$25),DJ45*($J$25/($L$25)),)) -> 0 | BK45: =+IF(DK45>=$L$26,$J$26,IF(DK45<($L$26),DK45*($J$26/($L$26)),)) -> 0.0095 | BL45: =IF(DL45>0,$F$17,0) -> 0 | BM45: =+IF(DO45>=$L$29,$J$29,IF(DO45<($L$29),DO45*($J$29/($L$29)),)) -> 2 | BO45: =IF(EB45>0,$F$19,0) -> 2 | BP45: 0.9091932853 | BQ45: =+IF(BP45>=$L$19,$J$19,IF(BP45<($L$19),BP45*($J$19/($L$19)),)) -> 0.09091932853 | BR45: =SUM(BA45+BC45+BD45+BE45+BB45+BF45+BL45+BH45+BI45+BJ45+BK45+BM45+BO45+BQ45+BG45) -> 19.10041933 | BS45: =+BR45*$H$9 -> 6.366806443 | BT45: =DN45 -> 5718.52 | BU45: =BT45/X45 -> 0.5992999371 | BV45: =IF(BU45>0,IF(BU45>=$DA$28,$CY$28,IF(BU45<$DA$28,$CY$29,0)),0) -> 1 | BW45: 9541.63 | BX45: =BW45/X45 -> 0.9999612241 | BY45: =IF(BX45,$F$23,0) -> 1 | BZ45: =IF(DQ45>0,$F$24,0) -> 1 | CA45: =DR45 -> 8563.12 | CB45: =CA45/X45 -> 0.8974135401 | CC45: =+IF(CB45>=$K$4,$F$25,0) -> 1 | CD45: 234.5575351 | CE45: =IF(CD45>0,IF(CD45>=100,$F$26,IF(CD45<100,$F$26/2)),0) -> 1 | CF45: =SUM(DU45) -> 1 | CG45: =IF(DY45>0,$F$28,0) -> 1 | CH45: =IF(DV45>0,$F$29,0) -> 0 | CI45: =IF(EA45=0,$F$30,0) -> 1 | CJ45: =SUM(BV45,BY45,CE45,BZ45,CC45,CF45,CG45,CH45,CI45) -> 8 | CK45: =+CJ45*$H$22 -> 2.666666667 | CL45: =SUM(AY45,BR45,CJ45) -> 42.10041933 | CM45: =SUM(AZ45,BS45,CK45) -> 14.03347311 | CN45: =IF(D45<($Z$13*$CN$28),1,IF(D45<(($Z$14+$Z$13)*$CN$28),2,IF(D45<(($Z$15+$Z$13+$Z$14)*$CN$28),3,4))) -> 1 | CO45: =VLOOKUP(A45,Taul1!$F$6:$G$953,2,FALSE) -> 4 | CQ45: =AR45+AV45+AX45+BA45+BC45+BD45+BF45+BG45+BH45+BI45+BJ45+BK45+BL45+BM45+BO45+BV45+BY45+BZ45+CF45+CI45 -> 37.0095 | CR45: =AY45 -> 15 | CS45: =BA45+BC45+BD45+BF45+BG45+BH45+BI45+BJ45+BK45+BL45+BM45+BO45 -> 17.0095 | CT45: =BV45+BY45+BZ45+CF45+CI45 -> 5 | CV45: https://www.google.com/maps/@62.26028313,25.60020665,3a,75y,90t/data=!3m3!1e1!3m1!2e0 | DA45: 1 | DB45: =SUM(CY45:DA45) -> 1 | DC45: 0 | DD45: 2 | DE45: 0 | DF45: 2 | DG45: 1 | DH45: 0 | DI45: 0 | DJ45: 0 | DK45: 19 | DL45: 0 | DN45: 5718.52 | DO45: 9 | DQ45: 20 | DR45: 8563.12 | DS45: =+IF(AA45>$K$8,$F$27/2,0) -> 1 | DT45: =+IF(AA45/Y45>1.5,$F$27/2,0) -> 0 | DU45: =SUM(DS45:DT45) -> 1 | DV45: 0 | DW45: 0 | DX45: 1 | DY45: =SUM(DW45:DX45) -> 1 | EA45: 0 | EB45: 4 | EG45: =IFERROR(VLOOKUP(A45,$EN$37:$EP$992,2,FALSE),"--") -> LOPUT | EH45: =IF(EG45="--","--",IF(N45="LOPUT",IF(EG45="VÄHÄ","--> LOPUT",""),IF(N45="VÄHÄ",IF(EG45="LOPUT","-->VÄHÄ","")))) ->  | EI45: =IFERROR(VLOOKUP(A45,$EN$37:$EP$992,3,FALSE),"--") -> 29 | EJ45: =IFERROR(EI45-D45,"--") -> 20 | EK45: =IFERROR(VLOOKUP(A45,$EN$37:$EQ$992,4,FALSE),"--") -> 1 | EL45: =IFERROR(EK45-K45,"--") -> 0 | EN45: 659_10 | EO45: VÄHÄ | EP45: 8 | EQ45: 1
A46: =CONCATENATE(S46,"_",T46) -> 648_1 | B46: 1 | D46: =RANK(CM46,$CM$37:$CM$984) -> 10 | E46: 10 | F46: =E46-D46 -> 0 | G46: =CM46 -> 13.95419463 | H46: =AZ46 -> 5 | I46: =BS46 -> 6.287527967 | J46: =CK46 -> 2.666666667 | K46: =CN46 -> 1 | L46: =B46-K46 -> 0 | M46: =HYPERLINK(CV46,"Gmaps") -> Gmaps | N46: =IF(Y46>$K$6,"LOPUT","VÄHÄ") -> LOPUT | O46: =IF(S46<40,"Valta",IF(S46<100,"Kanta",IF(S46<1000,"Seutu",IF(S46>999,"Yhdys")))) -> Seutu | P46: Kannonkoskentie, Lukiontie | Q46: Saarijärvi | S46: 648 | T46: 1 | U46: 0 | V46: 1 | W46: 1277 | X46: 1277 | Y46: 4079 | Z46: 169 | AA46: 4976 | AB46: 4079 (100 %) | AC46: 40 (21 %), 50 (77 %) | AD46: Ib (75 %), Ic (25 %) | AE46: Asfalttibetoni (99 %) | AF46: PK2 (99 %) | AG46: 0 | AH46: 0 | AI46: 0 | AJ46: 66 | AR46: =+IF(Y46>=$K$6,$F$5,($F$5/($K$6))*Y46) -> 9 | AS46: 38 | AV46: =+IF(AS46>=$L$15,$J$15,IF(AS46<($L$15),AS46*($J$15/($L$15)),)) -> 3 | AW46: 980 | AX46: =+IF(AW46>=$L$11,$J$11,IF(AW46<($L$11),AW46*($J$11/($L$11)),)) -> 3 | AY46: =SUM(AR46,AV46,AX46) -> 15 | AZ46: =+AY46*$H$5 -> 5 | BA46: =+IF(Z46=0,0,IF(Z46>$K$7,$F$9,($F$9/$K$7)*Z46)) -> 8 | BB46: =+IF(AJ46=0,0,IF(AJ46>$L$6,$F$10,($F$10/$L$6)*AJ46)) -> 1 | BC46: =IF(DB46>0,$F$11,0) -> 3 | BD46: =IF(DC46>0,$F$12,0) -> 1 | BE46: =IF(DD46>0,$F$13,0) -> 1 | BF46: =IF(DF46>0,$F$14,0) -> 0 | BG46: =IF(DG46>0,$F$15,0) -> 0 | BH46: =+IF(DH46>=$L$23,$J$23,IF(DH46<($L$23),DH46*($J$23/($L$23)),)) -> 0.5 | BI46: =+IF(DI46>=$L$24,$J$24,IF(DI46<($L$24),DI46*($J$24/($L$24)),)) -> 0.06 | BJ46: =+IF(DJ46>=$L$25,$J$25,IF(DJ46<($L$25),DJ46*($J$25/($L$25)),)) -> 0 | BK46: =+IF(DK46>=$L$26,$J$26,IF(DK46<($L$26),DK46*($J$26/($L$26)),)) -> 0 | BL46: =IF(DL46>0,$F$17,0) -> 2 | BM46: =+IF(DO46>=$L$29,$J$29,IF(DO46<($L$29),DO46*($J$29/($L$29)),)) -> 0 | BO46: =IF(EB46>0,$F$19,0) -> 2 | BP46: 3.025838999 | BQ46: =+IF(BP46>=$L$19,$J$19,IF(BP46<($L$19),BP46*($J$19/($L$19)),)) -> 0.3025838999 | BR46: =SUM(BA46+BC46+BD46+BE46+BB46+BF46+BL46+BH46+BI46+BJ46+BK46+BM46+BO46+BQ46+BG46) -> 18.8625839 | BS46: =+BR46*$H$9 -> 6.287527967 | BT46: =DN46 -> 1258.15 | BU46: =BT46/X46 -> 0.985238841 | BV46: =IF(BU46>0,IF(BU46>=$DA$28,$CY$28,IF(BU46<$DA$28,$CY$29,0)),0) -> 1 | BW46: 0 | BX46: =BW46/X46 -> 0 | BY46: =IF(BX46,$F$23,0) -> 0 | BZ46: =IF(DQ46>0,$F$24,0) -> 1 | CA46: =DR46 -> 1258.15 | CB46: =CA46/X46 -> 0.985238841 | CC46: =+IF(CB46>=$K$4,$F$25,0) -> 1 | CD46: 751.009397 | CE46: =IF(CD46>0,IF(CD46>=100,$F$26,IF(CD46<100,$F$26/2)),0) -> 1 | CF46: =SUM(DU46) -> 1 | CG46: =IF(DY46>0,$F$28,0) -> 1 | CH46: =IF(DV46>0,$F$29,0) -> 1 | CI46: =IF(EA46=0,$F$30,0) -> 1 | CJ46: =SUM(BV46,BY46,CE46,BZ46,CC46,CF46,CG46,CH46,CI46) -> 8 | CK46: =+CJ46*$H$22 -> 2.666666667 | CL46: =SUM(AY46,BR46,CJ46) -> 41.8625839 | CM46: =SUM(AZ46,BS46,CK46) -> 13.95419463 | CN46: =IF(D46<($Z$13*$CN$28),1,IF(D46<(($Z$14+$Z$13)*$CN$28),2,IF(D46<(($Z$15+$Z$13+$Z$14)*$CN$28),3,4))) -> 1 | CO46: =VLOOKUP(A46,Taul1!$F$6:$G$953,2,FALSE) -> 1 | CQ46: =AR46+AV46+AX46+BA46+BC46+BD46+BF46+BG46+BH46+BI46+BJ46+BK46+BL46+BM46+BO46+BV46+BY46+BZ46+CF46+CI46 -> 35.56 | CR46: =AY46 -> 15 | CS46: =BA46+BC46+BD46+BF46+BG46+BH46+BI46+BJ46+BK46+BL46+BM46+BO46 -> 16.56 | CT46: =BV46+BY46+BZ46+CF46+CI46 -> 4 | CV46: https://www.google.com/maps/@62.70470908,25.25521724,3a,75y,90t/data=!3m3!1e1!3m1!2e0 | DA46: 1 | DB46: =SUM(CY46:DA46) -> 1 | DC46: 2 | DD46: 1 | DE46: 1 | DF46: 0 | DG46: 0 | DH46: 135 | DI46: 12 | DJ46: 0 | DK46: 0 | DL46: 1 | DN46: 1258.15 | DO46: 0 | DQ46: 19 | DR46: 1258.15 | DS46: =+IF(AA46>$K$8,$F$27/2,0) -> 1 | DT46: =+IF(AA46/Y46>1.5,$F$27/2,0) -> 0 | DU46: =SUM(DS46:DT46) -> 1 | DV46: 1 | DW46: 0 | DX46: 1 | DY46: =SUM(DW46:DX46) -> 1 | EA46: 0 | EB46: 1 | EG46: =IFERROR(VLOOKUP(A46,$EN$37:$EP$992,2,FALSE),"--") -> LOPUT | EH46: =IF(EG46="--","--",IF(N46="LOPUT",IF(EG46="VÄHÄ","--> LOPUT",""),IF(N46="VÄHÄ",IF(EG46="LOPUT","-->VÄHÄ","")))) ->  | EI46: =IFERROR(VLOOKUP(A46,$EN$37:$EP$992,3,FALSE),"--") -> 39 | EJ46: =IFERROR(EI46-D46,"--") -> 29 | EK46: =IFERROR(VLOOKUP(A46,$EN$37:$EQ$992,4,FALSE),"--") -> 1 | EL46: =IFERROR(EK46-K46,"--") -> 0 | EN46: 428_7 | EO46: VÄHÄ | EP46: 9 | EQ46: 1
A47: =CONCATENATE(S47,"_",T47) -> 13_133 | B47: 1 | D47: =RANK(CM47,$CM$37:$CM$984) -> 11 | E47: 11 | F47: =E47-D47 -> 0 | G47: =CM47 -> 13.874 | H47: =AZ47 -> 5 | I47: =BS47 -> 6.874 | J47: =CK47 -> 2 | K47: =CN47 -> 1 | L47: =B47-K47 -> 0 | M47: =HYPERLINK(CV47,"Gmaps") -> Gmaps | N47: =IF(Y47>$K$6,"LOPUT","VÄHÄ") -> LOPUT | O47: =IF(S47<40,"Valta",IF(S47<100,"Kanta",IF(S47<1000,"Seutu",IF(S47>999,"Yhdys")))) -> Valta | P47: Jyväskyläntie, Kokkolantie | Q47: Saarijärvi | S47: 13 | T47: 133 | U47: 0 | V47: 133 | W47: 5970 | X47: 5970 | Y47: 3306.049916 | Z47: 316.4264657 | AA47: 3688 | AB47: 2425 (19 %), 3459 (78 %), 5171 (3 %) | AC47: 60 (31 %), 80 (69 %) | AD47: Is (100 %) | AE47: Kivimastiksiasfaltti (100 %) | AF47: PK1 (100 %) | AG47: 1 | AH47: 7 | AI47: 0.01675041876 | AJ47: 212.1517588 | AR47: =+IF(Y47>=$K$6,$F$5,($F$5/($K$6))*Y47) -> 9 | AS47: 28 | AV47: =+IF(AS47>=$L$15,$J$15,IF(AS47<($L$15),AS47*($J$15/($L$15)),)) -> 3 | AW47: 742 | AX47: =+IF(AW47>=$L$11,$J$11,IF(AW47<($L$11),AW47*($J$11/($L$11)),)) -> 3 | AY47: =SUM(AR47,AV47,AX47) -> 15 | AZ47: =+AY47*$H$5 -> 5 | BA47: =+IF(Z47=0,0,IF(Z47>$K$7,$F$9,($F$9/$K$7)*Z47)) -> 8 | BB47: =+IF(AJ47=0,0,IF(AJ47>$L$6,$F$10,($F$10/$L$6)*AJ47)) -> 1 | BC47: =IF(DB47>0,$F$11,0) -> 3 | BD47: =IF(DC47>0,$F$12,0) -> 1 | BE47: =IF(DD47>0,$F$13,0) -> 1 | BF47: =IF(DF47>0,$F$14,0) -> 1 | BG47: =IF(DG47>0,$F$15,0) -> 0 | BH47: =+IF(DH47>=$L$23,$J$23,IF(DH47<($L$23),DH47*($J$23/($L$23)),)) -> 0.5 | BI47: =+IF(DI47>=$L$24,$J$24,IF(DI47<($L$24),DI47*($J$24/($L$24)),)) -> 0.11 | BJ47: =+IF(DJ47>=$L$25,$J$25,IF(DJ47<($L$25),DJ47*($J$25/($L$25)),)) -> 0 | BK47: =+IF(DK47>=$L$26,$J$26,IF(DK47<($L$26),DK47*($J$26/($L$26)),)) -> 0.012 | BL47: =IF(DL47>0,$F$17,0) -> 2 | BM47: =+IF(DO47>=$L$29,$J$29,IF(DO47<($L$29),DO47*($J$29/($L$29)),)) -> 0 | BO47: =IF(EB47>0,$F$19,0) -> 2 | BP47: 22.57185257 | BQ47: =+IF(BP47>=$L$19,$J$19,IF(BP47<($L$19),BP47*($J$19/($L$19)),)) -> 1 | BR47: =SUM(BA47+BC47+BD47+BE47+BB47+BF47+BL47+BH47+BI47+BJ47+BK47+BM47+BO47+BQ47+BG47) -> 20.622 | BS47: =+BR47*$H$9 -> 6.874 | BT47: =DN47 -> 2616.37 | BU47: =BT47/X47 -> 0.4382529313 | BV47: =IF(BU47>0,IF(BU47>=$DA$28,$CY$28,IF(BU47<$DA$28,$CY$29,0)),0) -> 0.5 | BW47: 5958.42 | BX47: =BW47/X47 -> 0.9980603015 | BY47: =IF(BX47,$F$23,0) -> 1 | BZ47: =IF(DQ47>0,$F$24,0) -> 1 | CA47: =DR47 -> 2806.95 | CB47: =CA47/X47 -> 0.4701758794 | CC47: =+IF(CB47>=$K$4,$F$25,0) -> 0 | CD47: 79.15410385 | CE47: =IF(CD47>0,IF(CD47>=100,$F$26,IF(CD47<100,$F$26/2)),0) -> 0.5 | CF47: =SUM(DU47) -> 1 | CG47: =IF(DY47>0,$F$28,0) -> 0 | CH47: =IF(DV47>0,$F$29,0) -> 1 | CI47: =IF(EA47=0,$F$30,0) -> 1 | CJ47: =SUM(BV47,BY47,CE47,BZ47,CC47,CF47,CG47,CH47,CI47) -> 6 | CK47: =+CJ47*$H$22 -> 2 | CL47: =SUM(AY47,BR47,CJ47) -> 41.622 | CM47: =SUM(AZ47,BS47,CK47) -> 13.874 | CN47: =IF(D47<($Z$13*$CN$28),1,IF(D47<(($Z$14+$Z$13)*$CN$28),2,IF(D47<(($Z$15+$Z$13+$Z$14)*$CN$28),3,4))) -> 1 | CO47: =VLOOKUP(A47,Taul1!$F$6:$G$953,2,FALSE) -> 3 | CQ47: =AR47+AV47+AX47+BA47+BC47+BD47+BF47+BG47+BH47+BI47+BJ47+BK47+BL47+BM47+BO47+BV47+BY47+BZ47+CF47+CI47 -> 37.122 | CR47: =AY47 -> 15 | CS47: =BA47+BC47+BD47+BF47+BG47+BH47+BI47+BJ47+BK47+BL47+BM47+BO47 -> 17.622 | CT47: =BV47+BY47+BZ47+CF47+CI47 -> 4.5 | CV47: https://www.google.com/maps/@62.74454423,25.18289099,3a,75y,90t/data=!3m3!1e1!3m1!2e0 | DA47: 8 | DB47: =SUM(CY47:DA47) -> 8 | DC47: 2 | DD47: 4 | DE47: 1 | DF47: 1 | DG47: 0 | DH47: 509 | DI47: 22 | DJ47: 0 | DK47: 24 | DL47: 1 | DN47: 2616.37 | DO47: 0 | DQ47: 1 | DR47: 2806.95 | DS47: =+IF(AA47>$K$8,$F$27/2,0) -> 1 | DT47: =+IF(AA47/Y47>1.5,$F$27/2,0) -> 0 | DU47: =SUM(DS47:DT47) -> 1 | DV47: 1 | DW47: 0 | DX47: 0 | DY47: =SUM(DW47:DX47) -> 0 | EA47: 0 | EB47: 1 | EG47: =IFERROR(VLOOKUP(A47,$EN$37:$EP$992,2,FALSE),"--") -> -- | EH47: =IF(EG47="--","--",IF(N47="LOPUT",IF(EG47="VÄHÄ","--> LOPUT",""),IF(N47="VÄHÄ",IF(EG47="LOPUT","-->VÄHÄ","")))) -> -- | EI47: =IFERROR(VLOOKUP(A47,$EN$37:$EP$992,3,FALSE),"--") -> -- | EJ47: =IFERROR(EI47-D47,"--") -> -- | EK47: =IFERROR(VLOOKUP(A47,$EN$37:$EQ$992,4,FALSE),"--") -> -- | EL47: =IFERROR(EK47-K47,"--") -> -- | EN47: 604_5 | EO47: VÄHÄ | EP47: 12 | EQ47: 1
A48: =CONCATENATE(S48,"_",T48) -> 9_233 | B48: 1 | D48: =RANK(CM48,$CM$37:$CM$984) -> 12 | E48: 12 | F48: =E48-D48 -> 0 | G48: =CM48 -> 13.785 | H48: =AZ48 -> 5 | I48: =BS48 -> 6.451666667 | J48: =CK48 -> 2.333333333 | K48: =CN48 -> 1 | L48: =B48-K48 -> 0 | M48: =HYPERLINK(CV48,"Gmaps") -> Gmaps | N48: =IF(Y48>$K$6,"LOPUT","VÄHÄ") -> LOPUT | O48: =IF(S48<40,"Valta",IF(S48<100,"Kanta",IF(S48<1000,"Seutu",IF(S48>999,"Yhdys")))) -> Valta | P48: Ysitie | Q48: Muurame | S48: 9 | T48: 233 | U48: 0 | V48: 233 | W48: 7001 | X48: 7001 | Y48: 13792.4288 | Z48: 983.809313 | AA48: 16717 | AB48: 12074 (59 %), 16234 (41 %) | AC48: 80 (100 %) | AD48: Ise (100 %) | AE48: Kivimastiksiasfaltti (100 %) | AF48: PK1 (100 %) | AG48: 5 | AH48: 23 | AI48: 0 | AJ48: 515.7364662 | AR48: =+IF(Y48>=$K$6,$F$5,($F$5/($K$6))*Y48) -> 9 | AS48: 295 | AV48: =+IF(AS48>=$L$15,$J$15,IF(AS48<($L$15),AS48*($J$15/($L$15)),)) -> 3 | AW48: 6122 | AX48: =+IF(AW48>=$L$11,$J$11,IF(AW48<($L$11),AW48*($J$11/($L$11)),)) -> 3 | AY48: =SUM(AR48,AV48,AX48) -> 15 | AZ48: =+AY48*$H$5 -> 5 | BA48: =+IF(Z48=0,0,IF(Z48>$K$7,$F$9,($F$9/$K$7)*Z48)) -> 8 | BB48: =+IF(AJ48=0,0,IF(AJ48>$L$6,$F$10,($F$10/$L$6)*AJ48)) -> 1 | BC48: =IF(DB48>0,$F$11,0) -> 3 | BD48: =IF(DC48>0,$F$12,0) -> 1 | BE48: =IF(DD48>0,$F$13,0) -> 1 | BF48: =IF(DF48>0,$F$14,0) -> 1 | BG48: =IF(DG48>0,$F$15,0) -> 0 | BH48: =+IF(DH48>=$L$23,$J$23,IF(DH48<($L$23),DH48*($J$23/($L$23)),)) -> 0.5 | BI48: =+IF(DI48>=$L$24,$J$24,IF(DI48<($L$24),DI48*($J$24/($L$24)),)) -> 0.055 | BJ48: =+IF(DJ48>=$L$25,$J$25,IF(DJ48<($L$25),DJ48*($J$25/($L$25)),)) -> 0 | BK48: =+IF(DK48>=$L$26,$J$26,IF(DK48<($L$26),DK48*($J$26/($L$26)),)) -> 0 | BL48: =IF(DL48>0,$F$17,0) -> 0 | BM48: =+IF(DO48>=$L$29,$J$29,IF(DO48<($L$29),DO48*($J$29/($L$29)),)) -> 0.8 | BO48: =IF(EB48>0,$F$19,0) -> 2 | BP48: 18.01551846 | BQ48: =+IF(BP48>=$L$19,$J$19,IF(BP48<($L$19),BP48*($J$19/($L$19)),)) -> 1 | BR48: =SUM(BA48+BC48+BD48+BE48+BB48+BF48+BL48+BH48+BI48+BJ48+BK48+BM48+BO48+BQ48+BG48) -> 19.355 | BS48: =+BR48*$H$9 -> 6.451666667 | BT48: =DN48 -> 5579.45 | BU48: =BT48/X48 -> 0.7969504357 | BV48: =IF(BU48>0,IF(BU48>=$DA$28,$CY$28,IF(BU48<$DA$28,$CY$29,0)),0) -> 1 | BW48: 6985.77 | BX48: =BW48/X48 -> 0.9978245965 | BY48: =IF(BX48,$F$23,0) -> 1 | BZ48: =IF(DQ48>0,$F$24,0) -> 1 | CA48: =DR48 -> 3871.15 | CB48: =CA48/X48 -> 0.5529424368 | CC48: =+IF(CB48>=$K$4,$F$25,0) -> 1 | CD48: 198.0622768 | CE48: =IF(CD48>0,IF(CD48>=100,$F$26,IF(CD48<100,$F$26/2)),0) -> 1 | CF48: =SUM(DU48) -> 1 | CG48: =IF(DY48>0,$F$28,0) -> 0 | CH48: =IF(DV48>0,$F$29,0) -> 0 | CI48: =IF(EA48=0,$F$30,0) -> 1 | CJ48: =SUM(BV48,BY48,CE48,BZ48,CC48,CF48,CG48,CH48,CI48) -> 7 | CK48: =+CJ48*$H$22 -> 2.333333333 | CL48: =SUM(AY48,BR48,CJ48) -> 41.355 | CM48: =SUM(AZ48,BS48,CK48) -> 13.785 | CN48: =IF(D48<($Z$13*$CN$28),1,IF(D48<(($Z$14+$Z$13)*$CN$28),2,IF(D48<(($Z$15+$Z$13+$Z$14)*$CN$28),3,4))) -> 1 | CO48: =VLOOKUP(A48,Taul1!$F$6:$G$953,2,FALSE) -> 2 | CQ48: =AR48+AV48+AX48+BA48+BC48+BD48+BF48+BG48+BH48+BI48+BJ48+BK48+BL48+BM48+BO48+BV48+BY48+BZ48+CF48+CI48 -> 36.355 | CR48: =AY48 -> 15 | CS48: =BA48+BC48+BD48+BF48+BG48+BH48+BI48+BJ48+BK48+BL48+BM48+BO48 -> 16.355 | CT48: =BV48+BY48+BZ48+CF48+CI48 -> 5 | CV48: https://www.google.com/maps/@62.10474915,25.64163166,3a,75y,90t/data=!3m3!1e1!3m1!2e0 | DA48: 6 | DB48: =SUM(CY48:DA48) -> 6 | DC48: 1 | DD48: 1 | DE48: 0 | DF48: 1 | DG48: 0 | DH48: 132 | DI48: 11 | DJ48: 0 | DK48: 0 | DL48: 0 | DN48: 5579.45 | DO48: 2 | DQ48: 1 | DR48: 3871.15 | DS48: =+IF(AA48>$K$8,$F$27/2,0) -> 1 | DT48: =+IF(AA48/Y48>1.5,$F$27/2,0) -> 0 | DU48: =SUM(DS48:DT48) -> 1 | DV48: 0 | DW48: 0 | DX48: 0 | DY48: =SUM(DW48:DX48) -> 0 | EA48: 0 | EB48: 4 | EG48: =IFERROR(VLOOKUP(A48,$EN$37:$EP$992,2,FALSE),"--") -> -- | EH48: =IF(EG48="--","--",IF(N48="LOPUT",IF(EG48="VÄHÄ","--> LOPUT",""),IF(N48="VÄHÄ",IF(EG48="LOPUT","-->VÄHÄ","")))) -> -- | EI48: =IFERROR(VLOOKUP(A48,$EN$37:$EP$992,3,FALSE),"--") -> -- | EJ48: =IFERROR(EI48-D48,"--") -> -- | EK48: =IFERROR(VLOOKUP(A48,$EN$37:$EQ$992,4,FALSE),"--") -> -- | EL48: =IFERROR(EK48-K48,"--") -> -- | EN48: 428_8 | EO48: VÄHÄ | EP48: 10 | EQ48: 1
A49: =CONCATENATE(S49,"_",T49) -> 624_2 | B49: 1 | D49: =RANK(CM49,$CM$37:$CM$984) -> 13 | E49: 13 | F49: =E49-D49 -> 0 | G49: =CM49 -> 13.78432006 | H49: =AZ49 -> 5 | I49: =BS49 -> 6.450986722 | J49: =CK49 -> 2.333333333 | K49: =CN49 -> 1 | L49: =B49-K49 -> 0 | M49: =HYPERLINK(CV49,"Gmaps") -> Gmaps | N49: =IF(Y49>$K$6,"LOPUT","VÄHÄ") -> LOPUT | O49: =IF(S49<40,"Valta",IF(S49<100,"Kanta",IF(S49<1000,"Seutu",IF(S49>999,"Yhdys")))) -> Seutu | P49: Alapohjantie, Tervajoentie | Q49: Jyväskylä, Laukaa | S49: 624 | T49: 2 | U49: 0 | V49: 2 | W49: 11535 | X49: 11535 | Y49: 642.1509319 | Z49: 59.59913307 | AA49: 706 | AB49: 490 (32 %), 551 (54 %), 1304 (15 %) | AC49: 50 (6 %), 60 (94 %) | AD49: Ib (100 %) | AE49: Asfalttibetoni (100 %) | AF49: PK2 (100 %) | AG49: 1 | AH49: 6 | AI49: 0.00298253089 | AJ49: 26.33688773 | AR49: =+IF(Y49>=$K$6,$F$5,($F$5/($K$6))*Y49) -> 9 | AS49: 142 | AV49: =+IF(AS49>=$L$15,$J$15,IF(AS49<($L$15),AS49*($J$15/($L$15)),)) -> 3 | AW49: 453 | AX49: =+IF(AW49>=$L$11,$J$11,IF(AW49<($L$11),AW49*($J$11/($L$11)),)) -> 3 | AY49: =SUM(AR49,AV49,AX49) -> 15 | AZ49: =+AY49*$H$5 -> 5 | BA49: =+IF(Z49=0,0,IF(Z49>$K$7,$F$9,($F$9/$K$7)*Z49)) -> 8 | BB49: =+IF(AJ49=0,0,IF(AJ49>$L$6,$F$10,($F$10/$L$6)*AJ49)) -> 1 | BC49: =IF(DB49>0,$F$11,0) -> 3 | BD49: =IF(DC49>0,$F$12,0) -> 1 | BE49: =IF(DD49>0,$F$13,0) -> 1 | BF49: =IF(DF49>0,$F$14,0) -> 1 | BG49: =IF(DG49>0,$F$15,0) -> 1 | BH49: =+IF(DH49>=$L$23,$J$23,IF(DH49<($L$23),DH49*($J$23/($L$23)),)) -> 0.5 | BI49: =+IF(DI49>=$L$24,$J$24,IF(DI49<($L$24),DI49*($J$24/($L$24)),)) -> 0 | BJ49: =+IF(DJ49>=$L$25,$J$25,IF(DJ49<($L$25),DJ49*($J$25/($L$25)),)) -> 0 | BK49: =+IF(DK49>=$L$26,$J$26,IF(DK49<($L$26),DK49*($J$26/($L$26)),)) -> 0 | BL49: =IF(DL49>0,$F$17,0) -> 0 | BM49: =+IF(DO49>=$L$29,$J$29,IF(DO49<($L$29),DO49*($J$29/($L$29)),)) -> 0.4 | BO49: =IF(EB49>0,$F$19,0) -> 2 | BP49: 4.529601664 | BQ49: =+IF(BP49>=$L$19,$J$19,IF(BP49<($L$19),BP49*($J$19/($L$19)),)) -> 0.4529601664 | BR49: =SUM(BA49+BC49+BD49+BE49+BB49+BF49+BL49+BH49+BI49+BJ49+BK49+BM49+BO49+BQ49+BG49) -> 19.35296017 | BS49: =+BR49*$H$9 -> 6.450986722 | BT49: =DN49 -> 5455.64 | BU49: =BT49/X49 -> 0.4729640225 | BV49: =IF(BU49>0,IF(BU49>=$DA$28,$CY$28,IF(BU49<$DA$28,$CY$29,0)),0) -> 0.5 | BW49: 11430.3 | BX49: =BW49/X49 -> 0.990923277 | BY49: =IF(BX49,$F$23,0) -> 1 | BZ49: =IF(DQ49>0,$F$24,0) -> 1 | CA49: =DR49 -> 501.62 | CB49: =CA49/X49 -> 0.04348677937 | CC49: =+IF(CB49>=$K$4,$F$25,0) -> 0 | CD49: 26.95015171 | CE49: =IF(CD49>0,IF(CD49>=100,$F$26,IF(CD49<100,$F$26/2)),0) -> 0.5 | CF49: =SUM(DU49) -> 1 | CG49: =IF(DY49>0,$F$28,0) -> 1 | CH49: =IF(DV49>0,$F$29,0) -> 1 | CI49: =IF(EA49=0,$F$30,0) -> 1 | CJ49: =SUM(BV49,BY49,CE49,BZ49,CC49,CF49,CG49,CH49,CI49) -> 7 | CK49: =+CJ49*$H$22 -> 2.333333333 | CL49: =SUM(AY49,BR49,CJ49) -> 41.35296017 | CM49: =SUM(AZ49,BS49,CK49) -> 13.78432006 | CN49: =IF(D49<($Z$13*$CN$28),1,IF(D49<(($Z$14+$Z$13)*$CN$28),2,IF(D49<(($Z$15+$Z$13+$Z$14)*$CN$28),3,4))) -> 1 | CO49: =VLOOKUP(A49,Taul1!$F$6:$G$953,2,FALSE) -> 3 | CQ49: =AR49+AV49+AX49+BA49+BC49+BD49+BF49+BG49+BH49+BI49+BJ49+BK49+BL49+BM49+BO49+BV49+BY49+BZ49+CF49+CI49 -> 36.4 | CR49: =AY49 -> 15 | CS49: =BA49+BC49+BD49+BF49+BG49+BH49+BI49+BJ49+BK49+BL49+BM49+BO49 -> 16.9 | CT49: =BV49+BY49+BZ49+CF49+CI49 -> 4.5 | CV49: https://www.google.com/maps/@62.34000613,25.70455363,3a,75y,90t/data=!3m3!1e1!3m1!2e0 | DA49: 1 | DB49: =SUM(CY49:DA49) -> 1 | DC49: 3 | DD49: 4 | DE49: 0 | DF49: 22 | DG49: 10 | DH49: 167 | DI49: 0 | DJ49: 0 | DK49: 0 | DL49: 0 | DN49: 5455.64 | DO49: 1 | DQ49: 6 | DR49: 501.62 | DS49: =+IF(AA49>$K$8,$F$27/2,0) -> 1 | DT49: =+IF(AA49/Y49>1.5,$F$27/2,0) -> 0 | DU49: =SUM(DS49:DT49) -> 1 | DV49: 1 | DW49: 0 | DX49: 1 | DY49: =SUM(DW49:DX49) -> 1 | EA49: 0 | EB49: 4 | EG49: =IFERROR(VLOOKUP(A49,$EN$37:$EP$992,2,FALSE),"--") -> -- | EH49: =IF(EG49="--","--",IF(N49="LOPUT",IF(EG49="VÄHÄ","--> LOPUT",""),IF(N49="VÄHÄ",IF(EG49="LOPUT","-->VÄHÄ","")))) -> -- | EI49: =IFERROR(VLOOKUP(A49,$EN$37:$EP$992,3,FALSE),"--") -> -- | EJ49: =IFERROR(EI49-D49,"--") -> -- | EK49: =IFERROR(VLOOKUP(A49,$EN$37:$EQ$992,4,FALSE),"--") -> -- | EL49: =IFERROR(EK49-K49,"--") -> -- | EN49: 659_9 | EO49: VÄHÄ | EP49: 11 | EQ49: 1
A50: =CONCATENATE(S50,"_",T50) -> 9_224 | B50: 1 | D50: =RANK(CM50,$CM$37:$CM$984) -> 14 | E50: 14 | F50: =E50-D50 -> 0 | G50: =CM50 -> 13.65333333 | H50: =AZ50 -> 5 | I50: =BS50 -> 6.986666667 | J50: =CK50 -> 1.666666667 | K50: =CN50 -> 1 | L50: =B50-K50 -> 0 | M50: =HYPERLINK(CV50,"Gmaps") -> Gmaps | N50: =IF(Y50>$K$6,"LOPUT","VÄHÄ") -> LOPUT | O50: =IF(S50<40,"Valta",IF(S50<100,"Kanta",IF(S50<1000,"Seutu",IF(S50>999,"Yhdys")))) -> Valta | P50: Jyväskyläntie | Q50: Jämsä | S50: 9 | T50: 224 | U50: 0 | V50: 224 | W50: 13073 | X50: 13073 | Y50: 7428.683623 | Z50: 675.313241 | AA50: 9715 | AB50: 6641 (17 %), 7357 (44 %), 7864 (39 %) | AC50: 100 (42 %), 50 (2 %), 80 (56 %) | AD50: Is (100 %) | AE50: Kivimastiksiasfaltti (100 %) | AF50: PK1 (100 %) | AG50: 9 | AH50: 29 | AI50: 0.01257452031 | AJ50: 400.8525205 | AR50: =+IF(Y50>=$K$6,$F$5,($F$5/($K$6))*Y50) -> 9 | AS50: 93 | AV50: =+IF(AS50>=$L$15,$J$15,IF(AS50<($L$15),AS50*($J$15/($L$15)),)) -> 3 | AW50: 2555 | AX50: =+IF(AW50>=$L$11,$J$11,IF(AW50<($L$11),AW50*($J$11/($L$11)),)) -> 3 | AY50: =SUM(AR50,AV50,AX50) -> 15 | AZ50: =+AY50*$H$5 -> 5 | BA50: =+IF(Z50=0,0,IF(Z50>$K$7,$F$9,($F$9/$K$7)*Z50)) -> 8 | BB50: =+IF(AJ50=0,0,IF(AJ50>$L$6,$F$10,($F$10/$L$6)*AJ50)) -> 1 | BC50: =IF(DB50>0,$F$11,0) -> 3 | BD50: =IF(DC50>0,$F$12,0) -> 1 | BE50: =IF(DD50>0,$F$13,0) -> 1 | BF50: =IF(DF50>0,$F$14,0) -> 1 | BG50: =IF(DG50>0,$F$15,0) -> 0 | BH50: =+IF(DH50>=$L$23,$J$23,IF(DH50<($L$23),DH50*($J$23/($L$23)),)) -> 0.48 | BI50: =+IF(DI50>=$L$24,$J$24,IF(DI50<($L$24),DI50*($J$24/($L$24)),)) -> 0.08 | BJ50: =+IF(DJ50>=$L$25,$J$25,IF(DJ50<($L$25),DJ50*($J$25/($L$25)),)) -> 0 | BK50: =+IF(DK50>=$L$26,$J$26,IF(DK50<($L$26),DK50*($J$26/($L$26)),)) -> 0 | BL50: =IF(DL50>0,$F$17,0) -> 2 | BM50: =+IF(DO50>=$L$29,$J$29,IF(DO50<($L$29),DO50*($J$29/($L$29)),)) -> 0.4 | BO50: =IF(EB50>0,$F$19,0) -> 2 | BP50: 23.20843627 | BQ50: =+IF(BP50>=$L$19,$J$19,IF(BP50<($L$19),BP50*($J$19/($L$19)),)) -> 1 | BR50: =SUM(BA50+BC50+BD50+BE50+BB50+BF50+BL50+BH50+BI50+BJ50+BK50+BM50+BO50+BQ50+BG50) -> 20.96 | BS50: =+BR50*$H$9 -> 6.986666667 | BT50: =DN50 -> 5040.08 | BU50: =BT50/X50 -> 0.3855335424 | BV50: =IF(BU50>0,IF(BU50>=$DA$28,$CY$28,IF(BU50<$DA$28,$CY$29,0)),0) -> 0.5 | BW50: 12049 | BX50: =BW50/X50 -> 0.9216706188 | BY50: =IF(BX50,$F$23,0) -> 1 | BZ50: =IF(DQ50>0,$F$24,0) -> 1 | CA50: =DR50 -> 4286.88 | CB50: =CA50/X50 -> 0.3279186109 | CC50: =+IF(CB50>=$K$4,$F$25,0) -> 0 | CD50: 33.49651954 | CE50: =IF(CD50>0,IF(CD50>=100,$F$26,IF(CD50<100,$F$26/2)),0) -> 0.5 | CF50: =SUM(DU50) -> 1 | CG50: =IF(DY50>0,$F$28,0) -> 0 | CH50: =IF(DV50>0,$F$29,0) -> 0 | CI50: =IF(EA50=0,$F$30,0) -> 1 | CJ50: =SUM(BV50,BY50,CE50,BZ50,CC50,CF50,CG50,CH50,CI50) -> 5 | CK50: =+CJ50*$H$22 -> 1.666666667 | CL50: =SUM(AY50,BR50,CJ50) -> 40.96 | CM50: =SUM(AZ50,BS50,CK50) -> 13.65333333 | CN50: =IF(D50<($Z$13*$CN$28),1,IF(D50<(($Z$14+$Z$13)*$CN$28),2,IF(D50<(($Z$15+$Z$13+$Z$14)*$CN$28),3,4))) -> 1 | CO50: =VLOOKUP(A50,Taul1!$F$6:$G$953,2,FALSE) -> 3 | CQ50: =AR50+AV50+AX50+BA50+BC50+BD50+BF50+BG50+BH50+BI50+BJ50+BK50+BL50+BM50+BO50+BV50+BY50+BZ50+CF50+CI50 -> 37.46 | CR50: =AY50 -> 15 | CS50: =BA50+BC50+BD50+BF50+BG50+BH50+BI50+BJ50+BK50+BL50+BM50+BO50 -> 17.96 | CT50: =BV50+BY50+BZ50+CF50+CI50 -> 4.5 | CV50: https://www.google.com/maps/@61.85057023,25.17562875,3a,75y,90t/data=!3m3!1e1!3m1!2e0 | DA50: 5 | DB50: =SUM(CY50:DA50) -> 5 | DC50: 2 | DD50: 4 | DE50: 0 | DF50: 5 | DG50: 0 | DH50: 96 | DI50: 16 | DJ50: 0 | DK50: 0 | DL50: 1 | DN50: 5040.08 | DO50: 1 | DQ50: 1 | DR50: 4286.88 | DS50: =+IF(AA50>$K$8,$F$27/2,0) -> 1 | DT50: =+IF(AA50/Y50>1.5,$F$27/2,0) -> 0 | DU50: =SUM(DS50:DT50) -> 1 | DV50: 0 | DW50: 0 | DX50: 0 | DY50: =SUM(DW50:DX50) -> 0 | EA50: 0 | EB50: 3 | EG50: =IFERROR(VLOOKUP(A50,$EN$37:$EP$992,2,FALSE),"--") -> -- | EH50: =IF(EG50="--","--",IF(N50="LOPUT",IF(EG50="VÄHÄ","--> LOPUT",""),IF(N50="VÄHÄ",IF(EG50="LOPUT","-->VÄHÄ","")))) -> -- | EI50: =IFERROR(VLOOKUP(A50,$EN$37:$EP$992,3,FALSE),"--") -> -- | EJ50: =IFERROR(EI50-D50,"--") -> -- | EK50: =IFERROR(VLOOKUP(A50,$EN$37:$EQ$992,4,FALSE),"--") -> -- | EL50: =IFERROR(EK50-K50,"--") -> -- | EN50: 431_12 | EO50: VÄHÄ | EP50: 14 | EQ50: 1
A51: =CONCATENATE(S51,"_",T51) -> 9_235 | B51: 1 | D51: =RANK(CM51,$CM$37:$CM$984) -> 15 | E51: 15 | F51: =E51-D51 -> 0 | G51: =CM51 -> 13.63506343 | H51: =AZ51 -> 5 | I51: =BS51 -> 5.968396764 | J51: =CK51 -> 2.666666667 | K51: =CN51 -> 1 | L51: =B51-K51 -> 0 | M51: =HYPERLINK(CV51,"Gmaps") -> Gmaps | N51: =IF(Y51>$K$6,"LOPUT","VÄHÄ") -> LOPUT | O51: =IF(S51<40,"Valta",IF(S51<100,"Kanta",IF(S51<1000,"Seutu",IF(S51>999,"Yhdys")))) -> Valta | P51: Rantaväylä, Ysitie | Q51: Jyväskylä | S51: 9 | T51: 235 | U51: 0 | V51: 235 | W51: 7668 | X51: 7668 | Y51: 27943.92149 | Z51: 1234.440141 | AA51: 30389 | AB51: 17437 (16 %), 26338 (30 %), 29686 (13 %), 31059 (22 %), 34547 (19 %) | AC51: 100 (19 %), 60 (28 %), 70 (16 %), 80 (38 %) | AD51: Ise (100 %) | AE51: Asfalttibetoni (34 %), Kivimastiksiasfaltti (67 %) | AF51: PK1 (100 %) | AG51: 14 | AH51: 43 | AI51: 0.01003210273 | AJ51: 688.4084507 | AR51: =+IF(Y51>=$K$6,$F$5,($F$5/($K$6))*Y51) -> 9 | AS51: 2070 | AV51: =+IF(AS51>=$L$15,$J$15,IF(AS51<($L$15),AS51*($J$15/($L$15)),)) -> 3 | AW51: 23131 | AX51: =+IF(AW51>=$L$11,$J$11,IF(AW51<($L$11),AW51*($J$11/($L$11)),)) -> 3 | AY51: =SUM(AR51,AV51,AX51) -> 15 | AZ51: =+AY51*$H$5 -> 5 | BA51: =+IF(Z51=0,0,IF(Z51>$K$7,$F$9,($F$9/$K$7)*Z51)) -> 8 | BB51: =+IF(AJ51=0,0,IF(AJ51>$L$6,$F$10,($F$10/$L$6)*AJ51)) -> 1 | BC51: =IF(DB51>0,$F$11,0) -> 3 | BD51: =IF(DC51>0,$F$12,0) -> 1 | BE51: =IF(DD51>0,$F$13,0) -> 0 | BF51: =IF(DF51>0,$F$14,0) -> 0 | BG51: =IF(DG51>0,$F$15,0) -> 0 | BH51: =+IF(DH51>=$L$23,$J$23,IF(DH51<($L$23),DH51*($J$23/($L$23)),)) -> 0 | BI51: =+IF(DI51>=$L$24,$J$24,IF(DI51<($L$24),DI51*($J$24/($L$24)),)) -> 0.01 | BJ51: =+IF(DJ51>=$L$25,$J$25,IF(DJ51<($L$25),DJ51*($J$25/($L$25)),)) -> 0 | BK51: =+IF(DK51>=$L$26,$J$26,IF(DK51<($L$26),DK51*($J$26/($L$26)),)) -> 0 | BL51: =IF(DL51>0,$F$17,0) -> 0 | BM51: =+IF(DO51>=$L$29,$J$29,IF(DO51<($L$29),DO51*($J$29/($L$29)),)) -> 2 | BO51: =IF(EB51>0,$F$19,0) -> 2 | BP51: 8.951902905 | BQ51: =+IF(BP51>=$L$19,$J$19,IF(BP51<($L$19),BP51*($J$19/($L$19)),)) -> 0.8951902905 | BR51: =SUM(BA51+BC51+BD51+BE51+BB51+BF51+BL51+BH51+BI51+BJ51+BK51+BM51+BO51+BQ51+BG51) -> 17.90519029 | BS51: =+BR51*$H$9 -> 5.968396764 | BT51: =DN51 -> 7726.69 | BU51: =BT51/X51 -> 1.007653886 | BV51: =IF(BU51>0,IF(BU51>=$DA$28,$CY$28,IF(BU51<$DA$28,$CY$29,0)),0) -> 1 | BW51: 7726.69 | BX51: =BW51/X51 -> 1.007653886 | BY51: =IF(BX51,$F$23,0) -> 1 | BZ51: =IF(DQ51>0,$F$24,0) -> 1 | CA51: =DR51 -> 6822.37 | CB51: =CA51/X51 -> 0.889719614 | CC51: =+IF(CB51>=$K$4,$F$25,0) -> 1 | CD51: 1491.388628 | CE51: =IF(CD51>0,IF(CD51>=100,$F$26,IF(CD51<100,$F$26/2)),0) -> 1 | CF51: =SUM(DU51) -> 1 | CG51: =IF(DY51>0,$F$28,0) -> 1 | CH51: =IF(DV51>0,$F$29,0) -> 0 | CI51: =IF(EA51=0,$F$30,0) -> 1 | CJ51: =SUM(BV51,BY51,CE51,BZ51,CC51,CF51,CG51,CH51,CI51) -> 8 | CK51: =+CJ51*$H$22 -> 2.666666667 | CL51: =SUM(AY51,BR51,CJ51) -> 40.90519029 | CM51: =SUM(AZ51,BS51,CK51) -> 13.63506343 | CN51: =IF(D51<($Z$13*$CN$28),1,IF(D51<(($Z$14+$Z$13)*$CN$28),2,IF(D51<(($Z$15+$Z$13+$Z$14)*$CN$28),3,4))) -> 1 | CO51: =VLOOKUP(A51,Taul1!$F$6:$G$953,2,FALSE) -> 5 | CQ51: =AR51+AV51+AX51+BA51+BC51+BD51+BF51+BG51+BH51+BI51+BJ51+BK51+BL51+BM51+BO51+BV51+BY51+BZ51+CF51+CI51 -> 36.01 | CR51: =AY51 -> 15 | CS51: =BA51+BC51+BD51+BF51+BG51+BH51+BI51+BJ51+BK51+BL51+BM51+BO51 -> 16.01 | CT51: =BV51+BY51+BZ51+CF51+CI51 -> 5 | CV51: https://www.google.com/maps/@62.19015481,25.69826835,3a,75y,90t/data=!3m3!1e1!3m1!2e0 | DA51: 17 | DB51: =SUM(CY51:DA51) -> 17 | DC51: 2 | DD51: 0 | DE51: 0 | DF51: 0 | DG51: 0 | DH51: 0 | DI51: 2 | DJ51: 0 | DK51: 0 | DL51: 0 | DN51: 7726.69 | DO51: 13 | DQ51: 16 | DR51: 6822.37 | DS51: =+IF(AA51>$K$8,$F$27/2,0) -> 1 | DT51: =+IF(AA51/Y51>1.5,$F$27/2,0) -> 0 | DU51: =SUM(DS51:DT51) -> 1 | DV51: 0 | DW51: 0 | DX51: 1 | DY51: =SUM(DW51:DX51) -> 1 | EA51: 0 | EB51: 8 | EG51: =IFERROR(VLOOKUP(A51,$EN$37:$EP$992,2,FALSE),"--") -> -- | EH51: =IF(EG51="--","--",IF(N51="LOPUT",IF(EG51="VÄHÄ","--> LOPUT",""),IF(N51="VÄHÄ",IF(EG51="LOPUT","-->VÄHÄ","")))) -> -- | EI51: =IFERROR(VLOOKUP(A51,$EN$37:$EP$992,3,FALSE),"--") -> -- | EJ51: =IFERROR(EI51-D51,"--") -> -- | EK51: =IFERROR(VLOOKUP(A51,$EN$37:$EQ$992,4,FALSE),"--") -> -- | EL51: =IFERROR(EK51-K51,"--") -> -- | EN51: 636_6 | EO51: VÄHÄ | EP51: 15 | EQ51: 1
A52: =CONCATENATE(S52,"_",T52) -> 641_2 | B52: 1 | D52: =RANK(CM52,$CM$37:$CM$984) -> 16 | E52: 16 | F52: =E52-D52 -> 0 | G52: =CM52 -> 13.48735564 | H52: =AZ52 -> 5 | I52: =BS52 -> 6.154022306 | J52: =CK52 -> 2.333333333 | K52: =CN52 -> 1 | L52: =B52-K52 -> 0 | M52: =HYPERLINK(CV52,"Gmaps") -> Gmaps | N52: =IF(Y52>$K$6,"LOPUT","VÄHÄ") -> LOPUT | O52: =IF(S52<40,"Valta",IF(S52<100,"Kanta",IF(S52<1000,"Seutu",IF(S52>999,"Yhdys")))) -> Seutu | P52: Hankasalmentie, Keskustie | Q52: Hankasalmi | S52: 641 | T52: 2 | U52: 0 | V52: 2 | W52: 4859 | X52: 4859 | Y52: 2050.990739 | Z52: 141.4990739 | AA52: 2716 | AB52: 1566 (39 %), 2356 (61 %) | AC52: 40 (26 %), 50 (15 %), 60 (16 %), 80 (43 %) | AD52: Ib (100 %) | AE52: Asfalttibetoni (97 %) | AF52: PK2 (100 %) | AG52: 0 | AH52: 1 | AI52: 0.2642550582 | AJ52: 50.64519448 | AR52: =+IF(Y52>=$K$6,$F$5,($F$5/($K$6))*Y52) -> 9 | AS52: 46 | AV52: =+IF(AS52>=$L$15,$J$15,IF(AS52<($L$15),AS52*($J$15/($L$15)),)) -> 3 | AW52: 639 | AX52: =+IF(AW52>=$L$11,$J$11,IF(AW52<($L$11),AW52*($J$11/($L$11)),)) -> 3 | AY52: =SUM(AR52,AV52,AX52) -> 15 | AZ52: =+AY52*$H$5 -> 5 | BA52: =+IF(Z52=0,0,IF(Z52>$K$7,$F$9,($F$9/$K$7)*Z52)) -> 8 | BB52: =+IF(AJ52=0,0,IF(AJ52>$L$6,$F$10,($F$10/$L$6)*AJ52)) -> 1 | BC52: =IF(DB52>0,$F$11,0) -> 3 | BD52: =IF(DC52>0,$F$12,0) -> 1 | BE52: =IF(DD52>0,$F$13,0) -> 0 | BF52: =IF(DF52>0,$F$14,0) -> 1 | BG52: =IF(DG52>0,$F$15,0) -> 1 | BH52: =+IF(DH52>=$L$23,$J$23,IF(DH52<($L$23),DH52*($J$23/($L$23)),)) -> 0.5 | BI52: =+IF(DI52>=$L$24,$J$24,IF(DI52<($L$24),DI52*($J$24/($L$24)),)) -> 0.02 | BJ52: =+IF(DJ52>=$L$25,$J$25,IF(DJ52<($L$25),DJ52*($J$25/($L$25)),)) -> 0 | BK52: =+IF(DK52>=$L$26,$J$26,IF(DK52<($L$26),DK52*($J$26/($L$26)),)) -> 0 | BL52: =IF(DL52>0,$F$17,0) -> 0 | BM52: =+IF(DO52>=$L$29,$J$29,IF(DO52<($L$29),DO52*($J$29/($L$29)),)) -> 0 | BO52: =IF(EB52>0,$F$19,0) -> 2 | BP52: 9.420669168 | BQ52: =+IF(BP52>=$L$19,$J$19,IF(BP52<($L$19),BP52*($J$19/($L$19)),)) -> 0.9420669168 | BR52: =SUM(BA52+BC52+BD52+BE52+BB52+BF52+BL52+BH52+BI52+BJ52+BK52+BM52+BO52+BQ52+BG52) -> 18.46206692 | BS52: =+BR52*$H$9 -> 6.154022306 | BT52: =DN52 -> 3543.98 | BU52: =BT52/X52 -> 0.7293640667 | BV52: =IF(BU52>0,IF(BU52>=$DA$28,$CY$28,IF(BU52<$DA$28,$CY$29,0)),0) -> 1 | BW52: 4703.3 | BX52: =BW52/X52 -> 0.9679563696 | BY52: =IF(BX52,$F$23,0) -> 1 | BZ52: =IF(DQ52>0,$F$24,0) -> 1 | CA52: =DR52 -> 2153.29 | CB52: =CA52/X52 -> 0.4431549702 | CC52: =+IF(CB52>=$K$4,$F$25,0) -> 0 | CD52: 150.6600123 | CE52: =IF(CD52>0,IF(CD52>=100,$F$26,IF(CD52<100,$F$26/2)),0) -> 1 | CF52: =SUM(DU52) -> 1 | CG52: =IF(DY52>0,$F$28,0) -> 1 | CH52: =IF(DV52>0,$F$29,0) -> 0 | CI52: =IF(EA52=0,$F$30,0) -> 1 | CJ52: =SUM(BV52,BY52,CE52,BZ52,CC52,CF52,CG52,CH52,CI52) -> 7 | CK52: =+CJ52*$H$22 -> 2.333333333 | CL52: =SUM(AY52,BR52,CJ52) -> 40.46206692 | CM52: =SUM(AZ52,BS52,CK52) -> 13.48735564 | CN52: =IF(D52<($Z$13*$CN$28),1,IF(D52<(($Z$14+$Z$13)*$CN$28),2,IF(D52<(($Z$15+$Z$13+$Z$14)*$CN$28),3,4))) -> 1 | CO52: =VLOOKUP(A52,Taul1!$F$6:$G$953,2,FALSE) -> 2 | CQ52: =AR52+AV52+AX52+BA52+BC52+BD52+BF52+BG52+BH52+BI52+BJ52+BK52+BL52+BM52+BO52+BV52+BY52+BZ52+CF52+CI52 -> 36.52 | CR52: =AY52 -> 15 | CS52: =BA52+BC52+BD52+BF52+BG52+BH52+BI52+BJ52+BK52+BL52+BM52+BO52 -> 16.52 | CT52: =BV52+BY52+BZ52+CF52+CI52 -> 5 | CV52: https://www.google.com/maps/@62.35173176,26.45936367,3a,75y,90t/data=!3m3!1e1!3m1!2e0 | DA52: 1 | DB52: =SUM(CY52:DA52) -> 1 | DC52: 2 | DD52: 0 | DE52: 0 | DF52: 3 | DG52: 1 | DH52: 144 | DI52: 4 | DJ52: 0 | DK52: 0 | DL52: 0 | DN52: 3543.98 | DO52: 0 | DQ52: 1 | DR52: 2153.29 | DS52: =+IF(AA52>$K$8,$F$27/2,0) -> 1 | DT52: =+IF(AA52/Y52>1.5,$F$27/2,0) -> 0 | DU52: =SUM(DS52:DT52) -> 1 | DV52: 0 | DW52: 0 | DX52: 1 | DY52: =SUM(DW52:DX52) -> 1 | EA52: 0 | EB52: 2 | EG52: =IFERROR(VLOOKUP(A52,$EN$37:$EP$992,2,FALSE),"--") -> LOPUT | EH52: =IF(EG52="--","--",IF(N52="LOPUT",IF(EG52="VÄHÄ","--> LOPUT",""),IF(N52="VÄHÄ",IF(EG52="LOPUT","-->VÄHÄ","")))) ->  | EI52: =IFERROR(VLOOKUP(A52,$EN$37:$EP$992,3,FALSE),"--") -> 11 | EJ52: =IFERROR(EI52-D52,"--") -> -5 | EK52: =IFERROR(VLOOKUP(A52,$EN$37:$EQ$992,4,FALSE),"--") -> 1 | EL52: =IFERROR(EK52-K52,"--") -> 0 | EN52: 604_6 | EO52: VÄHÄ | EP52: 16 | EQ52: 1
A53: =CONCATENATE(S53,"_",T53) -> 642_3 | B53: 1 | D53: =RANK(CM53,$CM$37:$CM$984) -> 17 | E53: 17 | F53: =E53-D53 -> 0 | G53: =CM53 -> 13.48333333 | H53: =AZ53 -> 5 | I53: =BS53 -> 6.15 | J53: =CK53 -> 2.333333333 | K53: =CN53 -> 1 | L53: =B53-K53 -> 0 | M53: =HYPERLINK(CV53,"Gmaps") -> Gmaps | N53: =IF(Y53>$K$6,"LOPUT","VÄHÄ") -> LOPUT | O53: =IF(S53<40,"Valta",IF(S53<100,"Kanta",IF(S53<1000,"Seutu",IF(S53>999,"Yhdys")))) -> Seutu | P53: Suolahdentie | Q53: Äänekoski | S53: 642 | T53: 3 | U53: 0 | V53: 3 | W53: 2498 | X53: 2498 | Y53: 3568 | Z53: 250 | AA53: 3839 | AB53: 3568 (100 %) | AC53: 50 (59 %), 60 (41 %) | AD53: Is (100 %) | AE53: Asfalttibetoni (100 %) | AF53: PK2 (100 %) | AG53: 0 | AH53: 1 | AI53: 0.1192954363 | AJ53: 107 | AR53: =+IF(Y53>=$K$6,$F$5,($F$5/($K$6))*Y53) -> 9 | AS53: 25 | AV53: =+IF(AS53>=$L$15,$J$15,IF(AS53<($L$15),AS53*($J$15/($L$15)),)) -> 3 | AW53: 1343 | AX53: =+IF(AW53>=$L$11,$J$11,IF(AW53<($L$11),AW53*($J$11/($L$11)),)) -> 3 | AY53: =SUM(AR53,AV53,AX53) -> 15 | AZ53: =+AY53*$H$5 -> 5 | BA53: =+IF(Z53=0,0,IF(Z53>$K$7,$F$9,($F$9/$K$7)*Z53)) -> 8 | BB53: =+IF(AJ53=0,0,IF(AJ53>$L$6,$F$10,($F$10/$L$6)*AJ53)) -> 1 | BC53: =IF(DB53>0,$F$11,0) -> 3 | BD53: =IF(DC53>0,$F$12,0) -> 1 | BE53: =IF(DD53>0,$F$13,0) -> 0 | BF53: =IF(DF53>0,$F$14,0) -> 1 | BG53: =IF(DG53>0,$F$15,0) -> 1 | BH53: =+IF(DH53>=$L$23,$J$23,IF(DH53<($L$23),DH53*($J$23/($L$23)),)) -> 0.45 | BI53: =+IF(DI53>=$L$24,$J$24,IF(DI53<($L$24),DI53*($J$24/($L$24)),)) -> 0 | BJ53: =+IF(DJ53>=$L$25,$J$25,IF(DJ53<($L$25),DJ53*($J$25/($L$25)),)) -> 0 | BK53: =+IF(DK53>=$L$26,$J$26,IF(DK53<($L$26),DK53*($J$26/($L$26)),)) -> 0 | BL53: =IF(DL53>0,$F$17,0) -> 0 | BM53: =+IF(DO53>=$L$29,$J$29,IF(DO53<($L$29),DO53*($J$29/($L$29)),)) -> 0 | BO53: =IF(EB53>0,$F$19,0) -> 2 | BP53: 32.55558655 | BQ53: =+IF(BP53>=$L$19,$J$19,IF(BP53<($L$19),BP53*($J$19/($L$19)),)) -> 1 | BR53: =SUM(BA53+BC53+BD53+BE53+BB53+BF53+BL53+BH53+BI53+BJ53+BK53+BM53+BO53+BQ53+BG53) -> 18.45 | BS53: =+BR53*$H$9 -> 6.15 | BT53: =DN53 -> 1339.97 | BU53: =BT53/X53 -> 0.5364171337 | BV53: =IF(BU53>0,IF(BU53>=$DA$28,$CY$28,IF(BU53<$DA$28,$CY$29,0)),0) -> 1 | BW53: 2491.02 | BX53: =BW53/X53 -> 0.9972057646 | BY53: =IF(BX53,$F$23,0) -> 1 | BZ53: =IF(DQ53>0,$F$24,0) -> 1 | CA53: =DR53 -> 1830.19 | CB53: =CA53/X53 -> 0.7326621297 | CC53: =+IF(CB53>=$K$4,$F$25,0) -> 1 | CD53: 280.6180945 | CE53: =IF(CD53>0,IF(CD53>=100,$F$26,IF(CD53<100,$F$26/2)),0) -> 1 | CF53: =SUM(DU53) -> 1 | CG53: =IF(DY53>0,$F$28,0) -> 0 | CH53: =IF(DV53>0,$F$29,0) -> 0 | CI53: =IF(EA53=0,$F$30,0) -> 1 | CJ53: =SUM(BV53,BY53,CE53,BZ53,CC53,CF53,CG53,CH53,CI53) -> 7 | CK53: =+CJ53*$H$22 -> 2.333333333 | CL53: =SUM(AY53,BR53,CJ53) -> 40.45 | CM53: =SUM(AZ53,BS53,CK53) -> 13.48333333 | CN53: =IF(D53<($Z$13*$CN$28),1,IF(D53<(($Z$14+$Z$13)*$CN$28),2,IF(D53<(($Z$15+$Z$13+$Z$14)*$CN$28),3,4))) -> 1 | CO53: =VLOOKUP(A53,Taul1!$F$6:$G$953,2,FALSE) -> 1 | CQ53: =AR53+AV53+AX53+BA53+BC53+BD53+BF53+BG53+BH53+BI53+BJ53+BK53+BL53+BM53+BO53+BV53+BY53+BZ53+CF53+CI53 -> 36.45 | CR53: =AY53 -> 15 | CS53: =BA53+BC53+BD53+BF53+BG53+BH53+BI53+BJ53+BK53+BL53+BM53+BO53 -> 16.45 | CT53: =BV53+BY53+BZ53+CF53+CI53 -> 5 | CV53: https://www.google.com/maps/@62.5441273,25.85972116,3a,75y,90t/data=!3m3!1e1!3m1!2e0 | DA53: 1 | DB53: =SUM(CY53:DA53) -> 1 | DC53: 2 | DD53: 0 | DE53: 0 | DF53: 1 | DG53: 1 | DH53: 90 | DI53: 0 | DJ53: 0 | DK53: 0 | DL53: 0 | DN53: 1339.97 | DO53: 0 | DQ53: 1 | DR53: 1830.19 | DS53: =+IF(AA53>$K$8,$F$27/2,0) -> 1 | DT53: =+IF(AA53/Y53>1.5,$F$27/2,0) -> 0 | DU53: =SUM(DS53:DT53) -> 1 | DV53: 0 | DW53: 0 | DX53: 0 | DY53: =SUM(DW53:DX53) -> 0 | EA53: 0 | EB53: 3 | EG53: =IFERROR(VLOOKUP(A53,$EN$37:$EP$992,2,FALSE),"--") -> LOPUT | EH53: =IF(EG53="--","--",IF(N53="LOPUT",IF(EG53="VÄHÄ","--> LOPUT",""),IF(N53="VÄHÄ",IF(EG53="LOPUT","-->VÄHÄ","")))) ->  | EI53: =IFERROR(VLOOKUP(A53,$EN$37:$EP$992,3,FALSE),"--") -> 12 | EJ53: =IFERROR(EI53-D53,"--") -> -5 | EK53: =IFERROR(VLOOKUP(A53,$EN$37:$EQ$992,4,FALSE),"--") -> 1 | EL53: =IFERROR(EK53-K53,"--") -> 0 | EN53: 6411_1 | EO53: VÄHÄ | EP53: 17 | EQ53: 1
A54: =CONCATENATE(S54,"_",T54) -> 18_50 | B54: 1 | D54: =RANK(CM54,$CM$37:$CM$984) -> 18 | E54: 18 | F54: =E54-D54 -> 0 | G54: =CM54 -> 13.46833333 | H54: =AZ54 -> 5 | I54: =BS54 -> 6.468333333 | J54: =CK54 -> 2 | K54: =CN54 -> 1 | L54: =B54-K54 -> 0 | M54: =HYPERLINK(CV54,"Gmaps") -> Gmaps | N54: =IF(Y54>$K$6,"LOPUT","VÄHÄ") -> LOPUT | O54: =IF(S54<40,"Valta",IF(S54<100,"Kanta",IF(S54<1000,"Seutu",IF(S54>999,"Yhdys")))) -> Valta | P54: Keuruuntie | Q54: Jyväskylä | S54: 18 | T54: 50 | U54: 0 | V54: 50 | W54: 8531 | X54: 8531 | Y54: 7625.419646 | Z54: 437.7032001 | AA54: 8442 | AB54: 5833 (38 %), 6284 (34 %), 10451 (25 %), 19048 (4 %) | AC54: 50 (12 %), 60 (2 %), 80 (85 %) | AD54: Is (100 %) | AE54: Kivimastiksiasfaltti (99 %) | AF54: PK1 (100 %) | AG54: 10 | AH54: 23 | AI54: 0.02138122728 | AJ54: 189.5427265 | AR54: =+IF(Y54>=$K$6,$F$5,($F$5/($K$6))*Y54) -> 9 | AS54: 1920 | AV54: =+IF(AS54>=$L$15,$J$15,IF(AS54<($L$15),AS54*($J$15/($L$15)),)) -> 3 | AW54: 6167 | AX54: =+IF(AW54>=$L$11,$J$11,IF(AW54<($L$11),AW54*($J$11/($L$11)),)) -> 3 | AY54: =SUM(AR54,AV54,AX54) -> 15 | AZ54: =+AY54*$H$5 -> 5 | BA54: =+IF(Z54=0,0,IF(Z54>$K$7,$F$9,($F$9/$K$7)*Z54)) -> 8 | BB54: =+IF(AJ54=0,0,IF(AJ54>$L$6,$F$10,($F$10/$L$6)*AJ54)) -> 1 | BC54: =IF(DB54>0,$F$11,0) -> 3 | BD54: =IF(DC54>0,$F$12,0) -> 1 | BE54: =IF(DD54>0,$F$13,0) -> 1 | BF54: =IF(DF54>0,$F$14,0) -> 0 | BG54: =IF(DG54>0,$F$15,0) -> 0 | BH54: =+IF(DH54>=$L$23,$J$23,IF(DH54<($L$23),DH54*($J$23/($L$23)),)) -> 0.25 | BI54: =+IF(DI54>=$L$24,$J$24,IF(DI54<($L$24),DI54*($J$24/($L$24)),)) -> 0.155 | BJ54: =+IF(DJ54>=$L$25,$J$25,IF(DJ54<($L$25),DJ54*($J$25/($L$25)),)) -> 0 | BK54: =+IF(DK54>=$L$26,$J$26,IF(DK54<($L$26),DK54*($J$26/($L$26)),)) -> 0 | BL54: =IF(DL54>0,$F$17,0) -> 0 | BM54: =+IF(DO54>=$L$29,$J$29,IF(DO54<($L$29),DO54*($J$29/($L$29)),)) -> 2 | BO54: =IF(EB54>0,$F$19,0) -> 2 | BP54: 12.14244945 | BQ54: =+IF(BP54>=$L$19,$J$19,IF(BP54<($L$19),BP54*($J$19/($L$19)),)) -> 1 | BR54: =SUM(BA54+BC54+BD54+BE54+BB54+BF54+BL54+BH54+BI54+BJ54+BK54+BM54+BO54+BQ54+BG54) -> 19.405 | BS54: =+BR54*$H$9 -> 6.468333333 | BT54: =DN54 -> 6637.96 | BU54: =BT54/X54 -> 0.7780986989 | BV54: =IF(BU54>0,IF(BU54>=$DA$28,$CY$28,IF(BU54<$DA$28,$CY$29,0)),0) -> 1 | BW54: 7681.89 | BX54: =BW54/X54 -> 0.900467706 | BY54: =IF(BX54,$F$23,0) -> 1 | BZ54: =IF(DQ54>0,$F$24,0) -> 1 | CA54: =DR54 -> 4232.39 | CB54: =CA54/X54 -> 0.4961188606 | CC54: =+IF(CB54>=$K$4,$F$25,0) -> 0 | CD54: 686.8498418 | CE54: =IF(CD54>0,IF(CD54>=100,$F$26,IF(CD54<100,$F$26/2)),0) -> 1 | CF54: =SUM(DU54) -> 1 | CG54: =IF(DY54>0,$F$28,0) -> 0 | CH54: =IF(DV54>0,$F$29,0) -> 0 | CI54: =IF(EA54=0,$F$30,0) -> 1 | CJ54: =SUM(BV54,BY54,CE54,BZ54,CC54,CF54,CG54,CH54,CI54) -> 6 | CK54: =+CJ54*$H$22 -> 2 | CL54: =SUM(AY54,BR54,CJ54) -> 40.405 | CM54: =SUM(AZ54,BS54,CK54) -> 13.46833333 | CN54: =IF(D54<($Z$13*$CN$28),1,IF(D54<(($Z$14+$Z$13)*$CN$28),2,IF(D54<(($Z$15+$Z$13+$Z$14)*$CN$28),3,4))) -> 1 | CO54: =VLOOKUP(A54,Taul1!$F$6:$G$953,2,FALSE) -> 4 | CQ54: =AR54+AV54+AX54+BA54+BC54+BD54+BF54+BG54+BH54+BI54+BJ54+BK54+BL54+BM54+BO54+BV54+BY54+BZ54+CF54+CI54 -> 36.405 | CR54: =AY54 -> 15 | CS54: =BA54+BC54+BD54+BF54+BG54+BH54+BI54+BJ54+BK54+BL54+BM54+BO54 -> 16.405 | CT54: =BV54+BY54+BZ54+CF54+CI54 -> 5 | CV54: https://www.google.com/maps/@62.26028313,25.60020665,3a,75y,90t/data=!3m3!1e1!3m1!2e0 | DA54: 6 | DB54: =SUM(CY54:DA54) -> 6 | DC54: 5 | DD54: 1 | DE54: 0 | DF54: 0 | DG54: 0 | DH54: 50 | DI54: 31 | DJ54: 0 | DK54: 0 | DL54: 0 | DN54: 6637.96 | DO54: 7 | DQ54: 6 | DR54: 4232.39 | DS54: =+IF(AA54>$K$8,$F$27/2,0) -> 1 | DT54: =+IF(AA54/Y54>1.5,$F$27/2,0) -> 0 | DU54: =SUM(DS54:DT54) -> 1 | DV54: 0 | DW54: 0 | DX54: 0 | DY54: =SUM(DW54:DX54) -> 0 | EA54: 0 | EB54: 10 | EG54: =IFERROR(VLOOKUP(A54,$EN$37:$EP$992,2,FALSE),"--") -> -- | EH54: =IF(EG54="--","--",IF(N54="LOPUT",IF(EG54="VÄHÄ","--> LOPUT",""),IF(N54="VÄHÄ",IF(EG54="LOPUT","-->VÄHÄ","")))) -> -- | EI54: =IFERROR(VLOOKUP(A54,$EN$37:$EP$992,3,FALSE),"--") -> -- | EJ54: =IFERROR(EI54-D54,"--") -> -- | EK54: =IFERROR(VLOOKUP(A54,$EN$37:$EQ$992,4,FALSE),"--") -> -- | EL54: =IFERROR(EK54-K54,"--") -> -- | EN54: 3283_1 | EO54: VÄHÄ | EP54: 18 | EQ54: 1
A55: =CONCATENATE(S55,"_",T55) -> 641_1 | B55: 1 | D55: =RANK(CM55,$CM$37:$CM$984) -> 19 | E55: 19 | F55: =E55-D55 -> 0 | G55: =CM55 -> 13.44372853 | H55: =AZ55 -> 5 | I55: =BS55 -> 6.443728533 | J55: =CK55 -> 2 | K55: =CN55 -> 1 | L55: =B55-K55 -> 0 | M55: =HYPERLINK(CV55,"Gmaps") -> Gmaps | N55: =IF(Y55>$K$6,"LOPUT","VÄHÄ") -> LOPUT | O55: =IF(S55<40,"Valta",IF(S55<100,"Kanta",IF(S55<1000,"Seutu",IF(S55>999,"Yhdys")))) -> Seutu | P55: Hankasalmentie, Kuuhankavedentie | Q55: Hankasalmi | S55: 641 | T55: 1 | U55: 0 | V55: 1 | W55: 4970 | X55: 4970 | Y55: 1940 | Z55: 111 | AA55: 2211 | AB55: 1940 (100 %) | AC55: 60 (18 %), 80 (82 %) | AD55: Ib (100 %) | AE55: Asfalttibetoni (99 %) | AF55: PK2 (100 %) | AG55: 2 | AH55: 2 | AI55: 0.1408450704 | AJ55: 32 | AR55: =+IF(Y55>=$K$6,$F$5,($F$5/($K$6))*Y55) -> 9 | AS55: 46 | AV55: =+IF(AS55>=$L$15,$J$15,IF(AS55<($L$15),AS55*($J$15/($L$15)),)) -> 3 | AW55: 415 | AX55: =+IF(AW55>=$L$11,$J$11,IF(AW55<($L$11),AW55*($J$11/($L$11)),)) -> 3 | AY55: =SUM(AR55,AV55,AX55) -> 15 | AZ55: =+AY55*$H$5 -> 5 | BA55: =+IF(Z55=0,0,IF(Z55>$K$7,$F$9,($F$9/$K$7)*Z55)) -> 8 | BB55: =+IF(AJ55=0,0,IF(AJ55>$L$6,$F$10,($F$10/$L$6)*AJ55)) -> 1 | BC55: =IF(DB55>0,$F$11,0) -> 3 | BD55: =IF(DC55>0,$F$12,0) -> 1 | BE55: =IF(DD55>0,$F$13,0) -> 1 | BF55: =IF(DF55>0,$F$14,0) -> 1 | BG55: =IF(DG55>0,$F$15,0) -> 1 | BH55: =+IF(DH55>=$L$23,$J$23,IF(DH55<($L$23),DH55*($J$23/($L$23)),)) -> 0.5 | BI55: =+IF(DI55>=$L$24,$J$24,IF(DI55<($L$24),DI55*($J$24/($L$24)),)) -> 0.11 | BJ55: =+IF(DJ55>=$L$25,$J$25,IF(DJ55<($L$25),DJ55*($J$25/($L$25)),)) -> 0 | BK55: =+IF(DK55>=$L$26,$J$26,IF(DK55<($L$26),DK55*($J$26/($L$26)),)) -> 0 | BL55: =IF(DL55>0,$F$17,0) -> 0 | BM55: =+IF(DO55>=$L$29,$J$29,IF(DO55<($L$29),DO55*($J$29/($L$29)),)) -> 0 | BO55: =IF(EB55>0,$F$19,0) -> 2 | BP55: 7.211855986 | BQ55: =+IF(BP55>=$L$19,$J$19,IF(BP55<($L$19),BP55*($J$19/($L$19)),)) -> 0.7211855986 | BR55: =SUM(BA55+BC55+BD55+BE55+BB55+BF55+BL55+BH55+BI55+BJ55+BK55+BM55+BO55+BQ55+BG55) -> 19.3311856 | BS55: =+BR55*$H$9 -> 6.443728533 | BT55: =DN55 -> 2027.43 | BU55: =BT55/X55 -> 0.4079336016 | BV55: =IF(BU55>0,IF(BU55>=$DA$28,$CY$28,IF(BU55<$DA$28,$CY$29,0)),0) -> 0.5 | BW55: 495.839 | BX55: =BW55/X55 -> 0.09976639839 | BY55: =IF(BX55,$F$23,0) -> 1 | BZ55: =IF(DQ55>0,$F$24,0) -> 1 | CA55: =DR55 -> 879.405 | CB55: =CA55/X55 -> 0.1769426559 | CC55: =+IF(CB55>=$K$4,$F$25,0) -> 0 | CD55: 27.36016097 | CE55: =IF(CD55>0,IF(CD55>=100,$F$26,IF(CD55<100,$F$26/2)),0) -> 0.5 | CF55: =SUM(DU55) -> 1 | CG55: =IF(DY55>0,$F$28,0) -> 1 | CH55: =IF(DV55>0,$F$29,0) -> 0 | CI55: =IF(EA55=0,$F$30,0) -> 1 | CJ55: =SUM(BV55,BY55,CE55,BZ55,CC55,CF55,CG55,CH55,CI55) -> 6 | CK55: =+CJ55*$H$22 -> 2 | CL55: =SUM(AY55,BR55,CJ55) -> 40.3311856 | CM55: =SUM(AZ55,BS55,CK55) -> 13.44372853 | CN55: =IF(D55<($Z$13*$CN$28),1,IF(D55<(($Z$14+$Z$13)*$CN$28),2,IF(D55<(($Z$15+$Z$13+$Z$14)*$CN$28),3,4))) -> 1 | CO55: =VLOOKUP(A55,Taul1!$F$6:$G$953,2,FALSE) -> 1 | CQ55: =AR55+AV55+AX55+BA55+BC55+BD55+BF55+BG55+BH55+BI55+BJ55+BK55+BL55+BM55+BO55+BV55+BY55+BZ55+CF55+CI55 -> 36.11 | CR55: =AY55 -> 15 | CS55: =BA55+BC55+BD55+BF55+BG55+BH55+BI55+BJ55+BK55+BL55+BM55+BO55 -> 16.61 | CT55: =BV55+BY55+BZ55+CF55+CI55 -> 4.5 | CV55: https://www.google.com/maps/@62.31075464,26.49473503,3a,75y,90t/data=!3m3!1e1!3m1!2e0 | DA55: 1 | DB55: =SUM(CY55:DA55) -> 1 | DC55: 4 | DD55: 1 | DE55: 3 | DF55: 6 | DG55: 1 | DH55: 181 | DI55: 22 | DJ55: 0 | DK55: 0 | DL55: 0 | DN55: 2027.43 | DO55: 0 | DQ55: 7 | DR55: 879.405 | DS55: =+IF(AA55>$K$8,$F$27/2,0) -> 1 | DT55: =+IF(AA55/Y55>1.5,$F$27/2,0) -> 0 | DU55: =SUM(DS55:DT55) -> 1 | DV55: 0 | DW55: 0 | DX55: 1 | DY55: =SUM(DW55:DX55) -> 1 | EA55: 0 | EB55: 2 | EG55: =IFERROR(VLOOKUP(A55,$EN$37:$EP$992,2,FALSE),"--") -> LOPUT | EH55: =IF(EG55="--","--",IF(N55="LOPUT",IF(EG55="VÄHÄ","--> LOPUT",""),IF(N55="VÄHÄ",IF(EG55="LOPUT","-->VÄHÄ","")))) ->  | EI55: =IFERROR(VLOOKUP(A55,$EN$37:$EP$992,3,FALSE),"--") -> 2 | EJ55: =IFERROR(EI55-D55,"--") -> -17 | EK55: =IFERROR(VLOOKUP(A55,$EN$37:$EQ$992,4,FALSE),"--") -> 1 | EL55: =IFERROR(EK55-K55,"--") -> 0 | EN55: 3481_5 | EO55: VÄHÄ | EP55: 19 | EQ55: 1
A56: =CONCATENATE(S56,"_",T56) -> 6090_1 | B56: 1 | D56: =RANK(CM56,$CM$37:$CM$984) -> 20 | E56: 20 | F56: =E56-D56 -> 0 | G56: =CM56 -> 13.32694947 | H56: =AZ56 -> 5 | I56: =BS56 -> 5.660282803 | J56: =CK56 -> 2.666666667 | K56: =CN56 -> 1 | L56: =B56-K56 -> 0 | M56: =HYPERLINK(CV56,"Gmaps") -> Gmaps | N56: =IF(Y56>$K$6,"LOPUT","VÄHÄ") -> LOPUT | O56: =IF(S56<40,"Valta",IF(S56<100,"Kanta",IF(S56<1000,"Seutu",IF(S56>999,"Yhdys")))) -> Yhdys | P56: Isolahdentie, Kinkovuorentie, Muuramentie | Q56: Jyväskylä, Muurame | S56: 6090 | T56: 1 | U56: 0 | V56: 1 | W56: 4804 | X56: 4804 | Y56: 2743.116361 | Z56: 129.9071607 | AA56: 3000 | AB56: 1695 (9 %), 2848 (91 %) | AC56: 40 (27 %), 50 (28 %), 60 (44 %) | AD56: Ib (99 %) | AE56: Asfalttibetoni (90 %), Kivimastiksiasfaltti (9 %) | AF56: PK2 (99 %) | AG56: 0 | AH56: 4 | AI56: 0.07489234226 | AJ56: 56.72522898 | AR56: =+IF(Y56>=$K$6,$F$5,($F$5/($K$6))*Y56) -> 9 | AS56: 556 | AV56: =+IF(AS56>=$L$15,$J$15,IF(AS56<($L$15),AS56*($J$15/($L$15)),)) -> 3 | AW56: 2406 | AX56: =+IF(AW56>=$L$11,$J$11,IF(AW56<($L$11),AW56*($J$11/($L$11)),)) -> 3 | AY56: =SUM(AR56,AV56,AX56) -> 15 | AZ56: =+AY56*$H$5 -> 5 | BA56: =+IF(Z56=0,0,IF(Z56>$K$7,$F$9,($F$9/$K$7)*Z56)) -> 8 | BB56: =+IF(AJ56=0,0,IF(AJ56>$L$6,$F$10,($F$10/$L$6)*AJ56)) -> 1 | BC56: =IF(DB56>0,$F$11,0) -> 3 | BD56: =IF(DC56>0,$F$12,0) -> 1 | BE56: =IF(DD56>0,$F$13,0) -> 1 | BF56: =IF(DF56>0,$F$14,0) -> 0 | BG56: =IF(DG56>0,$F$15,0) -> 0 | BH56: =+IF(DH56>=$L$23,$J$23,IF(DH56<($L$23),DH56*($J$23/($L$23)),)) -> 0 | BI56: =+IF(DI56>=$L$24,$J$24,IF(DI56<($L$24),DI56*($J$24/($L$24)),)) -> 0.02 | BJ56: =+IF(DJ56>=$L$25,$J$25,IF(DJ56<($L$25),DJ56*($J$25/($L$25)),)) -> 0 | BK56: =+IF(DK56>=$L$26,$J$26,IF(DK56<($L$26),DK56*($J$26/($L$26)),)) -> 0 | BL56: =IF(DL56>0,$F$17,0) -> 0 | BM56: =+IF(DO56>=$L$29,$J$29,IF(DO56<($L$29),DO56*($J$29/($L$29)),)) -> 0.8 | BO56: =IF(EB56>0,$F$19,0) -> 2 | BP56: 1.608484105 | BQ56: =+IF(BP56>=$L$19,$J$19,IF(BP56<($L$19),BP56*($J$19/($L$19)),)) -> 0.1608484105 | BR56: =SUM(BA56+BC56+BD56+BE56+BB56+BF56+BL56+BH56+BI56+BJ56+BK56+BM56+BO56+BQ56+BG56) -> 16.98084841 | BS56: =+BR56*$H$9 -> 5.660282803 | BT56: =DN56 -> 3583.33 | BU56: =BT56/X56 -> 0.7459054954 | BV56: =IF(BU56>0,IF(BU56>=$DA$28,$CY$28,IF(BU56<$DA$28,$CY$29,0)),0) -> 1 | BW56: 185.972 | BX56: =BW56/X56 -> 0.03871190674 | BY56: =IF(BX56,$F$23,0) -> 1 | BZ56: =IF(DQ56>0,$F$24,0) -> 1 | CA56: =DR56 -> 3574.35 | CB56: =CA56/X56 -> 0.7440362198 | CC56: =+IF(CB56>=$K$4,$F$25,0) -> 1 | CD56: 422.5437136 | CE56: =IF(CD56>0,IF(CD56>=100,$F$26,IF(CD56<100,$F$26/2)),0) -> 1 | CF56: =SUM(DU56) -> 1 | CG56: =IF(DY56>0,$F$28,0) -> 1 | CH56: =IF(DV56>0,$F$29,0) -> 0 | CI56: =IF(EA56=0,$F$30,0) -> 1 | CJ56: =SUM(BV56,BY56,CE56,BZ56,CC56,CF56,CG56,CH56,CI56) -> 8 | CK56: =+CJ56*$H$22 -> 2.666666667 | CL56: =SUM(AY56,BR56,CJ56) -> 39.98084841 | CM56: =SUM(AZ56,BS56,CK56) -> 13.32694947 | CN56: =IF(D56<($Z$13*$CN$28),1,IF(D56<(($Z$14+$Z$13)*$CN$28),2,IF(D56<(($Z$15+$Z$13+$Z$14)*$CN$28),3,4))) -> 1 | CO56: =VLOOKUP(A56,Taul1!$F$6:$G$953,2,FALSE) -> 2 | CQ56: =AR56+AV56+AX56+BA56+BC56+BD56+BF56+BG56+BH56+BI56+BJ56+BK56+BL56+BM56+BO56+BV56+BY56+BZ56+CF56+CI56 -> 34.82 | CR56: =AY56 -> 15 | CS56: =BA56+BC56+BD56+BF56+BG56+BH56+BI56+BJ56+BK56+BL56+BM56+BO56 -> 14.82 | CT56: =BV56+BY56+BZ56+CF56+CI56 -> 5 | CV56: https://www.google.com/maps/@62.13747367,25.73502415,3a,75y,90t/data=!3m3!1e1!3m1!2e0 | DA56: 1 | DB56: =SUM(CY56:DA56) -> 1 | DC56: 1 | DD56: 1 | DE56: 0 | DF56: 0 | DG56: 0 | DH56: 0 | DI56: 4 | DJ56: 0 | DK56: 0 | DL56: 0 | DN56: 3583.33 | DO56: 2 | DQ56: 12 | DR56: 3574.35 | DS56: =+IF(AA56>$K$8,$F$27/2,0) -> 1 | DT56: =+IF(AA56/Y56>1.5,$F$27/2,0) -> 0 | DU56: =SUM(DS56:DT56) -> 1 | DV56: 0 | DW56: 0 | DX56: 1 | DY56: =SUM(DW56:DX56) -> 1 | EA56: 0 | EB56: 2 | EG56: =IFERROR(VLOOKUP(A56,$EN$37:$EP$992,2,FALSE),"--") -> LOPUT | EH56: =IF(EG56="--","--",IF(N56="LOPUT",IF(EG56="VÄHÄ","--> LOPUT",""),IF(N56="VÄHÄ",IF(EG56="LOPUT","-->VÄHÄ","")))) ->  | EI56: =IFERROR(VLOOKUP(A56,$EN$37:$EP$992,3,FALSE),"--") -> 26 | EJ56: =IFERROR(EI56-D56,"--") -> 6 | EK56: =IFERROR(VLOOKUP(A56,$EN$37:$EQ$992,4,FALSE),"--") -> 1 | EL56: =IFERROR(EK56-K56,"--") -> 0 | EN56: 636_1 | EO56: VÄHÄ | EP56: 21 | EQ56: 1
A57: =CONCATENATE(S57,"_",T57) -> 9_305 | B57: 1 | D57: =RANK(CM57,$CM$37:$CM$984) -> 21 | E57: 21 | F57: =E57-D57 -> 0 | G57: =CM57 -> 13.30848198 | H57: =AZ57 -> 5 | I57: =BS57 -> 6.308481979 | J57: =CK57 -> 2 | K57: =CN57 -> 1 | L57: =B57-K57 -> 0 | M57: =HYPERLINK(CV57,"Gmaps") -> Gmaps | N57: =IF(Y57>$K$6,"LOPUT","VÄHÄ") -> LOPUT | O57: =IF(S57<40,"Valta",IF(S57<100,"Kanta",IF(S57<1000,"Seutu",IF(S57>999,"Yhdys")))) -> Valta | P57: Kuopiontie | Q57: Laukaa | S57: 9 | T57: 305 | U57: 0 | V57: 305 | W57: 4170 | X57: 4170 | Y57: 9099 | Z57: 699 | AA57: 11197 | AB57: 9099 (100 %) | AC57: 60 (11 %), 80 (89 %) | AD57: Is (100 %) | AE57: Kivimastiksiasfaltti (100 %) | AF57: PK1 (100 %) | AG57: 1 | AH57: 12 | AI57: 0 | AJ57: 476 | AR57: =+IF(Y57>=$K$6,$F$5,($F$5/($K$6))*Y57) -> 9 | AS57: 109 | AV57: =+IF(AS57>=$L$15,$J$15,IF(AS57<($L$15),AS57*($J$15/($L$15)),)) -> 3 | AW57: 2869 | AX57: =+IF(AW57>=$L$11,$J$11,IF(AW57<($L$11),AW57*($J$11/($L$11)),)) -> 3 | AY57: =SUM(AR57,AV57,AX57) -> 15 | AZ57: =+AY57*$H$5 -> 5 | BA57: =+IF(Z57=0,0,IF(Z57>$K$7,$F$9,($F$9/$K$7)*Z57)) -> 8 | BB57: =+IF(AJ57=0,0,IF(AJ57>$L$6,$F$10,($F$10/$L$6)*AJ57)) -> 1 | BC57: =IF(DB57>0,$F$11,0) -> 3 | BD57: =IF(DC57>0,$F$12,0) -> 0 | BE57: =IF(DD57>0,$F$13,0) -> 0 | BF57: =IF(DF57>0,$F$14,0) -> 1 | BG57: =IF(DG57>0,$F$15,0) -> 1 | BH57: =+IF(DH57>=$L$23,$J$23,IF(DH57<($L$23),DH57*($J$23/($L$23)),)) -> 0 | BI57: =+IF(DI57>=$L$24,$J$24,IF(DI57<($L$24),DI57*($J$24/($L$24)),)) -> 0 | BJ57: =+IF(DJ57>=$L$25,$J$25,IF(DJ57<($L$25),DJ57*($J$25/($L$25)),)) -> 0 | BK57: =+IF(DK57>=$L$26,$J$26,IF(DK57<($L$26),DK57*($J$26/($L$26)),)) -> 0 | BL57: =IF(DL57>0,$F$17,0) -> 2 | BM57: =+IF(DO57>=$L$29,$J$29,IF(DO57<($L$29),DO57*($J$29/($L$29)),)) -> 0 | BO57: =IF(EB57>0,$F$19,0) -> 2 | BP57: 9.254459362 | BQ57: =+IF(BP57>=$L$19,$J$19,IF(BP57<($L$19),BP57*($J$19/($L$19)),)) -> 0.9254459362 | BR57: =SUM(BA57+BC57+BD57+BE57+BB57+BF57+BL57+BH57+BI57+BJ57+BK57+BM57+BO57+BQ57+BG57) -> 18.92544594 | BS57: =+BR57*$H$9 -> 6.308481979 | BT57: =DN57 -> 874.18 | BU57: =BT57/X57 -> 0.2096354916 | BV57: =IF(BU57>0,IF(BU57>=$DA$28,$CY$28,IF(BU57<$DA$28,$CY$29,0)),0) -> 0.5 | BW57: 4164.85 | BX57: =BW57/X57 -> 0.998764988 | BY57: =IF(BX57,$F$23,0) -> 1 | BZ57: =IF(DQ57>0,$F$24,0) -> 1 | CA57: =DR57 -> 1216.65 | CB57: =CA57/X57 -> 0.2917625899 | CC57: =+IF(CB57>=$K$4,$F$25,0) -> 0 | CD57: 13.17505995 | CE57: =IF(CD57>0,IF(CD57>=100,$F$26,IF(CD57<100,$F$26/2)),0) -> 0.5 | CF57: =SUM(DU57) -> 1 | CG57: =IF(DY57>0,$F$28,0) -> 1 | CH57: =IF(DV57>0,$F$29,0) -> 0 | CI57: =IF(EA57=0,$F$30,0) -> 1 | CJ57: =SUM(BV57,BY57,CE57,BZ57,CC57,CF57,CG57,CH57,CI57) -> 6 | CK57: =+CJ57*$H$22 -> 2 | CL57: =SUM(AY57,BR57,CJ57) -> 39.92544594 | CM57: =SUM(AZ57,BS57,CK57) -> 13.30848198 | CN57: =IF(D57<($Z$13*$CN$28),1,IF(D57<(($Z$14+$Z$13)*$CN$28),2,IF(D57<(($Z$15+$Z$13+$Z$14)*$CN$28),3,4))) -> 1 | CO57: =VLOOKUP(A57,Taul1!$F$6:$G$953,2,FALSE) -> 1 | CQ57: =AR57+AV57+AX57+BA57+BC57+BD57+BF57+BG57+BH57+BI57+BJ57+BK57+BL57+BM57+BO57+BV57+BY57+BZ57+CF57+CI57 -> 36.5 | CR57: =AY57 -> 15 | CS57: =BA57+BC57+BD57+BF57+BG57+BH57+BI57+BJ57+BK57+BL57+BM57+BO57 -> 17 | CT57: =BV57+BY57+BZ57+CF57+CI57 -> 4.5 | CV57: https://www.google.com/maps/@62.2527445,26.10012439,3a,75y,90t/data=!3m3!1e1!3m1!2e0 | DA57: 5 | DB57: =SUM(CY57:DA57) -> 5 | DC57: 0 | DD57: 0 | DE57: 0 | DF57: 2 | DG57: 2 | DH57: 0 | DI57: 0 | DJ57: 0 | DK57: 0 | DL57: 1 | DN57: 874.18 | DO57: 0 | DQ57: 17 | DR57: 1216.65 | DS57: =+IF(AA57>$K$8,$F$27/2,0) -> 1 | DT57: =+IF(AA57/Y57>1.5,$F$27/2,0) -> 0 | DU57: =SUM(DS57:DT57) -> 1 | DV57: 0 | DW57: 0 | DX57: 1 | DY57: =SUM(DW57:DX57) -> 1 | EA57: 0 | EB57: 1 | EG57: =IFERROR(VLOOKUP(A57,$EN$37:$EP$992,2,FALSE),"--") -> -- | EH57: =IF(EG57="--","--",IF(N57="LOPUT",IF(EG57="VÄHÄ","--> LOPUT",""),IF(N57="VÄHÄ",IF(EG57="LOPUT","-->VÄHÄ","")))) -> -- | EI57: =IFERROR(VLOOKUP(A57,$EN$37:$EP$992,3,FALSE),"--") -> -- | EJ57: =IFERROR(EI57-D57,"--") -> -- | EK57: =IFERROR(VLOOKUP(A57,$EN$37:$EQ$992,4,FALSE),"--") -> -- | EL57: =IFERROR(EK57-K57,"--") -> -- | EN57: 6540_1 | EO57: VÄHÄ | EP57: 22 | EQ57: 1
A58: =CONCATENATE(S58,"_",T58) -> 4_233 | B58: 1 | D58: =RANK(CM58,$CM$37:$CM$984) -> 22 | E58: 22 | F58: =E58-D58 -> 0 | G58: =CM58 -> 13.28728936 | H58: =AZ58 -> 5 | I58: =BS58 -> 5.953956025 | J58: =CK58 -> 2.333333333 | K58: =CN58 -> 1 | L58: =B58-K58 -> 0 | M58: =HYPERLINK(CV58,"Gmaps") -> Gmaps | N58: =IF(Y58>$K$6,"LOPUT","VÄHÄ") -> LOPUT | O58: =IF(S58<40,"Valta",IF(S58<100,"Kanta",IF(S58<1000,"Seutu",IF(S58>999,"Yhdys")))) -> Valta | P58: Vaajakosken moottoritie | Q58: Jyväskylä | S58: 4 | T58: 233 | U58: 0 | V58: 233 | W58: 5863 | X58: 5863 | Y58: 26205.7138 | Z58: 1662.975098 | AA58: 28597 | AB58: 23097 (25 %), 25734 (29 %), 28205 (46 %) | AC58: 100 (43 %), 50 (1 %), 60 (7 %), 80 (50 %) | AD58: Ise (100 %) | AE58: Kivimastiksiasfaltti (100 %) | AF58: PK1 (100 %) | AG58: 4 | AH58: 35 | AI58: 0.004264028654 | AJ58: 1035.154358 | AR58: =+IF(Y58>=$K$6,$F$5,($F$5/($K$6))*Y58) -> 9 | AS58: 675 | AV58: =+IF(AS58>=$L$15,$J$15,IF(AS58<($L$15),AS58*($J$15/($L$15)),)) -> 3 | AW58: 11381 | AX58: =+IF(AW58>=$L$11,$J$11,IF(AW58<($L$11),AW58*($J$11/($L$11)),)) -> 3 | AY58: =SUM(AR58,AV58,AX58) -> 15 | AZ58: =+AY58*$H$5 -> 5 | BA58: =+IF(Z58=0,0,IF(Z58>$K$7,$F$9,($F$9/$K$7)*Z58)) -> 8 | BB58: =+IF(AJ58=0,0,IF(AJ58>$L$6,$F$10,($F$10/$L$6)*AJ58)) -> 1 | BC58: =IF(DB58>0,$F$11,0) -> 3 | BD58: =IF(DC58>0,$F$12,0) -> 0 | BE58: =IF(DD58>0,$F$13,0) -> 0 | BF58: =IF(DF58>0,$F$14,0) -> 0 | BG58: =IF(DG58>0,$F$15,0) -> 1 | BH58: =+IF(DH58>=$L$23,$J$23,IF(DH58<($L$23),DH58*($J$23/($L$23)),)) -> 0 | BI58: =+IF(DI58>=$L$24,$J$24,IF(DI58<($L$24),DI58*($J$24/($L$24)),)) -> 0 | BJ58: =+IF(DJ58>=$L$25,$J$25,IF(DJ58<($L$25),DJ58*($J$25/($L$25)),)) -> 0 | BK58: =+IF(DK58>=$L$26,$J$26,IF(DK58<($L$26),DK58*($J$26/($L$26)),)) -> 0 | BL58: =IF(DL58>0,$F$17,0) -> 0 | BM58: =+IF(DO58>=$L$29,$J$29,IF(DO58<($L$29),DO58*($J$29/($L$29)),)) -> 2 | BO58: =IF(EB58>0,$F$19,0) -> 2 | BP58: 8.618680756 | BQ58: =+IF(BP58>=$L$19,$J$19,IF(BP58<($L$19),BP58*($J$19/($L$19)),)) -> 0.8618680756 | BR58: =SUM(BA58+BC58+BD58+BE58+BB58+BF58+BL58+BH58+BI58+BJ58+BK58+BM58+BO58+BQ58+BG58) -> 17.86186808 | BS58: =+BR58*$H$9 -> 5.953956025 | BT58: =DN58 -> 5878.11 | BU58: =BT58/X58 -> 1.002577179 | BV58: =IF(BU58>0,IF(BU58>=$DA$28,$CY$28,IF(BU58<$DA$28,$CY$29,0)),0) -> 1 | BW58: 5265.14 | BX58: =BW58/X58 -> 0.8980283132 | BY58: =IF(BX58,$F$23,0) -> 1 | BZ58: =IF(DQ58>0,$F$24,0) -> 1 | CA58: =DR58 -> 5246.11 | CB58: =CA58/X58 -> 0.8947825345 | CC58: =+IF(CB58>=$K$4,$F$25,0) -> 1 | CD58: 988.7393826 | CE58: =IF(CD58>0,IF(CD58>=100,$F$26,IF(CD58<100,$F$26/2)),0) -> 1 | CF58: =SUM(DU58) -> 1 | CG58: =IF(DY58>0,$F$28,0) -> 0 | CH58: =IF(DV58>0,$F$29,0) -> 0 | CI58: =IF(EA58=0,$F$30,0) -> 1 | CJ58: =SUM(BV58,BY58,CE58,BZ58,CC58,CF58,CG58,CH58,CI58) -> 7 | CK58: =+CJ58*$H$22 -> 2.333333333 | CL58: =SUM(AY58,BR58,CJ58) -> 39.86186808 | CM58: =SUM(AZ58,BS58,CK58) -> 13.28728936 | CN58: =IF(D58<($Z$13*$CN$28),1,IF(D58<(($Z$14+$Z$13)*$CN$28),2,IF(D58<(($Z$15+$Z$13+$Z$14)*$CN$28),3,4))) -> 1 | CO58: =VLOOKUP(A58,Taul1!$F$6:$G$953,2,FALSE) -> 3 | CQ58: =AR58+AV58+AX58+BA58+BC58+BD58+BF58+BG58+BH58+BI58+BJ58+BK58+BL58+BM58+BO58+BV58+BY58+BZ58+CF58+CI58 -> 36 | CR58: =AY58 -> 15 | CS58: =BA58+BC58+BD58+BF58+BG58+BH58+BI58+BJ58+BK58+BL58+BM58+BO58 -> 16 | CT58: =BV58+BY58+BZ58+CF58+CI58 -> 5 | CV58: https://www.google.com/maps/@62.24639601,25.87231843,3a,75y,90t/data=!3m3!1e1!3m1!2e0 | DA58: 8 | DB58: =SUM(CY58:DA58) -> 8 | DC58: 0 | DD58: 0 | DE58: 0 | DF58: 0 | DG58: 1 | DH58: 0 | DI58: 0 | DJ58: 0 | DK58: 0 | DL58: 0 | DN58: 5878.11 | DO58: 8 | DQ58: 2 | DR58: 5246.11 | DS58: =+IF(AA58>$K$8,$F$27/2,0) -> 1 | DT58: =+IF(AA58/Y58>1.5,$F$27/2,0) -> 0 | DU58: =SUM(DS58:DT58) -> 1 | DV58: 0 | DW58: 0 | DX58: 0 | DY58: =SUM(DW58:DX58) -> 0 | EA58: 0 | EB58: 5 | EG58: =IFERROR(VLOOKUP(A58,$EN$37:$EP$992,2,FALSE),"--") -> -- | EH58: =IF(EG58="--","--",IF(N58="LOPUT",IF(EG58="VÄHÄ","--> LOPUT",""),IF(N58="VÄHÄ",IF(EG58="LOPUT","-->VÄHÄ","")))) -> -- | EI58: =IFERROR(VLOOKUP(A58,$EN$37:$EP$992,3,FALSE),"--") -> -- | EJ58: =IFERROR(EI58-D58,"--") -> -- | EK58: =IFERROR(VLOOKUP(A58,$EN$37:$EQ$992,4,FALSE),"--") -> -- | EL58: =IFERROR(EK58-K58,"--") -> -- | EN58: 16709_1 | EO58: VÄHÄ | EP58: 23 | EQ58: 1
A59: =CONCATENATE(S59,"_",T59) -> 9_306 | B59: 1 | D59: =RANK(CM59,$CM$37:$CM$984) -> 23 | E59: 23 | F59: =E59-D59 -> 0 | G59: =CM59 -> 13.26863656 | H59: =AZ59 -> 5 | I59: =BS59 -> 6.101969897 | J59: =CK59 -> 2.166666667 | K59: =CN59 -> 1 | L59: =B59-K59 -> 0 | M59: =HYPERLINK(CV59,"Gmaps") -> Gmaps | N59: =IF(Y59>$K$6,"LOPUT","VÄHÄ") -> LOPUT | O59: =IF(S59<40,"Valta",IF(S59<100,"Kanta",IF(S59<1000,"Seutu",IF(S59>999,"Yhdys")))) -> Valta | P59: Kuopiontie | Q59: Laukaa | S59: 9 | T59: 306 | U59: 0 | V59: 306 | W59: 4987 | X59: 4987 | Y59: 6182 | Z59: 629 | AA59: 7607 | AB59: 6182 (100 %) | AC59: 100 (53 %), 60 (4 %), 80 (42 %) | AD59: Is (100 %) | AE59: Kivimastiksiasfaltti (100 %) | AF59: PK1 (100 %) | AG59: 2 | AH59: 7 | AI59: 0.0185013876 | AJ59: 361 | AR59: =+IF(Y59>=$K$6,$F$5,($F$5/($K$6))*Y59) -> 9 | AS59: 74 | AV59: =+IF(AS59>=$L$15,$J$15,IF(AS59<($L$15),AS59*($J$15/($L$15)),)) -> 3 | AW59: 1621 | AX59: =+IF(AW59>=$L$11,$J$11,IF(AW59<($L$11),AW59*($J$11/($L$11)),)) -> 3 | AY59: =SUM(AR59,AV59,AX59) -> 15 | AZ59: =+AY59*$H$5 -> 5 | BA59: =+IF(Z59=0,0,IF(Z59>$K$7,$F$9,($F$9/$K$7)*Z59)) -> 8 | BB59: =+IF(AJ59=0,0,IF(AJ59>$L$6,$F$10,($F$10/$L$6)*AJ59)) -> 1 | BC59: =IF(DB59>0,$F$11,0) -> 3 | BD59: =IF(DC59>0,$F$12,0) -> 0 | BE59: =IF(DD59>0,$F$13,0) -> 0 | BF59: =IF(DF59>0,$F$14,0) -> 1 | BG59: =IF(DG59>0,$F$15,0) -> 0 | BH59: =+IF(DH59>=$L$23,$J$23,IF(DH59<($L$23),DH59*($J$23/($L$23)),)) -> 0.5 | BI59: =+IF(DI59>=$L$24,$J$24,IF(DI59<($L$24),DI59*($J$24/($L$24)),)) -> 0 | BJ59: =+IF(DJ59>=$L$25,$J$25,IF(DJ59<($L$25),DJ59*($J$25/($L$25)),)) -> 0 | BK59: =+IF(DK59>=$L$26,$J$26,IF(DK59<($L$26),DK59*($J$26/($L$26)),)) -> 0 | BL59: =IF(DL59>0,$F$17,0) -> 2 | BM59: =+IF(DO59>=$L$29,$J$29,IF(DO59<($L$29),DO59*($J$29/($L$29)),)) -> 0 | BO59: =IF(EB59>0,$F$19,0) -> 2 | BP59: 8.059096913 | BQ59: =+IF(BP59>=$L$19,$J$19,IF(BP59<($L$19),BP59*($J$19/($L$19)),)) -> 0.8059096913 | BR59: =SUM(BA59+BC59+BD59+BE59+BB59+BF59+BL59+BH59+BI59+BJ59+BK59+BM59+BO59+BQ59+BG59) -> 18.30590969 | BS59: =+BR59*$H$9 -> 6.101969897 | BT59: =DN59 -> 3815.96 | BU59: =BT59/X59 -> 0.7651814718 | BV59: =IF(BU59>0,IF(BU59>=$DA$28,$CY$28,IF(BU59<$DA$28,$CY$29,0)),0) -> 1 | BW59: 4974.3 | BX59: =BW59/X59 -> 0.9974533788 | BY59: =IF(BX59,$F$23,0) -> 1 | BZ59: =IF(DQ59>0,$F$24,0) -> 1 | CA59: =DR59 -> 1244.96 | CB59: =CA59/X59 -> 0.2496410668 | CC59: =+IF(CB59>=$K$4,$F$25,0) -> 0 | CD59: 46.12793262 | CE59: =IF(CD59>0,IF(CD59>=100,$F$26,IF(CD59<100,$F$26/2)),0) -> 0.5 | CF59: =SUM(DU59) -> 1 | CG59: =IF(DY59>0,$F$28,0) -> 1 | CH59: =IF(DV59>0,$F$29,0) -> 0 | CI59: =IF(EA59=0,$F$30,0) -> 1 | CJ59: =SUM(BV59,BY59,CE59,BZ59,CC59,CF59,CG59,CH59,CI59) -> 6.5 | CK59: =+CJ59*$H$22 -> 2.166666667 | CL59: =SUM(AY59,BR59,CJ59) -> 39.80590969 | CM59: =SUM(AZ59,BS59,CK59) -> 13.26863656 | CN59: =IF(D59<($Z$13*$CN$28),1,IF(D59<(($Z$14+$Z$13)*$CN$28),2,IF(D59<(($Z$15+$Z$13+$Z$14)*$CN$28),3,4))) -> 1 | CO59: =VLOOKUP(A59,Taul1!$F$6:$G$953,2,FALSE) -> 1 | CQ59: =AR59+AV59+AX59+BA59+BC59+BD59+BF59+BG59+BH59+BI59+BJ59+BK59+BL59+BM59+BO59+BV59+BY59+BZ59+CF59+CI59 -> 36.5 | CR59: =AY59 -> 15 | CS59: =BA59+BC59+BD59+BF59+BG59+BH59+BI59+BJ59+BK59+BL59+BM59+BO59 -> 16.5 | CT59: =BV59+BY59+BZ59+CF59+CI59 -> 5 | CV59: https://www.google.com/maps/@62.24991479,26.17585773,3a,75y,90t/data=!3m3!1e1!3m1!2e0 | DA59: 3 | DB59: =SUM(CY59:DA59) -> 3 | DC59: 0 | DD59: 0 | DE59: 0 | DF59: 4 | DG59: 0 | DH59: 130 | DI59: 0 | DJ59: 0 | DK59: 0 | DL59: 1 | DN59: 3815.96 | DO59: 0 | DQ59: 3 | DR59: 1244.96 | DS59: =+IF(AA59>$K$8,$F$27/2,0) -> 1 | DT59: =+IF(AA59/Y59>1.5,$F$27/2,0) -> 0 | DU59: =SUM(DS59:DT59) -> 1 | DV59: 0 | DW59: 0 | DX59: 1 | DY59: =SUM(DW59:DX59) -> 1 | EA59: 0 | EB59: 1 | EG59: =IFERROR(VLOOKUP(A59,$EN$37:$EP$992,2,FALSE),"--") -> -- | EH59: =IF(EG59="--","--",IF(N59="LOPUT",IF(EG59="VÄHÄ","--> LOPUT",""),IF(N59="VÄHÄ",IF(EG59="LOPUT","-->VÄHÄ","")))) -> -- | EI59: =IFERROR(VLOOKUP(A59,$EN$37:$EP$992,3,FALSE),"--") -> -- | EJ59: =IFERROR(EI59-D59,"--") -> -- | EK59: =IFERROR(VLOOKUP(A59,$EN$37:$EQ$992,4,FALSE),"--") -> -- | EL59: =IFERROR(EK59-K59,"--") -> -- | EN59: 6403_2 | EO59: VÄHÄ | EP59: 24 | EQ59: 1
A60: =CONCATENATE(S60,"_",T60) -> 6452_1 | B60: 1 | D60: =RANK(CM60,$CM$37:$CM$984) -> 24 | E60: 24 | F60: =E60-D60 -> 0 | G60: =CM60 -> 13.18859023 | H60: =AZ60 -> 5 | I60: =BS60 -> 5.855256899 | J60: =CK60 -> 2.333333333 | K60: =CN60 -> 1 | L60: =B60-K60 -> 0 | M60: =HYPERLINK(CV60,"Gmaps") -> Gmaps | N60: =IF(Y60>$K$6,"LOPUT","VÄHÄ") -> LOPUT | O60: =IF(S60<40,"Valta",IF(S60<100,"Kanta",IF(S60<1000,"Seutu",IF(S60>999,"Yhdys")))) -> Yhdys | P60: Äänekoskentie | Q60: Äänekoski | S60: 6452 | T60: 1 | U60: 0 | V60: 1 | W60: 5288 | X60: 2404 | Y60: 1596.929285 | Z60: 82.50332779 | AA60: 1625 | AB60: 1223 (90 %), 5000 (10 %) | AC60: 40 (2 %), 50 (8 %), 60 (89 %) | AD60: Ib (99 %) | AE60: Asfalttibetoni (89 %), Kivimastiksiasfaltti (10 %) | AF60: PK2 (99 %) | AG60: 3 | AH60: 3 | AI60: 0 | AJ60: 27.83111481 | AR60: =+IF(Y60>=$K$6,$F$5,($F$5/($K$6))*Y60) -> 9 | AS60: 76 | AV60: =+IF(AS60>=$L$15,$J$15,IF(AS60<($L$15),AS60*($J$15/($L$15)),)) -> 3 | AW60: 1189 | AX60: =+IF(AW60>=$L$11,$J$11,IF(AW60<($L$11),AW60*($J$11/($L$11)),)) -> 3 | AY60: =SUM(AR60,AV60,AX60) -> 15 | AZ60: =+AY60*$H$5 -> 5 | BA60: =+IF(Z60=0,0,IF(Z60>$K$7,$F$9,($F$9/$K$7)*Z60)) -> 8 | BB60: =+IF(AJ60=0,0,IF(AJ60>$L$6,$F$10,($F$10/$L$6)*AJ60)) -> 1 | BC60: =IF(DB60>0,$F$11,0) -> 3 | BD60: =IF(DC60>0,$F$12,0) -> 1 | BE60: =IF(DD60>0,$F$13,0) -> 1 | BF60: =IF(DF60>0,$F$14,0) -> 1 | BG60: =IF(DG60>0,$F$15,0) -> 0 | BH60: =+IF(DH60>=$L$23,$J$23,IF(DH60<($L$23),DH60*($J$23/($L$23)),)) -> 0 | BI60: =+IF(DI60>=$L$24,$J$24,IF(DI60<($L$24),DI60*($J$24/($L$24)),)) -> 0.015 | BJ60: =+IF(DJ60>=$L$25,$J$25,IF(DJ60<($L$25),DJ60*($J$25/($L$25)),)) -> 0 | BK60: =+IF(DK60>=$L$26,$J$26,IF(DK60<($L$26),DK60*($J$26/($L$26)),)) -> 0 | BL60: =IF(DL60>0,$F$17,0) -> 0 | BM60: =+IF(DO60>=$L$29,$J$29,IF(DO60<($L$29),DO60*($J$29/($L$29)),)) -> 0 | BO60: =IF(EB60>0,$F$19,0) -> 2 | BP60: 5.507706977 | BQ60: =+IF(BP60>=$L$19,$J$19,IF(BP60<($L$19),BP60*($J$19/($L$19)),)) -> 0.5507706977 | BR60: =SUM(BA60+BC60+BD60+BE60+BB60+BF60+BL60+BH60+BI60+BJ60+BK60+BM60+BO60+BQ60+BG60) -> 17.5657707 | BS60: =+BR60*$H$9 -> 5.855256899 | BT60: =DN60 -> 1714.63 | BU60: =BT60/X60 -> 0.7132404326 | BV60: =IF(BU60>0,IF(BU60>=$DA$28,$CY$28,IF(BU60<$DA$28,$CY$29,0)),0) -> 1 | BW60: 236.357 | BX60: =BW60/X60 -> 0.09831821963 | BY60: =IF(BX60,$F$23,0) -> 1 | BZ60: =IF(DQ60>0,$F$24,0) -> 1 | CA60: =DR60 -> 523.948 | CB60: =CA60/X60 -> 0.2179484193 | CC60: =+IF(CB60>=$K$4,$F$25,0) -> 0 | CD60: 115.7603993 | CE60: =IF(CD60>0,IF(CD60>=100,$F$26,IF(CD60<100,$F$26/2)),0) -> 1 | CF60: =SUM(DU60) -> 1 | CG60: =IF(DY60>0,$F$28,0) -> 1 | CH60: =IF(DV60>0,$F$29,0) -> 0 | CI60: =IF(EA60=0,$F$30,0) -> 1 | CJ60: =SUM(BV60,BY60,CE60,BZ60,CC60,CF60,CG60,CH60,CI60) -> 7 | CK60: =+CJ60*$H$22 -> 2.333333333 | CL60: =SUM(AY60,BR60,CJ60) -> 39.5657707 | CM60: =SUM(AZ60,BS60,CK60) -> 13.18859023 | CN60: =IF(D60<($Z$13*$CN$28),1,IF(D60<(($Z$14+$Z$13)*$CN$28),2,IF(D60<(($Z$15+$Z$13+$Z$14)*$CN$28),3,4))) -> 1 | CO60: =VLOOKUP(A60,Taul1!$F$6:$G$953,2,FALSE) -> 2 | CQ60: =AR60+AV60+AX60+BA60+BC60+BD60+BF60+BG60+BH60+BI60+BJ60+BK60+BL60+BM60+BO60+BV60+BY60+BZ60+CF60+CI60 -> 35.015 | CR60: =AY60 -> 15 | CS60: =BA60+BC60+BD60+BF60+BG60+BH60+BI60+BJ60+BK60+BL60+BM60+BO60 -> 15.015 | CT60: =BV60+BY60+BZ60+CF60+CI60 -> 5 | CV60: https://www.google.com/maps/@62.54586447,25.91863925,3a,75y,90t/data=!3m3!1e1!3m1!2e0 | DA60: 1 | DB60: =SUM(CY60:DA60) -> 1 | DC60: 1 | DD60: 1 | DE60: 0 | DF60: 3 | DG60: 0 | DH60: 0 | DI60: 3 | DJ60: 0 | DK60: 0 | DL60: 0 | DN60: 1714.63 | DO60: 0 | DQ60: 3 | DR60: 523.948 | DS60: =+IF(AA60>$K$8,$F$27/2,0) -> 1 | DT60: =+IF(AA60/Y60>1.5,$F$27/2,0) -> 0 | DU60: =SUM(DS60:DT60) -> 1 | DV60: 0 | DW60: 0 | DX60: 1 | DY60: =SUM(DW60:DX60) -> 1 | EA60: 0 | EB60: 2 | EG60: =IFERROR(VLOOKUP(A60,$EN$37:$EP$992,2,FALSE),"--") -> LOPUT | EH60: =IF(EG60="--","--",IF(N60="LOPUT",IF(EG60="VÄHÄ","--> LOPUT",""),IF(N60="VÄHÄ",IF(EG60="LOPUT","-->VÄHÄ","")))) ->  | EI60: =IFERROR(VLOOKUP(A60,$EN$37:$EP$992,3,FALSE),"--") -> 8 | EJ60: =IFERROR(EI60-D60,"--") -> -16 | EK60: =IFERROR(VLOOKUP(A60,$EN$37:$EQ$992,4,FALSE),"--") -> 1 | EL60: =IFERROR(EK60-K60,"--") -> 0 | EN60: 697_19 | EO60: VÄHÄ | EP60: 25 | EQ60: 1
A61: =CONCATENATE(S61,"_",T61) -> 4_326 | B61: 1 | D61: =RANK(CM61,$CM$37:$CM$984) -> 25 | E61: 25 | F61: =E61-D61 -> 0 | G61: =CM61 -> 13.16666667 | H61: =AZ61 -> 5 | I61: =BS61 -> 6 | J61: =CK61 -> 2.166666667 | K61: =CN61 -> 1 | L61: =B61-K61 -> 0 | M61: =HYPERLINK(CV61,"Gmaps") -> Gmaps | N61: =IF(Y61>$K$6,"LOPUT","VÄHÄ") -> LOPUT | O61: =IF(S61<40,"Valta",IF(S61<100,"Kanta",IF(S61<1000,"Seutu",IF(S61>999,"Yhdys")))) -> Valta | P61: Pyhäsalmentie, Viitasaarentie | Q61: Pihtipudas | S61: 4 | T61: 326 | U61: 0 | V61: 326 | W61: 5194 | X61: 5194 | Y61: 5682.204852 | Z61: 675.703504 | AA61: 7316 | AB61: 5642 (82 %), 5868 (18 %) | AC61: 100 (27 %), 60 (15 %), 80 (58 %) | AD61: Is (100 %) | AE61: Asfalttibetoni (19 %), Kivimastiksiasfaltti (80 %) | AF61: PK1 (100 %) | AG61: 2 | AH61: 5 | AI61: 0 | AJ61: 440.722372 | AR61: =+IF(Y61>=$K$6,$F$5,($F$5/($K$6))*Y61) -> 9 | AS61: 66 | AV61: =+IF(AS61>=$L$15,$J$15,IF(AS61<($L$15),AS61*($J$15/($L$15)),)) -> 3 | AW61: 784 | AX61: =+IF(AW61>=$L$11,$J$11,IF(AW61<($L$11),AW61*($J$11/($L$11)),)) -> 3 | AY61: =SUM(AR61,AV61,AX61) -> 15 | AZ61: =+AY61*$H$5 -> 5 | BA61: =+IF(Z61=0,0,IF(Z61>$K$7,$F$9,($F$9/$K$7)*Z61)) -> 8 | BB61: =+IF(AJ61=0,0,IF(AJ61>$L$6,$F$10,($F$10/$L$6)*AJ61)) -> 1 | BC61: =IF(DB61>0,$F$11,0) -> 3 | BD61: =IF(DC61>0,$F$12,0) -> 1 | BE61: =IF(DD61>0,$F$13,0) -> 0 | BF61: =IF(DF61>0,$F$14,0) -> 1 | BG61: =IF(DG61>0,$F$15,0) -> 1 | BH61: =+IF(DH61>=$L$23,$J$23,IF(DH61<($L$23),DH61*($J$23/($L$23)),)) -> 0 | BI61: =+IF(DI61>=$L$24,$J$24,IF(DI61<($L$24),DI61*($J$24/($L$24)),)) -> 0 | BJ61: =+IF(DJ61>=$L$25,$J$25,IF(DJ61<($L$25),DJ61*($J$25/($L$25)),)) -> 0 | BK61: =+IF(DK61>=$L$26,$J$26,IF(DK61<($L$26),DK61*($J$26/($L$26)),)) -> 0 | BL61: =IF(DL61>0,$F$17,0) -> 0 | BM61: =+IF(DO61>=$L$29,$J$29,IF(DO61<($L$29),DO61*($J$29/($L$29)),)) -> 0 | BO61: =IF(EB61>0,$F$19,0) -> 2 | BP61: 21.69127494 | BQ61: =+IF(BP61>=$L$19,$J$19,IF(BP61<($L$19),BP61*($J$19/($L$19)),)) -> 1 | BR61: =SUM(BA61+BC61+BD61+BE61+BB61+BF61+BL61+BH61+BI61+BJ61+BK61+BM61+BO61+BQ61+BG61) -> 18 | BS61: =+BR61*$H$9 -> 6 | BT61: =DN61 -> 3929.04 | BU61: =BT61/X61 -> 0.7564574509 | BV61: =IF(BU61>0,IF(BU61>=$DA$28,$CY$28,IF(BU61<$DA$28,$CY$29,0)),0) -> 1 | BW61: 5147.66 | BX61: =BW61/X61 -> 0.9910781671 | BY61: =IF(BX61,$F$23,0) -> 1 | BZ61: =IF(DQ61>0,$F$24,0) -> 0 | CA61: =DR61 -> 3494.56 | CB61: =CA61/X61 -> 0.6728070851 | CC61: =+IF(CB61>=$K$4,$F$25,0) -> 1 | CD61: 60.11205237 | CE61: =IF(CD61>0,IF(CD61>=100,$F$26,IF(CD61<100,$F$26/2)),0) -> 0.5 | CF61: =SUM(DU61) -> 1 | CG61: =IF(DY61>0,$F$28,0) -> 1 | CH61: =IF(DV61>0,$F$29,0) -> 0 | CI61: =IF(EA61=0,$F$30,0) -> 1 | CJ61: =SUM(BV61,BY61,CE61,BZ61,CC61,CF61,CG61,CH61,CI61) -> 6.5 | CK61: =+CJ61*$H$22 -> 2.166666667 | CL61: =SUM(AY61,BR61,CJ61) -> 39.5 | CM61: =SUM(AZ61,BS61,CK61) -> 13.16666667 | CN61: =IF(D61<($Z$13*$CN$28),1,IF(D61<(($Z$14+$Z$13)*$CN$28),2,IF(D61<(($Z$15+$Z$13+$Z$14)*$CN$28),3,4))) -> 1 | CO61: =VLOOKUP(A61,Taul1!$F$6:$G$953,2,FALSE) -> 2 | CQ61: =AR61+AV61+AX61+BA61+BC61+BD61+BF61+BG61+BH61+BI61+BJ61+BK61+BL61+BM61+BO61+BV61+BY61+BZ61+CF61+CI61 -> 35 | CR61: =AY61 -> 15 | CS61: =BA61+BC61+BD61+BF61+BG61+BH61+BI61+BJ61+BK61+BL61+BM61+BO61 -> 16 | CT61: =BV61+BY61+BZ61+CF61+CI61 -> 4 | CV61: https://www.google.com/maps/@63.33311445,25.60770951,3a,75y,90t/data=!3m3!1e1!3m1!2e0 | DA61: 1 | DB61: =SUM(CY61:DA61) -> 1 | DC61: 1 | DD61: 0 | DE61: 0 | DF61: 2 | DG61: 2 | DH61: 0 | DI61: 0 | DJ61: 0 | DK61: 0 | DL61: 0 | DN61: 3929.04 | DO61: 0 | DQ61: 0 | DR61: 3494.56 | DS61: =+IF(AA61>$K$8,$F$27/2,0) -> 1 | DT61: =+IF(AA61/Y61>1.5,$F$27/2,0) -> 0 | DU61: =SUM(DS61:DT61) -> 1 | DV61: 0 | DW61: 0 | DX61: 1 | DY61: =SUM(DW61:DX61) -> 1 | EA61: 0 | EB61: 2 | EG61: =IFERROR(VLOOKUP(A61,$EN$37:$EP$992,2,FALSE),"--") -> -- | EH61: =IF(EG61="--","--",IF(N61="LOPUT",IF(EG61="VÄHÄ","--> LOPUT",""),IF(N61="VÄHÄ",IF(EG61="LOPUT","-->VÄHÄ","")))) -> -- | EI61: =IFERROR(VLOOKUP(A61,$EN$37:$EP$992,3,FALSE),"--") -> -- | EJ61: =IFERROR(EI61-D61,"--") -> -- | EK61: =IFERROR(VLOOKUP(A61,$EN$37:$EQ$992,4,FALSE),"--") -> -- | EL61: =IFERROR(EK61-K61,"--") -> -- | EN61: 16615_2 | EO61: VÄHÄ | EP61: 26 | EQ61: 1
A62: =CONCATENATE(S62,"_",T62) -> 4_302 | B62: 1 | D62: =RANK(CM62,$CM$37:$CM$984) -> 26 | E62: 26 | F62: =E62-D62 -> 0 | G62: =CM62 -> 13.05094455 | H62: =AZ62 -> 5 | I62: =BS62 -> 6.217611216 | J62: =CK62 -> 1.833333333 | K62: =CN62 -> 1 | L62: =B62-K62 -> 0 | M62: =HYPERLINK(CV62,"Gmaps") -> Gmaps | N62: =IF(Y62>$K$6,"LOPUT","VÄHÄ") -> LOPUT | O62: =IF(S62<40,"Valta",IF(S62<100,"Kanta",IF(S62<1000,"Seutu",IF(S62>999,"Yhdys")))) -> Valta | P62: Nelostie | Q62: Jyväskylä | S62: 4 | T62: 302 | U62: 0 | V62: 302 | W62: 6325 | X62: 6325 | Y62: 16861.37945 | Z62: 1184.458498 | AA62: 18512 | AB62: 16684 (66 %), 16977 (31 %), 19131 (4 %) | AC62: 100 (100 %) | AD62: Ise (100 %) | AE62: Asfalttibetoni (100 %) | AF62: PK1 (100 %) | AG62: 5 | AH62: 14 | AI62: 0 | AJ62: 644.2687747 | AR62: =+IF(Y62>=$K$6,$F$5,($F$5/($K$6))*Y62) -> 9 | AS62: 181 | AV62: =+IF(AS62>=$L$15,$J$15,IF(AS62<($L$15),AS62*($J$15/($L$15)),)) -> 3 | AW62: 6375 | AX62: =+IF(AW62>=$L$11,$J$11,IF(AW62<($L$11),AW62*($J$11/($L$11)),)) -> 3 | AY62: =SUM(AR62,AV62,AX62) -> 15 | AZ62: =+AY62*$H$5 -> 5 | BA62: =+IF(Z62=0,0,IF(Z62>$K$7,$F$9,($F$9/$K$7)*Z62)) -> 8 | BB62: =+IF(AJ62=0,0,IF(AJ62>$L$6,$F$10,($F$10/$L$6)*AJ62)) -> 1 | BC62: =IF(DB62>0,$F$11,0) -> 3 | BD62: =IF(DC62>0,$F$12,0) -> 0 | BE62: =IF(DD62>0,$F$13,0) -> 1 | BF62: =IF(DF62>0,$F$14,0) -> 1 | BG62: =IF(DG62>0,$F$15,0) -> 1 | BH62: =+IF(DH62>=$L$23,$J$23,IF(DH62<($L$23),DH62*($J$23/($L$23)),)) -> 0.5 | BI62: =+IF(DI62>=$L$24,$J$24,IF(DI62<($L$24),DI62*($J$24/($L$24)),)) -> 0 | BJ62: =+IF(DJ62>=$L$25,$J$25,IF(DJ62<($L$25),DJ62*($J$25/($L$25)),)) -> 0 | BK62: =+IF(DK62>=$L$26,$J$26,IF(DK62<($L$26),DK62*($J$26/($L$26)),)) -> 0 | BL62: =IF(DL62>0,$F$17,0) -> 0 | BM62: =+IF(DO62>=$L$29,$J$29,IF(DO62<($L$29),DO62*($J$29/($L$29)),)) -> 0.8 | BO62: =IF(EB62>0,$F$19,0) -> 2 | BP62: 3.528336478 | BQ62: =+IF(BP62>=$L$19,$J$19,IF(BP62<($L$19),BP62*($J$19/($L$19)),)) -> 0.3528336478 | BR62: =SUM(BA62+BC62+BD62+BE62+BB62+BF62+BL62+BH62+BI62+BJ62+BK62+BM62+BO62+BQ62+BG62) -> 18.65283365 | BS62: =+BR62*$H$9 -> 6.217611216 | BT62: =DN62 -> 4087.74 | BU62: =BT62/X62 -> 0.646283004 | BV62: =IF(BU62>0,IF(BU62>=$DA$28,$CY$28,IF(BU62<$DA$28,$CY$29,0)),0) -> 1 | BW62: 6323.88 | BX62: =BW62/X62 -> 0.9998229249 | BY62: =IF(BX62,$F$23,0) -> 1 | BZ62: =IF(DQ62>0,$F$24,0) -> 1 | CA62: =DR62 -> 2242.01 | CB62: =CA62/X62 -> 0.3544679842 | CC62: =+IF(CB62>=$K$4,$F$25,0) -> 0 | CD62: 85.80237154 | CE62: =IF(CD62>0,IF(CD62>=100,$F$26,IF(CD62<100,$F$26/2)),0) -> 0.5 | CF62: =SUM(DU62) -> 1 | CG62: =IF(DY62>0,$F$28,0) -> 0 | CH62: =IF(DV62>0,$F$29,0) -> 0 | CI62: =IF(EA62=0,$F$30,0) -> 1 | CJ62: =SUM(BV62,BY62,CE62,BZ62,CC62,CF62,CG62,CH62,CI62) -> 5.5 | CK62: =+CJ62*$H$22 -> 1.833333333 | CL62: =SUM(AY62,BR62,CJ62) -> 39.15283365 | CM62: =SUM(AZ62,BS62,CK62) -> 13.05094455 | CN62: =IF(D62<($Z$13*$CN$28),1,IF(D62<(($Z$14+$Z$13)*$CN$28),2,IF(D62<(($Z$15+$Z$13+$Z$14)*$CN$28),3,4))) -> 1 | CO62: =VLOOKUP(A62,Taul1!$F$6:$G$953,2,FALSE) -> 3 | CQ62: =AR62+AV62+AX62+BA62+BC62+BD62+BF62+BG62+BH62+BI62+BJ62+BK62+BL62+BM62+BO62+BV62+BY62+BZ62+CF62+CI62 -> 36.3 | CR62: =AY62 -> 15 | CS62: =BA62+BC62+BD62+BF62+BG62+BH62+BI62+BJ62+BK62+BL62+BM62+BO62 -> 16.3 | CT62: =BV62+BY62+BZ62+CF62+CI62 -> 5 | CV62: https://www.google.com/maps/@62.30050999,25.71479465,3a,75y,90t/data=!3m3!1e1!3m1!2e0 | DA62: 9 | DB62: =SUM(CY62:DA62) -> 9 | DC62: 0 | DD62: 3 | DE62: 0 | DF62: 16 | DG62: 6 | DH62: 149 | DI62: 0 | DJ62: 0 | DK62: 0 | DL62: 0 | DN62: 4087.74 | DO62: 2 | DQ62: 4 | DR62: 2242.01 | DS62: =+IF(AA62>$K$8,$F$27/2,0) -> 1 | DT62: =+IF(AA62/Y62>1.5,$F$27/2,0) -> 0 | DU62: =SUM(DS62:DT62) -> 1 | DV62: 0 | DW62: 0 | DX62: 0 | DY62: =SUM(DW62:DX62) -> 0 | EA62: 0 | EB62: 1 | EG62: =IFERROR(VLOOKUP(A62,$EN$37:$EP$992,2,FALSE),"--") -> -- | EH62: =IF(EG62="--","--",IF(N62="LOPUT",IF(EG62="VÄHÄ","--> LOPUT",""),IF(N62="VÄHÄ",IF(EG62="LOPUT","-->VÄHÄ","")))) -> -- | EI62: =IFERROR(VLOOKUP(A62,$EN$37:$EP$992,3,FALSE),"--") -> -- | EJ62: =IFERROR(EI62-D62,"--") -> -- | EK62: =IFERROR(VLOOKUP(A62,$EN$37:$EQ$992,4,FALSE),"--") -> -- | EL62: =IFERROR(EK62-K62,"--") -> -- | EN62: 16655_1 | EO62: VÄHÄ | EP62: 28 | EQ62: 1
A63: =CONCATENATE(S63,"_",T63) -> 4_308 | B63: 1 | D63: =RANK(CM63,$CM$37:$CM$984) -> 27 | E63: 27 | F63: =E63-D63 -> 0 | G63: =CM63 -> 13 | H63: =AZ63 -> 5 | I63: =BS63 -> 6 | J63: =CK63 -> 2 | K63: =CN63 -> 1 | L63: =B63-K63 -> 0 | M63: =HYPERLINK(CV63,"Gmaps") -> Gmaps | N63: =IF(Y63>$K$6,"LOPUT","VÄHÄ") -> LOPUT | O63: =IF(S63<40,"Valta",IF(S63<100,"Kanta",IF(S63<1000,"Seutu",IF(S63>999,"Yhdys")))) -> Valta | P63: Jyväskyläntie, Ouluntie | Q63: Äänekoski | S63: 4 | T63: 308 | U63: 0 | V63: 308 | W63: 4897 | X63: 4897 | Y63: 8279 | Z63: 1135 | AA63: 10288 | AB63: 8279 (100 %) | AC63: 100 (100 %) | AD63: Ise (100 %) | AE63: Asfalttibetoni (42 %), Kivimastiksiasfaltti (58 %) | AF63: PK1 (100 %) | AG63: 0 | AH63: 7 | AI63: 0.04558924094 | AJ63: 793 | AR63: =+IF(Y63>=$K$6,$F$5,($F$5/($K$6))*Y63) -> 9 | AS63: 119 | AV63: =+IF(AS63>=$L$15,$J$15,IF(AS63<($L$15),AS63*($J$15/($L$15)),)) -> 3 | AW63: 2125 | AX63: =+IF(AW63>=$L$11,$J$11,IF(AW63<($L$11),AW63*($J$11/($L$11)),)) -> 3 | AY63: =SUM(AR63,AV63,AX63) -> 15 | AZ63: =+AY63*$H$5 -> 5 | BA63: =+IF(Z63=0,0,IF(Z63>$K$7,$F$9,($F$9/$K$7)*Z63)) -> 8 | BB63: =+IF(AJ63=0,0,IF(AJ63>$L$6,$F$10,($F$10/$L$6)*AJ63)) -> 1 | BC63: =IF(DB63>0,$F$11,0) -> 3 | BD63: =IF(DC63>0,$F$12,0) -> 0 | BE63: =IF(DD63>0,$F$13,0) -> 1 | BF63: =IF(DF63>0,$F$14,0) -> 0 | BG63: =IF(DG63>0,$F$15,0) -> 0 | BH63: =+IF(DH63>=$L$23,$J$23,IF(DH63<($L$23),DH63*($J$23/($L$23)),)) -> 0 | BI63: =+IF(DI63>=$L$24,$J$24,IF(DI63<($L$24),DI63*($J$24/($L$24)),)) -> 0 | BJ63: =+IF(DJ63>=$L$25,$J$25,IF(DJ63<($L$25),DJ63*($J$25/($L$25)),)) -> 0 | BK63: =+IF(DK63>=$L$26,$J$26,IF(DK63<($L$26),DK63*($J$26/($L$26)),)) -> 0 | BL63: =IF(DL63>0,$F$17,0) -> 2 | BM63: =+IF(DO63>=$L$29,$J$29,IF(DO63<($L$29),DO63*($J$29/($L$29)),)) -> 0 | BO63: =IF(EB63>0,$F$19,0) -> 2 | BP63: 28.94119858 | BQ63: =+IF(BP63>=$L$19,$J$19,IF(BP63<($L$19),BP63*($J$19/($L$19)),)) -> 1 | BR63: =SUM(BA63+BC63+BD63+BE63+BB63+BF63+BL63+BH63+BI63+BJ63+BK63+BM63+BO63+BQ63+BG63) -> 18 | BS63: =+BR63*$H$9 -> 6 | BT63: =DN63 -> 2755.18 | BU63: =BT63/X63 -> 0.5626260976 | BV63: =IF(BU63>0,IF(BU63>=$DA$28,$CY$28,IF(BU63<$DA$28,$CY$29,0)),0) -> 1 | BW63: 4242.32 | BX63: =BW63/X63 -> 0.8663099857 | BY63: =IF(BX63,$F$23,0) -> 1 | BZ63: =IF(DQ63>0,$F$24,0) -> 1 | CA63: =DR63 -> 1643.82 | CB63: =CA63/X63 -> 0.3356789871 | CC63: =+IF(CB63>=$K$4,$F$25,0) -> 0 | CD63: 100.490096 | CE63: =IF(CD63>0,IF(CD63>=100,$F$26,IF(CD63<100,$F$26/2)),0) -> 1 | CF63: =SUM(DU63) -> 1 | CG63: =IF(DY63>0,$F$28,0) -> 0 | CH63: =IF(DV63>0,$F$29,0) -> 0 | CI63: =IF(EA63=0,$F$30,0) -> 1 | CJ63: =SUM(BV63,BY63,CE63,BZ63,CC63,CF63,CG63,CH63,CI63) -> 6 | CK63: =+CJ63*$H$22 -> 2 | CL63: =SUM(AY63,BR63,CJ63) -> 39 | CM63: =SUM(AZ63,BS63,CK63) -> 13 | CN63: =IF(D63<($Z$13*$CN$28),1,IF(D63<(($Z$14+$Z$13)*$CN$28),2,IF(D63<(($Z$15+$Z$13+$Z$14)*$CN$28),3,4))) -> 1 | CO63: =VLOOKUP(A63,Taul1!$F$6:$G$953,2,FALSE) -> 1 | CQ63: =AR63+AV63+AX63+BA63+BC63+BD63+BF63+BG63+BH63+BI63+BJ63+BK63+BL63+BM63+BO63+BV63+BY63+BZ63+CF63+CI63 -> 35 | CR63: =AY63 -> 15 | CS63: =BA63+BC63+BD63+BF63+BG63+BH63+BI63+BJ63+BK63+BL63+BM63+BO63 -> 15 | CT63: =BV63+BY63+BZ63+CF63+CI63 -> 5 | CV63: https://www.google.com/maps/@62.56865828,25.67242403,3a,75y,90t/data=!3m3!1e1!3m1!2e0 | DA63: 1 | DB63: =SUM(CY63:DA63) -> 1 | DC63: 0 | DD63: 2 | DE63: 0 | DF63: 0 | DG63: 0 | DH63: 0 | DI63: 0 | DJ63: 0 | DK63: 0 | DL63: 1 | DN63: 2755.18 | DO63: 0 | DQ63: 2 | DR63: 1643.82 | DS63: =+IF(AA63>$K$8,$F$27/2,0) -> 1 | DT63: =+IF(AA63/Y63>1.5,$F$27/2,0) -> 0 | DU63: =SUM(DS63:DT63) -> 1 | DV63: 0 | DW63: 0 | DX63: 0 | DY63: =SUM(DW63:DX63) -> 0 | EA63: 0 | EB63: 7 | EG63: =IFERROR(VLOOKUP(A63,$EN$37:$EP$992,2,FALSE),"--") -> -- | EH63: =IF(EG63="--","--",IF(N63="LOPUT",IF(EG63="VÄHÄ","--> LOPUT",""),IF(N63="VÄHÄ",IF(EG63="LOPUT","-->VÄHÄ","")))) -> -- | EI63: =IFERROR(VLOOKUP(A63,$EN$37:$EP$992,3,FALSE),"--") -> -- | EJ63: =IFERROR(EI63-D63,"--") -> -- | EK63: =IFERROR(VLOOKUP(A63,$EN$37:$EQ$992,4,FALSE),"--") -> -- | EL63: =IFERROR(EK63-K63,"--") -> -- | EN63: 16688_1 | EO63: VÄHÄ | EP63: 29 | EQ63: 2
A64: =CONCATENATE(S64,"_",T64) -> 6300_1 | B64: 1 | D64: =RANK(CM64,$CM$37:$CM$984) -> 28 | E64: 28 | F64: =E64-D64 -> 0 | G64: =CM64 -> 12.89089331 | H64: =AZ64 -> 5 | I64: =BS64 -> 5.890893311 | J64: =CK64 -> 2 | K64: =CN64 -> 1 | L64: =B64-K64 -> 0 | M64: =HYPERLINK(CV64,"Gmaps") -> Gmaps | N64: =IF(Y64>$K$6,"LOPUT","VÄHÄ") -> LOPUT | O64: =IF(S64<40,"Valta",IF(S64<100,"Kanta",IF(S64<1000,"Seutu",IF(S64>999,"Yhdys")))) -> Yhdys | P64: Tikkakoskentie | Q64: Jyväskylä | S64: 6300 | T64: 1 | U64: 0 | V64: 1 | W64: 2789 | X64: 2789 | Y64: 5218 | Z64: 232 | AA64: 4984 | AB64: 5218 (100 %) | AC64: 50 (58 %), 60 (42 %) | AD64: Ic (71 %), Is (29 %) | AE64: ABtiivis (28 %), Asfalttibetoni (72 %) | AF64: PK2 (100 %) | AG64: 0 | AH64: 4 | AI64: 0 | AJ64: 63 | AR64: =+IF(Y64>=$K$6,$F$5,($F$5/($K$6))*Y64) -> 9 | AS64: 390 | AV64: =+IF(AS64>=$L$15,$J$15,IF(AS64<($L$15),AS64*($J$15/($L$15)),)) -> 3 | AW64: 2317 | AX64: =+IF(AW64>=$L$11,$J$11,IF(AW64<($L$11),AW64*($J$11/($L$11)),)) -> 3 | AY64: =SUM(AR64,AV64,AX64) -> 15 | AZ64: =+AY64*$H$5 -> 5 | BA64: =+IF(Z64=0,0,IF(Z64>$K$7,$F$9,($F$9/$K$7)*Z64)) -> 8 | BB64: =+IF(AJ64=0,0,IF(AJ64>$L$6,$F$10,($F$10/$L$6)*AJ64)) -> 1 | BC64: =IF(DB64>0,$F$11,0) -> 0 | BD64: =IF(DC64>0,$F$12,0) -> 1 | BE64: =IF(DD64>0,$F$13,0) -> 1 | BF64: =IF(DF64>0,$F$14,0) -> 1 | BG64: =IF(DG64>0,$F$15,0) -> 1 | BH64: =+IF(DH64>=$L$23,$J$23,IF(DH64<($L$23),DH64*($J$23/($L$23)),)) -> 0.5 | BI64: =+IF(DI64>=$L$24,$J$24,IF(DI64<($L$24),DI64*($J$24/($L$24)),)) -> 0.025 | BJ64: =+IF(DJ64>=$L$25,$J$25,IF(DJ64<($L$25),DJ64*($J$25/($L$25)),)) -> 0 | BK64: =+IF(DK64>=$L$26,$J$26,IF(DK64<($L$26),DK64*($J$26/($L$26)),)) -> 0 | BL64: =IF(DL64>0,$F$17,0) -> 0 | BM64: =+IF(DO64>=$L$29,$J$29,IF(DO64<($L$29),DO64*($J$29/($L$29)),)) -> 2 | BO64: =IF(EB64>0,$F$19,0) -> 2 | BP64: 1.476799336 | BQ64: =+IF(BP64>=$L$19,$J$19,IF(BP64<($L$19),BP64*($J$19/($L$19)),)) -> 0.1476799336 | BR64: =SUM(BA64+BC64+BD64+BE64+BB64+BF64+BL64+BH64+BI64+BJ64+BK64+BM64+BO64+BQ64+BG64) -> 17.67267993 | BS64: =+BR64*$H$9 -> 5.890893311 | BT64: =DN64 -> 1494.77 | BU64: =BT64/X64 -> 0.5359519541 | BV64: =IF(BU64>0,IF(BU64>=$DA$28,$CY$28,IF(BU64<$DA$28,$CY$29,0)),0) -> 1 | BW64: 0 | BX64: =BW64/X64 -> 0 | BY64: =IF(BX64,$F$23,0) -> 0 | BZ64: =IF(DQ64>0,$F$24,0) -> 1 | CA64: =DR64 -> 2126.75 | CB64: =CA64/X64 -> 0.7625493008 | CC64: =+IF(CB64>=$K$4,$F$25,0) -> 1 | CD64: 248.5381857 | CE64: =IF(CD64>0,IF(CD64>=100,$F$26,IF(CD64<100,$F$26/2)),0) -> 1 | CF64: =SUM(DU64) -> 1 | CG64: =IF(DY64>0,$F$28,0) -> 0 | CH64: =IF(DV64>0,$F$29,0) -> 0 | CI64: =IF(EA64=0,$F$30,0) -> 1 | CJ64: =SUM(BV64,BY64,CE64,BZ64,CC64,CF64,CG64,CH64,CI64) -> 6 | CK64: =+CJ64*$H$22 -> 2 | CL64: =SUM(AY64,BR64,CJ64) -> 38.67267993 | CM64: =SUM(AZ64,BS64,CK64) -> 12.89089331 | CN64: =IF(D64<($Z$13*$CN$28),1,IF(D64<(($Z$14+$Z$13)*$CN$28),2,IF(D64<(($Z$15+$Z$13+$Z$14)*$CN$28),3,4))) -> 1 | CO64: =VLOOKUP(A64,Taul1!$F$6:$G$953,2,FALSE) -> 1 | CQ64: =AR64+AV64+AX64+BA64+BC64+BD64+BF64+BG64+BH64+BI64+BJ64+BK64+BL64+BM64+BO64+BV64+BY64+BZ64+CF64+CI64 -> 34.525 | CR64: =AY64 -> 15 | CS64: =BA64+BC64+BD64+BF64+BG64+BH64+BI64+BJ64+BK64+BL64+BM64+BO64 -> 15.525 | CT64: =BV64+BY64+BZ64+CF64+CI64 -> 4 | CV64: https://www.google.com/maps/@62.38520627,25.70767971,3a,75y,90t/data=!3m3!1e1!3m1!2e0 | DA64: 0 | DB64: =SUM(CY64:DA64) -> 0 | DC64: 4 | DD64: 9 | DE64: 0 | DF64: 6 | DG64: 1 | DH64: 183 | DI64: 5 | DJ64: 0 | DK64: 0 | DL64: 0 | DN64: 1494.77 | DO64: 6 | DQ64: 8 | DR64: 2126.75 | DS64: =+IF(AA64>$K$8,$F$27/2,0) -> 1 | DT64: =+IF(AA64/Y64>1.5,$F$27/2,0) -> 0 | DU64: =SUM(DS64:DT64) -> 1 | DV64: 0 | DW64: 0 | DX64: 0 | DY64: =SUM(DW64:DX64) -> 0 | EA64: 0 | EB64: 4 | EG64: =IFERROR(VLOOKUP(A64,$EN$37:$EP$992,2,FALSE),"--") -> LOPUT | EH64: =IF(EG64="--","--",IF(N64="LOPUT",IF(EG64="VÄHÄ","--> LOPUT",""),IF(N64="VÄHÄ",IF(EG64="LOPUT","-->VÄHÄ","")))) ->  | EI64: =IFERROR(VLOOKUP(A64,$EN$37:$EP$992,3,FALSE),"--") -> 63 | EJ64: =IFERROR(EI64-D64,"--") -> 35 | EK64: =IFERROR(VLOOKUP(A64,$EN$37:$EQ$992,4,FALSE),"--") -> 1 | EL64: =IFERROR(EK64-K64,"--") -> 0 | EN64: 6544_1 | EO64: VÄHÄ | EP64: 30 | EQ64: 2
A65: =CONCATENATE(S65,"_",T65) -> 69_9 | B65: 1 | D65: =RANK(CM65,$CM$37:$CM$984) -> 29 | E65: 29 | F65: =E65-D65 -> 0 | G65: =CM65 -> 12.86666667 | H65: =AZ65 -> 4.2 | I65: =BS65 -> 6.333333333 | J65: =CK65 -> 2.333333333 | K65: =CN65 -> 1 | L65: =B65-K65 -> 0 | M65: =HYPERLINK(CV65,"Gmaps") -> Gmaps | N65: =IF(Y65>$K$6,"LOPUT","VÄHÄ") -> LOPUT | O65: =IF(S65<40,"Valta",IF(S65<100,"Kanta",IF(S65<1000,"Seutu",IF(S65>999,"Yhdys")))) -> Kanta | P65: Kauppatie, Suolahdentie | Q65: Konnevesi | S65: 69 | T65: 9 | U65: 0 | V65: 9 | W65: 6656 | X65: 6656 | Y65: 2300.079627 | Z65: 169.590595 | AA65: 3224 | AB65: 2287 (66 %), 2325 (34 %) | AC65: 100 (51 %), 40 (21 %), 50 (16 %), 60 (10 %), 80 (2 %) | AD65: Ib (100 %) | AE65: Asfalttibetoni (99 %) | AF65: PK2 (100 %) | AG65: 0 | AH65: 3 | AI65: 0.03846153846 | AJ65: 86.39498197 | AR65: =+IF(Y65>=$K$6,$F$5,($F$5/($K$6))*Y65) -> 9 | AS65: 4 | AV65: =+IF(AS65>=$L$15,$J$15,IF(AS65<($L$15),AS65*($J$15/($L$15)),)) -> 0.6 | AW65: 839 | AX65: =+IF(AW65>=$L$11,$J$11,IF(AW65<($L$11),AW65*($J$11/($L$11)),)) -> 3 | AY65: =SUM(AR65,AV65,AX65) -> 12.6 | AZ65: =+AY65*$H$5 -> 4.2 | BA65: =+IF(Z65=0,0,IF(Z65>$K$7,$F$9,($F$9/$K$7)*Z65)) -> 8 | BB65: =+IF(AJ65=0,0,IF(AJ65>$L$6,$F$10,($F$10/$L$6)*AJ65)) -> 1 | BC65: =IF(DB65>0,$F$11,0) -> 3 | BD65: =IF(DC65>0,$F$12,0) -> 0 | BE65: =IF(DD65>0,$F$13,0) -> 0 | BF65: =IF(DF65>0,$F$14,0) -> 1 | BG65: =IF(DG65>0,$F$15,0) -> 0 | BH65: =+IF(DH65>=$L$23,$J$23,IF(DH65<($L$23),DH65*($J$23/($L$23)),)) -> 0.5 | BI65: =+IF(DI65>=$L$24,$J$24,IF(DI65<($L$24),DI65*($J$24/($L$24)),)) -> 0.5 | BJ65: =+IF(DJ65>=$L$25,$J$25,IF(DJ65<($L$25),DJ65*($J$25/($L$25)),)) -> 0 | BK65: =+IF(DK65>=$L$26,$J$26,IF(DK65<($L$26),DK65*($J$26/($L$26)),)) -> 0 | BL65: =IF(DL65>0,$F$17,0) -> 2 | BM65: =+IF(DO65>=$L$29,$J$29,IF(DO65<($L$29),DO65*($J$29/($L$29)),)) -> 0 | BO65: =IF(EB65>0,$F$19,0) -> 2 | BP65: 21.78724462 | BQ65: =+IF(BP65>=$L$19,$J$19,IF(BP65<($L$19),BP65*($J$19/($L$19)),)) -> 1 | BR65: =SUM(BA65+BC65+BD65+BE65+BB65+BF65+BL65+BH65+BI65+BJ65+BK65+BM65+BO65+BQ65+BG65) -> 19 | BS65: =+BR65*$H$9 -> 6.333333333 | BT65: =DN65 -> 6091.49 | BU65: =BT65/X65 -> 0.9151878005 | BV65: =IF(BU65>0,IF(BU65>=$DA$28,$CY$28,IF(BU65<$DA$28,$CY$29,0)),0) -> 1 | BW65: 6593.33 | BX65: =BW65/X65 -> 0.9905844351 | BY65: =IF(BX65,$F$23,0) -> 1 | BZ65: =IF(DQ65>0,$F$24,0) -> 1 | CA65: =DR65 -> 3141.42 | CB65: =CA65/X65 -> 0.471968149 | CC65: =+IF(CB65>=$K$4,$F$25,0) -> 0 | CD65: 151.3996394 | CE65: =IF(CD65>0,IF(CD65>=100,$F$26,IF(CD65<100,$F$26/2)),0) -> 1 | CF65: =SUM(DU65) -> 1 | CG65: =IF(DY65>0,$F$28,0) -> 1 | CH65: =IF(DV65>0,$F$29,0) -> 0 | CI65: =IF(EA65=0,$F$30,0) -> 1 | CJ65: =SUM(BV65,BY65,CE65,BZ65,CC65,CF65,CG65,CH65,CI65) -> 7 | CK65: =+CJ65*$H$22 -> 2.333333333 | CL65: =SUM(AY65,BR65,CJ65) -> 38.6 | CM65: =SUM(AZ65,BS65,CK65) -> 12.86666667 | CN65: =IF(D65<($Z$13*$CN$28),1,IF(D65<(($Z$14+$Z$13)*$CN$28),2,IF(D65<(($Z$15+$Z$13+$Z$14)*$CN$28),3,4))) -> 1 | CO65: =VLOOKUP(A65,Taul1!$F$6:$G$953,2,FALSE) -> 2 | CQ65: =AR65+AV65+AX65+BA65+BC65+BD65+BF65+BG65+BH65+BI65+BJ65+BK65+BL65+BM65+BO65+BV65+BY65+BZ65+CF65+CI65 -> 34.6 | CR65: =AY65 -> 12.6 | CS65: =BA65+BC65+BD65+BF65+BG65+BH65+BI65+BJ65+BK65+BL65+BM65+BO65 -> 17 | CT65: =BV65+BY65+BZ65+CF65+CI65 -> 5 | CV65: https://www.google.com/maps/@62.60115385,26.217067,3a,75y,90t/data=!3m3!1e1!3m1!2e0 | DA65: 1 | DB65: =SUM(CY65:DA65) -> 1 | DC65: 0 | DD65: 0 | DE65: 2 | DF65: 7 | DG65: 0 | DH65: 217 | DI65: 458 | DJ65: 0 | DK65: 0 | DL65: 1 | DN65: 6091.49 | DO65: 0 | DQ65: 1 | DR65: 3141.42 | DS65: =+IF(AA65>$K$8,$F$27/2,0) -> 1 | DT65: =+IF(AA65/Y65>1.5,$F$27/2,0) -> 0 | DU65: =SUM(DS65:DT65) -> 1 | DV65: 0 | DW65: 0 | DX65: 1 | DY65: =SUM(DW65:DX65) -> 1 | EA65: 0 | EB65: 1 | EG65: =IFERROR(VLOOKUP(A65,$EN$37:$EP$992,2,FALSE),"--") -> LOPUT | EH65: =IF(EG65="--","--",IF(N65="LOPUT",IF(EG65="VÄHÄ","--> LOPUT",""),IF(N65="VÄHÄ",IF(EG65="LOPUT","-->VÄHÄ","")))) ->  | EI65: =IFERROR(VLOOKUP(A65,$EN$37:$EP$992,3,FALSE),"--") -> 25 | EJ65: =IFERROR(EI65-D65,"--") -> -4 | EK65: =IFERROR(VLOOKUP(A65,$EN$37:$EQ$992,4,FALSE),"--") -> 1 | EL65: =IFERROR(EK65-K65,"--") -> 0 | EN65: 16729_1 | EO65: VÄHÄ | EP65: 27 | EQ65: 1
A66: =CONCATENATE(S66,"_",T66) -> 604_1 | B66: 1 | D66: =RANK(CM66,$CM$37:$CM$984) -> 30 | E66: 30 | F66: =E66-D66 -> 0 | G66: =CM66 -> 12.82 | H66: =AZ66 -> 4.3 | I66: =BS66 -> 6.186666667 | J66: =CK66 -> 2.333333333 | K66: =CN66 -> 1 | L66: =B66-K66 -> 0 | M66: =HYPERLINK(CV66,"Gmaps") -> Gmaps | N66: =IF(Y66>$K$6,"LOPUT","VÄHÄ") -> LOPUT | O66: =IF(S66<40,"Valta",IF(S66<100,"Kanta",IF(S66<1000,"Seutu",IF(S66>999,"Yhdys")))) -> Seutu | P66: Koskenväylä | Q66: Jämsä | S66: 604 | T66: 1 | U66: 0 | V66: 1 | W66: 2356 | X66: 2356 | Y66: 2981 | Z66: 214 | AA66: 2951 | AB66: 2981 (100 %) | AC66: 50 (100 %) | AD66: Is (100 %) | AE66: Asfalttibetoni (68 %), Kivimastiksiasfaltti (32 %) | AF66: PK2 (100 %) | AG66: 1 | AH66: 1 | AI66: 0 | AJ66: 97 | AR66: =+IF(Y66>=$K$6,$F$5,($F$5/($K$6))*Y66) -> 9 | AS66: 6 | AV66: =+IF(AS66>=$L$15,$J$15,IF(AS66<($L$15),AS66*($J$15/($L$15)),)) -> 0.9 | AW66: 774 | AX66: =+IF(AW66>=$L$11,$J$11,IF(AW66<($L$11),AW66*($J$11/($L$11)),)) -> 3 | AY66: =SUM(AR66,AV66,AX66) -> 12.9 | AZ66: =+AY66*$H$5 -> 4.3 | BA66: =+IF(Z66=0,0,IF(Z66>$K$7,$F$9,($F$9/$K$7)*Z66)) -> 8 | BB66: =+IF(AJ66=0,0,IF(AJ66>$L$6,$F$10,($F$10/$L$6)*AJ66)) -> 1 | BC66: =IF(DB66>0,$F$11,0) -> 0 | BD66: =IF(DC66>0,$F$12,0) -> 1 | BE66: =IF(DD66>0,$F$13,0) -> 1 | BF66: =IF(DF66>0,$F$14,0) -> 1 | BG66: =IF(DG66>0,$F$15,0) -> 1 | BH66: =+IF(DH66>=$L$23,$J$23,IF(DH66<($L$23),DH66*($J$23/($L$23)),)) -> 0.14 | BI66: =+IF(DI66>=$L$24,$J$24,IF(DI66<($L$24),DI66*($J$24/($L$24)),)) -> 0.42 | BJ66: =+IF(DJ66>=$L$25,$J$25,IF(DJ66<($L$25),DJ66*($J$25/($L$25)),)) -> 0 | BK66: =+IF(DK66>=$L$26,$J$26,IF(DK66<($L$26),DK66*($J$26/($L$26)),)) -> 0 | BL66: =IF(DL66>0,$F$17,0) -> 0 | BM66: =+IF(DO66>=$L$29,$J$29,IF(DO66<($L$29),DO66*($J$29/($L$29)),)) -> 2 | BO66: =IF(EB66>0,$F$19,0) -> 2 | BP66: 12.63215789 | BQ66: =+IF(BP66>=$L$19,$J$19,IF(BP66<($L$19),BP66*($J$19/($L$19)),)) -> 1 | BR66: =SUM(BA66+BC66+BD66+BE66+BB66+BF66+BL66+BH66+BI66+BJ66+BK66+BM66+BO66+BQ66+BG66) -> 18.56 | BS66: =+BR66*$H$9 -> 6.186666667 | BT66: =DN66 -> 2365.05 | BU66: =BT66/X66 -> 1.003841256 | BV66: =IF(BU66>0,IF(BU66>=$DA$28,$CY$28,IF(BU66<$DA$28,$CY$29,0)),0) -> 1 | BW66: 2365.05 | BX66: =BW66/X66 -> 1.003841256 | BY66: =IF(BX66,$F$23,0) -> 1 | BZ66: =IF(DQ66>0,$F$24,0) -> 1 | CA66: =DR66 -> 2205 | CB66: =CA66/X66 -> 0.9359083192 | CC66: =+IF(CB66>=$K$4,$F$25,0) -> 1 | CD66: 246.614601 | CE66: =IF(CD66>0,IF(CD66>=100,$F$26,IF(CD66<100,$F$26/2)),0) -> 1 | CF66: =SUM(DU66) -> 1 | CG66: =IF(DY66>0,$F$28,0) -> 0 | CH66: =IF(DV66>0,$F$29,0) -> 0 | CI66: =IF(EA66=0,$F$30,0) -> 1 | CJ66: =SUM(BV66,BY66,CE66,BZ66,CC66,CF66,CG66,CH66,CI66) -> 7 | CK66: =+CJ66*$H$22 -> 2.333333333 | CL66: =SUM(AY66,BR66,CJ66) -> 38.46 | CM66: =SUM(AZ66,BS66,CK66) -> 12.82 | CN66: =IF(D66<($Z$13*$CN$28),1,IF(D66<(($Z$14+$Z$13)*$CN$28),2,IF(D66<(($Z$15+$Z$13+$Z$14)*$CN$28),3,4))) -> 1 | CO66: =VLOOKUP(A66,Taul1!$F$6:$G$953,2,FALSE) -> 1 | CQ66: =AR66+AV66+AX66+BA66+BC66+BD66+BF66+BG66+BH66+BI66+BJ66+BK66+BL66+BM66+BO66+BV66+BY66+BZ66+CF66+CI66 -> 33.46 | CR66: =AY66 -> 12.9 | CS66: =BA66+BC66+BD66+BF66+BG66+BH66+BI66+BJ66+BK66+BL66+BM66+BO66 -> 15.56 | CT66: =BV66+BY66+BZ66+CF66+CI66 -> 5 | CV66: https://www.google.com/maps/@61.90884343,25.13864466,3a,75y,90t/data=!3m3!1e1!3m1!2e0 | DA66: 0 | DB66: =SUM(CY66:DA66) -> 0 | DC66: 4 | DD66: 1 | DE66: 0 | DF66: 5 | DG66: 2 | DH66: 28 | DI66: 84 | DJ66: 0 | DK66: 0 | DL66: 0 | DN66: 2365.05 | DO66: 10 | DQ66: 16 | DR66: 2205 | DS66: =+IF(AA66>$K$8,$F$27/2,0) -> 1 | DT66: =+IF(AA66/Y66>1.5,$F$27/2,0) -> 0 | DU66: =SUM(DS66:DT66) -> 1 | DV66: 0 | DW66: 0 | DX66: 0 | DY66: =SUM(DW66:DX66) -> 0 | EA66: 0 | EB66: 4 | EG66: =IFERROR(VLOOKUP(A66,$EN$37:$EP$992,2,FALSE),"--") -> LOPUT | EH66: =IF(EG66="--","--",IF(N66="LOPUT",IF(EG66="VÄHÄ","--> LOPUT",""),IF(N66="VÄHÄ",IF(EG66="LOPUT","-->VÄHÄ","")))) ->  | EI66: =IFERROR(VLOOKUP(A66,$EN$37:$EP$992,3,FALSE),"--") -> 3 | EJ66: =IFERROR(EI66-D66,"--") -> -27 | EK66: =IFERROR(VLOOKUP(A66,$EN$37:$EQ$992,4,FALSE),"--") -> 1 | EL66: =IFERROR(EK66-K66,"--") -> 0 | EN66: 6250_5 | EO66: VÄHÄ | EP66: 20 | EQ66: 1
A67: =CONCATENATE(S67,"_",T67) -> 9_229 | B67: 1 | D67: =RANK(CM67,$CM$37:$CM$984) -> 31 | E67: 31 | F67: =E67-D67 -> 0 | G67: =CM67 -> 12.80666667 | H67: =AZ67 -> 5 | I67: =BS67 -> 6.14 | J67: =CK67 -> 1.666666667 | K67: =CN67 -> 1 | L67: =B67-K67 -> 0 | M67: =HYPERLINK(CV67,"Gmaps") -> Gmaps | N67: =IF(Y67>$K$6,"LOPUT","VÄHÄ") -> LOPUT | O67: =IF(S67<40,"Valta",IF(S67<100,"Kanta",IF(S67<1000,"Seutu",IF(S67>999,"Yhdys")))) -> Valta | P67: Ysitie | Q67: Jyväskylä | S67: 9 | T67: 229 | U67: 0 | V67: 229 | W67: 6520 | X67: 6520 | Y67: 8748 | Z67: 775 | AA67: 10922 | AB67: 8748 (100 %) | AC67: 100 (30 %), 60 (10 %), 80 (60 %) | AD67: Is (100 %) | AE67: Kivimastiksiasfaltti (100 %) | AF67: PK1 (100 %) | AG67: 5 | AH67: 13 | AI67: 0.04992736448 | AJ67: 476 | AR67: =+IF(Y67>=$K$6,$F$5,($F$5/($K$6))*Y67) -> 9 | AS67: 87 | AV67: =+IF(AS67>=$L$15,$J$15,IF(AS67<($L$15),AS67*($J$15/($L$15)),)) -> 3 | AW67: 2848 | AX67: =+IF(AW67>=$L$11,$J$11,IF(AW67<($L$11),AW67*($J$11/($L$11)),)) -> 3 | AY67: =SUM(AR67,AV67,AX67) -> 15 | AZ67: =+AY67*$H$5 -> 5 | BA67: =+IF(Z67=0,0,IF(Z67>$K$7,$F$9,($F$9/$K$7)*Z67)) -> 8 | BB67: =+IF(AJ67=0,0,IF(AJ67>$L$6,$F$10,($F$10/$L$6)*AJ67)) -> 1 | BC67: =IF(DB67>0,$F$11,0) -> 3 | BD67: =IF(DC67>0,$F$12,0) -> 1 | BE67: =IF(DD67>0,$F$13,0) -> 1 | BF67: =IF(DF67>0,$F$14,0) -> 1 | BG67: =IF(DG67>0,$F$15,0) -> 0 | BH67: =+IF(DH67>=$L$23,$J$23,IF(DH67<($L$23),DH67*($J$23/($L$23)),)) -> 0 | BI67: =+IF(DI67>=$L$24,$J$24,IF(DI67<($L$24),DI67*($J$24/($L$24)),)) -> 0.02 | BJ67: =+IF(DJ67>=$L$25,$J$25,IF(DJ67<($L$25),DJ67*($J$25/($L$25)),)) -> 0 | BK67: =+IF(DK67>=$L$26,$J$26,IF(DK67<($L$26),DK67*($J$26/($L$26)),)) -> 0 | BL67: =IF(DL67>0,$F$17,0) -> 0 | BM67: =+IF(DO67>=$L$29,$J$29,IF(DO67<($L$29),DO67*($J$29/($L$29)),)) -> 0.4 | BO67: =IF(EB67>0,$F$19,0) -> 2 | BP67: 60.46527157 | BQ67: =+IF(BP67>=$L$19,$J$19,IF(BP67<($L$19),BP67*($J$19/($L$19)),)) -> 1 | BR67: =SUM(BA67+BC67+BD67+BE67+BB67+BF67+BL67+BH67+BI67+BJ67+BK67+BM67+BO67+BQ67+BG67) -> 18.42 | BS67: =+BR67*$H$9 -> 6.14 | BT67: =DN67 -> 3559.27 | BU67: =BT67/X67 -> 0.5459003067 | BV67: =IF(BU67>0,IF(BU67>=$DA$28,$CY$28,IF(BU67<$DA$28,$CY$29,0)),0) -> 1 | BW67: 6427.68 | BX67: =BW67/X67 -> 0.9858404908 | BY67: =IF(BX67,$F$23,0) -> 1 | BZ67: =IF(DQ67>0,$F$24,0) -> 0 | CA67: =DR67 -> 2099.03 | CB67: =CA67/X67 -> 0.3219371166 | CC67: =+IF(CB67>=$K$4,$F$25,0) -> 0 | CD67: 141.2269939 | CE67: =IF(CD67>0,IF(CD67>=100,$F$26,IF(CD67<100,$F$26/2)),0) -> 1 | CF67: =SUM(DU67) -> 1 | CG67: =IF(DY67>0,$F$28,0) -> 0 | CH67: =IF(DV67>0,$F$29,0) -> 0 | CI67: =IF(EA67=0,$F$30,0) -> 1 | CJ67: =SUM(BV67,BY67,CE67,BZ67,CC67,CF67,CG67,CH67,CI67) -> 5 | CK67: =+CJ67*$H$22 -> 1.666666667 | CL67: =SUM(AY67,BR67,CJ67) -> 38.42 | CM67: =SUM(AZ67,BS67,CK67) -> 12.80666667 | CN67: =IF(D67<($Z$13*$CN$28),1,IF(D67<(($Z$14+$Z$13)*$CN$28),2,IF(D67<(($Z$15+$Z$13+$Z$14)*$CN$28),3,4))) -> 1 | CO67: =VLOOKUP(A67,Taul1!$F$6:$G$953,2,FALSE) -> 1 | CQ67: =AR67+AV67+AX67+BA67+BC67+BD67+BF67+BG67+BH67+BI67+BJ67+BK67+BL67+BM67+BO67+BV67+BY67+BZ67+CF67+CI67 -> 34.42 | CR67: =AY67 -> 15 | CS67: =BA67+BC67+BD67+BF67+BG67+BH67+BI67+BJ67+BK67+BL67+BM67+BO67 -> 15.42 | CT67: =BV67+BY67+BZ67+CF67+CI67 -> 4 | CV67: https://www.google.com/maps/@61.9927404,25.46900352,3a,75y,90t/data=!3m3!1e1!3m1!2e0 | DA67: 5 | DB67: =SUM(CY67:DA67) -> 5 | DC67: 1 | DD67: 1 | DE67: 0 | DF67: 1 | DG67: 0 | DH67: 0 | DI67: 4 | DJ67: 0 | DK67: 0 | DL67: 0 | DN67: 3559.27 | DO67: 1 | DQ67: 0 | DR67: 2099.03 | DS67: =+IF(AA67>$K$8,$F$27/2,0) -> 1 | DT67: =+IF(AA67/Y67>1.5,$F$27/2,0) -> 0 | DU67: =SUM(DS67:DT67) -> 1 | DV67: 0 | DW67: 0 | DX67: 0 | DY67: =SUM(DW67:DX67) -> 0 | EA67: 0 | EB67: 2 | EG67: =IFERROR(VLOOKUP(A67,$EN$37:$EP$992,2,FALSE),"--") -> -- | EH67: =IF(EG67="--","--",IF(N67="LOPUT",IF(EG67="VÄHÄ","--> LOPUT",""),IF(N67="VÄHÄ",IF(EG67="LOPUT","-->VÄHÄ","")))) -> -- | EI67: =IFERROR(VLOOKUP(A67,$EN$37:$EP$992,3,FALSE),"--") -> -- | EJ67: =IFERROR(EI67-D67,"--") -> -- | EK67: =IFERROR(VLOOKUP(A67,$EN$37:$EQ$992,4,FALSE),"--") -> -- | EL67: =IFERROR(EK67-K67,"--") -> -- | EN67: 431_14 | EO67: VÄHÄ | EP67: 31 | EQ67: 2
A68: =CONCATENATE(S68,"_",T68) -> 4_220 | B68: 1 | D68: =RANK(CM68,$CM$37:$CM$984) -> 32 | E68: 32 | F68: =E68-D68 -> 0 | G68: =CM68 -> 12.77333333 | H68: =AZ68 -> 5 | I68: =BS68 -> 6.106666667 | J68: =CK68 -> 1.666666667 | K68: =CN68 -> 1 | L68: =B68-K68 -> 0 | M68: =HYPERLINK(CV68,"Gmaps") -> Gmaps | N68: =IF(Y68>$K$6,"LOPUT","VÄHÄ") -> LOPUT | O68: =IF(S68<40,"Valta",IF(S68<100,"Kanta",IF(S68<1000,"Seutu",IF(S68>999,"Yhdys")))) -> Valta | P68: Valtatie | Q68: Joutsa | S68: 4 | T68: 220 | U68: 0 | V68: 220 | W68: 4539 | X68: 4539 | Y68: 6524.325843 | Z68: 1007.655431 | AA68: 9001 | AB68: 6485 (63 %), 6590 (37 %) | AC68: 100 (43 %), 80 (57 %) | AD68: Ise (100 %) | AE68: Kivimastiksiasfaltti (100 %) | AF68: PK1 (100 %) | AG68: 1 | AH68: 4 | AI68: 0.006588950836 | AJ68: 710.1198502 | AR68: =+IF(Y68>=$K$6,$F$5,($F$5/($K$6))*Y68) -> 9 | AS68: 160 | AV68: =+IF(AS68>=$L$15,$J$15,IF(AS68<($L$15),AS68*($J$15/($L$15)),)) -> 3 | AW68: 774 | AX68: =+IF(AW68>=$L$11,$J$11,IF(AW68<($L$11),AW68*($J$11/($L$11)),)) -> 3 | AY68: =SUM(AR68,AV68,AX68) -> 15 | AZ68: =+AY68*$H$5 -> 5 | BA68: =+IF(Z68=0,0,IF(Z68>$K$7,$F$9,($F$9/$K$7)*Z68)) -> 8 | BB68: =+IF(AJ68=0,0,IF(AJ68>$L$6,$F$10,($F$10/$L$6)*AJ68)) -> 1 | BC68: =IF(DB68>0,$F$11,0) -> 3 | BD68: =IF(DC68>0,$F$12,0) -> 1 | BE68: =IF(DD68>0,$F$13,0) -> 0 | BF68: =IF(DF68>0,$F$14,0) -> 1 | BG68: =IF(DG68>0,$F$15,0) -> 0 | BH68: =+IF(DH68>=$L$23,$J$23,IF(DH68<($L$23),DH68*($J$23/($L$23)),)) -> 0.12 | BI68: =+IF(DI68>=$L$24,$J$24,IF(DI68<($L$24),DI68*($J$24/($L$24)),)) -> 0 | BJ68: =+IF(DJ68>=$L$25,$J$25,IF(DJ68<($L$25),DJ68*($J$25/($L$25)),)) -> 0 | BK68: =+IF(DK68>=$L$26,$J$26,IF(DK68<($L$26),DK68*($J$26/($L$26)),)) -> 0 | BL68: =IF(DL68>0,$F$17,0) -> 0 | BM68: =+IF(DO68>=$L$29,$J$29,IF(DO68<($L$29),DO68*($J$29/($L$29)),)) -> 1.2 | BO68: =IF(EB68>0,$F$19,0) -> 2 | BP68: 14.51013937 | BQ68: =+IF(BP68>=$L$19,$J$19,IF(BP68<($L$19),BP68*($J$19/($L$19)),)) -> 1 | BR68: =SUM(BA68+BC68+BD68+BE68+BB68+BF68+BL68+BH68+BI68+BJ68+BK68+BM68+BO68+BQ68+BG68) -> 18.32 | BS68: =+BR68*$H$9 -> 6.106666667 | BT68: =DN68 -> 2481.8 | BU68: =BT68/X68 -> 0.5467724168 | BV68: =IF(BU68>0,IF(BU68>=$DA$28,$CY$28,IF(BU68<$DA$28,$CY$29,0)),0) -> 1 | BW68: 4544.47 | BX68: =BW68/X68 -> 1.001205111 | BY68: =IF(BX68,$F$23,0) -> 1 | BZ68: =IF(DQ68>0,$F$24,0) -> 0 | CA68: =DR68 -> 1143.81 | CB68: =CA68/X68 -> 0.2519960344 | CC68: =+IF(CB68>=$K$4,$F$25,0) -> 0 | CD68: 123.8667107 | CE68: =IF(CD68>0,IF(CD68>=100,$F$26,IF(CD68<100,$F$26/2)),0) -> 1 | CF68: =SUM(DU68) -> 1 | CG68: =IF(DY68>0,$F$28,0) -> 0 | CH68: =IF(DV68>0,$F$29,0) -> 0 | CI68: =IF(EA68=0,$F$30,0) -> 1 | CJ68: =SUM(BV68,BY68,CE68,BZ68,CC68,CF68,CG68,CH68,CI68) -> 5 | CK68: =+CJ68*$H$22 -> 1.666666667 | CL68: =SUM(AY68,BR68,CJ68) -> 38.32 | CM68: =SUM(AZ68,BS68,CK68) -> 12.77333333 | CN68: =IF(D68<($Z$13*$CN$28),1,IF(D68<(($Z$14+$Z$13)*$CN$28),2,IF(D68<(($Z$15+$Z$13+$Z$14)*$CN$28),3,4))) -> 1 | CO68: =VLOOKUP(A68,Taul1!$F$6:$G$953,2,FALSE) -> 2 | CQ68: =AR68+AV68+AX68+BA68+BC68+BD68+BF68+BG68+BH68+BI68+BJ68+BK68+BL68+BM68+BO68+BV68+BY68+BZ68+CF68+CI68 -> 35.32 | CR68: =AY68 -> 15 | CS68: =BA68+BC68+BD68+BF68+BG68+BH68+BI68+BJ68+BK68+BL68+BM68+BO68 -> 16.32 | CT68: =BV68+BY68+BZ68+CF68+CI68 -> 4 | CV68: https://www.google.com/maps/@61.71321812,26.06635317,3a,75y,90t/data=!3m3!1e1!3m1!2e0 | DA68: 3 | DB68: =SUM(CY68:DA68) -> 3 | DC68: 2 | DD68: 0 | DE68: 0 | DF68: 4 | DG68: 0 | DH68: 24 | DI68: 0 | DJ68: 0 | DK68: 0 | DL68: 0 | DN68: 2481.8 | DO68: 3 | DQ68: 0 | DR68: 1143.81 | DS68: =+IF(AA68>$K$8,$F$27/2,0) -> 1 | DT68: =+IF(AA68/Y68>1.5,$F$27/2,0) -> 0 | DU68: =SUM(DS68:DT68) -> 1 | DV68: 0 | DW68: 0 | DX68: 0 | DY68: =SUM(DW68:DX68) -> 0 | EA68: 0 | EB68: 2 | EG68: =IFERROR(VLOOKUP(A68,$EN$37:$EP$992,2,FALSE),"--") -> -- | EH68: =IF(EG68="--","--",IF(N68="LOPUT",IF(EG68="VÄHÄ","--> LOPUT",""),IF(N68="VÄHÄ",IF(EG68="LOPUT","-->VÄHÄ","")))) -> -- | EI68: =IFERROR(VLOOKUP(A68,$EN$37:$EP$992,3,FALSE),"--") -> -- | EJ68: =IFERROR(EI68-D68,"--") -> -- | EK68: =IFERROR(VLOOKUP(A68,$EN$37:$EQ$992,4,FALSE),"--") -> -- | EL68: =IFERROR(EK68-K68,"--") -> -- | EN68: 697_20 | EO68: VÄHÄ | EP68: 32 | EQ68: 2
A69: =CONCATENATE(S69,"_",T69) -> 23_219 | B69: 1 | D69: =RANK(CM69,$CM$37:$CM$984) -> 33 | E69: 33 | F69: =E69-D69 -> 0 | G69: =CM69 -> 12.66666667 | H69: =AZ69 -> 5 | I69: =BS69 -> 5 | J69: =CK69 -> 2.666666667 | K69: =CN69 -> 1 | L69: =B69-K69 -> 0 | M69: =HYPERLINK(CV69,"Gmaps") -> Gmaps | N69: =IF(Y69>$K$6,"LOPUT","VÄHÄ") -> LOPUT | O69: =IF(S69<40,"Valta",IF(S69<100,"Kanta",IF(S69<1000,"Seutu",IF(S69>999,"Yhdys")))) -> Valta | P69: Haapamäentie, Jyväskyläntie | Q69: Keuruu | S69: 23 | T69: 219 | U69: 0 | V69: 219 | W69: 1952 | X69: 1952 | Y69: 6254.993852 | Z69: 346.4129098 | AA69: 7040 | AB69: 4832 (40 %), 7198 (60 %) | AC69: 50 (68 %), 60 (32 %) | AD69: Is (100 %) | AE69: Asfalttibetoni (78 %), Kivimastiksiasfaltti (22 %) | AF69: PK1 (100 %) | AG69: 0 | AH69: 3 | AI69: 0.005784805245 | AJ69: 157.0430328 | AR69: =+IF(Y69>=$K$6,$F$5,($F$5/($K$6))*Y69) -> 9 | AS69: 95 | AV69: =+IF(AS69>=$L$15,$J$15,IF(AS69<($L$15),AS69*($J$15/($L$15)),)) -> 3 | AW69: 2140 | AX69: =+IF(AW69>=$L$11,$J$11,IF(AW69<($L$11),AW69*($J$11/($L$11)),)) -> 3 | AY69: =SUM(AR69,AV69,AX69) -> 15 | AZ69: =+AY69*$H$5 -> 5 | BA69: =+IF(Z69=0,0,IF(Z69>$K$7,$F$9,($F$9/$K$7)*Z69)) -> 8 | BB69: =+IF(AJ69=0,0,IF(AJ69>$L$6,$F$10,($F$10/$L$6)*AJ69)) -> 1 | BC69: =IF(DB69>0,$F$11,0) -> 3 | BD69: =IF(DC69>0,$F$12,0) -> 0 | BE69: =IF(DD69>0,$F$13,0) -> 0 | BF69: =IF(DF69>0,$F$14,0) -> 0 | BG69: =IF(DG69>0,$F$15,0) -> 0 | BH69: =+IF(DH69>=$L$23,$J$23,IF(DH69<($L$23),DH69*($J$23/($L$23)),)) -> 0 | BI69: =+IF(DI69>=$L$24,$J$24,IF(DI69<($L$24),DI69*($J$24/($L$24)),)) -> 0 | BJ69: =+IF(DJ69>=$L$25,$J$25,IF(DJ69<($L$25),DJ69*($J$25/($L$25)),)) -> 0 | BK69: =+IF(DK69>=$L$26,$J$26,IF(DK69<($L$26),DK69*($J$26/($L$26)),)) -> 0 | BL69: =IF(DL69>0,$F$17,0) -> 0 | BM69: =+IF(DO69>=$L$29,$J$29,IF(DO69<($L$29),DO69*($J$29/($L$29)),)) -> 0 | BO69: =IF(EB69>0,$F$19,0) -> 2 | BP69: 13.06924238 | BQ69: =+IF(BP69>=$L$19,$J$19,IF(BP69<($L$19),BP69*($J$19/($L$19)),)) -> 1 | BR69: =SUM(BA69+BC69+BD69+BE69+BB69+BF69+BL69+BH69+BI69+BJ69+BK69+BM69+BO69+BQ69+BG69) -> 15 | BS69: =+BR69*$H$9 -> 5 | BT69: =DN69 -> 1954.65 | BU69: =BT69/X69 -> 1.001357582 | BV69: =IF(BU69>0,IF(BU69>=$DA$28,$CY$28,IF(BU69<$DA$28,$CY$29,0)),0) -> 1 | BW69: 1954.65 | BX69: =BW69/X69 -> 1.001357582 | BY69: =IF(BX69,$F$23,0) -> 1 | BZ69: =IF(DQ69>0,$F$24,0) -> 1 | CA69: =DR69 -> 1954.65 | CB69: =CA69/X69 -> 1.001357582 | CC69: =+IF(CB69>=$K$4,$F$25,0) -> 1 | CD69: 717.0942623 | CE69: =IF(CD69>0,IF(CD69>=100,$F$26,IF(CD69<100,$F$26/2)),0) -> 1 | CF69: =SUM(DU69) -> 1 | CG69: =IF(DY69>0,$F$28,0) -> 1 | CH69: =IF(DV69>0,$F$29,0) -> 0 | CI69: =IF(EA69=0,$F$30,0) -> 1 | CJ69: =SUM(BV69,BY69,CE69,BZ69,CC69,CF69,CG69,CH69,CI69) -> 8 | CK69: =+CJ69*$H$22 -> 2.666666667 | CL69: =SUM(AY69,BR69,CJ69) -> 38 | CM69: =SUM(AZ69,BS69,CK69) -> 12.66666667 | CN69: =IF(D69<($Z$13*$CN$28),1,IF(D69<(($Z$14+$Z$13)*$CN$28),2,IF(D69<(($Z$15+$Z$13+$Z$14)*$CN$28),3,4))) -> 1 | CO69: =VLOOKUP(A69,Taul1!$F$6:$G$953,2,FALSE) -> 2 | CQ69: =AR69+AV69+AX69+BA69+BC69+BD69+BF69+BG69+BH69+BI69+BJ69+BK69+BL69+BM69+BO69+BV69+BY69+BZ69+CF69+CI69 -> 33 | CR69: =AY69 -> 15 | CS69: =BA69+BC69+BD69+BF69+BG69+BH69+BI69+BJ69+BK69+BL69+BM69+BO69 -> 13 | CT69: =BV69+BY69+BZ69+CF69+CI69 -> 5 | CV69: https://www.google.com/maps/@62.25584667,24.70800549,3a,75y,90t/data=!3m3!1e1!3m1!2e0 | DA69: 3 | DB69: =SUM(CY69:DA69) -> 3 | DC69: 0 | DD69: 0 | DE69: 0 | DF69: 0 | DG69: 0 | DH69: 0 | DI69: 0 | DJ69: 0 | DK69: 0 | DL69: 0 | DN69: 1954.65 | DO69: 0 | DQ69: 9 | DR69: 1954.65 | DS69: =+IF(AA69>$K$8,$F$27/2,0) -> 1 | DT69: =+IF(AA69/Y69>1.5,$F$27/2,0) -> 0 | DU69: =SUM(DS69:DT69) -> 1 | DV69: 0 | DW69: 0 | DX69: 2 | DY69: =SUM(DW69:DX69) -> 2 | EA69: 0 | EB69: 3 | EG69: =IFERROR(VLOOKUP(A69,$EN$37:$EP$992,2,FALSE),"--") -> -- | EH69: =IF(EG69="--","--",IF(N69="LOPUT",IF(EG69="VÄHÄ","--> LOPUT",""),IF(N69="VÄHÄ",IF(EG69="LOPUT","-->VÄHÄ","")))) -> -- | EI69: =IFERROR(VLOOKUP(A69,$EN$37:$EP$992,3,FALSE),"--") -> -- | EJ69: =IFERROR(EI69-D69,"--") -> -- | EK69: =IFERROR(VLOOKUP(A69,$EN$37:$EQ$992,4,FALSE),"--") -> -- | EL69: =IFERROR(EK69-K69,"--") -> -- | EN69: 6183_1 | EO69: VÄHÄ | EP69: 74 | EQ69: 2
A70: =CONCATENATE(S70,"_",T70) -> 23_225 | B70: 1 | D70: =RANK(CM70,$CM$37:$CM$984) -> 33 | E70: 33 | F70: =E70-D70 -> 0 | G70: =CM70 -> 12.66666667 | H70: =AZ70 -> 5 | I70: =BS70 -> 5 | J70: =CK70 -> 2.666666667 | K70: =CN70 -> 1 | L70: =B70-K70 -> 0 | M70: =HYPERLINK(CV70,"Gmaps") -> Gmaps | N70: =IF(Y70>$K$6,"LOPUT","VÄHÄ") -> LOPUT | O70: =IF(S70<40,"Valta",IF(S70<100,"Kanta",IF(S70<1000,"Seutu",IF(S70>999,"Yhdys")))) -> Valta | P70: Petäjävedentie | Q70: Petäjävesi | S70: 23 | T70: 225 | U70: 0 | V70: 225 | W70: 1888 | X70: 1888 | Y70: 3778.779661 | Z70: 377.7457627 | AA70: 4638 | AB70: 3609 (64 %), 4086 (36 %) | AC70: 50 (17 %), 60 (29 %), 80 (56 %) | AD70: Is (100 %) | AE70: Kivimastiksiasfaltti (100 %) | AF70: PK1 (100 %) | AG70: 1 | AH70: 1 | AI70: 0.1510721248 | AJ70: 202.9491525 | AR70: =+IF(Y70>=$K$6,$F$5,($F$5/($K$6))*Y70) -> 9 | AS70: 101 | AV70: =+IF(AS70>=$L$15,$J$15,IF(AS70<($L$15),AS70*($J$15/($L$15)),)) -> 3 | AW70: 1037 | AX70: =+IF(AW70>=$L$11,$J$11,IF(AW70<($L$11),AW70*($J$11/($L$11)),)) -> 3 | AY70: =SUM(AR70,AV70,AX70) -> 15 | AZ70: =+AY70*$H$5 -> 5 | BA70: =+IF(Z70=0,0,IF(Z70>$K$7,$F$9,($F$9/$K$7)*Z70)) -> 8 | BB70: =+IF(AJ70=0,0,IF(AJ70>$L$6,$F$10,($F$10/$L$6)*AJ70)) -> 1 | BC70: =IF(DB70>0,$F$11,0) -> 3 | BD70: =IF(DC70>0,$F$12,0) -> 0 | BE70: =IF(DD70>0,$F$13,0) -> 0 | BF70: =IF(DF70>0,$F$14,0) -> 0 | BG70: =IF(DG70>0,$F$15,0) -> 0 | BH70: =+IF(DH70>=$L$23,$J$23,IF(DH70<($L$23),DH70*($J$23/($L$23)),)) -> 0 | BI70: =+IF(DI70>=$L$24,$J$24,IF(DI70<($L$24),DI70*($J$24/($L$24)),)) -> 0 | BJ70: =+IF(DJ70>=$L$25,$J$25,IF(DJ70<($L$25),DJ70*($J$25/($L$25)),)) -> 0 | BK70: =+IF(DK70>=$L$26,$J$26,IF(DK70<($L$26),DK70*($J$26/($L$26)),)) -> 0 | BL70: =IF(DL70>0,$F$17,0) -> 0 | BM70: =+IF(DO70>=$L$29,$J$29,IF(DO70<($L$29),DO70*($J$29/($L$29)),)) -> 0 | BO70: =IF(EB70>0,$F$19,0) -> 2 | BP70: 20.76670995 | BQ70: =+IF(BP70>=$L$19,$J$19,IF(BP70<($L$19),BP70*($J$19/($L$19)),)) -> 1 | BR70: =SUM(BA70+BC70+BD70+BE70+BB70+BF70+BL70+BH70+BI70+BJ70+BK70+BM70+BO70+BQ70+BG70) -> 15 | BS70: =+BR70*$H$9 -> 5 | BT70: =DN70 -> 1918.94 | BU70: =BT70/X70 -> 1.016387712 | BV70: =IF(BU70>0,IF(BU70>=$DA$28,$CY$28,IF(BU70<$DA$28,$CY$29,0)),0) -> 1 | BW70: 1890.18 | BX70: =BW70/X70 -> 1.001154661 | BY70: =IF(BX70,$F$23,0) -> 1 | BZ70: =IF(DQ70>0,$F$24,0) -> 1 | CA70: =DR70 -> 1918.94 | CB70: =CA70/X70 -> 1.016387712 | CC70: =+IF(CB70>=$K$4,$F$25,0) -> 1 | CD70: 200.8135593 | CE70: =IF(CD70>0,IF(CD70>=100,$F$26,IF(CD70<100,$F$26/2)),0) -> 1 | CF70: =SUM(DU70) -> 1 | CG70: =IF(DY70>0,$F$28,0) -> 1 | CH70: =IF(DV70>0,$F$29,0) -> 0 | CI70: =IF(EA70=0,$F$30,0) -> 1 | CJ70: =SUM(BV70,BY70,CE70,BZ70,CC70,CF70,CG70,CH70,CI70) -> 8 | CK70: =+CJ70*$H$22 -> 2.666666667 | CL70: =SUM(AY70,BR70,CJ70) -> 38 | CM70: =SUM(AZ70,BS70,CK70) -> 12.66666667 | CN70: =IF(D70<($Z$13*$CN$28),1,IF(D70<(($Z$14+$Z$13)*$CN$28),2,IF(D70<(($Z$15+$Z$13+$Z$14)*$CN$28),3,4))) -> 1 | CO70: =VLOOKUP(A70,Taul1!$F$6:$G$953,2,FALSE) -> 2 | CQ70: =AR70+AV70+AX70+BA70+BC70+BD70+BF70+BG70+BH70+BI70+BJ70+BK70+BL70+BM70+BO70+BV70+BY70+BZ70+CF70+CI70 -> 33 | CR70: =AY70 -> 15 | CS70: =BA70+BC70+BD70+BF70+BG70+BH70+BI70+BJ70+BK70+BL70+BM70+BO70 -> 13 | CT70: =BV70+BY70+BZ70+CF70+CI70 -> 5 | CV70: https://www.google.com/maps/@62.24749665,25.17144789,3a,75y,90t/data=!3m3!1e1!3m1!2e0 | DA70: 5 | DB70: =SUM(CY70:DA70) -> 5 | DC70: 0 | DD70: 0 | DE70: 0 | DF70: 0 | DG70: 0 | DH70: 0 | DI70: 0 | DJ70: 0 | DK70: 0 | DL70: 0 | DN70: 1918.94 | DO70: 0 | DQ70: 18 | DR70: 1918.94 | DS70: =+IF(AA70>$K$8,$F$27/2,0) -> 1 | DT70: =+IF(AA70/Y70>1.5,$F$27/2,0) -> 0 | DU70: =SUM(DS70:DT70) -> 1 | DV70: 0 | DW70: 0 | DX70: 1 | DY70: =SUM(DW70:DX70) -> 1 | EA70: 0 | EB70: 2 | EG70: =IFERROR(VLOOKUP(A70,$EN$37:$EP$992,2,FALSE),"--") -> -- | EH70: =IF(EG70="--","--",IF(N70="LOPUT",IF(EG70="VÄHÄ","--> LOPUT",""),IF(N70="VÄHÄ",IF(EG70="LOPUT","-->VÄHÄ","")))) -> -- | EI70: =IFERROR(VLOOKUP(A70,$EN$37:$EP$992,3,FALSE),"--") -> -- | EJ70: =IFERROR(EI70-D70,"--") -> -- | EK70: =IFERROR(VLOOKUP(A70,$EN$37:$EQ$992,4,FALSE),"--") -> -- | EL70: =IFERROR(EK70-K70,"--") -> -- | EN70: 636_2 | EO70: VÄHÄ | EP70: 52 | EQ70: 2
A71: =CONCATENATE(S71,"_",T71) -> 4_232 | B71: 1 | D71: =RANK(CM71,$CM$37:$CM$984) -> 35 | E71: 35 | F71: =E71-D71 -> 0 | G71: =CM71 -> 12.66666667 | H71: =AZ71 -> 5 | I71: =BS71 -> 5.333333333 | J71: =CK71 -> 2.333333333 | K71: =CN71 -> 1 | L71: =B71-K71 -> 0 | M71: =HYPERLINK(CV71,"Gmaps") -> Gmaps | N71: =IF(Y71>$K$6,"LOPUT","VÄHÄ") -> LOPUT | O71: =IF(S71<40,"Valta",IF(S71<100,"Kanta",IF(S71<1000,"Seutu",IF(S71>999,"Yhdys")))) -> Valta | P71: Vaajakoskentie | Q71: Jyväskylä | S71: 4 | T71: 232 | U71: 0 | V71: 232 | W71: 2452 | X71: 2452 | Y71: 18863.35155 | Z71: 1673.52814 | AA71: 22464 | AB71: 18471 (88 %), 21777 (12 %) | AC71: 50 (72 %), 60 (29 %) | AD71: Ise (100 %) | AE71: Kivimastiksiasfaltti (100 %) | AF71: PK1 (100 %) | AG71: 0 | AH71: 3 | AI71: 0.03648617244 | AJ71: 1124.595432 | AR71: =+IF(Y71>=$K$6,$F$5,($F$5/($K$6))*Y71) -> 9 | AS71: 643 | AV71: =+IF(AS71>=$L$15,$J$15,IF(AS71<($L$15),AS71*($J$15/($L$15)),)) -> 3 | AW71: 5721 | AX71: =+IF(AW71>=$L$11,$J$11,IF(AW71<($L$11),AW71*($J$11/($L$11)),)) -> 3 | AY71: =SUM(AR71,AV71,AX71) -> 15 | AZ71: =+AY71*$H$5 -> 5 | BA71: =+IF(Z71=0,0,IF(Z71>$K$7,$F$9,($F$9/$K$7)*Z71)) -> 8 | BB71: =+IF(AJ71=0,0,IF(AJ71>$L$6,$F$10,($F$10/$L$6)*AJ71)) -> 1 | BC71: =IF(DB71>0,$F$11,0) -> 3 | BD71: =IF(DC71>0,$F$12,0) -> 0 | BE71: =IF(DD71>0,$F$13,0) -> 0 | BF71: =IF(DF71>0,$F$14,0) -> 1 | BG71: =IF(DG71>0,$F$15,0) -> 0 | BH71: =+IF(DH71>=$L$23,$J$23,IF(DH71<($L$23),DH71*($J$23/($L$23)),)) -> 0 | BI71: =+IF(DI71>=$L$24,$J$24,IF(DI71<($L$24),DI71*($J$24/($L$24)),)) -> 0 | BJ71: =+IF(DJ71>=$L$25,$J$25,IF(DJ71<($L$25),DJ71*($J$25/($L$25)),)) -> 0 | BK71: =+IF(DK71>=$L$26,$J$26,IF(DK71<($L$26),DK71*($J$26/($L$26)),)) -> 0 | BL71: =IF(DL71>0,$F$17,0) -> 0 | BM71: =+IF(DO71>=$L$29,$J$29,IF(DO71<($L$29),DO71*($J$29/($L$29)),)) -> 2 | BO71: =IF(EB71>0,$F$19,0) -> 0 | BP71: 12.75824487 | BQ71: =+IF(BP71>=$L$19,$J$19,IF(BP71<($L$19),BP71*($J$19/($L$19)),)) -> 1 | BR71: =SUM(BA71+BC71+BD71+BE71+BB71+BF71+BL71+BH71+BI71+BJ71+BK71+BM71+BO71+BQ71+BG71) -> 16 | BS71: =+BR71*$H$9 -> 5.333333333 | BT71: =DN71 -> 2467.72 | BU71: =BT71/X71 -> 1.006411093 | BV71: =IF(BU71>0,IF(BU71>=$DA$28,$CY$28,IF(BU71<$DA$28,$CY$29,0)),0) -> 1 | BW71: 2467.72 | BX71: =BW71/X71 -> 1.006411093 | BY71: =IF(BX71,$F$23,0) -> 1 | BZ71: =IF(DQ71>0,$F$24,0) -> 0 | CA71: =DR71 -> 2073.96 | CB71: =CA71/X71 -> 0.8458238173 | CC71: =+IF(CB71>=$K$4,$F$25,0) -> 1 | CD71: 198.2022838 | CE71: =IF(CD71>0,IF(CD71>=100,$F$26,IF(CD71<100,$F$26/2)),0) -> 1 | CF71: =SUM(DU71) -> 1 | CG71: =IF(DY71>0,$F$28,0) -> 1 | CH71: =IF(DV71>0,$F$29,0) -> 0 | CI71: =IF(EA71=0,$F$30,0) -> 1 | CJ71: =SUM(BV71,BY71,CE71,BZ71,CC71,CF71,CG71,CH71,CI71) -> 7 | CK71: =+CJ71*$H$22 -> 2.333333333 | CL71: =SUM(AY71,BR71,CJ71) -> 38 | CM71: =SUM(AZ71,BS71,CK71) -> 12.66666667 | CN71: =IF(D71<($Z$13*$CN$28),1,IF(D71<(($Z$14+$Z$13)*$CN$28),2,IF(D71<(($Z$15+$Z$13+$Z$14)*$CN$28),3,4))) -> 1 | CO71: =VLOOKUP(A71,Taul1!$F$6:$G$953,2,FALSE) -> 2 | CQ71: =AR71+AV71+AX71+BA71+BC71+BD71+BF71+BG71+BH71+BI71+BJ71+BK71+BL71+BM71+BO71+BV71+BY71+BZ71+CF71+CI71 -> 33 | CR71: =AY71 -> 15 | CS71: =BA71+BC71+BD71+BF71+BG71+BH71+BI71+BJ71+BK71+BL71+BM71+BO71 -> 14 | CT71: =BV71+BY71+BZ71+CF71+CI71 -> 4 | CV71: https://www.google.com/maps/@62.23028598,25.90051283,3a,75y,90t/data=!3m3!1e1!3m1!2e0 | DA71: 8 | DB71: =SUM(CY71:DA71) -> 8 | DC71: 0 | DD71: 0 | DE71: 0 | DF71: 1 | DG71: 0 | DH71: 0 | DI71: 0 | DJ71: 0 | DK71: 0 | DL71: 0 | DN71: 2467.72 | DO71: 12 | DQ71: 0 | DR71: 2073.96 | DS71: =+IF(AA71>$K$8,$F$27/2,0) -> 1 | DT71: =+IF(AA71/Y71>1.5,$F$27/2,0) -> 0 | DU71: =SUM(DS71:DT71) -> 1 | DV71: 0 | DW71: 0 | DX71: 2 | DY71: =SUM(DW71:DX71) -> 2 | EA71: 0 | EB71: 0 | EG71: =IFERROR(VLOOKUP(A71,$EN$37:$EP$992,2,FALSE),"--") -> -- | EH71: =IF(EG71="--","--",IF(N71="LOPUT",IF(EG71="VÄHÄ","--> LOPUT",""),IF(N71="VÄHÄ",IF(EG71="LOPUT","-->VÄHÄ","")))) -> -- | EI71: =IFERROR(VLOOKUP(A71,$EN$37:$EP$992,3,FALSE),"--") -> -- | EJ71: =IFERROR(EI71-D71,"--") -> -- | EK71: =IFERROR(VLOOKUP(A71,$EN$37:$EQ$992,4,FALSE),"--") -> -- | EL71: =IFERROR(EK71-K71,"--") -> -- | EN71: 607_1 | EO71: VÄHÄ | EP71: 33 | EQ71: 2
A72: =CONCATENATE(S72,"_",T72) -> 23_216 | B72: 1 | D72: =RANK(CM72,$CM$37:$CM$984) -> 36 | E72: 36 | F72: =E72-D72 -> 0 | G72: =CM72 -> 12.64 | H72: =AZ72 -> 4 | I72: =BS72 -> 6.473333333 | J72: =CK72 -> 2.166666667 | K72: =CN72 -> 1 | L72: =B72-K72 -> 0 | M72: =HYPERLINK(CV72,"Gmaps") -> Gmaps | N72: =IF(Y72>$K$6,"LOPUT","VÄHÄ") -> LOPUT | O72: =IF(S72<40,"Valta",IF(S72<100,"Kanta",IF(S72<1000,"Seutu",IF(S72>999,"Yhdys")))) -> Valta | P72: Haapamäentie, Virtaintie | Q72: Keuruu | S72: 23 | T72: 216 | U72: 0 | V72: 216 | W72: 4279 | X72: 4279 | Y72: 1752.685207 | Z72: 159.6947885 | AA72: 2206 | AB72: 1164 (36 %), 2078 (64 %) | AC72: 80 (100 %) | AD72: Ib (100 %) | AE72: Asfalttibetoni (99 %) | AF72: PK1 (100 %) | AG72: 0 | AH72: 1 | AI72: 0.01247660636 | AJ72: 87.35592428 | AR72: =+IF(Y72>=$K$6,$F$5,($F$5/($K$6))*Y72) -> 9 | AS72: 0 | AV72: =+IF(AS72>=$L$15,$J$15,IF(AS72<($L$15),AS72*($J$15/($L$15)),)) -> 0 | AW72: 502 | AX72: =+IF(AW72>=$L$11,$J$11,IF(AW72<($L$11),AW72*($J$11/($L$11)),)) -> 3 | AY72: =SUM(AR72,AV72,AX72) -> 12 | AZ72: =+AY72*$H$5 -> 4 | BA72: =+IF(Z72=0,0,IF(Z72>$K$7,$F$9,($F$9/$K$7)*Z72)) -> 8 | BB72: =+IF(AJ72=0,0,IF(AJ72>$L$6,$F$10,($F$10/$L$6)*AJ72)) -> 1 | BC72: =IF(DB72>0,$F$11,0) -> 3 | BD72: =IF(DC72>0,$F$12,0) -> 0 | BE72: =IF(DD72>0,$F$13,0) -> 0 | BF72: =IF(DF72>0,$F$14,0) -> 1 | BG72: =IF(DG72>0,$F$15,0) -> 0 | BH72: =+IF(DH72>=$L$23,$J$23,IF(DH72<($L$23),DH72*($J$23/($L$23)),)) -> 0.5 | BI72: =+IF(DI72>=$L$24,$J$24,IF(DI72<($L$24),DI72*($J$24/($L$24)),)) -> 0.12 | BJ72: =+IF(DJ72>=$L$25,$J$25,IF(DJ72<($L$25),DJ72*($J$25/($L$25)),)) -> 0 | BK72: =+IF(DK72>=$L$26,$J$26,IF(DK72<($L$26),DK72*($J$26/($L$26)),)) -> 0 | BL72: =IF(DL72>0,$F$17,0) -> 2 | BM72: =+IF(DO72>=$L$29,$J$29,IF(DO72<($L$29),DO72*($J$29/($L$29)),)) -> 0.8 | BO72: =IF(EB72>0,$F$19,0) -> 2 | BP72: 12.73067945 | BQ72: =+IF(BP72>=$L$19,$J$19,IF(BP72<($L$19),BP72*($J$19/($L$19)),)) -> 1 | BR72: =SUM(BA72+BC72+BD72+BE72+BB72+BF72+BL72+BH72+BI72+BJ72+BK72+BM72+BO72+BQ72+BG72) -> 19.42 | BS72: =+BR72*$H$9 -> 6.473333333 | BT72: =DN72 -> 3687.62 | BU72: =BT72/X72 -> 0.8617948119 | BV72: =IF(BU72>0,IF(BU72>=$DA$28,$CY$28,IF(BU72<$DA$28,$CY$29,0)),0) -> 1 | BW72: 4217.42 | BX72: =BW72/X72 -> 0.9856087871 | BY72: =IF(BX72,$F$23,0) -> 1 | BZ72: =IF(DQ72>0,$F$24,0) -> 1 | CA72: =DR72 -> 2190.64 | CB72: =CA72/X72 -> 0.5119513905 | CC72: =+IF(CB72>=$K$4,$F$25,0) -> 1 | CD72: 90.83898107 | CE72: =IF(CD72>0,IF(CD72>=100,$F$26,IF(CD72<100,$F$26/2)),0) -> 0.5 | CF72: =SUM(DU72) -> 1 | CG72: =IF(DY72>0,$F$28,0) -> 0 | CH72: =IF(DV72>0,$F$29,0) -> 0 | CI72: =IF(EA72=0,$F$30,0) -> 1 | CJ72: =SUM(BV72,BY72,CE72,BZ72,CC72,CF72,CG72,CH72,CI72) -> 6.5 | CK72: =+CJ72*$H$22 -> 2.166666667 | CL72: =SUM(AY72,BR72,CJ72) -> 37.92 | CM72: =SUM(AZ72,BS72,CK72) -> 12.64 | CN72: =IF(D72<($Z$13*$CN$28),1,IF(D72<(($Z$14+$Z$13)*$CN$28),2,IF(D72<(($Z$15+$Z$13+$Z$14)*$CN$28),3,4))) -> 1 | CO72: =VLOOKUP(A72,Taul1!$F$6:$G$953,2,FALSE) -> 2 | CQ72: =AR72+AV72+AX72+BA72+BC72+BD72+BF72+BG72+BH72+BI72+BJ72+BK72+BL72+BM72+BO72+BV72+BY72+BZ72+CF72+CI72 -> 34.42 | CR72: =AY72 -> 12 | CS72: =BA72+BC72+BD72+BF72+BG72+BH72+BI72+BJ72+BK72+BL72+BM72+BO72 -> 17.42 | CT72: =BV72+BY72+BZ72+CF72+CI72 -> 5 | CV72: https://www.google.com/maps/@62.25836345,24.42746542,3a,75y,90t/data=!3m3!1e1!3m1!2e0 | DA72: 2 | DB72: =SUM(CY72:DA72) -> 2 | DC72: 0 | DD72: 0 | DE72: 0 | DF72: 25 | DG72: 0 | DH72: 102 | DI72: 24 | DJ72: 0 | DK72: 0 | DL72: 1 | DN72: 3687.62 | DO72: 2 | DQ72: 3 | DR72: 2190.64 | DS72: =+IF(AA72>$K$8,$F$27/2,0) -> 1 | DT72: =+IF(AA72/Y72>1.5,$F$27/2,0) -> 0 | DU72: =SUM(DS72:DT72) -> 1 | DV72: 0 | DW72: 0 | DX72: 0 | DY72: =SUM(DW72:DX72) -> 0 | EA72: 0 | EB72: 1 | EG72: =IFERROR(VLOOKUP(A72,$EN$37:$EP$992,2,FALSE),"--") -> -- | EH72: =IF(EG72="--","--",IF(N72="LOPUT",IF(EG72="VÄHÄ","--> LOPUT",""),IF(N72="VÄHÄ",IF(EG72="LOPUT","-->VÄHÄ","")))) -> -- | EI72: =IFERROR(VLOOKUP(A72,$EN$37:$EP$992,3,FALSE),"--") -> -- | EJ72: =IFERROR(EI72-D72,"--") -> -- | EK72: =IFERROR(VLOOKUP(A72,$EN$37:$EQ$992,4,FALSE),"--") -> -- | EL72: =IFERROR(EK72-K72,"--") -> -- | EN72: 659_1 | EO72: VÄHÄ | EP72: 34 | EQ72: 2
A73: =CONCATENATE(S73,"_",T73) -> 637_2 | B73: 1 | D73: =RANK(CM73,$CM$37:$CM$984) -> 37 | E73: 37 | F73: =E73-D73 -> 0 | G73: =CM73 -> 12.62097189 | H73: =AZ73 -> 5 | I73: =BS73 -> 5.120971891 | J73: =CK73 -> 2.5 | K73: =CN73 -> 1 | L73: =B73-K73 -> 0 | M73: =HYPERLINK(CV73,"Gmaps") -> Gmaps | N73: =IF(Y73>$K$6,"LOPUT","VÄHÄ") -> LOPUT | O73: =IF(S73<40,"Valta",IF(S73<100,"Kanta",IF(S73<1000,"Seutu",IF(S73>999,"Yhdys")))) -> Seutu | P73: Jyväskyläntie, Laukaantie | Q73: Jyväskylä, Laukaa | S73: 637 | T73: 2 | U73: 0 | V73: 2 | W73: 5043 | X73: 5043 | Y73: 10329 | Z73: 645 | AA73: 11137 | AB73: 10329 (100 %) | AC73: 50 (3 %), 60 (4 %), 80 (93 %) | AD73: Is (100 %) | AE73: Asfalttibetoni (1 %), Kivimastiksiasfaltti (91 %) | AF73: PK2 (100 %) | AG73: 5 | AH73: 12 | AI73: 0.02409638554 | AJ73: 244 | AR73: =+IF(Y73>=$K$6,$F$5,($F$5/($K$6))*Y73) -> 9 | AS73: 192 | AV73: =+IF(AS73>=$L$15,$J$15,IF(AS73<($L$15),AS73*($J$15/($L$15)),)) -> 3 | AW73: 4057 | AX73: =+IF(AW73>=$L$11,$J$11,IF(AW73<($L$11),AW73*($J$11/($L$11)),)) -> 3 | AY73: =SUM(AR73,AV73,AX73) -> 15 | AZ73: =+AY73*$H$5 -> 5 | BA73: =+IF(Z73=0,0,IF(Z73>$K$7,$F$9,($F$9/$K$7)*Z73)) -> 8 | BB73: =+IF(AJ73=0,0,IF(AJ73>$L$6,$F$10,($F$10/$L$6)*AJ73)) -> 1 | BC73: =IF(DB73>0,$F$11,0) -> 0 | BD73: =IF(DC73>0,$F$12,0) -> 1 | BE73: =IF(DD73>0,$F$13,0) -> 0 | BF73: =IF(DF73>0,$F$14,0) -> 1 | BG73: =IF(DG73>0,$F$15,0) -> 0 | BH73: =+IF(DH73>=$L$23,$J$23,IF(DH73<($L$23),DH73*($J$23/($L$23)),)) -> 0 | BI73: =+IF(DI73>=$L$24,$J$24,IF(DI73<($L$24),DI73*($J$24/($L$24)),)) -> 0.085 | BJ73: =+IF(DJ73>=$L$25,$J$25,IF(DJ73<($L$25),DJ73*($J$25/($L$25)),)) -> 0 | BK73: =+IF(DK73>=$L$26,$J$26,IF(DK73<($L$26),DK73*($J$26/($L$26)),)) -> 0 | BL73: =IF(DL73>0,$F$17,0) -> 2 | BM73: =+IF(DO73>=$L$29,$J$29,IF(DO73<($L$29),DO73*($J$29/($L$29)),)) -> 0 | BO73: =IF(EB73>0,$F$19,0) -> 2 | BP73: 2.779156722 | BQ73: =+IF(BP73>=$L$19,$J$19,IF(BP73<($L$19),BP73*($J$19/($L$19)),)) -> 0.2779156722 | BR73: =SUM(BA73+BC73+BD73+BE73+BB73+BF73+BL73+BH73+BI73+BJ73+BK73+BM73+BO73+BQ73+BG73) -> 15.36291567 | BS73: =+BR73*$H$9 -> 5.120971891 | BT73: =DN73 -> 2380.29 | BU73: =BT73/X73 -> 0.4719988102 | BV73: =IF(BU73>0,IF(BU73>=$DA$28,$CY$28,IF(BU73<$DA$28,$CY$29,0)),0) -> 0.5 | BW73: 1885.64 | BX73: =BW73/X73 -> 0.3739123538 | BY73: =IF(BX73,$F$23,0) -> 1 | BZ73: =IF(DQ73>0,$F$24,0) -> 1 | CA73: =DR73 -> 3854.84 | CB73: =CA73/X73 -> 0.7643942098 | CC73: =+IF(CB73>=$K$4,$F$25,0) -> 1 | CD73: 142.22209 | CE73: =IF(CD73>0,IF(CD73>=100,$F$26,IF(CD73<100,$F$26/2)),0) -> 1 | CF73: =SUM(DU73) -> 1 | CG73: =IF(DY73>0,$F$28,0) -> 1 | CH73: =IF(DV73>0,$F$29,0) -> 0 | CI73: =IF(EA73=0,$F$30,0) -> 1 | CJ73: =SUM(BV73,BY73,CE73,BZ73,CC73,CF73,CG73,CH73,CI73) -> 7.5 | CK73: =+CJ73*$H$22 -> 2.5 | CL73: =SUM(AY73,BR73,CJ73) -> 37.86291567 | CM73: =SUM(AZ73,BS73,CK73) -> 12.62097189 | CN73: =IF(D73<($Z$13*$CN$28),1,IF(D73<(($Z$14+$Z$13)*$CN$28),2,IF(D73<(($Z$15+$Z$13+$Z$14)*$CN$28),3,4))) -> 1 | CO73: =VLOOKUP(A73,Taul1!$F$6:$G$953,2,FALSE) -> 1 | CQ73: =AR73+AV73+AX73+BA73+BC73+BD73+BF73+BG73+BH73+BI73+BJ73+BK73+BL73+BM73+BO73+BV73+BY73+BZ73+CF73+CI73 -> 33.585 | CR73: =AY73 -> 15 | CS73: =BA73+BC73+BD73+BF73+BG73+BH73+BI73+BJ73+BK73+BL73+BM73+BO73 -> 14.085 | CT73: =BV73+BY73+BZ73+CF73+CI73 -> 4.5 | CV73: https://www.google.com/maps/@62.29331499,25.81329752,3a,75y,90t/data=!3m3!1e1!3m1!2e0 | DA73: 0 | DB73: =SUM(CY73:DA73) -> 0 | DC73: 3 | DD73: 0 | DE73: 0 | DF73: 1 | DG73: 0 | DH73: 0 | DI73: 17 | DJ73: 0 | DK73: 0 | DL73: 1 | DN73: 2380.29 | DO73: 0 | DQ73: 18 | DR73: 3854.84 | DS73: =+IF(AA73>$K$8,$F$27/2,0) -> 1 | DT73: =+IF(AA73/Y73>1.5,$F$27/2,0) -> 0 | DU73: =SUM(DS73:DT73) -> 1 | DV73: 0 | DW73: 0 | DX73: 1 | DY73: =SUM(DW73:DX73) -> 1 | EA73: 0 | EB73: 1 | EG73: =IFERROR(VLOOKUP(A73,$EN$37:$EP$992,2,FALSE),"--") -> LOPUT | EH73: =IF(EG73="--","--",IF(N73="LOPUT",IF(EG73="VÄHÄ","--> LOPUT",""),IF(N73="VÄHÄ",IF(EG73="LOPUT","-->VÄHÄ","")))) ->  | EI73: =IFERROR(VLOOKUP(A73,$EN$37:$EP$992,3,FALSE),"--") -> 14 | EJ73: =IFERROR(EI73-D73,"--") -> -23 | EK73: =IFERROR(VLOOKUP(A73,$EN$37:$EQ$992,4,FALSE),"--") -> 1 | EL73: =IFERROR(EK73-K73,"--") -> 0 | EN73: 16542_1 | EO73: VÄHÄ | EP73: 35 | EQ73: 2
A74: =CONCATENATE(S74,"_",T74) -> 69_1 | B74: 1 | D74: =RANK(CM74,$CM$37:$CM$984) -> 38 | E74: 38 | F74: =E74-D74 -> 0 | G74: =CM74 -> 12.61666667 | H74: =AZ74 -> 5 | I74: =BS74 -> 5.783333333 | J74: =CK74 -> 1.833333333 | K74: =CN74 -> 1 | L74: =B74-K74 -> 0 | M74: =HYPERLINK(CV74,"Gmaps") -> Gmaps | N74: =IF(Y74>$K$6,"LOPUT","VÄHÄ") -> LOPUT | O74: =IF(S74<40,"Valta",IF(S74<100,"Kanta",IF(S74<1000,"Seutu",IF(S74>999,"Yhdys")))) -> Kanta | P74: Suonenjoentie | Q74: Äänekoski | S74: 69 | T74: 1 | U74: 0 | V74: 1 | W74: 4825 | X74: 4825 | Y74: 2443 | Z74: 257 | AA74: 2998 | AB74: 2443 (100 %) | AC74: 50 (9 %), 80 (91 %) | AD74: Is (100 %) | AE74: Asfalttibetoni (100 %) | AF74: PK2 (100 %) | AG74: 0 | AH74: 5 | AI74: 0.2800560112 | AJ74: 168 | AR74: =+IF(Y74>=$K$6,$F$5,($F$5/($K$6))*Y74) -> 9 | AS74: 73 | AV74: =+IF(AS74>=$L$15,$J$15,IF(AS74<($L$15),AS74*($J$15/($L$15)),)) -> 3 | AW74: 1455 | AX74: =+IF(AW74>=$L$11,$J$11,IF(AW74<($L$11),AW74*($J$11/($L$11)),)) -> 3 | AY74: =SUM(AR74,AV74,AX74) -> 15 | AZ74: =+AY74*$H$5 -> 5 | BA74: =+IF(Z74=0,0,IF(Z74>$K$7,$F$9,($F$9/$K$7)*Z74)) -> 8 | BB74: =+IF(AJ74=0,0,IF(AJ74>$L$6,$F$10,($F$10/$L$6)*AJ74)) -> 1 | BC74: =IF(DB74>0,$F$11,0) -> 3 | BD74: =IF(DC74>0,$F$12,0) -> 0 | BE74: =IF(DD74>0,$F$13,0) -> 1 | BF74: =IF(DF74>0,$F$14,0) -> 1 | BG74: =IF(DG74>0,$F$15,0) -> 0 | BH74: =+IF(DH74>=$L$23,$J$23,IF(DH74<($L$23),DH74*($J$23/($L$23)),)) -> 0.3 | BI74: =+IF(DI74>=$L$24,$J$24,IF(DI74<($L$24),DI74*($J$24/($L$24)),)) -> 0.05 | BJ74: =+IF(DJ74>=$L$25,$J$25,IF(DJ74<($L$25),DJ74*($J$25/($L$25)),)) -> 0 | BK74: =+IF(DK74>=$L$26,$J$26,IF(DK74<($L$26),DK74*($J$26/($L$26)),)) -> 0 | BL74: =IF(DL74>0,$F$17,0) -> 0 | BM74: =+IF(DO74>=$L$29,$J$29,IF(DO74<($L$29),DO74*($J$29/($L$29)),)) -> 0 | BO74: =IF(EB74>0,$F$19,0) -> 2 | BP74: 25.07399331 | BQ74: =+IF(BP74>=$L$19,$J$19,IF(BP74<($L$19),BP74*($J$19/($L$19)),)) -> 1 | BR74: =SUM(BA74+BC74+BD74+BE74+BB74+BF74+BL74+BH74+BI74+BJ74+BK74+BM74+BO74+BQ74+BG74) -> 17.35 | BS74: =+BR74*$H$9 -> 5.783333333 | BT74: =DN74 -> 4818.02 | BU74: =BT74/X74 -> 0.9985533679 | BV74: =IF(BU74>0,IF(BU74>=$DA$28,$CY$28,IF(BU74<$DA$28,$CY$29,0)),0) -> 1 | BW74: 4818.02 | BX74: =BW74/X74 -> 0.9985533679 | BY74: =IF(BX74,$F$23,0) -> 1 | BZ74: =IF(DQ74>0,$F$24,0) -> 1 | CA74: =DR74 -> 955.215 | CB74: =CA74/X74 -> 0.1979720207 | CC74: =+IF(CB74>=$K$4,$F$25,0) -> 0 | CD74: 32.97409326 | CE74: =IF(CD74>0,IF(CD74>=100,$F$26,IF(CD74<100,$F$26/2)),0) -> 0.5 | CF74: =SUM(DU74) -> 1 | CG74: =IF(DY74>0,$F$28,0) -> 0 | CH74: =IF(DV74>0,$F$29,0) -> 0 | CI74: =IF(EA74=0,$F$30,0) -> 1 | CJ74: =SUM(BV74,BY74,CE74,BZ74,CC74,CF74,CG74,CH74,CI74) -> 5.5 | CK74: =+CJ74*$H$22 -> 1.833333333 | CL74: =SUM(AY74,BR74,CJ74) -> 37.85 | CM74: =SUM(AZ74,BS74,CK74) -> 12.61666667 | CN74: =IF(D74<($Z$13*$CN$28),1,IF(D74<(($Z$14+$Z$13)*$CN$28),2,IF(D74<(($Z$15+$Z$13+$Z$14)*$CN$28),3,4))) -> 1 | CO74: =VLOOKUP(A74,Taul1!$F$6:$G$953,2,FALSE) -> 1 | CQ74: =AR74+AV74+AX74+BA74+BC74+BD74+BF74+BG74+BH74+BI74+BJ74+BK74+BL74+BM74+BO74+BV74+BY74+BZ74+CF74+CI74 -> 34.35 | CR74: =AY74 -> 15 | CS74: =BA74+BC74+BD74+BF74+BG74+BH74+BI74+BJ74+BK74+BL74+BM74+BO74 -> 14.35 | CT74: =BV74+BY74+BZ74+CF74+CI74 -> 5 | CV74: https://www.google.com/maps/@62.51613835,25.68619566,3a,75y,90t/data=!3m3!1e1!3m1!2e0 | DA74: 1 | DB74: =SUM(CY74:DA74) -> 1 | DC74: 0 | DD74: 5 | DE74: 0 | DF74: 3 | DG74: 0 | DH74: 60 | DI74: 10 | DJ74: 0 | DK74: 0 | DL74: 0 | DN74: 4818.02 | DO74: 0 | DQ74: 17 | DR74: 955.215 | DS74: =+IF(AA74>$K$8,$F$27/2,0) -> 1 | DT74: =+IF(AA74/Y74>1.5,$F$27/2,0) -> 0 | DU74: =SUM(DS74:DT74) -> 1 | DV74: 0 | DW74: 0 | DX74: 0 | DY74: =SUM(DW74:DX74) -> 0 | EA74: 0 | EB74: 1 | EG74: =IFERROR(VLOOKUP(A74,$EN$37:$EP$992,2,FALSE),"--") -> LOPUT | EH74: =IF(EG74="--","--",IF(N74="LOPUT",IF(EG74="VÄHÄ","--> LOPUT",""),IF(N74="VÄHÄ",IF(EG74="LOPUT","-->VÄHÄ","")))) ->  | EI74: =IFERROR(VLOOKUP(A74,$EN$37:$EP$992,3,FALSE),"--") -> 81 | EJ74: =IFERROR(EI74-D74,"--") -> 43 | EK74: =IFERROR(VLOOKUP(A74,$EN$37:$EQ$992,4,FALSE),"--") -> 1 | EL74: =IFERROR(EK74-K74,"--") -> 0 | EN74: 6411_2 | EO74: VÄHÄ | EP74: 36 | EQ74: 2
A75: =CONCATENATE(S75,"_",T75) -> 4_227 | B75: 1 | D75: =RANK(CM75,$CM$37:$CM$984) -> 39 | E75: 39 | F75: =E75-D75 -> 0 | G75: =CM75 -> 12.50369987 | H75: =AZ75 -> 5 | I75: =BS75 -> 6.003699869 | J75: =CK75 -> 1.5 | K75: =CN75 -> 1 | L75: =B75-K75 -> 0 | M75: =HYPERLINK(CV75,"Gmaps") -> Gmaps | N75: =IF(Y75>$K$6,"LOPUT","VÄHÄ") -> LOPUT | O75: =IF(S75<40,"Valta",IF(S75<100,"Kanta",IF(S75<1000,"Seutu",IF(S75>999,"Yhdys")))) -> Valta | P75: Leivonmäentie, Valtatie | Q75: Joutsa, Toivakka | S75: 4 | T75: 227 | U75: 0 | V75: 227 | W75: 5030 | X75: 5030 | Y75: 5878.140358 | Z75: 929.4224652 | AA75: 7421 | AB75: 5614 (4 %), 5888 (96 %) | AC75: 100 (85 %), 80 (15 %) | AD75: Ise (100 %) | AE75: Kivimastiksiasfaltti (100 %) | AF75: PK1 (100 %) | AG75: 3 | AH75: 20 | AI75: 0.01734304544 | AJ75: 682.373161 | AR75: =+IF(Y75>=$K$6,$F$5,($F$5/($K$6))*Y75) -> 9 | AS75: 154 | AV75: =+IF(AS75>=$L$15,$J$15,IF(AS75<($L$15),AS75*($J$15/($L$15)),)) -> 3 | AW75: 867 | AX75: =+IF(AW75>=$L$11,$J$11,IF(AW75<($L$11),AW75*($J$11/($L$11)),)) -> 3 | AY75: =SUM(AR75,AV75,AX75) -> 15 | AZ75: =+AY75*$H$5 -> 5 | BA75: =+IF(Z75=0,0,IF(Z75>$K$7,$F$9,($F$9/$K$7)*Z75)) -> 8 | BB75: =+IF(AJ75=0,0,IF(AJ75>$L$6,$F$10,($F$10/$L$6)*AJ75)) -> 1 | BC75: =IF(DB75>0,$F$11,0) -> 3 | BD75: =IF(DC75>0,$F$12,0) -> 0 | BE75: =IF(DD75>0,$F$13,0) -> 1 | BF75: =IF(DF75>0,$F$14,0) -> 1 | BG75: =IF(DG75>0,$F$15,0) -> 1 | BH75: =+IF(DH75>=$L$23,$J$23,IF(DH75<($L$23),DH75*($J$23/($L$23)),)) -> 0.425 | BI75: =+IF(DI75>=$L$24,$J$24,IF(DI75<($L$24),DI75*($J$24/($L$24)),)) -> 0.02 | BJ75: =+IF(DJ75>=$L$25,$J$25,IF(DJ75<($L$25),DJ75*($J$25/($L$25)),)) -> 0 | BK75: =+IF(DK75>=$L$26,$J$26,IF(DK75<($L$26),DK75*($J$26/($L$26)),)) -> 0 | BL75: =IF(DL75>0,$F$17,0) -> 0 | BM75: =+IF(DO75>=$L$29,$J$29,IF(DO75<($L$29),DO75*($J$29/($L$29)),)) -> 0 | BO75: =IF(EB75>0,$F$19,0) -> 2 | BP75: 5.66099606 | BQ75: =+IF(BP75>=$L$19,$J$19,IF(BP75<($L$19),BP75*($J$19/($L$19)),)) -> 0.566099606 | BR75: =SUM(BA75+BC75+BD75+BE75+BB75+BF75+BL75+BH75+BI75+BJ75+BK75+BM75+BO75+BQ75+BG75) -> 18.01109961 | BS75: =+BR75*$H$9 -> 6.003699869 | BT75: =DN75 -> 0 | BU75: =BT75/X75 -> 0 | BV75: =IF(BU75>0,IF(BU75>=$DA$28,$CY$28,IF(BU75<$DA$28,$CY$29,0)),0) -> 0 | BW75: 5029.2 | BX75: =BW75/X75 -> 0.9998409543 | BY75: =IF(BX75,$F$23,0) -> 1 | BZ75: =IF(DQ75>0,$F$24,0) -> 1 | CA75: =DR75 -> 0 | CB75: =CA75/X75 -> 0 | CC75: =+IF(CB75>=$K$4,$F$25,0) -> 0 | CD75: 4.96222664 | CE75: =IF(CD75>0,IF(CD75>=100,$F$26,IF(CD75<100,$F$26/2)),0) -> 0.5 | CF75: =SUM(DU75) -> 1 | CG75: =IF(DY75>0,$F$28,0) -> 0 | CH75: =IF(DV75>0,$F$29,0) -> 0 | CI75: =IF(EA75=0,$F$30,0) -> 1 | CJ75: =SUM(BV75,BY75,CE75,BZ75,CC75,CF75,CG75,CH75,CI75) -> 4.5 | CK75: =+CJ75*$H$22 -> 1.5 | CL75: =SUM(AY75,BR75,CJ75) -> 37.51109961 | CM75: =SUM(AZ75,BS75,CK75) -> 12.50369987 | CN75: =IF(D75<($Z$13*$CN$28),1,IF(D75<(($Z$14+$Z$13)*$CN$28),2,IF(D75<(($Z$15+$Z$13+$Z$14)*$CN$28),3,4))) -> 1 | CO75: =VLOOKUP(A75,Taul1!$F$6:$G$953,2,FALSE) -> 2 | CQ75: =AR75+AV75+AX75+BA75+BC75+BD75+BF75+BG75+BH75+BI75+BJ75+BK75+BL75+BM75+BO75+BV75+BY75+BZ75+CF75+CI75 -> 34.445 | CR75: =AY75 -> 15 | CS75: =BA75+BC75+BD75+BF75+BG75+BH75+BI75+BJ75+BK75+BL75+BM75+BO75 -> 15.445 | CT75: =BV75+BY75+BZ75+CF75+CI75 -> 4 | CV75: https://www.google.com/maps/@62.02848448,26.04783188,3a,75y,90t/data=!3m3!1e1!3m1!2e0 | DA75: 4 | DB75: =SUM(CY75:DA75) -> 4 | DC75: 0 | DD75: 3 | DE75: 0 | DF75: 2 | DG75: 4 | DH75: 85 | DI75: 4 | DJ75: 0 | DK75: 0 | DL75: 0 | DN75: 0 | DO75: 0 | DQ75: 2 | DR75: 0 | DS75: =+IF(AA75>$K$8,$F$27/2,0) -> 1 | DT75: =+IF(AA75/Y75>1.5,$F$27/2,0) -> 0 | DU75: =SUM(DS75:DT75) -> 1 | DV75: 0 | DW75: 0 | DX75: 0 | DY75: =SUM(DW75:DX75) -> 0 | EA75: 0 | EB75: 2 | EG75: =IFERROR(VLOOKUP(A75,$EN$37:$EP$992,2,FALSE),"--") -> -- | EH75: =IF(EG75="--","--",IF(N75="LOPUT",IF(EG75="VÄHÄ","--> LOPUT",""),IF(N75="VÄHÄ",IF(EG75="LOPUT","-->VÄHÄ","")))) -> -- | EI75: =IFERROR(VLOOKUP(A75,$EN$37:$EP$992,3,FALSE),"--") -> -- | EJ75: =IFERROR(EI75-D75,"--") -> -- | EK75: =IFERROR(VLOOKUP(A75,$EN$37:$EQ$992,4,FALSE),"--") -> -- | EL75: =IFERROR(EK75-K75,"--") -> -- | EN75: 6046_4 | EO75: VÄHÄ | EP75: 37 | EQ75: 2
A76: =CONCATENATE(S76,"_",T76) -> 4_317 | B76: 1 | D76: =RANK(CM76,$CM$37:$CM$984) -> 40 | E76: 40 | F76: =E76-D76 -> 0 | G76: =CM76 -> 12.5 | H76: =AZ76 -> 5 | I76: =BS76 -> 6 | J76: =CK76 -> 1.5 | K76: =CN76 -> 1 | L76: =B76-K76 -> 0 | M76: =HYPERLINK(CV76,"Gmaps") -> Gmaps | N76: =IF(Y76>$K$6,"LOPUT","VÄHÄ") -> LOPUT | O76: =IF(S76<40,"Valta",IF(S76<100,"Kanta",IF(S76<1000,"Seutu",IF(S76>999,"Yhdys")))) -> Valta | P76: Äänekoskentie | Q76: Viitasaari | S76: 4 | T76: 317 | U76: 0 | V76: 317 | W76: 6524 | X76: 6524 | Y76: 4929.956775 | Z76: 820.0801655 | AA76: 6354 | AB76: 4759 (53 %), 5121 (47 %) | AC76: 100 (89 %), 80 (11 %) | AD76: Ise (100 %) | AE76: Kivimastiksiasfaltti (100 %) | AF76: PK1 (100 %) | AG76: 1 | AH76: 10 | AI76: 0.03056343737 | AJ76: 609.4155426 | AR76: =+IF(Y76>=$K$6,$F$5,($F$5/($K$6))*Y76) -> 9 | AS76: 66 | AV76: =+IF(AS76>=$L$15,$J$15,IF(AS76<($L$15),AS76*($J$15/($L$15)),)) -> 3 | AW76: 457 | AX76: =+IF(AW76>=$L$11,$J$11,IF(AW76<($L$11),AW76*($J$11/($L$11)),)) -> 3 | AY76: =SUM(AR76,AV76,AX76) -> 15 | AZ76: =+AY76*$H$5 -> 5 | BA76: =+IF(Z76=0,0,IF(Z76>$K$7,$F$9,($F$9/$K$7)*Z76)) -> 8 | BB76: =+IF(AJ76=0,0,IF(AJ76>$L$6,$F$10,($F$10/$L$6)*AJ76)) -> 1 | BC76: =IF(DB76>0,$F$11,0) -> 3 | BD76: =IF(DC76>0,$F$12,0) -> 0 | BE76: =IF(DD76>0,$F$13,0) -> 1 | BF76: =IF(DF76>0,$F$14,0) -> 1 | BG76: =IF(DG76>0,$F$15,0) -> 1 | BH76: =+IF(DH76>=$L$23,$J$23,IF(DH76<($L$23),DH76*($J$23/($L$23)),)) -> 0 | BI76: =+IF(DI76>=$L$24,$J$24,IF(DI76<($L$24),DI76*($J$24/($L$24)),)) -> 0 | BJ76: =+IF(DJ76>=$L$25,$J$25,IF(DJ76<($L$25),DJ76*($J$25/($L$25)),)) -> 0 | BK76: =+IF(DK76>=$L$26,$J$26,IF(DK76<($L$26),DK76*($J$26/($L$26)),)) -> 0 | BL76: =IF(DL76>0,$F$17,0) -> 2 | BM76: =+IF(DO76>=$L$29,$J$29,IF(DO76<($L$29),DO76*($J$29/($L$29)),)) -> 0 | BO76: =IF(EB76>0,$F$19,0) -> 0 | BP76: 36.28934044 | BQ76: =+IF(BP76>=$L$19,$J$19,IF(BP76<($L$19),BP76*($J$19/($L$19)),)) -> 1 | BR76: =SUM(BA76+BC76+BD76+BE76+BB76+BF76+BL76+BH76+BI76+BJ76+BK76+BM76+BO76+BQ76+BG76) -> 18 | BS76: =+BR76*$H$9 -> 6 | BT76: =DN76 -> 0 | BU76: =BT76/X76 -> 0 | BV76: =IF(BU76>0,IF(BU76>=$DA$28,$CY$28,IF(BU76<$DA$28,$CY$29,0)),0) -> 0 | BW76: 6520.67 | BX76: =BW76/X76 -> 0.9994895769 | BY76: =IF(BX76,$F$23,0) -> 1 | BZ76: =IF(DQ76>0,$F$24,0) -> 1 | CA76: =DR76 -> 0 | CB76: =CA76/X76 -> 0 | CC76: =+IF(CB76>=$K$4,$F$25,0) -> 0 | CD76: 0.7510729614 | CE76: =IF(CD76>0,IF(CD76>=100,$F$26,IF(CD76<100,$F$26/2)),0) -> 0.5 | CF76: =SUM(DU76) -> 1 | CG76: =IF(DY76>0,$F$28,0) -> 0 | CH76: =IF(DV76>0,$F$29,0) -> 0 | CI76: =IF(EA76=0,$F$30,0) -> 1 | CJ76: =SUM(BV76,BY76,CE76,BZ76,CC76,CF76,CG76,CH76,CI76) -> 4.5 | CK76: =+CJ76*$H$22 -> 1.5 | CL76: =SUM(AY76,BR76,CJ76) -> 37.5 | CM76: =SUM(AZ76,BS76,CK76) -> 12.5 | CN76: =IF(D76<($Z$13*$CN$28),1,IF(D76<(($Z$14+$Z$13)*$CN$28),2,IF(D76<(($Z$15+$Z$13+$Z$14)*$CN$28),3,4))) -> 1 | CO76: =VLOOKUP(A76,Taul1!$F$6:$G$953,2,FALSE) -> 2 | CQ76: =AR76+AV76+AX76+BA76+BC76+BD76+BF76+BG76+BH76+BI76+BJ76+BK76+BL76+BM76+BO76+BV76+BY76+BZ76+CF76+CI76 -> 34 | CR76: =AY76 -> 15 | CS76: =BA76+BC76+BD76+BF76+BG76+BH76+BI76+BJ76+BK76+BL76+BM76+BO76 -> 15 | CT76: =BV76+BY76+BZ76+CF76+CI76 -> 4 | CV76: https://www.google.com/maps/@62.98329523,25.82059089,3a,75y,90t/data=!3m3!1e1!3m1!2e0 | DA76: 1 | DB76: =SUM(CY76:DA76) -> 1 | DC76: 0 | DD76: 1 | DE76: 0 | DF76: 1 | DG76: 2 | DH76: 0 | DI76: 0 | DJ76: 0 | DK76: 0 | DL76: 1 | DN76: 0 | DO76: 0 | DQ76: 1 | DR76: 0 | DS76: =+IF(AA76>$K$8,$F$27/2,0) -> 1 | DT76: =+IF(AA76/Y76>1.5,$F$27/2,0) -> 0 | DU76: =SUM(DS76:DT76) -> 1 | DV76: 0 | DW76: 0 | DX76: 0 | DY76: =SUM(DW76:DX76) -> 0 | EA76: 0 | EB76: 0 | EG76: =IFERROR(VLOOKUP(A76,$EN$37:$EP$992,2,FALSE),"--") -> -- | EH76: =IF(EG76="--","--",IF(N76="LOPUT",IF(EG76="VÄHÄ","--> LOPUT",""),IF(N76="VÄHÄ",IF(EG76="LOPUT","-->VÄHÄ","")))) -> -- | EI76: =IFERROR(VLOOKUP(A76,$EN$37:$EP$992,3,FALSE),"--") -> -- | EJ76: =IFERROR(EI76-D76,"--") -> -- | EK76: =IFERROR(VLOOKUP(A76,$EN$37:$EQ$992,4,FALSE),"--") -> -- | EL76: =IFERROR(EK76-K76,"--") -> -- | EN76: 4421_8 | EO76: VÄHÄ | EP76: 39 | EQ76: 2
A77: =CONCATENATE(S77,"_",T77) -> 13_131 | B77: 1 | D77: =RANK(CM77,$CM$37:$CM$984) -> 41 | E77: 41 | F77: =E77-D77 -> 0 | G77: =CM77 -> 12.5 | H77: =AZ77 -> 5 | I77: =BS77 -> 6.333333333 | J77: =CK77 -> 1.166666667 | K77: =CN77 -> 1 | L77: =B77-K77 -> 0 | M77: =HYPERLINK(CV77,"Gmaps") -> Gmaps | N77: =IF(Y77>$K$6,"LOPUT","VÄHÄ") -> LOPUT | O77: =IF(S77<40,"Valta",IF(S77<100,"Kanta",IF(S77<1000,"Seutu",IF(S77>999,"Yhdys")))) -> Valta | P77: Kokkolantie | Q77: Saarijärvi | S77: 13 | T77: 131 | U77: 0 | V77: 131 | W77: 7533 | X77: 7533 | Y77: 2326 | Z77: 284 | AA77: 2734 | AB77: 2326 (100 %) | AC77: 80 (100 %) | AD77: Is (100 %) | AE77: Asfalttibetoni (100 %) | AF77: PK1 (100 %) | AG77: 1 | AH77: 6 | AI77: 0 | AJ77: 223 | AR77: =+IF(Y77>=$K$6,$F$5,($F$5/($K$6))*Y77) -> 9 | AS77: 26 | AV77: =+IF(AS77>=$L$15,$J$15,IF(AS77<($L$15),AS77*($J$15/($L$15)),)) -> 3 | AW77: 482 | AX77: =+IF(AW77>=$L$11,$J$11,IF(AW77<($L$11),AW77*($J$11/($L$11)),)) -> 3 | AY77: =SUM(AR77,AV77,AX77) -> 15 | AZ77: =+AY77*$H$5 -> 5 | BA77: =+IF(Z77=0,0,IF(Z77>$K$7,$F$9,($F$9/$K$7)*Z77)) -> 8 | BB77: =+IF(AJ77=0,0,IF(AJ77>$L$6,$F$10,($F$10/$L$6)*AJ77)) -> 1 | BC77: =IF(DB77>0,$F$11,0) -> 3 | BD77: =IF(DC77>0,$F$12,0) -> 1 | BE77: =IF(DD77>0,$F$13,0) -> 1 | BF77: =IF(DF77>0,$F$14,0) -> 1 | BG77: =IF(DG77>0,$F$15,0) -> 0 | BH77: =+IF(DH77>=$L$23,$J$23,IF(DH77<($L$23),DH77*($J$23/($L$23)),)) -> 0.5 | BI77: =+IF(DI77>=$L$24,$J$24,IF(DI77<($L$24),DI77*($J$24/($L$24)),)) -> 0 | BJ77: =+IF(DJ77>=$L$25,$J$25,IF(DJ77<($L$25),DJ77*($J$25/($L$25)),)) -> 0 | BK77: =+IF(DK77>=$L$26,$J$26,IF(DK77<($L$26),DK77*($J$26/($L$26)),)) -> 0.5 | BL77: =IF(DL77>0,$F$17,0) -> 0 | BM77: =+IF(DO77>=$L$29,$J$29,IF(DO77<($L$29),DO77*($J$29/($L$29)),)) -> 0 | BO77: =IF(EB77>0,$F$19,0) -> 2 | BP77: 15.44594225 | BQ77: =+IF(BP77>=$L$19,$J$19,IF(BP77<($L$19),BP77*($J$19/($L$19)),)) -> 1 | BR77: =SUM(BA77+BC77+BD77+BE77+BB77+BF77+BL77+BH77+BI77+BJ77+BK77+BM77+BO77+BQ77+BG77) -> 19 | BS77: =+BR77*$H$9 -> 6.333333333 | BT77: =DN77 -> 0 | BU77: =BT77/X77 -> 0 | BV77: =IF(BU77>0,IF(BU77>=$DA$28,$CY$28,IF(BU77<$DA$28,$CY$29,0)),0) -> 0 | BW77: 7546.45 | BX77: =BW77/X77 -> 1.001785477 | BY77: =IF(BX77,$F$23,0) -> 1 | BZ77: =IF(DQ77>0,$F$24,0) -> 0 | CA77: =DR77 -> 0 | CB77: =CA77/X77 -> 0 | CC77: =+IF(CB77>=$K$4,$F$25,0) -> 0 | CD77: 27.651666 | CE77: =IF(CD77>0,IF(CD77>=100,$F$26,IF(CD77<100,$F$26/2)),0) -> 0.5 | CF77: =SUM(DU77) -> 1 | CG77: =IF(DY77>0,$F$28,0) -> 0 | CH77: =IF(DV77>0,$F$29,0) -> 0 | CI77: =IF(EA77=0,$F$30,0) -> 1 | CJ77: =SUM(BV77,BY77,CE77,BZ77,CC77,CF77,CG77,CH77,CI77) -> 3.5 | CK77: =+CJ77*$H$22 -> 1.166666667 | CL77: =SUM(AY77,BR77,CJ77) -> 37.5 | CM77: =SUM(AZ77,BS77,CK77) -> 12.5 | CN77: =IF(D77<($Z$13*$CN$28),1,IF(D77<(($Z$14+$Z$13)*$CN$28),2,IF(D77<(($Z$15+$Z$13+$Z$14)*$CN$28),3,4))) -> 1 | CO77: =VLOOKUP(A77,Taul1!$F$6:$G$953,2,FALSE) -> 1 | CQ77: =AR77+AV77+AX77+BA77+BC77+BD77+BF77+BG77+BH77+BI77+BJ77+BK77+BL77+BM77+BO77+BV77+BY77+BZ77+CF77+CI77 -> 34 | CR77: =AY77 -> 15 | CS77: =BA77+BC77+BD77+BF77+BG77+BH77+BI77+BJ77+BK77+BL77+BM77+BO77 -> 16 | CT77: =BV77+BY77+BZ77+CF77+CI77 -> 3 | CV77: https://www.google.com/maps/@62.8125332,25.03549184,3a,75y,90t/data=!3m3!1e1!3m1!2e0 | DA77: 7 | DB77: =SUM(CY77:DA77) -> 7 | DC77: 1 | DD77: 1 | DE77: 1 | DF77: 1 | DG77: 0 | DH77: 156 | DI77: 0 | DJ77: 0 | DK77: 37648 | DL77: 0 | DN77: 0 | DO77: 0 | DQ77: 0 | DR77: 0 | DS77: =+IF(AA77>$K$8,$F$27/2,0) -> 1 | DT77: =+IF(AA77/Y77>1.5,$F$27/2,0) -> 0 | DU77: =SUM(DS77:DT77) -> 1 | DV77: 0 | DW77: 0 | DX77: 0 | DY77: =SUM(DW77:DX77) -> 0 | EA77: 0 | EB77: 1 | EG77: =IFERROR(VLOOKUP(A77,$EN$37:$EP$992,2,FALSE),"--") -> -- | EH77: =IF(EG77="--","--",IF(N77="LOPUT",IF(EG77="VÄHÄ","--> LOPUT",""),IF(N77="VÄHÄ",IF(EG77="LOPUT","-->VÄHÄ","")))) -> -- | EI77: =IFERROR(VLOOKUP(A77,$EN$37:$EP$992,3,FALSE),"--") -> -- | EJ77: =IFERROR(EI77-D77,"--") -> -- | EK77: =IFERROR(VLOOKUP(A77,$EN$37:$EQ$992,4,FALSE),"--") -> -- | EL77: =IFERROR(EK77-K77,"--") -> -- | EN77: 431_10 | EO77: VÄHÄ | EP77: 63 | EQ77: 2
A78: =CONCATENATE(S78,"_",T78) -> 627_11 | B78: 1 | D78: =RANK(CM78,$CM$37:$CM$984) -> 42 | E78: 42 | F78: =E78-D78 -> 0 | G78: =CM78 -> 12.45916667 | H78: =AZ78 -> 4.2325 | I78: =BS78 -> 5.893333333 | J78: =CK78 -> 2.333333333 | K78: =CN78 -> 1 | L78: =B78-K78 -> 0 | M78: =HYPERLINK(CV78,"Gmaps") -> Gmaps | N78: =IF(Y78>$K$6,"LOPUT","VÄHÄ") -> LOPUT | O78: =IF(S78<40,"Valta",IF(S78<100,"Kanta",IF(S78<1000,"Seutu",IF(S78>999,"Yhdys")))) -> Seutu | P78: Uuraistentie | Q78: Uurainen, Äänekoski | S78: 627 | T78: 11 | U78: 0 | V78: 11 | W78: 2659 | X78: 2659 | Y78: 1273 | Z78: 134 | AA78: 1782 | AB78: 1273 (100 %) | AC78: 40 (30 %), 50 (44 %), 60 (26 %) | AD78: Ib (100 %) | AE78: Asfalttibetoni (96 %) | AF78: PK2 (100 %) | AG78: 1 | AH78: 1 | AI78: 0.1880406168 | AJ78: 96 | AR78: =+IF(Y78>=$K$6,$F$5,($F$5/($K$6))*Y78) -> 9 | AS78: 8 | AV78: =+IF(AS78>=$L$15,$J$15,IF(AS78<($L$15),AS78*($J$15/($L$15)),)) -> 1.2 | AW78: 333 | AX78: =+IF(AW78>=$L$11,$J$11,IF(AW78<($L$11),AW78*($J$11/($L$11)),)) -> 2.4975 | AY78: =SUM(AR78,AV78,AX78) -> 12.6975 | AZ78: =+AY78*$H$5 -> 4.2325 | BA78: =+IF(Z78=0,0,IF(Z78>$K$7,$F$9,($F$9/$K$7)*Z78)) -> 8 | BB78: =+IF(AJ78=0,0,IF(AJ78>$L$6,$F$10,($F$10/$L$6)*AJ78)) -> 1 | BC78: =IF(DB78>0,$F$11,0) -> 0 | BD78: =IF(DC78>0,$F$12,0) -> 0 | BE78: =IF(DD78>0,$F$13,0) -> 1 | BF78: =IF(DF78>0,$F$14,0) -> 1 | BG78: =IF(DG78>0,$F$15,0) -> 1 | BH78: =+IF(DH78>=$L$23,$J$23,IF(DH78<($L$23),DH78*($J$23/($L$23)),)) -> 0.5 | BI78: =+IF(DI78>=$L$24,$J$24,IF(DI78<($L$24),DI78*($J$24/($L$24)),)) -> 0.18 | BJ78: =+IF(DJ78>=$L$25,$J$25,IF(DJ78<($L$25),DJ78*($J$25/($L$25)),)) -> 0 | BK78: =+IF(DK78>=$L$26,$J$26,IF(DK78<($L$26),DK78*($J$26/($L$26)),)) -> 0 | BL78: =IF(DL78>0,$F$17,0) -> 2 | BM78: =+IF(DO78>=$L$29,$J$29,IF(DO78<($L$29),DO78*($J$29/($L$29)),)) -> 0 | BO78: =IF(EB78>0,$F$19,0) -> 2 | BP78: 19.4594905 | BQ78: =+IF(BP78>=$L$19,$J$19,IF(BP78<($L$19),BP78*($J$19/($L$19)),)) -> 1 | BR78: =SUM(BA78+BC78+BD78+BE78+BB78+BF78+BL78+BH78+BI78+BJ78+BK78+BM78+BO78+BQ78+BG78) -> 17.68 | BS78: =+BR78*$H$9 -> 5.893333333 | BT78: =DN78 -> 1758.58 | BU78: =BT78/X78 -> 0.6613689357 | BV78: =IF(BU78>0,IF(BU78>=$DA$28,$CY$28,IF(BU78<$DA$28,$CY$29,0)),0) -> 1 | BW78: 2549.29 | BX78: =BW78/X78 -> 0.9587401279 | BY78: =IF(BX78,$F$23,0) -> 1 | BZ78: =IF(DQ78>0,$F$24,0) -> 1 | CA78: =DR78 -> 1917.4 | CB78: =CA78/X78 -> 0.7210981572 | CC78: =+IF(CB78>=$K$4,$F$25,0) -> 1 | CD78: 146.2955998 | CE78: =IF(CD78>0,IF(CD78>=100,$F$26,IF(CD78<100,$F$26/2)),0) -> 1 | CF78: =SUM(DU78) -> 1 | CG78: =IF(DY78>0,$F$28,0) -> 0 | CH78: =IF(DV78>0,$F$29,0) -> 0 | CI78: =IF(EA78=0,$F$30,0) -> 1 | CJ78: =SUM(BV78,BY78,CE78,BZ78,CC78,CF78,CG78,CH78,CI78) -> 7 | CK78: =+CJ78*$H$22 -> 2.333333333 | CL78: =SUM(AY78,BR78,CJ78) -> 37.3775 | CM78: =SUM(AZ78,BS78,CK78) -> 12.45916667 | CN78: =IF(D78<($Z$13*$CN$28),1,IF(D78<(($Z$14+$Z$13)*$CN$28),2,IF(D78<(($Z$15+$Z$13+$Z$14)*$CN$28),3,4))) -> 1 | CO78: =VLOOKUP(A78,Taul1!$F$6:$G$953,2,FALSE) -> 1 | CQ78: =AR78+AV78+AX78+BA78+BC78+BD78+BF78+BG78+BH78+BI78+BJ78+BK78+BL78+BM78+BO78+BV78+BY78+BZ78+CF78+CI78 -> 32.3775 | CR78: =AY78 -> 12.6975 | CS78: =BA78+BC78+BD78+BF78+BG78+BH78+BI78+BJ78+BK78+BL78+BM78+BO78 -> 14.68 | CT78: =BV78+BY78+BZ78+CF78+CI78 -> 5 | CV78: https://www.google.com/maps/@62.5311357,25.64856376,3a,75y,90t/data=!3m3!1e1!3m1!2e0 | DA78: 0 | DB78: =SUM(CY78:DA78) -> 0 | DC78: 0 | DD78: 3 | DE78: 0 | DF78: 3 | DG78: 4 | DH78: 484 | DI78: 36 | DJ78: 0 | DK78: 0 | DL78: 1 | DN78: 1758.58 | DO78: 0 | DQ78: 3 | DR78: 1917.4 | DS78: =+IF(AA78>$K$8,$F$27/2,0) -> 1 | DT78: =+IF(AA78/Y78>1.5,$F$27/2,0) -> 0 | DU78: =SUM(DS78:DT78) -> 1 | DV78: 0 | DW78: 0 | DX78: 0 | DY78: =SUM(DW78:DX78) -> 0 | EA78: 0 | EB78: 1 | EG78: =IFERROR(VLOOKUP(A78,$EN$37:$EP$992,2,FALSE),"--") -> LOPUT | EH78: =IF(EG78="--","--",IF(N78="LOPUT",IF(EG78="VÄHÄ","--> LOPUT",""),IF(N78="VÄHÄ",IF(EG78="LOPUT","-->VÄHÄ","")))) ->  | EI78: =IFERROR(VLOOKUP(A78,$EN$37:$EP$992,3,FALSE),"--") -> 76 | EJ78: =IFERROR(EI78-D78,"--") -> 34 | EK78: =IFERROR(VLOOKUP(A78,$EN$37:$EQ$992,4,FALSE),"--") -> 1 | EL78: =IFERROR(EK78-K78,"--") -> 0 | EN78: 16811_1 | EO78: VÄHÄ | EP78: 57 | EQ78: 2
A79: =CONCATENATE(S79,"_",T79) -> 630_1 | B79: 1 | D79: =RANK(CM79,$CM$37:$CM$984) -> 43 | E79: 43 | F79: =E79-D79 -> 0 | G79: =CM79 -> 12.45 | H79: =AZ79 -> 5 | I79: =BS79 -> 5.95 | J79: =CK79 -> 1.5 | K79: =CN79 -> 1 | L79: =B79-K79 -> 0 | M79: =HYPERLINK(CV79,"Gmaps") -> Gmaps | N79: =IF(Y79>$K$6,"LOPUT","VÄHÄ") -> LOPUT | O79: =IF(S79<40,"Valta",IF(S79<100,"Kanta",IF(S79<1000,"Seutu",IF(S79>999,"Yhdys")))) -> Seutu | P79: Kuikantie | Q79: Jyväskylä | S79: 630 | T79: 1 | U79: 0 | V79: 1 | W79: 2836 | X79: 2836 | Y79: 2024 | Z79: 62 | AA79: 2226 | AB79: 2024 (100 %) | AC79: 50 (18 %), 60 (12 %), 80 (70 %) | AD79: Ib (100 %) | AE79: Asfalttibetoni (100 %) | AF79: PK2 (100 %) | AG79: 0 | AH79: 1 | AI79: 0 | AJ79: 11 | AR79: =+IF(Y79>=$K$6,$F$5,($F$5/($K$6))*Y79) -> 9 | AS79: 81 | AV79: =+IF(AS79>=$L$15,$J$15,IF(AS79<($L$15),AS79*($J$15/($L$15)),)) -> 3 | AW79: 1358 | AX79: =+IF(AW79>=$L$11,$J$11,IF(AW79<($L$11),AW79*($J$11/($L$11)),)) -> 3 | AY79: =SUM(AR79,AV79,AX79) -> 15 | AZ79: =+AY79*$H$5 -> 5 | BA79: =+IF(Z79=0,0,IF(Z79>$K$7,$F$9,($F$9/$K$7)*Z79)) -> 8 | BB79: =+IF(AJ79=0,0,IF(AJ79>$L$6,$F$10,($F$10/$L$6)*AJ79)) -> 0.55 | BC79: =IF(DB79>0,$F$11,0) -> 3 | BD79: =IF(DC79>0,$F$12,0) -> 0 | BE79: =IF(DD79>0,$F$13,0) -> 1 | BF79: =IF(DF79>0,$F$14,0) -> 1 | BG79: =IF(DG79>0,$F$15,0) -> 1 | BH79: =+IF(DH79>=$L$23,$J$23,IF(DH79<($L$23),DH79*($J$23/($L$23)),)) -> 0.5 | BI79: =+IF(DI79>=$L$24,$J$24,IF(DI79<($L$24),DI79*($J$24/($L$24)),)) -> 0 | BJ79: =+IF(DJ79>=$L$25,$J$25,IF(DJ79<($L$25),DJ79*($J$25/($L$25)),)) -> 0 | BK79: =+IF(DK79>=$L$26,$J$26,IF(DK79<($L$26),DK79*($J$26/($L$26)),)) -> 0 | BL79: =IF(DL79>0,$F$17,0) -> 0 | BM79: =+IF(DO79>=$L$29,$J$29,IF(DO79<($L$29),DO79*($J$29/($L$29)),)) -> 0.8 | BO79: =IF(EB79>0,$F$19,0) -> 2 | BP79: 0 | BQ79: =+IF(BP79>=$L$19,$J$19,IF(BP79<($L$19),BP79*($J$19/($L$19)),)) -> 0 | BR79: =SUM(BA79+BC79+BD79+BE79+BB79+BF79+BL79+BH79+BI79+BJ79+BK79+BM79+BO79+BQ79+BG79) -> 17.85 | BS79: =+BR79*$H$9 -> 5.95 | BT79: =DN79 -> 2318.2 | BU79: =BT79/X79 -> 0.8174188999 | BV79: =IF(BU79>0,IF(BU79>=$DA$28,$CY$28,IF(BU79<$DA$28,$CY$29,0)),0) -> 1 | BW79: 0 | BX79: =BW79/X79 -> 0 | BY79: =IF(BX79,$F$23,0) -> 0 | BZ79: =IF(DQ79>0,$F$24,0) -> 1 | CA79: =DR79 -> 0 | CB79: =CA79/X79 -> 0 | CC79: =+IF(CB79>=$K$4,$F$25,0) -> 0 | CD79: 5.403385049 | CE79: =IF(CD79>0,IF(CD79>=100,$F$26,IF(CD79<100,$F$26/2)),0) -> 0.5 | CF79: =SUM(DU79) -> 1 | CG79: =IF(DY79>0,$F$28,0) -> 0 | CH79: =IF(DV79>0,$F$29,0) -> 0 | CI79: =IF(EA79=0,$F$30,0) -> 1 | CJ79: =SUM(BV79,BY79,CE79,BZ79,CC79,CF79,CG79,CH79,CI79) -> 4.5 | CK79: =+CJ79*$H$22 -> 1.5 | CL79: =SUM(AY79,BR79,CJ79) -> 37.35 | CM79: =SUM(AZ79,BS79,CK79) -> 12.45 | CN79: =IF(D79<($Z$13*$CN$28),1,IF(D79<(($Z$14+$Z$13)*$CN$28),2,IF(D79<(($Z$15+$Z$13+$Z$14)*$CN$28),3,4))) -> 1 | CO79: =VLOOKUP(A79,Taul1!$F$6:$G$953,2,FALSE) -> 1 | CQ79: =AR79+AV79+AX79+BA79+BC79+BD79+BF79+BG79+BH79+BI79+BJ79+BK79+BL79+BM79+BO79+BV79+BY79+BZ79+CF79+CI79 -> 35.3 | CR79: =AY79 -> 15 | CS79: =BA79+BC79+BD79+BF79+BG79+BH79+BI79+BJ79+BK79+BL79+BM79+BO79 -> 16.3 | CT79: =BV79+BY79+BZ79+CF79+CI79 -> 4 | CV79: https://www.google.com/maps/@62.35504903,25.70694393,3a,75y,90t/data=!3m3!1e1!3m1!2e0 | DA79: 1 | DB79: =SUM(CY79:DA79) -> 1 | DC79: 0 | DD79: 3 | DE79: 0 | DF79: 14 | DG79: 6 | DH79: 149 | DI79: 0 | DJ79: 0 | DK79: 0 | DL79: 0 | DN79: 2318.2 | DO79: 2 | DQ79: 2 | DR79: 0 | DS79: =+IF(AA79>$K$8,$F$27/2,0) -> 1 | DT79: =+IF(AA79/Y79>1.5,$F$27/2,0) -> 0 | DU79: =SUM(DS79:DT79) -> 1 | DV79: 0 | DW79: 0 | DX79: 0 | DY79: =SUM(DW79:DX79) -> 0 | EA79: 0 | EB79: 1 | EG79: =IFERROR(VLOOKUP(A79,$EN$37:$EP$992,2,FALSE),"--") -> LOPUT | EH79: =IF(EG79="--","--",IF(N79="LOPUT",IF(EG79="VÄHÄ","--> LOPUT",""),IF(N79="VÄHÄ",IF(EG79="LOPUT","-->VÄHÄ","")))) ->  | EI79: =IFERROR(VLOOKUP(A79,$EN$37:$EP$992,3,FALSE),"--") -> 17 | EJ79: =IFERROR(EI79-D79,"--") -> -26 | EK79: =IFERROR(VLOOKUP(A79,$EN$37:$EQ$992,4,FALSE),"--") -> 1 | EL79: =IFERROR(EK79-K79,"--") -> 0 | EN79: 6134_13 | EO79: VÄHÄ | EP79: 38 | EQ79: 2
A80: =CONCATENATE(S80,"_",T80) -> 4_305 | B80: 1 | D80: =RANK(CM80,$CM$37:$CM$984) -> 44 | E80: 44 | F80: =E80-D80 -> 0 | G80: =CM80 -> 12.37166667 | H80: =AZ80 -> 5 | I80: =BS80 -> 5.538333333 | J80: =CK80 -> 1.833333333 | K80: =CN80 -> 1 | L80: =B80-K80 -> 0 | M80: =HYPERLINK(CV80,"Gmaps") -> Gmaps | N80: =IF(Y80>$K$6,"LOPUT","VÄHÄ") -> LOPUT | O80: =IF(S80<40,"Valta",IF(S80<100,"Kanta",IF(S80<1000,"Seutu",IF(S80>999,"Yhdys")))) -> Valta | P80: Nelostie | Q80: Laukaa | S80: 4 | T80: 305 | U80: 0 | V80: 305 | W80: 6080 | X80: 6080 | Y80: 10932 | Z80: 1155 | AA80: 12432 | AB80: 10932 (100 %) | AC80: 100 (11 %), 80 (89 %) | AD80: Ise (100 %) | AE80: Asfalttibetoni (68 %), Kivimastiksiasfaltti (32 %) | AF80: PK1 (100 %) | AG80: 8 | AH80: 15 | AI80: 0 | AJ80: 931 | AR80: =+IF(Y80>=$K$6,$F$5,($F$5/($K$6))*Y80) -> 9 | AS80: 133 | AV80: =+IF(AS80>=$L$15,$J$15,IF(AS80<($L$15),AS80*($J$15/($L$15)),)) -> 3 | AW80: 3468 | AX80: =+IF(AW80>=$L$11,$J$11,IF(AW80<($L$11),AW80*($J$11/($L$11)),)) -> 3 | AY80: =SUM(AR80,AV80,AX80) -> 15 | AZ80: =+AY80*$H$5 -> 5 | BA80: =+IF(Z80=0,0,IF(Z80>$K$7,$F$9,($F$9/$K$7)*Z80)) -> 8 | BB80: =+IF(AJ80=0,0,IF(AJ80>$L$6,$F$10,($F$10/$L$6)*AJ80)) -> 1 | BC80: =IF(DB80>0,$F$11,0) -> 3 | BD80: =IF(DC80>0,$F$12,0) -> 0 | BE80: =IF(DD80>0,$F$13,0) -> 1 | BF80: =IF(DF80>0,$F$14,0) -> 1 | BG80: =IF(DG80>0,$F$15,0) -> 1 | BH80: =+IF(DH80>=$L$23,$J$23,IF(DH80<($L$23),DH80*($J$23/($L$23)),)) -> 0.5 | BI80: =+IF(DI80>=$L$24,$J$24,IF(DI80<($L$24),DI80*($J$24/($L$24)),)) -> 0.115 | BJ80: =+IF(DJ80>=$L$25,$J$25,IF(DJ80<($L$25),DJ80*($J$25/($L$25)),)) -> 0 | BK80: =+IF(DK80>=$L$26,$J$26,IF(DK80<($L$26),DK80*($J$26/($L$26)),)) -> 0 | BL80: =IF(DL80>0,$F$17,0) -> 0 | BM80: =+IF(DO80>=$L$29,$J$29,IF(DO80<($L$29),DO80*($J$29/($L$29)),)) -> 0 | BO80: =IF(EB80>0,$F$19,0) -> 0 | BP80: 10.10967771 | BQ80: =+IF(BP80>=$L$19,$J$19,IF(BP80<($L$19),BP80*($J$19/($L$19)),)) -> 1 | BR80: =SUM(BA80+BC80+BD80+BE80+BB80+BF80+BL80+BH80+BI80+BJ80+BK80+BM80+BO80+BQ80+BG80) -> 16.615 | BS80: =+BR80*$H$9 -> 5.538333333 | BT80: =DN80 -> 4336.69 | BU80: =BT80/X80 -> 0.7132713816 | BV80: =IF(BU80>0,IF(BU80>=$DA$28,$CY$28,IF(BU80<$DA$28,$CY$29,0)),0) -> 1 | BW80: 6089.28 | BX80: =BW80/X80 -> 1.001526316 | BY80: =IF(BX80,$F$23,0) -> 1 | BZ80: =IF(DQ80>0,$F$24,0) -> 1 | CA80: =DR80 -> 0 | CB80: =CA80/X80 -> 0 | CC80: =+IF(CB80>=$K$4,$F$25,0) -> 0 | CD80: 19.60526316 | CE80: =IF(CD80>0,IF(CD80>=100,$F$26,IF(CD80<100,$F$26/2)),0) -> 0.5 | CF80: =SUM(DU80) -> 1 | CG80: =IF(DY80>0,$F$28,0) -> 0 | CH80: =IF(DV80>0,$F$29,0) -> 0 | CI80: =IF(EA80=0,$F$30,0) -> 1 | CJ80: =SUM(BV80,BY80,CE80,BZ80,CC80,CF80,CG80,CH80,CI80) -> 5.5 | CK80: =+CJ80*$H$22 -> 1.833333333 | CL80: =SUM(AY80,BR80,CJ80) -> 37.115 | CM80: =SUM(AZ80,BS80,CK80) -> 12.37166667 | CN80: =IF(D80<($Z$13*$CN$28),1,IF(D80<(($Z$14+$Z$13)*$CN$28),2,IF(D80<(($Z$15+$Z$13+$Z$14)*$CN$28),3,4))) -> 1 | CO80: =VLOOKUP(A80,Taul1!$F$6:$G$953,2,FALSE) -> 1 | CQ80: =AR80+AV80+AX80+BA80+BC80+BD80+BF80+BG80+BH80+BI80+BJ80+BK80+BL80+BM80+BO80+BV80+BY80+BZ80+CF80+CI80 -> 33.615 | CR80: =AY80 -> 15 | CS80: =BA80+BC80+BD80+BF80+BG80+BH80+BI80+BJ80+BK80+BL80+BM80+BO80 -> 13.615 | CT80: =BV80+BY80+BZ80+CF80+CI80 -> 5 | CV80: https://www.google.com/maps/@62.43396281,25.68901383,3a,75y,90t/data=!3m3!1e1!3m1!2e0 | DA80: 8 | DB80: =SUM(CY80:DA80) -> 8 | DC80: 0 | DD80: 1 | DE80: 0 | DF80: 5 | DG80: 1 | DH80: 346 | DI80: 23 | DJ80: 0 | DK80: 0 | DL80: 0 | DN80: 4336.69 | DO80: 0 | DQ80: 6 | DR80: 0 | DS80: =+IF(AA80>$K$8,$F$27/2,0) -> 1 | DT80: =+IF(AA80/Y80>1.5,$F$27/2,0) -> 0 | DU80: =SUM(DS80:DT80) -> 1 | DV80: 0 | DW80: 0 | DX80: 0 | DY80: =SUM(DW80:DX80) -> 0 | EA80: 0 | EB80: 0 | EG80: =IFERROR(VLOOKUP(A80,$EN$37:$EP$992,2,FALSE),"--") -> -- | EH80: =IF(EG80="--","--",IF(N80="LOPUT",IF(EG80="VÄHÄ","--> LOPUT",""),IF(N80="VÄHÄ",IF(EG80="LOPUT","-->VÄHÄ","")))) -> -- | EI80: =IFERROR(VLOOKUP(A80,$EN$37:$EP$992,3,FALSE),"--") -> -- | EJ80: =IFERROR(EI80-D80,"--") -> -- | EK80: =IFERROR(VLOOKUP(A80,$EN$37:$EQ$992,4,FALSE),"--") -> -- | EL80: =IFERROR(EK80-K80,"--") -> -- | EN80: 637_13 | EO80: VÄHÄ | EP80: 40 | EQ80: 2
A81: =CONCATENATE(S81,"_",T81) -> 637_6 | B81: 1 | D81: =RANK(CM81,$CM$37:$CM$984) -> 45 | E81: 45 | F81: =E81-D81 -> 0 | G81: =CM81 -> 12.36773903 | H81: =AZ81 -> 5 | I81: =BS81 -> 4.867739028 | J81: =CK81 -> 2.5 | K81: =CN81 -> 1 | L81: =B81-K81 -> 0 | M81: =HYPERLINK(CV81,"Gmaps") -> Gmaps | N81: =IF(Y81>$K$6,"LOPUT","VÄHÄ") -> LOPUT | O81: =IF(S81<40,"Valta",IF(S81<100,"Kanta",IF(S81<1000,"Seutu",IF(S81>999,"Yhdys")))) -> Seutu | P81: Suolahdentie | Q81: Laukaa | S81: 637 | T81: 6 | U81: 0 | V81: 6 | W81: 4233 | X81: 4233 | Y81: 5312 | Z81: 222 | AA81: 7436 | AB81: 5312 (100 %) | AC81: 50 (13 %), 60 (19 %), 80 (68 %) | AD81: Ib (100 %) | AE81: Asfalttibetoni (95 %) | AF81: PK2 (100 %) | AG81: 2 | AH81: 2 | AI81: 0.07119889757 | AJ81: 112 | AR81: =+IF(Y81>=$K$6,$F$5,($F$5/($K$6))*Y81) -> 9 | AS81: 80 | AV81: =+IF(AS81>=$L$15,$J$15,IF(AS81<($L$15),AS81*($J$15/($L$15)),)) -> 3 | AW81: 956 | AX81: =+IF(AW81>=$L$11,$J$11,IF(AW81<($L$11),AW81*($J$11/($L$11)),)) -> 3 | AY81: =SUM(AR81,AV81,AX81) -> 15 | AZ81: =+AY81*$H$5 -> 5 | BA81: =+IF(Z81=0,0,IF(Z81>$K$7,$F$9,($F$9/$K$7)*Z81)) -> 8 | BB81: =+IF(AJ81=0,0,IF(AJ81>$L$6,$F$10,($F$10/$L$6)*AJ81)) -> 1 | BC81: =IF(DB81>0,$F$11,0) -> 3 | BD81: =IF(DC81>0,$F$12,0) -> 0 | BE81: =IF(DD81>0,$F$13,0) -> 1 | BF81: =IF(DF81>0,$F$14,0) -> 1 | BG81: =IF(DG81>0,$F$15,0) -> 0 | BH81: =+IF(DH81>=$L$23,$J$23,IF(DH81<($L$23),DH81*($J$23/($L$23)),)) -> 0.09 | BI81: =+IF(DI81>=$L$24,$J$24,IF(DI81<($L$24),DI81*($J$24/($L$24)),)) -> 0 | BJ81: =+IF(DJ81>=$L$25,$J$25,IF(DJ81<($L$25),DJ81*($J$25/($L$25)),)) -> 0 | BK81: =+IF(DK81>=$L$26,$J$26,IF(DK81<($L$26),DK81*($J$26/($L$26)),)) -> 0 | BL81: =IF(DL81>0,$F$17,0) -> 0 | BM81: =+IF(DO81>=$L$29,$J$29,IF(DO81<($L$29),DO81*($J$29/($L$29)),)) -> 0 | BO81: =IF(EB81>0,$F$19,0) -> 0 | BP81: 5.132170848 | BQ81: =+IF(BP81>=$L$19,$J$19,IF(BP81<($L$19),BP81*($J$19/($L$19)),)) -> 0.5132170848 | BR81: =SUM(BA81+BC81+BD81+BE81+BB81+BF81+BL81+BH81+BI81+BJ81+BK81+BM81+BO81+BQ81+BG81) -> 14.60321708 | BS81: =+BR81*$H$9 -> 4.867739028 | BT81: =DN81 -> 3517.83 | BU81: =BT81/X81 -> 0.8310489015 | BV81: =IF(BU81>0,IF(BU81>=$DA$28,$CY$28,IF(BU81<$DA$28,$CY$29,0)),0) -> 1 | BW81: 3911.58 | BX81: =BW81/X81 -> 0.9240680369 | BY81: =IF(BX81,$F$23,0) -> 1 | BZ81: =IF(DQ81>0,$F$24,0) -> 1 | CA81: =DR81 -> 435.402 | CB81: =CA81/X81 -> 0.1028589653 | CC81: =+IF(CB81>=$K$4,$F$25,0) -> 0 | CD81: 27.93621545 | CE81: =IF(CD81>0,IF(CD81>=100,$F$26,IF(CD81<100,$F$26/2)),0) -> 0.5 | CF81: =SUM(DU81) -> 1 | CG81: =IF(DY81>0,$F$28,0) -> 1 | CH81: =IF(DV81>0,$F$29,0) -> 1 | CI81: =IF(EA81=0,$F$30,0) -> 1 | CJ81: =SUM(BV81,BY81,CE81,BZ81,CC81,CF81,CG81,CH81,CI81) -> 7.5 | CK81: =+CJ81*$H$22 -> 2.5 | CL81: =SUM(AY81,BR81,CJ81) -> 37.10321708 | CM81: =SUM(AZ81,BS81,CK81) -> 12.36773903 | CN81: =IF(D81<($Z$13*$CN$28),1,IF(D81<(($Z$14+$Z$13)*$CN$28),2,IF(D81<(($Z$15+$Z$13+$Z$14)*$CN$28),3,4))) -> 1 | CO81: =VLOOKUP(A81,Taul1!$F$6:$G$953,2,FALSE) -> 1 | CQ81: =AR81+AV81+AX81+BA81+BC81+BD81+BF81+BG81+BH81+BI81+BJ81+BK81+BL81+BM81+BO81+BV81+BY81+BZ81+CF81+CI81 -> 32.09 | CR81: =AY81 -> 15 | CS81: =BA81+BC81+BD81+BF81+BG81+BH81+BI81+BJ81+BK81+BL81+BM81+BO81 -> 12.09 | CT81: =BV81+BY81+BZ81+CF81+CI81 -> 5 | CV81: https://www.google.com/maps/@62.42526927,25.91727398,3a,75y,90t/data=!3m3!1e1!3m1!2e0 | DA81: 1 | DB81: =SUM(CY81:DA81) -> 1 | DC81: 0 | DD81: 1 | DE81: 0 | DF81: 1 | DG81: 0 | DH81: 18 | DI81: 0 | DJ81: 0 | DK81: 0 | DL81: 0 | DN81: 3517.83 | DO81: 0 | DQ81: 2 | DR81: 435.402 | DS81: =+IF(AA81>$K$8,$F$27/2,0) -> 1 | DT81: =+IF(AA81/Y81>1.5,$F$27/2,0) -> 0 | DU81: =SUM(DS81:DT81) -> 1 | DV81: 1 | DW81: 0 | DX81: 1 | DY81: =SUM(DW81:DX81) -> 1 | EA81: 0 | EB81: 0 | EG81: =IFERROR(VLOOKUP(A81,$EN$37:$EP$992,2,FALSE),"--") -> LOPUT | EH81: =IF(EG81="--","--",IF(N81="LOPUT",IF(EG81="VÄHÄ","--> LOPUT",""),IF(N81="VÄHÄ",IF(EG81="LOPUT","-->VÄHÄ","")))) ->  | EI81: =IFERROR(VLOOKUP(A81,$EN$37:$EP$992,3,FALSE),"--") -> 44 | EJ81: =IFERROR(EI81-D81,"--") -> -1 | EK81: =IFERROR(VLOOKUP(A81,$EN$37:$EQ$992,4,FALSE),"--") -> 1 | EL81: =IFERROR(EK81-K81,"--") -> 0 | EN81: 6250_2 | EO81: VÄHÄ | EP81: 41 | EQ81: 2
A82: =CONCATENATE(S82,"_",T82) -> 343_3 | B82: 1 | D82: =RANK(CM82,$CM$37:$CM$984) -> 46 | E82: 46 | F82: =E82-D82 -> 0 | G82: =CM82 -> 12.36508811 | H82: =AZ82 -> 4.4 | I82: =BS82 -> 5.631754779 | J82: =CK82 -> 2.333333333 | K82: =CN82 -> 1 | L82: =B82-K82 -> 0 | M82: =HYPERLINK(CV82,"Gmaps") -> Gmaps | N82: =IF(Y82>$K$6,"LOPUT","VÄHÄ") -> LOPUT | O82: =IF(S82<40,"Valta",IF(S82<100,"Kanta",IF(S82<1000,"Seutu",IF(S82>999,"Yhdys")))) -> Seutu | P82: Kuorevedentie | Q82: Jämsä | S82: 343 | T82: 3 | U82: 0 | V82: 3 | W82: 5194 | X82: 5194 | Y82: 1368.889488 | Z82: 57.25856758 | AA82: 1554 | AB82: 1203 (64 %), 1665 (36 %) | AC82: 40 (28 %), 50 (30 %), 60 (13 %), 80 (29 %) | AD82: Ic (100 %) | AE82: Asfalttibetoni (92 %) | AF82: PK2 (100 %) | AG82: 1 | AH82: 4 | AI82: 0.03850596843 | AJ82: 15.79534078 | AR82: =+IF(Y82>=$K$6,$F$5,($F$5/($K$6))*Y82) -> 9 | AS82: 8 | AV82: =+IF(AS82>=$L$15,$J$15,IF(AS82<($L$15),AS82*($J$15/($L$15)),)) -> 1.2 | AW82: 827 | AX82: =+IF(AW82>=$L$11,$J$11,IF(AW82<($L$11),AW82*($J$11/($L$11)),)) -> 3 | AY82: =SUM(AR82,AV82,AX82) -> 13.2 | AZ82: =+AY82*$H$5 -> 4.4 | BA82: =+IF(Z82=0,0,IF(Z82>$K$7,$F$9,($F$9/$K$7)*Z82)) -> 8 | BB82: =+IF(AJ82=0,0,IF(AJ82>$L$6,$F$10,($F$10/$L$6)*AJ82)) -> 0.7897670389 | BC82: =IF(DB82>0,$F$11,0) -> 3 | BD82: =IF(DC82>0,$F$12,0) -> 0 | BE82: =IF(DD82>0,$F$13,0) -> 1 | BF82: =IF(DF82>0,$F$14,0) -> 0 | BG82: =IF(DG82>0,$F$15,0) -> 0 | BH82: =+IF(DH82>=$L$23,$J$23,IF(DH82<($L$23),DH82*($J$23/($L$23)),)) -> 0.08 | BI82: =+IF(DI82>=$L$24,$J$24,IF(DI82<($L$24),DI82*($J$24/($L$24)),)) -> 0 | BJ82: =+IF(DJ82>=$L$25,$J$25,IF(DJ82<($L$25),DJ82*($J$25/($L$25)),)) -> 0 | BK82: =+IF(DK82>=$L$26,$J$26,IF(DK82<($L$26),DK82*($J$26/($L$26)),)) -> 0 | BL82: =IF(DL82>0,$F$17,0) -> 0 | BM82: =+IF(DO82>=$L$29,$J$29,IF(DO82<($L$29),DO82*($J$29/($L$29)),)) -> 1.2 | BO82: =IF(EB82>0,$F$19,0) -> 2 | BP82: 8.254972993 | BQ82: =+IF(BP82>=$L$19,$J$19,IF(BP82<($L$19),BP82*($J$19/($L$19)),)) -> 0.8254972993 | BR82: =SUM(BA82+BC82+BD82+BE82+BB82+BF82+BL82+BH82+BI82+BJ82+BK82+BM82+BO82+BQ82+BG82) -> 16.89526434 | BS82: =+BR82*$H$9 -> 5.631754779 | BT82: =DN82 -> 5174.97 | BU82: =BT82/X82 -> 0.9963361571 | BV82: =IF(BU82>0,IF(BU82>=$DA$28,$CY$28,IF(BU82<$DA$28,$CY$29,0)),0) -> 1 | BW82: 3325.62 | BX82: =BW82/X82 -> 0.6402810936 | BY82: =IF(BX82,$F$23,0) -> 1 | BZ82: =IF(DQ82>0,$F$24,0) -> 0 | CA82: =DR82 -> 3499.73 | CB82: =CA82/X82 -> 0.6738024644 | CC82: =+IF(CB82>=$K$4,$F$25,0) -> 1 | CD82: 148.6907971 | CE82: =IF(CD82>0,IF(CD82>=100,$F$26,IF(CD82<100,$F$26/2)),0) -> 1 | CF82: =SUM(DU82) -> 1 | CG82: =IF(DY82>0,$F$28,0) -> 1 | CH82: =IF(DV82>0,$F$29,0) -> 0 | CI82: =IF(EA82=0,$F$30,0) -> 1 | CJ82: =SUM(BV82,BY82,CE82,BZ82,CC82,CF82,CG82,CH82,CI82) -> 7 | CK82: =+CJ82*$H$22 -> 2.333333333 | CL82: =SUM(AY82,BR82,CJ82) -> 37.09526434 | CM82: =SUM(AZ82,BS82,CK82) -> 12.36508811 | CN82: =IF(D82<($Z$13*$CN$28),1,IF(D82<(($Z$14+$Z$13)*$CN$28),2,IF(D82<(($Z$15+$Z$13+$Z$14)*$CN$28),3,4))) -> 1 | CO82: =VLOOKUP(A82,Taul1!$F$6:$G$953,2,FALSE) -> 2 | CQ82: =AR82+AV82+AX82+BA82+BC82+BD82+BF82+BG82+BH82+BI82+BJ82+BK82+BL82+BM82+BO82+BV82+BY82+BZ82+CF82+CI82 -> 31.48 | CR82: =AY82 -> 13.2 | CS82: =BA82+BC82+BD82+BF82+BG82+BH82+BI82+BJ82+BK82+BL82+BM82+BO82 -> 14.28 | CT82: =BV82+BY82+BZ82+CF82+CI82 -> 4 | CV82: https://www.google.com/maps/@61.84983799,24.85438444,3a,75y,90t/data=!3m3!1e1!3m1!2e0 | DA82: 1 | DB82: =SUM(CY82:DA82) -> 1 | DC82: 0 | DD82: 2 | DE82: 0 | DF82: 0 | DG82: 0 | DH82: 16 | DI82: 0 | DJ82: 0 | DK82: 0 | DL82: 0 | DN82: 5174.97 | DO82: 3 | DQ82: 0 | DR82: 3499.73 | DS82: =+IF(AA82>$K$8,$F$27/2,0) -> 1 | DT82: =+IF(AA82/Y82>1.5,$F$27/2,0) -> 0 | DU82: =SUM(DS82:DT82) -> 1 | DV82: 0 | DW82: 0 | DX82: 2 | DY82: =SUM(DW82:DX82) -> 2 | EA82: 0 | EB82: 2 | EG82: =IFERROR(VLOOKUP(A82,$EN$37:$EP$992,2,FALSE),"--") -> LOPUT | EH82: =IF(EG82="--","--",IF(N82="LOPUT",IF(EG82="VÄHÄ","--> LOPUT",""),IF(N82="VÄHÄ",IF(EG82="LOPUT","-->VÄHÄ","")))) ->  | EI82: =IFERROR(VLOOKUP(A82,$EN$37:$EP$992,3,FALSE),"--") -> 10 | EJ82: =IFERROR(EI82-D82,"--") -> -36 | EK82: =IFERROR(VLOOKUP(A82,$EN$37:$EQ$992,4,FALSE),"--") -> 1 | EL82: =IFERROR(EK82-K82,"--") -> 0 | EN82: 659_2 | EO82: VÄHÄ | EP82: 42 | EQ82: 2
A83: =CONCATENATE(S83,"_",T83) -> 4_312 | B83: 1 | D83: =RANK(CM83,$CM$37:$CM$984) -> 47 | E83: 47 | F83: =E83-D83 -> 0 | G83: =CM83 -> 12.36 | H83: =AZ83 -> 5 | I83: =BS83 -> 5.526666667 | J83: =CK83 -> 1.833333333 | K83: =CN83 -> 1 | L83: =B83-K83 -> 0 | M83: =HYPERLINK(CV83,"Gmaps") -> Gmaps | N83: =IF(Y83>$K$6,"LOPUT","VÄHÄ") -> LOPUT | O83: =IF(S83<40,"Valta",IF(S83<100,"Kanta",IF(S83<1000,"Seutu",IF(S83>999,"Yhdys")))) -> Valta | P83: Ouluntie | Q83: Äänekoski | S83: 4 | T83: 312 | U83: 0 | V83: 312 | W83: 6871 | X83: 6871 | Y83: 5395.750109 | Z83: 805.0873235 | AA83: 6903 | AB83: 4897 (62 %), 6211 (38 %) | AC83: 100 (100 %) | AD83: Ise (100 %) | AE83: Asfalttibetoni (24 %), Kivimastiksiasfaltti (75 %) | AF83: PK1 (100 %) | AG83: 4 | AH83: 17 | AI83: 0.1087429317 | AJ83: 636.7226022 | AR83: =+IF(Y83>=$K$6,$F$5,($F$5/($K$6))*Y83) -> 9 | AS83: 70 | AV83: =+IF(AS83>=$L$15,$J$15,IF(AS83<($L$15),AS83*($J$15/($L$15)),)) -> 3 | AW83: 588 | AX83: =+IF(AW83>=$L$11,$J$11,IF(AW83<($L$11),AW83*($J$11/($L$11)),)) -> 3 | AY83: =SUM(AR83,AV83,AX83) -> 15 | AZ83: =+AY83*$H$5 -> 5 | BA83: =+IF(Z83=0,0,IF(Z83>$K$7,$F$9,($F$9/$K$7)*Z83)) -> 8 | BB83: =+IF(AJ83=0,0,IF(AJ83>$L$6,$F$10,($F$10/$L$6)*AJ83)) -> 1 | BC83: =IF(DB83>0,$F$11,0) -> 3 | BD83: =IF(DC83>0,$F$12,0) -> 0 | BE83: =IF(DD83>0,$F$13,0) -> 1 | BF83: =IF(DF83>0,$F$14,0) -> 0 | BG83: =IF(DG83>0,$F$15,0) -> 0 | BH83: =+IF(DH83>=$L$23,$J$23,IF(DH83<($L$23),DH83*($J$23/($L$23)),)) -> 0.5 | BI83: =+IF(DI83>=$L$24,$J$24,IF(DI83<($L$24),DI83*($J$24/($L$24)),)) -> 0.08 | BJ83: =+IF(DJ83>=$L$25,$J$25,IF(DJ83<($L$25),DJ83*($J$25/($L$25)),)) -> 0 | BK83: =+IF(DK83>=$L$26,$J$26,IF(DK83<($L$26),DK83*($J$26/($L$26)),)) -> 0 | BL83: =IF(DL83>0,$F$17,0) -> 0 | BM83: =+IF(DO83>=$L$29,$J$29,IF(DO83<($L$29),DO83*($J$29/($L$29)),)) -> 0 | BO83: =IF(EB83>0,$F$19,0) -> 2 | BP83: 39.17688329 | BQ83: =+IF(BP83>=$L$19,$J$19,IF(BP83<($L$19),BP83*($J$19/($L$19)),)) -> 1 | BR83: =SUM(BA83+BC83+BD83+BE83+BB83+BF83+BL83+BH83+BI83+BJ83+BK83+BM83+BO83+BQ83+BG83) -> 16.58 | BS83: =+BR83*$H$9 -> 5.526666667 | BT83: =DN83 -> 4451.75 | BU83: =BT83/X83 -> 0.6479042352 | BV83: =IF(BU83>0,IF(BU83>=$DA$28,$CY$28,IF(BU83<$DA$28,$CY$29,0)),0) -> 1 | BW83: 6851.43 | BX83: =BW83/X83 -> 0.9971517974 | BY83: =IF(BX83,$F$23,0) -> 1 | BZ83: =IF(DQ83>0,$F$24,0) -> 1 | CA83: =DR83 -> 0 | CB83: =CA83/X83 -> 0 | CC83: =+IF(CB83>=$K$4,$F$25,0) -> 0 | CD83: 10.17319168 | CE83: =IF(CD83>0,IF(CD83>=100,$F$26,IF(CD83<100,$F$26/2)),0) -> 0.5 | CF83: =SUM(DU83) -> 1 | CG83: =IF(DY83>0,$F$28,0) -> 0 | CH83: =IF(DV83>0,$F$29,0) -> 0 | CI83: =IF(EA83=0,$F$30,0) -> 1 | CJ83: =SUM(BV83,BY83,CE83,BZ83,CC83,CF83,CG83,CH83,CI83) -> 5.5 | CK83: =+CJ83*$H$22 -> 1.833333333 | CL83: =SUM(AY83,BR83,CJ83) -> 37.08 | CM83: =SUM(AZ83,BS83,CK83) -> 12.36 | CN83: =IF(D83<($Z$13*$CN$28),1,IF(D83<(($Z$14+$Z$13)*$CN$28),2,IF(D83<(($Z$15+$Z$13+$Z$14)*$CN$28),3,4))) -> 1 | CO83: =VLOOKUP(A83,Taul1!$F$6:$G$953,2,FALSE) -> 2 | CQ83: =AR83+AV83+AX83+BA83+BC83+BD83+BF83+BG83+BH83+BI83+BJ83+BK83+BL83+BM83+BO83+BV83+BY83+BZ83+CF83+CI83 -> 33.58 | CR83: =AY83 -> 15 | CS83: =BA83+BC83+BD83+BF83+BG83+BH83+BI83+BJ83+BK83+BL83+BM83+BO83 -> 13.58 | CT83: =BV83+BY83+BZ83+CF83+CI83 -> 5 | CV83: https://www.google.com/maps/@62.74529547,25.77328503,3a,75y,90t/data=!3m3!1e1!3m1!2e0 | DA83: 1 | DB83: =SUM(CY83:DA83) -> 1 | DC83: 0 | DD83: 2 | DE83: 0 | DF83: 0 | DG83: 0 | DH83: 384 | DI83: 16 | DJ83: 0 | DK83: 0 | DL83: 0 | DN83: 4451.75 | DO83: 0 | DQ83: 1 | DR83: 0 | DS83: =+IF(AA83>$K$8,$F$27/2,0) -> 1 | DT83: =+IF(AA83/Y83>1.5,$F$27/2,0) -> 0 | DU83: =SUM(DS83:DT83) -> 1 | DV83: 0 | DW83: 0 | DX83: 0 | DY83: =SUM(DW83:DX83) -> 0 | EA83: 0 | EB83: 1 | EG83: =IFERROR(VLOOKUP(A83,$EN$37:$EP$992,2,FALSE),"--") -> -- | EH83: =IF(EG83="--","--",IF(N83="LOPUT",IF(EG83="VÄHÄ","--> LOPUT",""),IF(N83="VÄHÄ",IF(EG83="LOPUT","-->VÄHÄ","")))) -> -- | EI83: =IFERROR(VLOOKUP(A83,$EN$37:$EP$992,3,FALSE),"--") -> -- | EJ83: =IFERROR(EI83-D83,"--") -> -- | EK83: =IFERROR(VLOOKUP(A83,$EN$37:$EQ$992,4,FALSE),"--") -> -- | EL83: =IFERROR(EK83-K83,"--") -> -- | EN83: 16765_1 | EO83: VÄHÄ | EP83: 62 | EQ83: 2
A84: =CONCATENATE(S84,"_",T84) -> 642_2 | B84: 2 | D84: =RANK(CM84,$CM$37:$CM$984) -> 48 | E84: 48 | F84: =E84-D84 -> 0 | G84: =CM84 -> 12.35638572 | H84: =AZ84 -> 4.9175 | I84: =BS84 -> 5.938885725 | J84: =CK84 -> 1.5 | K84: =CN84 -> 2 | L84: =B84-K84 -> 0 | M84: =HYPERLINK(CV84,"Gmaps") -> Gmaps | N84: =IF(Y84>$K$6,"LOPUT","VÄHÄ") -> LOPUT | O84: =IF(S84<40,"Valta",IF(S84<100,"Kanta",IF(S84<1000,"Seutu",IF(S84>999,"Yhdys")))) -> Seutu | P84: Suolahdentie | Q84: Laukaa, Äänekoski | S84: 642 | T84: 2 | U84: 0 | V84: 2 | W84: 4543 | X84: 4543 | Y84: 1937 | Z84: 168 | AA84: 2171 | AB84: 1937 (100 %) | AC84: 60 (47 %), 80 (53 %) | AD84: Ib (100 %) | AE84: Asfalttibetoni (100 %) | AF84: PK2 (100 %) | AG84: 1 | AH84: 2 | AI84: 0.03147699758 | AJ84: 71 | AR84: =+IF(Y84>=$K$6,$F$5,($F$5/($K$6))*Y84) -> 9 | AS84: 21 | AV84: =+IF(AS84>=$L$15,$J$15,IF(AS84<($L$15),AS84*($J$15/($L$15)),)) -> 3 | AW84: 367 | AX84: =+IF(AW84>=$L$11,$J$11,IF(AW84<($L$11),AW84*($J$11/($L$11)),)) -> 2.7525 | AY84: =SUM(AR84,AV84,AX84) -> 14.7525 | AZ84: =+AY84*$H$5 -> 4.9175 | BA84: =+IF(Z84=0,0,IF(Z84>$K$7,$F$9,($F$9/$K$7)*Z84)) -> 8 | BB84: =+IF(AJ84=0,0,IF(AJ84>$L$6,$F$10,($F$10/$L$6)*AJ84)) -> 1 | BC84: =IF(DB84>0,$F$11,0) -> 3 | BD84: =IF(DC84>0,$F$12,0) -> 0 | BE84: =IF(DD84>0,$F$13,0) -> 1 | BF84: =IF(DF84>0,$F$14,0) -> 1 | BG84: =IF(DG84>0,$F$15,0) -> 0 | BH84: =+IF(DH84>=$L$23,$J$23,IF(DH84<($L$23),DH84*($J$23/($L$23)),)) -> 0.5 | BI84: =+IF(DI84>=$L$24,$J$24,IF(DI84<($L$24),DI84*($J$24/($L$24)),)) -> 0.1 | BJ84: =+IF(DJ84>=$L$25,$J$25,IF(DJ84<($L$25),DJ84*($J$25/($L$25)),)) -> 0 | BK84: =+IF(DK84>=$L$26,$J$26,IF(DK84<($L$26),DK84*($J$26/($L$26)),)) -> 0.5 | BL84: =IF(DL84>0,$F$17,0) -> 2 | BM84: =+IF(DO84>=$L$29,$J$29,IF(DO84<($L$29),DO84*($J$29/($L$29)),)) -> 0 | BO84: =IF(EB84>0,$F$19,0) -> 0 | BP84: 7.166571737 | BQ84: =+IF(BP84>=$L$19,$J$19,IF(BP84<($L$19),BP84*($J$19/($L$19)),)) -> 0.7166571737 | BR84: =SUM(BA84+BC84+BD84+BE84+BB84+BF84+BL84+BH84+BI84+BJ84+BK84+BM84+BO84+BQ84+BG84) -> 17.81665717 | BS84: =+BR84*$H$9 -> 5.938885725 | BT84: =DN84 -> 0 | BU84: =BT84/X84 -> 0 | BV84: =IF(BU84>0,IF(BU84>=$DA$28,$CY$28,IF(BU84<$DA$28,$CY$29,0)),0) -> 0 | BW84: 4548.83 | BX84: =BW84/X84 -> 1.001283293 | BY84: =IF(BX84,$F$23,0) -> 1 | BZ84: =IF(DQ84>0,$F$24,0) -> 1 | CA84: =DR84 -> 0 | CB84: =CA84/X84 -> 0 | CC84: =+IF(CB84>=$K$4,$F$25,0) -> 0 | CD84: 19.32643628 | CE84: =IF(CD84>0,IF(CD84>=100,$F$26,IF(CD84<100,$F$26/2)),0) -> 0.5 | CF84: =SUM(DU84) -> 1 | CG84: =IF(DY84>0,$F$28,0) -> 0 | CH84: =IF(DV84>0,$F$29,0) -> 0 | CI84: =IF(EA84=0,$F$30,0) -> 1 | CJ84: =SUM(BV84,BY84,CE84,BZ84,CC84,CF84,CG84,CH84,CI84) -> 4.5 | CK84: =+CJ84*$H$22 -> 1.5 | CL84: =SUM(AY84,BR84,CJ84) -> 37.06915717 | CM84: =SUM(AZ84,BS84,CK84) -> 12.35638572 | CN84: =IF(D84<($Z$13*$CN$28),1,IF(D84<(($Z$14+$Z$13)*$CN$28),2,IF(D84<(($Z$15+$Z$13+$Z$14)*$CN$28),3,4))) -> 2 | CO84: =VLOOKUP(A84,Taul1!$F$6:$G$953,2,FALSE) -> 1 | CQ84: =AR84+AV84+AX84+BA84+BC84+BD84+BF84+BG84+BH84+BI84+BJ84+BK84+BL84+BM84+BO84+BV84+BY84+BZ84+CF84+CI84 -> 33.8525 | CR84: =AY84 -> 14.7525 | CS84: =BA84+BC84+BD84+BF84+BG84+BH84+BI84+BJ84+BK84+BL84+BM84+BO84 -> 15.1 | CT84: =BV84+BY84+BZ84+CF84+CI84 -> 4 | CV84: https://www.google.com/maps/@62.50935211,25.88391738,3a,75y,90t/data=!3m3!1e1!3m1!2e0 | DA84: 1 | DB84: =SUM(CY84:DA84) -> 1 | DC84: 0 | DD84: 2 | DE84: 0 | DF84: 4 | DG84: 0 | DH84: 176 | DI84: 20 | DJ84: 0 | DK84: 1001 | DL84: 1 | DN84: 0 | DO84: 0 | DQ84: 1 | DR84: 0 | DS84: =+IF(AA84>$K$8,$F$27/2,0) -> 1 | DT84: =+IF(AA84/Y84>1.5,$F$27/2,0) -> 0 | DU84: =SUM(DS84:DT84) -> 1 | DV84: 0 | DW84: 0 | DX84: 0 | DY84: =SUM(DW84:DX84) -> 0 | EA84: 0 | EB84: 0 | EG84: =IFERROR(VLOOKUP(A84,$EN$37:$EP$992,2,FALSE),"--") -> LOPUT | EH84: =IF(EG84="--","--",IF(N84="LOPUT",IF(EG84="VÄHÄ","--> LOPUT",""),IF(N84="VÄHÄ",IF(EG84="LOPUT","-->VÄHÄ","")))) ->  | EI84: =IFERROR(VLOOKUP(A84,$EN$37:$EP$992,3,FALSE),"--") -> 27 | EJ84: =IFERROR(EI84-D84,"--") -> -21 | EK84: =IFERROR(VLOOKUP(A84,$EN$37:$EQ$992,4,FALSE),"--") -> 1 | EL84: =IFERROR(EK84-K84,"--") -> -1 | EN84: 16890_1 | EO84: VÄHÄ | EP84: 43 | EQ84: 2
A85: =CONCATENATE(S85,"_",T85) -> 16736_1 | B85: 2 | D85: =RANK(CM85,$CM$37:$CM$984) -> 49 | E85: 49 | F85: =E85-D85 -> 0 | G85: =CM85 -> 12.35628203 | H85: =AZ85 -> 4.4875 | I85: =BS85 -> 5.535448695 | J85: =CK85 -> 2.333333333 | K85: =CN85 -> 2 | L85: =B85-K85 -> 0 | M85: =HYPERLINK(CV85,"Gmaps") -> Gmaps | N85: =IF(Y85>$K$6,"LOPUT","VÄHÄ") -> LOPUT | O85: =IF(S85<40,"Valta",IF(S85<100,"Kanta",IF(S85<1000,"Seutu",IF(S85>999,"Yhdys")))) -> Yhdys | P85: Hohontie | Q85: Laukaa | S85: 16736 | T85: 1 | U85: 0 | V85: 1 | W85: 1463 | X85: 1463 | Y85: 1071 | Z85: 45 | AA85: 1217 | AB85: 1071 (100 %) | AC85: 40 (14 %), 50 (57 %), 80 (29 %) | AD85: Ib (100 %) | AE85: Asfalttibetoni (100 %) | AF85: PK3 (100 %) | AG85: 0 | AH85: 0 | AI85: 0.5898838004 | AJ85: 6 | AR85: =+IF(Y85>=$K$6,$F$5,($F$5/($K$6))*Y85) -> 9 | AS85: 23 | AV85: =+IF(AS85>=$L$15,$J$15,IF(AS85<($L$15),AS85*($J$15/($L$15)),)) -> 3 | AW85: 195 | AX85: =+IF(AW85>=$L$11,$J$11,IF(AW85<($L$11),AW85*($J$11/($L$11)),)) -> 1.4625 | AY85: =SUM(AR85,AV85,AX85) -> 13.4625 | AZ85: =+AY85*$H$5 -> 4.4875 | BA85: =+IF(Z85=0,0,IF(Z85>$K$7,$F$9,($F$9/$K$7)*Z85)) -> 8 | BB85: =+IF(AJ85=0,0,IF(AJ85>$L$6,$F$10,($F$10/$L$6)*AJ85)) -> 0.3 | BC85: =IF(DB85>0,$F$11,0) -> 3 | BD85: =IF(DC85>0,$F$12,0) -> 0 | BE85: =IF(DD85>0,$F$13,0) -> 0 | BF85: =IF(DF85>0,$F$14,0) -> 1 | BG85: =IF(DG85>0,$F$15,0) -> 0 | BH85: =+IF(DH85>=$L$23,$J$23,IF(DH85<($L$23),DH85*($J$23/($L$23)),)) -> 0.305 | BI85: =+IF(DI85>=$L$24,$J$24,IF(DI85<($L$24),DI85*($J$24/($L$24)),)) -> 0 | BJ85: =+IF(DJ85>=$L$25,$J$25,IF(DJ85<($L$25),DJ85*($J$25/($L$25)),)) -> 0 | BK85: =+IF(DK85>=$L$26,$J$26,IF(DK85<($L$26),DK85*($J$26/($L$26)),)) -> 0 | BL85: =IF(DL85>0,$F$17,0) -> 2 | BM85: =+IF(DO85>=$L$29,$J$29,IF(DO85<($L$29),DO85*($J$29/($L$29)),)) -> 0 | BO85: =IF(EB85>0,$F$19,0) -> 2 | BP85: 0.01346086155 | BQ85: =+IF(BP85>=$L$19,$J$19,IF(BP85<($L$19),BP85*($J$19/($L$19)),)) -> 0.001346086155 | BR85: =SUM(BA85+BC85+BD85+BE85+BB85+BF85+BL85+BH85+BI85+BJ85+BK85+BM85+BO85+BQ85+BG85) -> 16.60634609 | BS85: =+BR85*$H$9 -> 5.535448695 | BT85: =DN85 -> 1465.79 | BU85: =BT85/X85 -> 1.00190704 | BV85: =IF(BU85>0,IF(BU85>=$DA$28,$CY$28,IF(BU85<$DA$28,$CY$29,0)),0) -> 1 | BW85: 0 | BX85: =BW85/X85 -> 0 | BY85: =IF(BX85,$F$23,0) -> 0 | BZ85: =IF(DQ85>0,$F$24,0) -> 1 | CA85: =DR85 -> 1465.79 | CB85: =CA85/X85 -> 1.00190704 | CC85: =+IF(CB85>=$K$4,$F$25,0) -> 1 | CD85: 327.391661 | CE85: =IF(CD85>0,IF(CD85>=100,$F$26,IF(CD85<100,$F$26/2)),0) -> 1 | CF85: =SUM(DU85) -> 1 | CG85: =IF(DY85>0,$F$28,0) -> 1 | CH85: =IF(DV85>0,$F$29,0) -> 0 | CI85: =IF(EA85=0,$F$30,0) -> 1 | CJ85: =SUM(BV85,BY85,CE85,BZ85,CC85,CF85,CG85,CH85,CI85) -> 7 | CK85: =+CJ85*$H$22 -> 2.333333333 | CL85: =SUM(AY85,BR85,CJ85) -> 37.06884609 | CM85: =SUM(AZ85,BS85,CK85) -> 12.35628203 | CN85: =IF(D85<($Z$13*$CN$28),1,IF(D85<(($Z$14+$Z$13)*$CN$28),2,IF(D85<(($Z$15+$Z$13+$Z$14)*$CN$28),3,4))) -> 2 | CO85: =VLOOKUP(A85,Taul1!$F$6:$G$953,2,FALSE) -> 1 | CQ85: =AR85+AV85+AX85+BA85+BC85+BD85+BF85+BG85+BH85+BI85+BJ85+BK85+BL85+BM85+BO85+BV85+BY85+BZ85+CF85+CI85 -> 33.7675 | CR85: =AY85 -> 13.4625 | CS85: =BA85+BC85+BD85+BF85+BG85+BH85+BI85+BJ85+BK85+BL85+BM85+BO85 -> 16.305 | CT85: =BV85+BY85+BZ85+CF85+CI85 -> 4 | CV85: https://www.google.com/maps/@62.26260378,26.20383912,3a,75y,90t/data=!3m3!1e1!3m1!2e0 | DA85: 1 | DB85: =SUM(CY85:DA85) -> 1 | DC85: 0 | DD85: 0 | DE85: 0 | DF85: 2 | DG85: 0 | DH85: 61 | DI85: 0 | DJ85: 0 | DK85: 0 | DL85: 1 | DN85: 1465.79 | DO85: 0 | DQ85: 1 | DR85: 1465.79 | DS85: =+IF(AA85>$K$8,$F$27/2,0) -> 1 | DT85: =+IF(AA85/Y85>1.5,$F$27/2,0) -> 0 | DU85: =SUM(DS85:DT85) -> 1 | DV85: 0 | DW85: 0 | DX85: 1 | DY85: =SUM(DW85:DX85) -> 1 | EA85: 0 | EB85: 1 | EG85: =IFERROR(VLOOKUP(A85,$EN$37:$EP$992,2,FALSE),"--") -> LOPUT | EH85: =IF(EG85="--","--",IF(N85="LOPUT",IF(EG85="VÄHÄ","--> LOPUT",""),IF(N85="VÄHÄ",IF(EG85="LOPUT","-->VÄHÄ","")))) ->  | EI85: =IFERROR(VLOOKUP(A85,$EN$37:$EP$992,3,FALSE),"--") -> 71 | EJ85: =IFERROR(EI85-D85,"--") -> 22 | EK85: =IFERROR(VLOOKUP(A85,$EN$37:$EQ$992,4,FALSE),"--") -> 1 | EL85: =IFERROR(EK85-K85,"--") -> -1 | EN85: 16874_1 | EO85: VÄHÄ | EP85: 44 | EQ85: 2
A86: =CONCATENATE(S86,"_",T86) -> 16711_1 | B86: 2 | D86: =RANK(CM86,$CM$37:$CM$984) -> 50 | E86: 50 | F86: =E86-D86 -> 0 | G86: =CM86 -> 12.33755024 | H86: =AZ86 -> 5 | I86: =BS86 -> 5.670883576 | J86: =CK86 -> 1.666666667 | K86: =CN86 -> 2 | L86: =B86-K86 -> 0 | M86: =HYPERLINK(CV86,"Gmaps") -> Gmaps | N86: =IF(Y86>$K$6,"LOPUT","VÄHÄ") -> LOPUT | O86: =IF(S86<40,"Valta",IF(S86<100,"Kanta",IF(S86<1000,"Seutu",IF(S86>999,"Yhdys")))) -> Yhdys | P86: Ritopohjantie | Q86: Jyväskylä | S86: 16711 | T86: 1 | U86: 3740 | V86: 1 | W86: 3859 | X86: 119 | Y86: 10409 | Z86: 446 | AA86: 10794 | AB86: 10409 (100 %) | AC86: 50 (99 %) | AE86: Kivimastiksiasfaltti (99 %) | AF86: PK2 (99 %) | AG86: 0 | AH86: 1 | AI86: 0 | AJ86: 21 | AR86: =+IF(Y86>=$K$6,$F$5,($F$5/($K$6))*Y86) -> 9 | AS86: 996 | AV86: =+IF(AS86>=$L$15,$J$15,IF(AS86<($L$15),AS86*($J$15/($L$15)),)) -> 3 | AW86: 1419 | AX86: =+IF(AW86>=$L$11,$J$11,IF(AW86<($L$11),AW86*($J$11/($L$11)),)) -> 3 | AY86: =SUM(AR86,AV86,AX86) -> 15 | AZ86: =+AY86*$H$5 -> 5 | BA86: =+IF(Z86=0,0,IF(Z86>$K$7,$F$9,($F$9/$K$7)*Z86)) -> 8 | BB86: =+IF(AJ86=0,0,IF(AJ86>$L$6,$F$10,($F$10/$L$6)*AJ86)) -> 1 | BC86: =IF(DB86>0,$F$11,0) -> 3 | BD86: =IF(DC86>0,$F$12,0) -> 0 | BE86: =IF(DD86>0,$F$13,0) -> 0 | BF86: =IF(DF86>0,$F$14,0) -> 1 | BG86: =IF(DG86>0,$F$15,0) -> 0 | BH86: =+IF(DH86>=$L$23,$J$23,IF(DH86<($L$23),DH86*($J$23/($L$23)),)) -> 0 | BI86: =+IF(DI86>=$L$24,$J$24,IF(DI86<($L$24),DI86*($J$24/($L$24)),)) -> 0 | BJ86: =+IF(DJ86>=$L$25,$J$25,IF(DJ86<($L$25),DJ86*($J$25/($L$25)),)) -> 0 | BK86: =+IF(DK86>=$L$26,$J$26,IF(DK86<($L$26),DK86*($J$26/($L$26)),)) -> 0.0095 | BL86: =IF(DL86>0,$F$17,0) -> 0 | BM86: =+IF(DO86>=$L$29,$J$29,IF(DO86<($L$29),DO86*($J$29/($L$29)),)) -> 2 | BO86: =IF(EB86>0,$F$19,0) -> 2 | BP86: 0.03150727986 | BQ86: =+IF(BP86>=$L$19,$J$19,IF(BP86<($L$19),BP86*($J$19/($L$19)),)) -> 0.003150727986 | BR86: =SUM(BA86+BC86+BD86+BE86+BB86+BF86+BL86+BH86+BI86+BJ86+BK86+BM86+BO86+BQ86+BG86) -> 17.01265073 | BS86: =+BR86*$H$9 -> 5.670883576 | BT86: =DN86 -> 117.506 | BU86: =BT86/X86 -> 0.9874453782 | BV86: =IF(BU86>0,IF(BU86>=$DA$28,$CY$28,IF(BU86<$DA$28,$CY$29,0)),0) -> 1 | BW86: 0 | BX86: =BW86/X86 -> 0 | BY86: =IF(BX86,$F$23,0) -> 0 | BZ86: =IF(DQ86>0,$F$24,0) -> 0 | CA86: =DR86 -> 117.506 | CB86: =CA86/X86 -> 0.9874453782 | CC86: =+IF(CB86>=$K$4,$F$25,0) -> 1 | CD86: 2560.747899 | CE86: =IF(CD86>0,IF(CD86>=100,$F$26,IF(CD86<100,$F$26/2)),0) -> 1 | CF86: =SUM(DU86) -> 1 | CG86: =IF(DY86>0,$F$28,0) -> 0 | CH86: =IF(DV86>0,$F$29,0) -> 0 | CI86: =IF(EA86=0,$F$30,0) -> 1 | CJ86: =SUM(BV86,BY86,CE86,BZ86,CC86,CF86,CG86,CH86,CI86) -> 5 | CK86: =+CJ86*$H$22 -> 1.666666667 | CL86: =SUM(AY86,BR86,CJ86) -> 37.01265073 | CM86: =SUM(AZ86,BS86,CK86) -> 12.33755024 | CN86: =IF(D86<($Z$13*$CN$28),1,IF(D86<(($Z$14+$Z$13)*$CN$28),2,IF(D86<(($Z$15+$Z$13+$Z$14)*$CN$28),3,4))) -> 2 | CO86: =VLOOKUP(A86,Taul1!$F$6:$G$953,2,FALSE) -> 1 | CQ86: =AR86+AV86+AX86+BA86+BC86+BD86+BF86+BG86+BH86+BI86+BJ86+BK86+BL86+BM86+BO86+BV86+BY86+BZ86+CF86+CI86 -> 34.0095 | CR86: =AY86 -> 15 | CS86: =BA86+BC86+BD86+BF86+BG86+BH86+BI86+BJ86+BK86+BL86+BM86+BO86 -> 16.0095 | CT86: =BV86+BY86+BZ86+CF86+CI86 -> 3 | CV86: https://www.google.com/maps/@62.29335791,25.73632072,3a,75y,90t/data=!3m3!1e1!3m1!2e0 | DA86: 1 | DB86: =SUM(CY86:DA86) -> 1 | DC86: 0 | DD86: 0 | DE86: 0 | DF86: 1 | DG86: 0 | DH86: 0 | DI86: 0 | DJ86: 0 | DK86: 19 | DL86: 0 | DN86: 117.506 | DO86: 6 | DQ86: 0 | DR86: 117.506 | DS86: =+IF(AA86>$K$8,$F$27/2,0) -> 1 | DT86: =+IF(AA86/Y86>1.5,$F$27/2,0) -> 0 | DU86: =SUM(DS86:DT86) -> 1 | DV86: 0 | DW86: 0 | DX86: 0 | DY86: =SUM(DW86:DX86) -> 0 | EA86: 0 | EB86: 1 | EG86: =IFERROR(VLOOKUP(A86,$EN$37:$EP$992,2,FALSE),"--") -> LOPUT | EH86: =IF(EG86="--","--",IF(N86="LOPUT",IF(EG86="VÄHÄ","--> LOPUT",""),IF(N86="VÄHÄ",IF(EG86="LOPUT","-->VÄHÄ","")))) ->  | EI86: =IFERROR(VLOOKUP(A86,$EN$37:$EP$992,3,FALSE),"--") -> 248 | EJ86: =IFERROR(EI86-D86,"--") -> 198 | EK86: =IFERROR(VLOOKUP(A86,$EN$37:$EQ$992,4,FALSE),"--") -> 1 | EL86: =IFERROR(EK86-K86,"--") -> -1 | EN86: 3482_2 | EO86: VÄHÄ | EP86: 45 | EQ86: 2
A87: =CONCATENATE(S87,"_",T87) -> 16607_4 | B87: 2 | D87: =RANK(CM87,$CM$37:$CM$984) -> 51 | E87: 51 | F87: =E87-D87 -> 0 | G87: =CM87 -> 12.32735553 | H87: =AZ87 -> 5 | I87: =BS87 -> 5.660688861 | J87: =CK87 -> 1.666666667 | K87: =CN87 -> 2 | L87: =B87-K87 -> 0 | M87: =HYPERLINK(CV87,"Gmaps") -> Gmaps | N87: =IF(Y87>$K$6,"LOPUT","VÄHÄ") -> LOPUT | O87: =IF(S87<40,"Valta",IF(S87<100,"Kanta",IF(S87<1000,"Seutu",IF(S87>999,"Yhdys")))) -> Yhdys | P87: Ronsuntaipaleentie | Q87: Jyväskylä | S87: 16607 | T87: 4 | U87: 0 | V87: 4 | W87: 4680 | X87: 4680 | Y87: 2491 | Z87: 447 | AA87: 3487 | AB87: 2491 (100 %) | AC87: 50 (19 %), 60 (29 %), 70 (52 %) | AD87: Ib (68 %), Is (32 %) | AE87: Asfalttibetoni (31 %), Pehmeät asfalttibetonit (PAB-B) (68 %) | AF87: PK3 (100 %) | AG87: 2 | AH87: 5 | AI87: 0 | AJ87: 70 | AR87: =+IF(Y87>=$K$6,$F$5,($F$5/($K$6))*Y87) -> 9 | AS87: 43 | AV87: =+IF(AS87>=$L$15,$J$15,IF(AS87<($L$15),AS87*($J$15/($L$15)),)) -> 3 | AW87: 540 | AX87: =+IF(AW87>=$L$11,$J$11,IF(AW87<($L$11),AW87*($J$11/($L$11)),)) -> 3 | AY87: =SUM(AR87,AV87,AX87) -> 15 | AZ87: =+AY87*$H$5 -> 5 | BA87: =+IF(Z87=0,0,IF(Z87>$K$7,$F$9,($F$9/$K$7)*Z87)) -> 8 | BB87: =+IF(AJ87=0,0,IF(AJ87>$L$6,$F$10,($F$10/$L$6)*AJ87)) -> 1 | BC87: =IF(DB87>0,$F$11,0) -> 3 | BD87: =IF(DC87>0,$F$12,0) -> 1 | BE87: =IF(DD87>0,$F$13,0) -> 1 | BF87: =IF(DF87>0,$F$14,0) -> 0 | BG87: =IF(DG87>0,$F$15,0) -> 0 | BH87: =+IF(DH87>=$L$23,$J$23,IF(DH87<($L$23),DH87*($J$23/($L$23)),)) -> 0.25 | BI87: =+IF(DI87>=$L$24,$J$24,IF(DI87<($L$24),DI87*($J$24/($L$24)),)) -> 0.155 | BJ87: =+IF(DJ87>=$L$25,$J$25,IF(DJ87<($L$25),DJ87*($J$25/($L$25)),)) -> 0 | BK87: =+IF(DK87>=$L$26,$J$26,IF(DK87<($L$26),DK87*($J$26/($L$26)),)) -> 0 | BL87: =IF(DL87>0,$F$17,0) -> 0 | BM87: =+IF(DO87>=$L$29,$J$29,IF(DO87<($L$29),DO87*($J$29/($L$29)),)) -> 0.4 | BO87: =IF(EB87>0,$F$19,0) -> 2 | BP87: 1.770665836 | BQ87: =+IF(BP87>=$L$19,$J$19,IF(BP87<($L$19),BP87*($J$19/($L$19)),)) -> 0.1770665836 | BR87: =SUM(BA87+BC87+BD87+BE87+BB87+BF87+BL87+BH87+BI87+BJ87+BK87+BM87+BO87+BQ87+BG87) -> 16.98206658 | BS87: =+BR87*$H$9 -> 5.660688861 | BT87: =DN87 -> 2544.5 | BU87: =BT87/X87 -> 0.5436965812 | BV87: =IF(BU87>0,IF(BU87>=$DA$28,$CY$28,IF(BU87<$DA$28,$CY$29,0)),0) -> 1 | BW87: 1261.47 | BX87: =BW87/X87 -> 0.2695448718 | BY87: =IF(BX87,$F$23,0) -> 1 | BZ87: =IF(DQ87>0,$F$24,0) -> 0 | CA87: =DR87 -> 365.359 | CB87: =CA87/X87 -> 0.07806816239 | CC87: =+IF(CB87>=$K$4,$F$25,0) -> 0 | CD87: 112.1153846 | CE87: =IF(CD87>0,IF(CD87>=100,$F$26,IF(CD87<100,$F$26/2)),0) -> 1 | CF87: =SUM(DU87) -> 1 | CG87: =IF(DY87>0,$F$28,0) -> 0 | CH87: =IF(DV87>0,$F$29,0) -> 0 | CI87: =IF(EA87=0,$F$30,0) -> 1 | CJ87: =SUM(BV87,BY87,CE87,BZ87,CC87,CF87,CG87,CH87,CI87) -> 5 | CK87: =+CJ87*$H$22 -> 1.666666667 | CL87: =SUM(AY87,BR87,CJ87) -> 36.98206658 | CM87: =SUM(AZ87,BS87,CK87) -> 12.32735553 | CN87: =IF(D87<($Z$13*$CN$28),1,IF(D87<(($Z$14+$Z$13)*$CN$28),2,IF(D87<(($Z$15+$Z$13+$Z$14)*$CN$28),3,4))) -> 2 | CO87: =VLOOKUP(A87,Taul1!$F$6:$G$953,2,FALSE) -> 1 | CQ87: =AR87+AV87+AX87+BA87+BC87+BD87+BF87+BG87+BH87+BI87+BJ87+BK87+BL87+BM87+BO87+BV87+BY87+BZ87+CF87+CI87 -> 33.805 | CR87: =AY87 -> 15 | CS87: =BA87+BC87+BD87+BF87+BG87+BH87+BI87+BJ87+BK87+BL87+BM87+BO87 -> 14.805 | CT87: =BV87+BY87+BZ87+CF87+CI87 -> 4 | CV87: https://www.google.com/maps/@62.20146538,25.62060303,3a,75y,90t/data=!3m3!1e1!3m1!2e0 | DA87: 1 | DB87: =SUM(CY87:DA87) -> 1 | DC87: 4 | DD87: 1 | DE87: 0 | DF87: 0 | DG87: 0 | DH87: 50 | DI87: 31 | DJ87: 0 | DK87: 0 | DL87: 0 | DN87: 2544.5 | DO87: 1 | DQ87: 0 | DR87: 365.359 | DS87: =+IF(AA87>$K$8,$F$27/2,0) -> 1 | DT87: =+IF(AA87/Y87>1.5,$F$27/2,0) -> 0 | DU87: =SUM(DS87:DT87) -> 1 | DV87: 0 | DW87: 0 | DX87: 0 | DY87: =SUM(DW87:DX87) -> 0 | EA87: 0 | EB87: 1 | EG87: =IFERROR(VLOOKUP(A87,$EN$37:$EP$992,2,FALSE),"--") -> LOPUT | EH87: =IF(EG87="--","--",IF(N87="LOPUT",IF(EG87="VÄHÄ","--> LOPUT",""),IF(N87="VÄHÄ",IF(EG87="LOPUT","-->VÄHÄ","")))) ->  | EI87: =IFERROR(VLOOKUP(A87,$EN$37:$EP$992,3,FALSE),"--") -> 96 | EJ87: =IFERROR(EI87-D87,"--") -> 45 | EK87: =IFERROR(VLOOKUP(A87,$EN$37:$EQ$992,4,FALSE),"--") -> 1 | EL87: =IFERROR(EK87-K87,"--") -> -1 | EN87: 16841_1 | EO87: VÄHÄ | EP87: 46 | EQ87: 2
A88: =CONCATENATE(S88,"_",T88) -> 9_227 | B88: 2 | D88: =RANK(CM88,$CM$37:$CM$984) -> 52 | E88: 52 | F88: =E88-D88 -> 0 | G88: =CM88 -> 12.32333333 | H88: =AZ88 -> 5 | I88: =BS88 -> 5.99 | J88: =CK88 -> 1.333333333 | K88: =CN88 -> 2 | L88: =B88-K88 -> 0 | M88: =HYPERLINK(CV88,"Gmaps") -> Gmaps | N88: =IF(Y88>$K$6,"LOPUT","VÄHÄ") -> LOPUT | O88: =IF(S88<40,"Valta",IF(S88<100,"Kanta",IF(S88<1000,"Seutu",IF(S88>999,"Yhdys")))) -> Valta | P88: Jyväskyläntie, Ysitie | Q88: Jyväskylä, Jämsä | S88: 9 | T88: 227 | U88: 0 | V88: 227 | W88: 5103 | X88: 5103 | Y88: 7591.921811 | Z88: 688.5459534 | AA88: 9431 | AB88: 7357 (46 %), 7795 (54 %) | AC88: 80 (100 %) | AD88: Is (100 %) | AE88: Kivimastiksiasfaltti (100 %) | AF88: PK1 (100 %) | AG88: 4 | AH88: 9 | AI88: 0.05878894768 | AJ88: 434.4993141 | AR88: =+IF(Y88>=$K$6,$F$5,($F$5/($K$6))*Y88) -> 9 | AS88: 87 | AV88: =+IF(AS88>=$L$15,$J$15,IF(AS88<($L$15),AS88*($J$15/($L$15)),)) -> 3 | AW88: 2417 | AX88: =+IF(AW88>=$L$11,$J$11,IF(AW88<($L$11),AW88*($J$11/($L$11)),)) -> 3 | AY88: =SUM(AR88,AV88,AX88) -> 15 | AZ88: =+AY88*$H$5 -> 5 | BA88: =+IF(Z88=0,0,IF(Z88>$K$7,$F$9,($F$9/$K$7)*Z88)) -> 8 | BB88: =+IF(AJ88=0,0,IF(AJ88>$L$6,$F$10,($F$10/$L$6)*AJ88)) -> 1 | BC88: =IF(DB88>0,$F$11,0) -> 3 | BD88: =IF(DC88>0,$F$12,0) -> 0 | BE88: =IF(DD88>0,$F$13,0) -> 0 | BF88: =IF(DF88>0,$F$14,0) -> 1 | BG88: =IF(DG88>0,$F$15,0) -> 1 | BH88: =+IF(DH88>=$L$23,$J$23,IF(DH88<($L$23),DH88*($J$23/($L$23)),)) -> 0.47 | BI88: =+IF(DI88>=$L$24,$J$24,IF(DI88<($L$24),DI88*($J$24/($L$24)),)) -> 0.5 | BJ88: =+IF(DJ88>=$L$25,$J$25,IF(DJ88<($L$25),DJ88*($J$25/($L$25)),)) -> 0 | BK88: =+IF(DK88>=$L$26,$J$26,IF(DK88<($L$26),DK88*($J$26/($L$26)),)) -> 0 | BL88: =IF(DL88>0,$F$17,0) -> 0 | BM88: =+IF(DO88>=$L$29,$J$29,IF(DO88<($L$29),DO88*($J$29/($L$29)),)) -> 0 | BO88: =IF(EB88>0,$F$19,0) -> 2 | BP88: 39.30877673 | BQ88: =+IF(BP88>=$L$19,$J$19,IF(BP88<($L$19),BP88*($J$19/($L$19)),)) -> 1 | BR88: =SUM(BA88+BC88+BD88+BE88+BB88+BF88+BL88+BH88+BI88+BJ88+BK88+BM88+BO88+BQ88+BG88) -> 17.97 | BS88: =+BR88*$H$9 -> 5.99 | BT88: =DN88 -> 2018.45 | BU88: =BT88/X88 -> 0.3955418381 | BV88: =IF(BU88>0,IF(BU88>=$DA$28,$CY$28,IF(BU88<$DA$28,$CY$29,0)),0) -> 0.5 | BW88: 5097.59 | BX88: =BW88/X88 -> 0.9989398393 | BY88: =IF(BX88,$F$23,0) -> 1 | BZ88: =IF(DQ88>0,$F$24,0) -> 0 | CA88: =DR88 -> 0 | CB88: =CA88/X88 -> 0 | CC88: =+IF(CB88>=$K$4,$F$25,0) -> 0 | CD88: 18.84303351 | CE88: =IF(CD88>0,IF(CD88>=100,$F$26,IF(CD88<100,$F$26/2)),0) -> 0.5 | CF88: =SUM(DU88) -> 1 | CG88: =IF(DY88>0,$F$28,0) -> 0 | CH88: =IF(DV88>0,$F$29,0) -> 0 | CI88: =IF(EA88=0,$F$30,0) -> 1 | CJ88: =SUM(BV88,BY88,CE88,BZ88,CC88,CF88,CG88,CH88,CI88) -> 4 | CK88: =+CJ88*$H$22 -> 1.333333333 | CL88: =SUM(AY88,BR88,CJ88) -> 36.97 | CM88: =SUM(AZ88,BS88,CK88) -> 12.32333333 | CN88: =IF(D88<($Z$13*$CN$28),1,IF(D88<(($Z$14+$Z$13)*$CN$28),2,IF(D88<(($Z$15+$Z$13+$Z$14)*$CN$28),3,4))) -> 2 | CO88: =VLOOKUP(A88,Taul1!$F$6:$G$953,2,FALSE) -> 2 | CQ88: =AR88+AV88+AX88+BA88+BC88+BD88+BF88+BG88+BH88+BI88+BJ88+BK88+BL88+BM88+BO88+BV88+BY88+BZ88+CF88+CI88 -> 34.47 | CR88: =AY88 -> 15 | CS88: =BA88+BC88+BD88+BF88+BG88+BH88+BI88+BJ88+BK88+BL88+BM88+BO88 -> 15.97 | CT88: =BV88+BY88+BZ88+CF88+CI88 -> 3.5 | CV88: https://www.google.com/maps/@61.93072768,25.34685194,3a,75y,90t/data=!3m3!1e1!3m1!2e0 | DA88: 5 | DB88: =SUM(CY88:DA88) -> 5 | DC88: 0 | DD88: 0 | DE88: 2 | DF88: 5 | DG88: 2 | DH88: 94 | DI88: 119 | DJ88: 0 | DK88: 0 | DL88: 0 | DN88: 2018.45 | DO88: 0 | DQ88: 0 | DR88: 0 | DS88: =+IF(AA88>$K$8,$F$27/2,0) -> 1 | DT88: =+IF(AA88/Y88>1.5,$F$27/2,0) -> 0 | DU88: =SUM(DS88:DT88) -> 1 | DV88: 0 | DW88: 0 | DX88: 0 | DY88: =SUM(DW88:DX88) -> 0 | EA88: 0 | EB88: 1 | EG88: =IFERROR(VLOOKUP(A88,$EN$37:$EP$992,2,FALSE),"--") -> -- | EH88: =IF(EG88="--","--",IF(N88="LOPUT",IF(EG88="VÄHÄ","--> LOPUT",""),IF(N88="VÄHÄ",IF(EG88="LOPUT","-->VÄHÄ","")))) -> -- | EI88: =IFERROR(VLOOKUP(A88,$EN$37:$EP$992,3,FALSE),"--") -> -- | EJ88: =IFERROR(EI88-D88,"--") -> -- | EK88: =IFERROR(VLOOKUP(A88,$EN$37:$EQ$992,4,FALSE),"--") -> -- | EL88: =IFERROR(EK88-K88,"--") -> -- | EN88: 697_21 | EO88: VÄHÄ | EP88: 47 | EQ88: 2
A89: =CONCATENATE(S89,"_",T89) -> 9_303 | B89: 2 | D89: =RANK(CM89,$CM$37:$CM$984) -> 53 | E89: 53 | F89: =E89-D89 -> 0 | G89: =CM89 -> 12.31 | H89: =AZ89 -> 5 | I89: =BS89 -> 5.643333333 | J89: =CK89 -> 1.666666667 | K89: =CN89 -> 2 | L89: =B89-K89 -> 0 | M89: =HYPERLINK(CV89,"Gmaps") -> Gmaps | N89: =IF(Y89>$K$6,"LOPUT","VÄHÄ") -> LOPUT | O89: =IF(S89<40,"Valta",IF(S89<100,"Kanta",IF(S89<1000,"Seutu",IF(S89>999,"Yhdys")))) -> Valta | P89: Kuopiontie | Q89: Jyväskylä, Laukaa | S89: 9 | T89: 303 | U89: 0 | V89: 303 | W89: 11439 | X89: 11439 | Y89: 9672.149401 | Z89: 868.7133491 | AA89: 11902 | AB89: 9329 (66 %), 10336 (34 %) | AC89: 100 (64 %), 60 (9 %), 80 (27 %) | AD89: Is (100 %) | AE89: Kivimastiksiasfaltti (100 %) | AF89: PK1 (100 %) | AG89: 10 | AH89: 21 | AI89: 0.0006483507578 | AJ89: 454.4299327 | AR89: =+IF(Y89>=$K$6,$F$5,($F$5/($K$6))*Y89) -> 9 | AS89: 217 | AV89: =+IF(AS89>=$L$15,$J$15,IF(AS89<($L$15),AS89*($J$15/($L$15)),)) -> 3 | AW89: 3369 | AX89: =+IF(AW89>=$L$11,$J$11,IF(AW89<($L$11),AW89*($J$11/($L$11)),)) -> 3 | AY89: =SUM(AR89,AV89,AX89) -> 15 | AZ89: =+AY89*$H$5 -> 5 | BA89: =+IF(Z89=0,0,IF(Z89>$K$7,$F$9,($F$9/$K$7)*Z89)) -> 8 | BB89: =+IF(AJ89=0,0,IF(AJ89>$L$6,$F$10,($F$10/$L$6)*AJ89)) -> 1 | BC89: =IF(DB89>0,$F$11,0) -> 3 | BD89: =IF(DC89>0,$F$12,0) -> 0 | BE89: =IF(DD89>0,$F$13,0) -> 1 | BF89: =IF(DF89>0,$F$14,0) -> 1 | BG89: =IF(DG89>0,$F$15,0) -> 1 | BH89: =+IF(DH89>=$L$23,$J$23,IF(DH89<($L$23),DH89*($J$23/($L$23)),)) -> 0.5 | BI89: =+IF(DI89>=$L$24,$J$24,IF(DI89<($L$24),DI89*($J$24/($L$24)),)) -> 0.03 | BJ89: =+IF(DJ89>=$L$25,$J$25,IF(DJ89<($L$25),DJ89*($J$25/($L$25)),)) -> 0 | BK89: =+IF(DK89>=$L$26,$J$26,IF(DK89<($L$26),DK89*($J$26/($L$26)),)) -> 0 | BL89: =IF(DL89>0,$F$17,0) -> 0 | BM89: =+IF(DO89>=$L$29,$J$29,IF(DO89<($L$29),DO89*($J$29/($L$29)),)) -> 0.4 | BO89: =IF(EB89>0,$F$19,0) -> 0 | BP89: 11.15031316 | BQ89: =+IF(BP89>=$L$19,$J$19,IF(BP89<($L$19),BP89*($J$19/($L$19)),)) -> 1 | BR89: =SUM(BA89+BC89+BD89+BE89+BB89+BF89+BL89+BH89+BI89+BJ89+BK89+BM89+BO89+BQ89+BG89) -> 16.93 | BS89: =+BR89*$H$9 -> 5.643333333 | BT89: =DN89 -> 94.3708 | BU89: =BT89/X89 -> 0.008249916951 | BV89: =IF(BU89>0,IF(BU89>=$DA$28,$CY$28,IF(BU89<$DA$28,$CY$29,0)),0) -> 0.5 | BW89: 11431.3 | BX89: =BW89/X89 -> 0.9993268642 | BY89: =IF(BX89,$F$23,0) -> 1 | BZ89: =IF(DQ89>0,$F$24,0) -> 1 | CA89: =DR89 -> 1070.85 | CB89: =CA89/X89 -> 0.09361395227 | CC89: =+IF(CB89>=$K$4,$F$25,0) -> 0 | CD89: 23.91817467 | CE89: =IF(CD89>0,IF(CD89>=100,$F$26,IF(CD89<100,$F$26/2)),0) -> 0.5 | CF89: =SUM(DU89) -> 1 | CG89: =IF(DY89>0,$F$28,0) -> 0 | CH89: =IF(DV89>0,$F$29,0) -> 0 | CI89: =IF(EA89=0,$F$30,0) -> 1 | CJ89: =SUM(BV89,BY89,CE89,BZ89,CC89,CF89,CG89,CH89,CI89) -> 5 | CK89: =+CJ89*$H$22 -> 1.666666667 | CL89: =SUM(AY89,BR89,CJ89) -> 36.93 | CM89: =SUM(AZ89,BS89,CK89) -> 12.31 | CN89: =IF(D89<($Z$13*$CN$28),1,IF(D89<(($Z$14+$Z$13)*$CN$28),2,IF(D89<(($Z$15+$Z$13+$Z$14)*$CN$28),3,4))) -> 2 | CO89: =VLOOKUP(A89,Taul1!$F$6:$G$953,2,FALSE) -> 2 | CQ89: =AR89+AV89+AX89+BA89+BC89+BD89+BF89+BG89+BH89+BI89+BJ89+BK89+BL89+BM89+BO89+BV89+BY89+BZ89+CF89+CI89 -> 33.43 | CR89: =AY89 -> 15 | CS89: =BA89+BC89+BD89+BF89+BG89+BH89+BI89+BJ89+BK89+BL89+BM89+BO89 -> 13.93 | CT89: =BV89+BY89+BZ89+CF89+CI89 -> 4.5 | CV89: https://www.google.com/maps/@62.23023102,25.90066707,3a,75y,90t/data=!3m3!1e1!3m1!2e0 | DA89: 5 | DB89: =SUM(CY89:DA89) -> 5 | DC89: 0 | DD89: 2 | DE89: 0 | DF89: 6 | DG89: 1 | DH89: 934 | DI89: 6 | DJ89: 0 | DK89: 0 | DL89: 0 | DN89: 94.3708 | DO89: 1 | DQ89: 35 | DR89: 1070.85 | DS89: =+IF(AA89>$K$8,$F$27/2,0) -> 1 | DT89: =+IF(AA89/Y89>1.5,$F$27/2,0) -> 0 | DU89: =SUM(DS89:DT89) -> 1 | DV89: 0 | DW89: 0 | DX89: 0 | DY89: =SUM(DW89:DX89) -> 0 | EA89: 0 | EB89: 0 | EG89: =IFERROR(VLOOKUP(A89,$EN$37:$EP$992,2,FALSE),"--") -> -- | EH89: =IF(EG89="--","--",IF(N89="LOPUT",IF(EG89="VÄHÄ","--> LOPUT",""),IF(N89="VÄHÄ",IF(EG89="LOPUT","-->VÄHÄ","")))) -> -- | EI89: =IFERROR(VLOOKUP(A89,$EN$37:$EP$992,3,FALSE),"--") -> -- | EJ89: =IFERROR(EI89-D89,"--") -> -- | EK89: =IFERROR(VLOOKUP(A89,$EN$37:$EQ$992,4,FALSE),"--") -> -- | EL89: =IFERROR(EK89-K89,"--") -> -- | EN89: 6570_3 | EO89: VÄHÄ | EP89: 48 | EQ89: 2
A90: =CONCATENATE(S90,"_",T90) -> 4_231 | B90: 2 | D90: =RANK(CM90,$CM$37:$CM$984) -> 54 | E90: 54 | F90: =E90-D90 -> 0 | G90: =CM90 -> 12.30442541 | H90: =AZ90 -> 5 | I90: =BS90 -> 5.304425409 | J90: =CK90 -> 2 | K90: =CN90 -> 2 | L90: =B90-K90 -> 0 | M90: =HYPERLINK(CV90,"Gmaps") -> Gmaps | N90: =IF(Y90>$K$6,"LOPUT","VÄHÄ") -> LOPUT | O90: =IF(S90<40,"Valta",IF(S90<100,"Kanta",IF(S90<1000,"Seutu",IF(S90>999,"Yhdys")))) -> Valta | P90: Viisarimäenväylä | Q90: Jyväskylä | S90: 4 | T90: 231 | U90: 0 | V90: 231 | W90: 3614 | X90: 3614 | Y90: 5614 | Z90: 780 | AA90: 6868 | AB90: 5614 (100 %) | AC90: 100 (74 %), 50 (5 %), 60 (14 %), 80 (7 %) | AD90: Ise (100 %) | AE90: Kivimastiksiasfaltti (100 %) | AF90: PK1 (100 %) | AG90: 1 | AH90: 2 | AI90: 0 | AJ90: 612 | AR90: =+IF(Y90>=$K$6,$F$5,($F$5/($K$6))*Y90) -> 9 | AS90: 287 | AV90: =+IF(AS90>=$L$15,$J$15,IF(AS90<($L$15),AS90*($J$15/($L$15)),)) -> 3 | AW90: 1093 | AX90: =+IF(AW90>=$L$11,$J$11,IF(AW90<($L$11),AW90*($J$11/($L$11)),)) -> 3 | AY90: =SUM(AR90,AV90,AX90) -> 15 | AZ90: =+AY90*$H$5 -> 5 | BA90: =+IF(Z90=0,0,IF(Z90>$K$7,$F$9,($F$9/$K$7)*Z90)) -> 8 | BB90: =+IF(AJ90=0,0,IF(AJ90>$L$6,$F$10,($F$10/$L$6)*AJ90)) -> 1 | BC90: =IF(DB90>0,$F$11,0) -> 3 | BD90: =IF(DC90>0,$F$12,0) -> 0 | BE90: =IF(DD90>0,$F$13,0) -> 0 | BF90: =IF(DF90>0,$F$14,0) -> 1 | BG90: =IF(DG90>0,$F$15,0) -> 0 | BH90: =+IF(DH90>=$L$23,$J$23,IF(DH90<($L$23),DH90*($J$23/($L$23)),)) -> 0.5 | BI90: =+IF(DI90>=$L$24,$J$24,IF(DI90<($L$24),DI90*($J$24/($L$24)),)) -> 0.04 | BJ90: =+IF(DJ90>=$L$25,$J$25,IF(DJ90<($L$25),DJ90*($J$25/($L$25)),)) -> 0 | BK90: =+IF(DK90>=$L$26,$J$26,IF(DK90<($L$26),DK90*($J$26/($L$26)),)) -> 0 | BL90: =IF(DL90>0,$F$17,0) -> 0 | BM90: =+IF(DO90>=$L$29,$J$29,IF(DO90<($L$29),DO90*($J$29/($L$29)),)) -> 0 | BO90: =IF(EB90>0,$F$19,0) -> 2 | BP90: 3.732762262 | BQ90: =+IF(BP90>=$L$19,$J$19,IF(BP90<($L$19),BP90*($J$19/($L$19)),)) -> 0.3732762262 | BR90: =SUM(BA90+BC90+BD90+BE90+BB90+BF90+BL90+BH90+BI90+BJ90+BK90+BM90+BO90+BQ90+BG90) -> 15.91327623 | BS90: =+BR90*$H$9 -> 5.304425409 | BT90: =DN90 -> 80.8046 | BU90: =BT90/X90 -> 0.02235877144 | BV90: =IF(BU90>0,IF(BU90>=$DA$28,$CY$28,IF(BU90<$DA$28,$CY$29,0)),0) -> 0.5 | BW90: 3605.78 | BX90: =BW90/X90 -> 0.9977255119 | BY90: =IF(BX90,$F$23,0) -> 1 | BZ90: =IF(DQ90>0,$F$24,0) -> 1 | CA90: =DR90 -> 657.782 | CB90: =CA90/X90 -> 0.1820094079 | CC90: =+IF(CB90>=$K$4,$F$25,0) -> 0 | CD90: 29.33148866 | CE90: =IF(CD90>0,IF(CD90>=100,$F$26,IF(CD90<100,$F$26/2)),0) -> 0.5 | CF90: =SUM(DU90) -> 1 | CG90: =IF(DY90>0,$F$28,0) -> 1 | CH90: =IF(DV90>0,$F$29,0) -> 0 | CI90: =IF(EA90=0,$F$30,0) -> 1 | CJ90: =SUM(BV90,BY90,CE90,BZ90,CC90,CF90,CG90,CH90,CI90) -> 6 | CK90: =+CJ90*$H$22 -> 2 | CL90: =SUM(AY90,BR90,CJ90) -> 36.91327623 | CM90: =SUM(AZ90,BS90,CK90) -> 12.30442541 | CN90: =IF(D90<($Z$13*$CN$28),1,IF(D90<(($Z$14+$Z$13)*$CN$28),2,IF(D90<(($Z$15+$Z$13+$Z$14)*$CN$28),3,4))) -> 2 | CO90: =VLOOKUP(A90,Taul1!$F$6:$G$953,2,FALSE) -> 1 | CQ90: =AR90+AV90+AX90+BA90+BC90+BD90+BF90+BG90+BH90+BI90+BJ90+BK90+BL90+BM90+BO90+BV90+BY90+BZ90+CF90+CI90 -> 34.04 | CR90: =AY90 -> 15 | CS90: =BA90+BC90+BD90+BF90+BG90+BH90+BI90+BJ90+BK90+BL90+BM90+BO90 -> 14.54 | CT90: =BV90+BY90+BZ90+CF90+CI90 -> 4.5 | CV90: https://www.google.com/maps/@62.1986456,25.89302863,3a,75y,90t/data=!3m3!1e1!3m1!2e0 | DA90: 4 | DB90: =SUM(CY90:DA90) -> 4 | DC90: 0 | DD90: 0 | DE90: 0 | DF90: 2 | DG90: 0 | DH90: 125 | DI90: 8 | DJ90: 0 | DK90: 0 | DL90: 0 | DN90: 80.8046 | DO90: 0 | DQ90: 6 | DR90: 657.782 | DS90: =+IF(AA90>$K$8,$F$27/2,0) -> 1 | DT90: =+IF(AA90/Y90>1.5,$F$27/2,0) -> 0 | DU90: =SUM(DS90:DT90) -> 1 | DV90: 0 | DW90: 0 | DX90: 1 | DY90: =SUM(DW90:DX90) -> 1 | EA90: 0 | EB90: 1 | EG90: =IFERROR(VLOOKUP(A90,$EN$37:$EP$992,2,FALSE),"--") -> -- | EH90: =IF(EG90="--","--",IF(N90="LOPUT",IF(EG90="VÄHÄ","--> LOPUT",""),IF(N90="VÄHÄ",IF(EG90="LOPUT","-->VÄHÄ","")))) -> -- | EI90: =IFERROR(VLOOKUP(A90,$EN$37:$EP$992,3,FALSE),"--") -> -- | EJ90: =IFERROR(EI90-D90,"--") -> -- | EK90: =IFERROR(VLOOKUP(A90,$EN$37:$EQ$992,4,FALSE),"--") -> -- | EL90: =IFERROR(EK90-K90,"--") -> -- | EN90: 16861_1 | EO90: VÄHÄ | EP90: 49 | EQ90: 2
A91: =CONCATENATE(S91,"_",T91) -> 58_22 | B91: 2 | D91: =RANK(CM91,$CM$37:$CM$984) -> 55 | E91: 55 | F91: =E91-D91 -> 0 | G91: =CM91 -> 12.3 | H91: =AZ91 -> 4.3 | I91: =BS91 -> 6 | J91: =CK91 -> 2 | K91: =CN91 -> 2 | L91: =B91-K91 -> 0 | M91: =HYPERLINK(CV91,"Gmaps") -> Gmaps | N91: =IF(Y91>$K$6,"LOPUT","VÄHÄ") -> LOPUT | O91: =IF(S91<40,"Valta",IF(S91<100,"Kanta",IF(S91<1000,"Seutu",IF(S91>999,"Yhdys")))) -> Kanta | P91: Mäntäntie | Q91: Keuruu | S91: 58 | T91: 22 | U91: 0 | V91: 22 | W91: 5933 | X91: 5933 | Y91: 2390.79673 | Z91: 171.1051744 | AA91: 3014 | AB91: 2154 (81 %), 3381 (19 %) | AC91: 100 (37 %), 50 (21 %), 80 (41 %) | AD91: Ib (81 %), Is (19 %) | AE91: Asfalttibetoni (99 %) | AF91: PK2 (100 %) | AG91: 1 | AH91: 4 | AI91: 0.05612674869 | AJ91: 69.42103489 | AR91: =+IF(Y91>=$K$6,$F$5,($F$5/($K$6))*Y91) -> 9 | AS91: 6 | AV91: =+IF(AS91>=$L$15,$J$15,IF(AS91<($L$15),AS91*($J$15/($L$15)),)) -> 0.9 | AW91: 988 | AX91: =+IF(AW91>=$L$11,$J$11,IF(AW91<($L$11),AW91*($J$11/($L$11)),)) -> 3 | AY91: =SUM(AR91,AV91,AX91) -> 12.9 | AZ91: =+AY91*$H$5 -> 4.3 | BA91: =+IF(Z91=0,0,IF(Z91>$K$7,$F$9,($F$9/$K$7)*Z91)) -> 8 | BB91: =+IF(AJ91=0,0,IF(AJ91>$L$6,$F$10,($F$10/$L$6)*AJ91)) -> 1 | BC91: =IF(DB91>0,$F$11,0) -> 3 | BD91: =IF(DC91>0,$F$12,0) -> 1 | BE91: =IF(DD91>0,$F$13,0) -> 0 | BF91: =IF(DF91>0,$F$14,0) -> 1 | BG91: =IF(DG91>0,$F$15,0) -> 1 | BH91: =+IF(DH91>=$L$23,$J$23,IF(DH91<($L$23),DH91*($J$23/($L$23)),)) -> 0 | BI91: =+IF(DI91>=$L$24,$J$24,IF(DI91<($L$24),DI91*($J$24/($L$24)),)) -> 0 | BJ91: =+IF(DJ91>=$L$25,$J$25,IF(DJ91<($L$25),DJ91*($J$25/($L$25)),)) -> 0 | BK91: =+IF(DK91>=$L$26,$J$26,IF(DK91<($L$26),DK91*($J$26/($L$26)),)) -> 0 | BL91: =IF(DL91>0,$F$17,0) -> 0 | BM91: =+IF(DO91>=$L$29,$J$29,IF(DO91<($L$29),DO91*($J$29/($L$29)),)) -> 2 | BO91: =IF(EB91>0,$F$19,0) -> 0 | BP91: 12.51575121 | BQ91: =+IF(BP91>=$L$19,$J$19,IF(BP91<($L$19),BP91*($J$19/($L$19)),)) -> 1 | BR91: =SUM(BA91+BC91+BD91+BE91+BB91+BF91+BL91+BH91+BI91+BJ91+BK91+BM91+BO91+BQ91+BG91) -> 18 | BS91: =+BR91*$H$9 -> 6 | BT91: =DN91 -> 3385.34 | BU91: =BT91/X91 -> 0.5705949772 | BV91: =IF(BU91>0,IF(BU91>=$DA$28,$CY$28,IF(BU91<$DA$28,$CY$29,0)),0) -> 1 | BW91: 0 | BX91: =BW91/X91 -> 0 | BY91: =IF(BX91,$F$23,0) -> 0 | BZ91: =IF(DQ91>0,$F$24,0) -> 1 | CA91: =DR91 -> 1801.89 | CB91: =CA91/X91 -> 0.303706388 | CC91: =+IF(CB91>=$K$4,$F$25,0) -> 0 | CD91: 142.9351087 | CE91: =IF(CD91>0,IF(CD91>=100,$F$26,IF(CD91<100,$F$26/2)),0) -> 1 | CF91: =SUM(DU91) -> 1 | CG91: =IF(DY91>0,$F$28,0) -> 1 | CH91: =IF(DV91>0,$F$29,0) -> 0 | CI91: =IF(EA91=0,$F$30,0) -> 1 | CJ91: =SUM(BV91,BY91,CE91,BZ91,CC91,CF91,CG91,CH91,CI91) -> 6 | CK91: =+CJ91*$H$22 -> 2 | CL91: =SUM(AY91,BR91,CJ91) -> 36.9 | CM91: =SUM(AZ91,BS91,CK91) -> 12.3 | CN91: =IF(D91<($Z$13*$CN$28),1,IF(D91<(($Z$14+$Z$13)*$CN$28),2,IF(D91<(($Z$15+$Z$13+$Z$14)*$CN$28),3,4))) -> 2 | CO91: =VLOOKUP(A91,Taul1!$F$6:$G$953,2,FALSE) -> 2 | CQ91: =AR91+AV91+AX91+BA91+BC91+BD91+BF91+BG91+BH91+BI91+BJ91+BK91+BL91+BM91+BO91+BV91+BY91+BZ91+CF91+CI91 -> 32.9 | CR91: =AY91 -> 12.9 | CS91: =BA91+BC91+BD91+BF91+BG91+BH91+BI91+BJ91+BK91+BL91+BM91+BO91 -> 16 | CT91: =BV91+BY91+BZ91+CF91+CI91 -> 4 | CV91: https://www.google.com/maps/@62.20838829,24.77001139,3a,75y,90t/data=!3m3!1e1!3m1!2e0 | DA91: 1 | DB91: =SUM(CY91:DA91) -> 1 | DC91: 1 | DD91: 0 | DE91: 0 | DF91: 1 | DG91: 1 | DH91: 0 | DI91: 0 | DJ91: 0 | DK91: 0 | DL91: 0 | DN91: 3385.34 | DO91: 7 | DQ91: 2 | DR91: 1801.89 | DS91: =+IF(AA91>$K$8,$F$27/2,0) -> 1 | DT91: =+IF(AA91/Y91>1.5,$F$27/2,0) -> 0 | DU91: =SUM(DS91:DT91) -> 1 | DV91: 0 | DW91: 0 | DX91: 1 | DY91: =SUM(DW91:DX91) -> 1 | EA91: 0 | EB91: 0 | EG91: =IFERROR(VLOOKUP(A91,$EN$37:$EP$992,2,FALSE),"--") -> LOPUT | EH91: =IF(EG91="--","--",IF(N91="LOPUT",IF(EG91="VÄHÄ","--> LOPUT",""),IF(N91="VÄHÄ",IF(EG91="LOPUT","-->VÄHÄ","")))) ->  | EI91: =IFERROR(VLOOKUP(A91,$EN$37:$EP$992,3,FALSE),"--") -> 63 | EJ91: =IFERROR(EI91-D91,"--") -> 8 | EK91: =IFERROR(VLOOKUP(A91,$EN$37:$EQ$992,4,FALSE),"--") -> 1 | EL91: =IFERROR(EK91-K91,"--") -> -1 | EN91: 6007_1 | EO91: VÄHÄ | EP91: 50 | EQ91: 2
A92: =CONCATENATE(S92,"_",T92) -> 13_124 | B92: 2 | D92: =RANK(CM92,$CM$37:$CM$984) -> 56 | E92: 56 | F92: =E92-D92 -> 0 | G92: =CM92 -> 12.28583333 | H92: =AZ92 -> 4.9525 | I92: =BS92 -> 5.333333333 | J92: =CK92 -> 2 | K92: =CN92 -> 2 | L92: =B92-K92 -> 0 | M92: =HYPERLINK(CV92,"Gmaps") -> Gmaps | N92: =IF(Y92>$K$6,"LOPUT","VÄHÄ") -> LOPUT | O92: =IF(S92<40,"Valta",IF(S92<100,"Kanta",IF(S92<1000,"Seutu",IF(S92>999,"Yhdys")))) -> Valta | P92: Jyväskyläntie | Q92: Kyyjärvi | S92: 13 | T92: 124 | U92: 0 | V92: 124 | W92: 6892 | X92: 6892 | Y92: 1985.440511 | Z92: 326.909025 | AA92: 2844 | AB92: 1970 (68 %), 2018 (32 %) | AC92: 100 (91 %), 50 (6 %), 80 (3 %) | AD92: Is (100 %) | AE92: Asfalttibetoni (100 %) | AF92: PK1 (100 %) | AG92: 1 | AH92: 4 | AI92: 0.04352872896 | AJ92: 205.6223157 | AR92: =+IF(Y92>=$K$6,$F$5,($F$5/($K$6))*Y92) -> 9 | AS92: 23 | AV92: =+IF(AS92>=$L$15,$J$15,IF(AS92<($L$15),AS92*($J$15/($L$15)),)) -> 3 | AW92: 381 | AX92: =+IF(AW92>=$L$11,$J$11,IF(AW92<($L$11),AW92*($J$11/($L$11)),)) -> 2.8575 | AY92: =SUM(AR92,AV92,AX92) -> 14.8575 | AZ92: =+AY92*$H$5 -> 4.9525 | BA92: =+IF(Z92=0,0,IF(Z92>$K$7,$F$9,($F$9/$K$7)*Z92)) -> 8 | BB92: =+IF(AJ92=0,0,IF(AJ92>$L$6,$F$10,($F$10/$L$6)*AJ92)) -> 1 | BC92: =IF(DB92>0,$F$11,0) -> 3 | BD92: =IF(DC92>0,$F$12,0) -> 1 | BE92: =IF(DD92>0,$F$13,0) -> 1 | BF92: =IF(DF92>0,$F$14,0) -> 1 | BG92: =IF(DG92>0,$F$15,0) -> 0 | BH92: =+IF(DH92>=$L$23,$J$23,IF(DH92<($L$23),DH92*($J$23/($L$23)),)) -> 0 | BI92: =+IF(DI92>=$L$24,$J$24,IF(DI92<($L$24),DI92*($J$24/($L$24)),)) -> 0 | BJ92: =+IF(DJ92>=$L$25,$J$25,IF(DJ92<($L$25),DJ92*($J$25/($L$25)),)) -> 0 | BK92: =+IF(DK92>=$L$26,$J$26,IF(DK92<($L$26),DK92*($J$26/($L$26)),)) -> 0 | BL92: =IF(DL92>0,$F$17,0) -> 0 | BM92: =+IF(DO92>=$L$29,$J$29,IF(DO92<($L$29),DO92*($J$29/($L$29)),)) -> 0 | BO92: =IF(EB92>0,$F$19,0) -> 0 | BP92: 16.30864129 | BQ92: =+IF(BP92>=$L$19,$J$19,IF(BP92<($L$19),BP92*($J$19/($L$19)),)) -> 1 | BR92: =SUM(BA92+BC92+BD92+BE92+BB92+BF92+BL92+BH92+BI92+BJ92+BK92+BM92+BO92+BQ92+BG92) -> 16 | BS92: =+BR92*$H$9 -> 5.333333333 | BT92: =DN92 -> 2004.59 | BU92: =BT92/X92 -> 0.290857516 | BV92: =IF(BU92>0,IF(BU92>=$DA$28,$CY$28,IF(BU92<$DA$28,$CY$29,0)),0) -> 0.5 | BW92: 6880.4 | BX92: =BW92/X92 -> 0.9983168891 | BY92: =IF(BX92,$F$23,0) -> 1 | BZ92: =IF(DQ92>0,$F$24,0) -> 1 | CA92: =DR92 -> 1288.87 | CB92: =CA92/X92 -> 0.1870095763 | CC92: =+IF(CB92>=$K$4,$F$25,0) -> 0 | CD92: 38.45037725 | CE92: =IF(CD92>0,IF(CD92>=100,$F$26,IF(CD92<100,$F$26/2)),0) -> 0.5 | CF92: =SUM(DU92) -> 1 | CG92: =IF(DY92>0,$F$28,0) -> 1 | CH92: =IF(DV92>0,$F$29,0) -> 0 | CI92: =IF(EA92=0,$F$30,0) -> 1 | CJ92: =SUM(BV92,BY92,CE92,BZ92,CC92,CF92,CG92,CH92,CI92) -> 6 | CK92: =+CJ92*$H$22 -> 2 | CL92: =SUM(AY92,BR92,CJ92) -> 36.8575 | CM92: =SUM(AZ92,BS92,CK92) -> 12.28583333 | CN92: =IF(D92<($Z$13*$CN$28),1,IF(D92<(($Z$14+$Z$13)*$CN$28),2,IF(D92<(($Z$15+$Z$13+$Z$14)*$CN$28),3,4))) -> 2 | CO92: =VLOOKUP(A92,Taul1!$F$6:$G$953,2,FALSE) -> 2 | CQ92: =AR92+AV92+AX92+BA92+BC92+BD92+BF92+BG92+BH92+BI92+BJ92+BK92+BL92+BM92+BO92+BV92+BY92+BZ92+CF92+CI92 -> 32.3575 | CR92: =AY92 -> 14.8575 | CS92: =BA92+BC92+BD92+BF92+BG92+BH92+BI92+BJ92+BK92+BL92+BM92+BO92 -> 13 | CT92: =BV92+BY92+BZ92+CF92+CI92 -> 4.5 | CV92: https://www.google.com/maps/@63.0428526,24.56100364,3a,75y,90t/data=!3m3!1e1!3m1!2e0 | DA92: 6 | DB92: =SUM(CY92:DA92) -> 6 | DC92: 1 | DD92: 2 | DE92: 0 | DF92: 1 | DG92: 0 | DH92: 0 | DI92: 0 | DJ92: 0 | DK92: 0 | DL92: 0 | DN92: 2004.59 | DO92: 0 | DQ92: 1 | DR92: 1288.87 | DS92: =+IF(AA92>$K$8,$F$27/2,0) -> 1 | DT92: =+IF(AA92/Y92>1.5,$F$27/2,0) -> 0 | DU92: =SUM(DS92:DT92) -> 1 | DV92: 0 | DW92: 1 | DX92: 0 | DY92: =SUM(DW92:DX92) -> 1 | EA92: 0 | EB92: 0 | EG92: =IFERROR(VLOOKUP(A92,$EN$37:$EP$992,2,FALSE),"--") -> -- | EH92: =IF(EG92="--","--",IF(N92="LOPUT",IF(EG92="VÄHÄ","--> LOPUT",""),IF(N92="VÄHÄ",IF(EG92="LOPUT","-->VÄHÄ","")))) -> -- | EI92: =IFERROR(VLOOKUP(A92,$EN$37:$EP$992,3,FALSE),"--") -> -- | EJ92: =IFERROR(EI92-D92,"--") -> -- | EK92: =IFERROR(VLOOKUP(A92,$EN$37:$EQ$992,4,FALSE),"--") -> -- | EL92: =IFERROR(EK92-K92,"--") -> -- | EN92: 6541_1 | EO92: VÄHÄ | EP92: 84 | EQ92: 2
A93: =CONCATENATE(S93,"_",T93) -> 618_1 | B93: 2 | D93: =RANK(CM93,$CM$37:$CM$984) -> 57 | E93: 57 | F93: =E93-D93 -> 0 | G93: =CM93 -> 12.28485705 | H93: =AZ93 -> 5 | I93: =BS93 -> 4.95152372 | J93: =CK93 -> 2.333333333 | K93: =CN93 -> 2 | L93: =B93-K93 -> 0 | M93: =HYPERLINK(CV93,"Gmaps") -> Gmaps | N93: =IF(Y93>$K$6,"LOPUT","VÄHÄ") -> LOPUT | O93: =IF(S93<40,"Valta",IF(S93<100,"Kanta",IF(S93<1000,"Seutu",IF(S93>999,"Yhdys")))) -> Seutu | P93: Toivakantie, Viisarimäentie | Q93: Toivakka | S93: 618 | T93: 1 | U93: 0 | V93: 1 | W93: 3798 | X93: 3798 | Y93: 1839.687204 | Z93: 165.5371248 | AA93: 2063 | AB93: 1719 (27 %), 1884 (73 %) | AC93: 40 (17 %), 50 (23 %), 80 (61 %) | AD93: Ib (100 %) | AE93: Asfalttibetoni (99 %) | AF93: PK2 (100 %) | AG93: 0 | AH93: 3 | AI93: 0 | AJ93: 90 | AR93: =+IF(Y93>=$K$6,$F$5,($F$5/($K$6))*Y93) -> 9 | AS93: 24 | AV93: =+IF(AS93>=$L$15,$J$15,IF(AS93<($L$15),AS93*($J$15/($L$15)),)) -> 3 | AW93: 524 | AX93: =+IF(AW93>=$L$11,$J$11,IF(AW93<($L$11),AW93*($J$11/($L$11)),)) -> 3 | AY93: =SUM(AR93,AV93,AX93) -> 15 | AZ93: =+AY93*$H$5 -> 5 | BA93: =+IF(Z93=0,0,IF(Z93>$K$7,$F$9,($F$9/$K$7)*Z93)) -> 8 | BB93: =+IF(AJ93=0,0,IF(AJ93>$L$6,$F$10,($F$10/$L$6)*AJ93)) -> 1 | BC93: =IF(DB93>0,$F$11,0) -> 0 | BD93: =IF(DC93>0,$F$12,0) -> 0 | BE93: =IF(DD93>0,$F$13,0) -> 1 | BF93: =IF(DF93>0,$F$14,0) -> 1 | BG93: =IF(DG93>0,$F$15,0) -> 1 | BH93: =+IF(DH93>=$L$23,$J$23,IF(DH93<($L$23),DH93*($J$23/($L$23)),)) -> 0.425 | BI93: =+IF(DI93>=$L$24,$J$24,IF(DI93<($L$24),DI93*($J$24/($L$24)),)) -> 0.02 | BJ93: =+IF(DJ93>=$L$25,$J$25,IF(DJ93<($L$25),DJ93*($J$25/($L$25)),)) -> 0 | BK93: =+IF(DK93>=$L$26,$J$26,IF(DK93<($L$26),DK93*($J$26/($L$26)),)) -> 0 | BL93: =IF(DL93>0,$F$17,0) -> 0 | BM93: =+IF(DO93>=$L$29,$J$29,IF(DO93<($L$29),DO93*($J$29/($L$29)),)) -> 0 | BO93: =IF(EB93>0,$F$19,0) -> 2 | BP93: 4.095711598 | BQ93: =+IF(BP93>=$L$19,$J$19,IF(BP93<($L$19),BP93*($J$19/($L$19)),)) -> 0.4095711598 | BR93: =SUM(BA93+BC93+BD93+BE93+BB93+BF93+BL93+BH93+BI93+BJ93+BK93+BM93+BO93+BQ93+BG93) -> 14.85457116 | BS93: =+BR93*$H$9 -> 4.95152372 | BT93: =DN93 -> 2686.15 | BU93: =BT93/X93 -> 0.7072538178 | BV93: =IF(BU93>0,IF(BU93>=$DA$28,$CY$28,IF(BU93<$DA$28,$CY$29,0)),0) -> 1 | BW93: 3745.35 | BX93: =BW93/X93 -> 0.9861374408 | BY93: =IF(BX93,$F$23,0) -> 1 | BZ93: =IF(DQ93>0,$F$24,0) -> 1 | CA93: =DR93 -> 1532.51 | CB93: =CA93/X93 -> 0.403504476 | CC93: =+IF(CB93>=$K$4,$F$25,0) -> 0 | CD93: 189.2532912 | CE93: =IF(CD93>0,IF(CD93>=100,$F$26,IF(CD93<100,$F$26/2)),0) -> 1 | CF93: =SUM(DU93) -> 1 | CG93: =IF(DY93>0,$F$28,0) -> 1 | CH93: =IF(DV93>0,$F$29,0) -> 0 | CI93: =IF(EA93=0,$F$30,0) -> 1 | CJ93: =SUM(BV93,BY93,CE93,BZ93,CC93,CF93,CG93,CH93,CI93) -> 7 | CK93: =+CJ93*$H$22 -> 2.333333333 | CL93: =SUM(AY93,BR93,CJ93) -> 36.85457116 | CM93: =SUM(AZ93,BS93,CK93) -> 12.28485705 | CN93: =IF(D93<($Z$13*$CN$28),1,IF(D93<(($Z$14+$Z$13)*$CN$28),2,IF(D93<(($Z$15+$Z$13+$Z$14)*$CN$28),3,4))) -> 2 | CO93: =VLOOKUP(A93,Taul1!$F$6:$G$953,2,FALSE) -> 2 | CQ93: =AR93+AV93+AX93+BA93+BC93+BD93+BF93+BG93+BH93+BI93+BJ93+BK93+BL93+BM93+BO93+BV93+BY93+BZ93+CF93+CI93 -> 32.445 | CR93: =AY93 -> 15 | CS93: =BA93+BC93+BD93+BF93+BG93+BH93+BI93+BJ93+BK93+BL93+BM93+BO93 -> 12.445 | CT93: =BV93+BY93+BZ93+CF93+CI93 -> 5 | CV93: https://www.google.com/maps/@62.07109708,26.04106073,3a,75y,90t/data=!3m3!1e1!3m1!2e0 | DA93: 0 | DB93: =SUM(CY93:DA93) -> 0 | DC93: 0 | DD93: 1 | DE93: 0 | DF93: 2 | DG93: 4 | DH93: 85 | DI93: 4 | DJ93: 0 | DK93: 0 | DL93: 0 | DN93: 2686.15 | DO93: 0 | DQ93: 5 | DR93: 1532.51 | DS93: =+IF(AA93>$K$8,$F$27/2,0) -> 1 | DT93: =+IF(AA93/Y93>1.5,$F$27/2,0) -> 0 | DU93: =SUM(DS93:DT93) -> 1 | DV93: 0 | DW93: 0 | DX93: 1 | DY93: =SUM(DW93:DX93) -> 1 | EA93: 0 | EB93: 2 | EG93: =IFERROR(VLOOKUP(A93,$EN$37:$EP$992,2,FALSE),"--") -> LOPUT | EH93: =IF(EG93="--","--",IF(N93="LOPUT",IF(EG93="VÄHÄ","--> LOPUT",""),IF(N93="VÄHÄ",IF(EG93="LOPUT","-->VÄHÄ","")))) ->  | EI93: =IFERROR(VLOOKUP(A93,$EN$37:$EP$992,3,FALSE),"--") -> 50 | EJ93: =IFERROR(EI93-D93,"--") -> -7 | EK93: =IFERROR(VLOOKUP(A93,$EN$37:$EQ$992,4,FALSE),"--") -> 1 | EL93: =IFERROR(EK93-K93,"--") -> -1 | EN93: 659_8 | EO93: VÄHÄ | EP93: 51 | EQ93: 2
A94: =CONCATENATE(S94,"_",T94) -> 4_319 | B94: 2 | D94: =RANK(CM94,$CM$37:$CM$984) -> 58 | E94: 58 | F94: =E94-D94 -> 0 | G94: =CM94 -> 12.26333333 | H94: =AZ94 -> 5 | I94: =BS94 -> 5.43 | J94: =CK94 -> 1.833333333 | K94: =CN94 -> 2 | L94: =B94-K94 -> 0 | M94: =HYPERLINK(CV94,"Gmaps") -> Gmaps | N94: =IF(Y94>$K$6,"LOPUT","VÄHÄ") -> LOPUT | O94: =IF(S94<40,"Valta",IF(S94<100,"Kanta",IF(S94<1000,"Seutu",IF(S94>999,"Yhdys")))) -> Valta | P94: Pihtiputaantie | Q94: Viitasaari | S94: 4 | T94: 319 | U94: 0 | V94: 319 | W94: 9323 | X94: 9323 | Y94: 6671.849512 | Z94: 901.3578247 | AA94: 9199 | AB94: 6638 (85 %), 6857 (15 %) | AC94: 100 (64 %), 70 (21 %), 80 (15 %) | AD94: Ise (100 %) | AE94: Kivimastiksiasfaltti (99 %) | AF94: PK1 (100 %) | AG94: 7 | AH94: 28 | AI94: 0.03742234863 | AJ94: 617.037327 | AR94: =+IF(Y94>=$K$6,$F$5,($F$5/($K$6))*Y94) -> 9 | AS94: 70 | AV94: =+IF(AS94>=$L$15,$J$15,IF(AS94<($L$15),AS94*($J$15/($L$15)),)) -> 3 | AW94: 1360 | AX94: =+IF(AW94>=$L$11,$J$11,IF(AW94<($L$11),AW94*($J$11/($L$11)),)) -> 3 | AY94: =SUM(AR94,AV94,AX94) -> 15 | AZ94: =+AY94*$H$5 -> 5 | BA94: =+IF(Z94=0,0,IF(Z94>$K$7,$F$9,($F$9/$K$7)*Z94)) -> 8 | BB94: =+IF(AJ94=0,0,IF(AJ94>$L$6,$F$10,($F$10/$L$6)*AJ94)) -> 1 | BC94: =IF(DB94>0,$F$11,0) -> 0 | BD94: =IF(DC94>0,$F$12,0) -> 1 | BE94: =IF(DD94>0,$F$13,0) -> 1 | BF94: =IF(DF94>0,$F$14,0) -> 0 | BG94: =IF(DG94>0,$F$15,0) -> 0 | BH94: =+IF(DH94>=$L$23,$J$23,IF(DH94<($L$23),DH94*($J$23/($L$23)),)) -> 0 | BI94: =+IF(DI94>=$L$24,$J$24,IF(DI94<($L$24),DI94*($J$24/($L$24)),)) -> 0.02 | BJ94: =+IF(DJ94>=$L$25,$J$25,IF(DJ94<($L$25),DJ94*($J$25/($L$25)),)) -> 0.27 | BK94: =+IF(DK94>=$L$26,$J$26,IF(DK94<($L$26),DK94*($J$26/($L$26)),)) -> 0 | BL94: =IF(DL94>0,$F$17,0) -> 2 | BM94: =+IF(DO94>=$L$29,$J$29,IF(DO94<($L$29),DO94*($J$29/($L$29)),)) -> 0 | BO94: =IF(EB94>0,$F$19,0) -> 2 | BP94: 41.26590743 | BQ94: =+IF(BP94>=$L$19,$J$19,IF(BP94<($L$19),BP94*($J$19/($L$19)),)) -> 1 | BR94: =SUM(BA94+BC94+BD94+BE94+BB94+BF94+BL94+BH94+BI94+BJ94+BK94+BM94+BO94+BQ94+BG94) -> 16.29 | BS94: =+BR94*$H$9 -> 5.43 | BT94: =DN94 -> 4428.91 | BU94: =BT94/X94 -> 0.4750520219 | BV94: =IF(BU94>0,IF(BU94>=$DA$28,$CY$28,IF(BU94<$DA$28,$CY$29,0)),0) -> 0.5 | BW94: 9189.16 | BX94: =BW94/X94 -> 0.985644106 | BY94: =IF(BX94,$F$23,0) -> 1 | BZ94: =IF(DQ94>0,$F$24,0) -> 0 | CA94: =DR94 -> 3534.9 | CB94: =CA94/X94 -> 0.379159069 | CC94: =+IF(CB94>=$K$4,$F$25,0) -> 0 | CD94: 112.8407165 | CE94: =IF(CD94>0,IF(CD94>=100,$F$26,IF(CD94<100,$F$26/2)),0) -> 1 | CF94: =SUM(DU94) -> 1 | CG94: =IF(DY94>0,$F$28,0) -> 1 | CH94: =IF(DV94>0,$F$29,0) -> 0 | CI94: =IF(EA94=0,$F$30,0) -> 1 | CJ94: =SUM(BV94,BY94,CE94,BZ94,CC94,CF94,CG94,CH94,CI94) -> 5.5 | CK94: =+CJ94*$H$22 -> 1.833333333 | CL94: =SUM(AY94,BR94,CJ94) -> 36.79 | CM94: =SUM(AZ94,BS94,CK94) -> 12.26333333 | CN94: =IF(D94<($Z$13*$CN$28),1,IF(D94<(($Z$14+$Z$13)*$CN$28),2,IF(D94<(($Z$15+$Z$13+$Z$14)*$CN$28),3,4))) -> 2 | CO94: =VLOOKUP(A94,Taul1!$F$6:$G$953,2,FALSE) -> 2 | CQ94: =AR94+AV94+AX94+BA94+BC94+BD94+BF94+BG94+BH94+BI94+BJ94+BK94+BL94+BM94+BO94+BV94+BY94+BZ94+CF94+CI94 -> 31.79 | CR94: =AY94 -> 15 | CS94: =BA94+BC94+BD94+BF94+BG94+BH94+BI94+BJ94+BK94+BL94+BM94+BO94 -> 13.29 | CT94: =BV94+BY94+BZ94+CF94+CI94 -> 3.5 | CV94: https://www.google.com/maps/@63.07299671,25.86164063,3a,75y,90t/data=!3m3!1e1!3m1!2e0 | DA94: 0 | DB94: =SUM(CY94:DA94) -> 0 | DC94: 3 | DD94: 1 | DE94: 0 | DF94: 0 | DG94: 0 | DH94: 0 | DI94: 4 | DJ94: 216 | DK94: 0 | DL94: 1 | DN94: 4428.91 | DO94: 0 | DQ94: 0 | DR94: 3534.9 | DS94: =+IF(AA94>$K$8,$F$27/2,0) -> 1 | DT94: =+IF(AA94/Y94>1.5,$F$27/2,0) -> 0 | DU94: =SUM(DS94:DT94) -> 1 | DV94: 0 | DW94: 6 | DX94: 0 | DY94: =SUM(DW94:DX94) -> 6 | EA94: 0 | EB94: 3 | EG94: =IFERROR(VLOOKUP(A94,$EN$37:$EP$992,2,FALSE),"--") -> -- | EH94: =IF(EG94="--","--",IF(N94="LOPUT",IF(EG94="VÄHÄ","--> LOPUT",""),IF(N94="VÄHÄ",IF(EG94="LOPUT","-->VÄHÄ","")))) -> -- | EI94: =IFERROR(VLOOKUP(A94,$EN$37:$EP$992,3,FALSE),"--") -> -- | EJ94: =IFERROR(EI94-D94,"--") -> -- | EK94: =IFERROR(VLOOKUP(A94,$EN$37:$EQ$992,4,FALSE),"--") -> -- | EL94: =IFERROR(EK94-K94,"--") -> -- | EN94: 16761_1 | EO94: VÄHÄ | EP94: 53 | EQ94: 2
A95: =CONCATENATE(S95,"_",T95) -> 642_1 | B95: 2 | D95: =RANK(CM95,$CM$37:$CM$984) -> 59 | E95: 59 | F95: =E95-D95 -> 0 | G95: =CM95 -> 12.24994518 | H95: =AZ95 -> 5 | I95: =BS95 -> 5.083278511 | J95: =CK95 -> 2.166666667 | K95: =CN95 -> 2 | L95: =B95-K95 -> 0 | M95: =HYPERLINK(CV95,"Gmaps") -> Gmaps | N95: =IF(Y95>$K$6,"LOPUT","VÄHÄ") -> LOPUT | O95: =IF(S95<40,"Valta",IF(S95<100,"Kanta",IF(S95<1000,"Seutu",IF(S95>999,"Yhdys")))) -> Seutu | P95: Suolahdentie | Q95: Laukaa | S95: 642 | T95: 1 | U95: 0 | V95: 1 | W95: 6763 | X95: 6763 | Y95: 1937 | Z95: 168 | AA95: 2171 | AB95: 1937 (100 %) | AC95: 40 (7 %), 50 (6 %), 60 (27 %), 80 (60 %) | AD95: Ib (100 %) | AE95: Asfalttibetoni (99 %), Pehmeät asfalttibetonit (PAB-B) (1 %) | AF95: PK2 (100 %) | AG95: 0 | AH95: 1 | AI95: 0.04435901227 | AJ95: 71 | AR95: =+IF(Y95>=$K$6,$F$5,($F$5/($K$6))*Y95) -> 9 | AS95: 26 | AV95: =+IF(AS95>=$L$15,$J$15,IF(AS95<($L$15),AS95*($J$15/($L$15)),)) -> 3 | AW95: 405 | AX95: =+IF(AW95>=$L$11,$J$11,IF(AW95<($L$11),AW95*($J$11/($L$11)),)) -> 3 | AY95: =SUM(AR95,AV95,AX95) -> 15 | AZ95: =+AY95*$H$5 -> 5 | BA95: =+IF(Z95=0,0,IF(Z95>$K$7,$F$9,($F$9/$K$7)*Z95)) -> 8 | BB95: =+IF(AJ95=0,0,IF(AJ95>$L$6,$F$10,($F$10/$L$6)*AJ95)) -> 1 | BC95: =IF(DB95>0,$F$11,0) -> 3 | BD95: =IF(DC95>0,$F$12,0) -> 0 | BE95: =IF(DD95>0,$F$13,0) -> 1 | BF95: =IF(DF95>0,$F$14,0) -> 1 | BG95: =IF(DG95>0,$F$15,0) -> 0 | BH95: =+IF(DH95>=$L$23,$J$23,IF(DH95<($L$23),DH95*($J$23/($L$23)),)) -> 0.5 | BI95: =+IF(DI95>=$L$24,$J$24,IF(DI95<($L$24),DI95*($J$24/($L$24)),)) -> 0.1 | BJ95: =+IF(DJ95>=$L$25,$J$25,IF(DJ95<($L$25),DJ95*($J$25/($L$25)),)) -> 0 | BK95: =+IF(DK95>=$L$26,$J$26,IF(DK95<($L$26),DK95*($J$26/($L$26)),)) -> 0 | BL95: =IF(DL95>0,$F$17,0) -> 0 | BM95: =+IF(DO95>=$L$29,$J$29,IF(DO95<($L$29),DO95*($J$29/($L$29)),)) -> 0 | BO95: =IF(EB95>0,$F$19,0) -> 0 | BP95: 6.498355326 | BQ95: =+IF(BP95>=$L$19,$J$19,IF(BP95<($L$19),BP95*($J$19/($L$19)),)) -> 0.6498355326 | BR95: =SUM(BA95+BC95+BD95+BE95+BB95+BF95+BL95+BH95+BI95+BJ95+BK95+BM95+BO95+BQ95+BG95) -> 15.24983553 | BS95: =+BR95*$H$9 -> 5.083278511 | BT95: =DN95 -> 3589.03 | BU95: =BT95/X95 -> 0.5306860861 | BV95: =IF(BU95>0,IF(BU95>=$DA$28,$CY$28,IF(BU95<$DA$28,$CY$29,0)),0) -> 1 | BW95: 6754.09 | BX95: =BW95/X95 -> 0.9986825373 | BY95: =IF(BX95,$F$23,0) -> 1 | BZ95: =IF(DQ95>0,$F$24,0) -> 1 | CA95: =DR95 -> 1717.58 | CB95: =CA95/X95 -> 0.2539671743 | CC95: =+IF(CB95>=$K$4,$F$25,0) -> 0 | CD95: 31.85612894 | CE95: =IF(CD95>0,IF(CD95>=100,$F$26,IF(CD95<100,$F$26/2)),0) -> 0.5 | CF95: =SUM(DU95) -> 1 | CG95: =IF(DY95>0,$F$28,0) -> 1 | CH95: =IF(DV95>0,$F$29,0) -> 0 | CI95: =IF(EA95=0,$F$30,0) -> 1 | CJ95: =SUM(BV95,BY95,CE95,BZ95,CC95,CF95,CG95,CH95,CI95) -> 6.5 | CK95: =+CJ95*$H$22 -> 2.166666667 | CL95: =SUM(AY95,BR95,CJ95) -> 36.74983553 | CM95: =SUM(AZ95,BS95,CK95) -> 12.24994518 | CN95: =IF(D95<($Z$13*$CN$28),1,IF(D95<(($Z$14+$Z$13)*$CN$28),2,IF(D95<(($Z$15+$Z$13+$Z$14)*$CN$28),3,4))) -> 2 | CO95: =VLOOKUP(A95,Taul1!$F$6:$G$953,2,FALSE) -> 1 | CQ95: =AR95+AV95+AX95+BA95+BC95+BD95+BF95+BG95+BH95+BI95+BJ95+BK95+BL95+BM95+BO95+BV95+BY95+BZ95+CF95+CI95 -> 32.6 | CR95: =AY95 -> 15 | CS95: =BA95+BC95+BD95+BF95+BG95+BH95+BI95+BJ95+BK95+BL95+BM95+BO95 -> 12.6 | CT95: =BV95+BY95+BZ95+CF95+CI95 -> 5 | CV95: https://www.google.com/maps/@62.45827532,25.94300017,3a,75y,90t/data=!3m3!1e1!3m1!2e0 | DA95: 1 | DB95: =SUM(CY95:DA95) -> 1 | DC95: 0 | DD95: 1 | DE95: 0 | DF95: 1 | DG95: 0 | DH95: 147 | DI95: 20 | DJ95: 0 | DK95: 0 | DL95: 0 | DN95: 3589.03 | DO95: 0 | DQ95: 1 | DR95: 1717.58 | DS95: =+IF(AA95>$K$8,$F$27/2,0) -> 1 | DT95: =+IF(AA95/Y95>1.5,$F$27/2,0) -> 0 | DU95: =SUM(DS95:DT95) -> 1 | DV95: 0 | DW95: 0 | DX95: 1 | DY95: =SUM(DW95:DX95) -> 1 | EA95: 0 | EB95: 0 | EG95: =IFERROR(VLOOKUP(A95,$EN$37:$EP$992,2,FALSE),"--") -> LOPUT | EH95: =IF(EG95="--","--",IF(N95="LOPUT",IF(EG95="VÄHÄ","--> LOPUT",""),IF(N95="VÄHÄ",IF(EG95="LOPUT","-->VÄHÄ","")))) ->  | EI95: =IFERROR(VLOOKUP(A95,$EN$37:$EP$992,3,FALSE),"--") -> 52 | EJ95: =IFERROR(EI95-D95,"--") -> -7 | EK95: =IFERROR(VLOOKUP(A95,$EN$37:$EQ$992,4,FALSE),"--") -> 1 | EL95: =IFERROR(EK95-K95,"--") -> -1 | EN95: 775_23 | EO95: VÄHÄ | EP95: 54 | EQ95: 2
A96: =CONCATENATE(S96,"_",T96) -> 627_8 | B96: 2 | D96: =RANK(CM96,$CM$37:$CM$984) -> 60 | E96: 60 | F96: =E96-D96 -> 0 | G96: =CM96 -> 12.21333333 | H96: =AZ96 -> 4.5 | I96: =BS96 -> 5.546666667 | J96: =CK96 -> 2.166666667 | K96: =CN96 -> 2 | L96: =B96-K96 -> 0 | M96: =HYPERLINK(CV96,"Gmaps") -> Gmaps | N96: =IF(Y96>$K$6,"LOPUT","VÄHÄ") -> LOPUT | O96: =IF(S96<40,"Valta",IF(S96<100,"Kanta",IF(S96<1000,"Seutu",IF(S96>999,"Yhdys")))) -> Seutu | P96: Jyväskyläntie, Multiantie | Q96: Uurainen | S96: 627 | T96: 8 | U96: 0 | V96: 8 | W96: 4656 | X96: 4656 | Y96: 1193.434923 | Z96: 97.18685567 | AA96: 1314 | AB96: 988 (90 %), 3045 (10 %) | AC96: 50 (25 %), 60 (28 %), 80 (47 %) | AD96: Ib (100 %) | AE96: Asfalttibetoni (100 %) | AF96: PK2 (100 %) | AG96: 0 | AH96: 1 | AI96: 0.07359490986 | AJ96: 52.59793814 | AR96: =+IF(Y96>=$K$6,$F$5,($F$5/($K$6))*Y96) -> 9 | AS96: 10 | AV96: =+IF(AS96>=$L$15,$J$15,IF(AS96<($L$15),AS96*($J$15/($L$15)),)) -> 1.5 | AW96: 596 | AX96: =+IF(AW96>=$L$11,$J$11,IF(AW96<($L$11),AW96*($J$11/($L$11)),)) -> 3 | AY96: =SUM(AR96,AV96,AX96) -> 13.5 | AZ96: =+AY96*$H$5 -> 4.5 | BA96: =+IF(Z96=0,0,IF(Z96>$K$7,$F$9,($F$9/$K$7)*Z96)) -> 8 | BB96: =+IF(AJ96=0,0,IF(AJ96>$L$6,$F$10,($F$10/$L$6)*AJ96)) -> 1 | BC96: =IF(DB96>0,$F$11,0) -> 3 | BD96: =IF(DC96>0,$F$12,0) -> 0 | BE96: =IF(DD96>0,$F$13,0) -> 0 | BF96: =IF(DF96>0,$F$14,0) -> 1 | BG96: =IF(DG96>0,$F$15,0) -> 0 | BH96: =+IF(DH96>=$L$23,$J$23,IF(DH96<($L$23),DH96*($J$23/($L$23)),)) -> 0.5 | BI96: =+IF(DI96>=$L$24,$J$24,IF(DI96<($L$24),DI96*($J$24/($L$24)),)) -> 0.14 | BJ96: =+IF(DJ96>=$L$25,$J$25,IF(DJ96<($L$25),DJ96*($J$25/($L$25)),)) -> 0 | BK96: =+IF(DK96>=$L$26,$J$26,IF(DK96<($L$26),DK96*($J$26/($L$26)),)) -> 0 | BL96: =IF(DL96>0,$F$17,0) -> 2 | BM96: =+IF(DO96>=$L$29,$J$29,IF(DO96<($L$29),DO96*($J$29/($L$29)),)) -> 0 | BO96: =IF(EB96>0,$F$19,0) -> 0 | BP96: 16.09252481 | BQ96: =+IF(BP96>=$L$19,$J$19,IF(BP96<($L$19),BP96*($J$19/($L$19)),)) -> 1 | BR96: =SUM(BA96+BC96+BD96+BE96+BB96+BF96+BL96+BH96+BI96+BJ96+BK96+BM96+BO96+BQ96+BG96) -> 16.64 | BS96: =+BR96*$H$9 -> 5.546666667 | BT96: =DN96 -> 2513.92 | BU96: =BT96/X96 -> 0.5399312715 | BV96: =IF(BU96>0,IF(BU96>=$DA$28,$CY$28,IF(BU96<$DA$28,$CY$29,0)),0) -> 1 | BW96: 4657.21 | BX96: =BW96/X96 -> 1.00025988 | BY96: =IF(BX96,$F$23,0) -> 1 | BZ96: =IF(DQ96>0,$F$24,0) -> 1 | CA96: =DR96 -> 1607.41 | CB96: =CA96/X96 -> 0.3452341065 | CC96: =+IF(CB96>=$K$4,$F$25,0) -> 0 | CD96: 96.69415808 | CE96: =IF(CD96>0,IF(CD96>=100,$F$26,IF(CD96<100,$F$26/2)),0) -> 0.5 | CF96: =SUM(DU96) -> 1 | CG96: =IF(DY96>0,$F$28,0) -> 1 | CH96: =IF(DV96>0,$F$29,0) -> 0 | CI96: =IF(EA96=0,$F$30,0) -> 1 | CJ96: =SUM(BV96,BY96,CE96,BZ96,CC96,CF96,CG96,CH96,CI96) -> 6.5 | CK96: =+CJ96*$H$22 -> 2.166666667 | CL96: =SUM(AY96,BR96,CJ96) -> 36.64 | CM96: =SUM(AZ96,BS96,CK96) -> 12.21333333 | CN96: =IF(D96<($Z$13*$CN$28),1,IF(D96<(($Z$14+$Z$13)*$CN$28),2,IF(D96<(($Z$15+$Z$13+$Z$14)*$CN$28),3,4))) -> 2 | CO96: =VLOOKUP(A96,Taul1!$F$6:$G$953,2,FALSE) -> 2 | CQ96: =AR96+AV96+AX96+BA96+BC96+BD96+BF96+BG96+BH96+BI96+BJ96+BK96+BL96+BM96+BO96+BV96+BY96+BZ96+CF96+CI96 -> 33.14 | CR96: =AY96 -> 13.5 | CS96: =BA96+BC96+BD96+BF96+BG96+BH96+BI96+BJ96+BK96+BL96+BM96+BO96 -> 14.64 | CT96: =BV96+BY96+BZ96+CF96+CI96 -> 5 | CV96: https://www.google.com/maps/@62.48780782,25.36277591,3a,75y,90t/data=!3m3!1e1!3m1!2e0 | DA96: 1 | DB96: =SUM(CY96:DA96) -> 1 | DC96: 0 | DD96: 0 | DE96: 0 | DF96: 2 | DG96: 0 | DH96: 109 | DI96: 28 | DJ96: 0 | DK96: 0 | DL96: 1 | DN96: 2513.92 | DO96: 0 | DQ96: 4 | DR96: 1607.41 | DS96: =+IF(AA96>$K$8,$F$27/2,0) -> 1 | DT96: =+IF(AA96/Y96>1.5,$F$27/2,0) -> 0 | DU96: =SUM(DS96:DT96) -> 1 | DV96: 0 | DW96: 0 | DX96: 2 | DY96: =SUM(DW96:DX96) -> 2 | EA96: 0 | EB96: 0 | EG96: =IFERROR(VLOOKUP(A96,$EN$37:$EP$992,2,FALSE),"--") -> LOPUT | EH96: =IF(EG96="--","--",IF(N96="LOPUT",IF(EG96="VÄHÄ","--> LOPUT",""),IF(N96="VÄHÄ",IF(EG96="LOPUT","-->VÄHÄ","")))) ->  | EI96: =IFERROR(VLOOKUP(A96,$EN$37:$EP$992,3,FALSE),"--") -> 24 | EJ96: =IFERROR(EI96-D96,"--") -> -36 | EK96: =IFERROR(VLOOKUP(A96,$EN$37:$EQ$992,4,FALSE),"--") -> 1 | EL96: =IFERROR(EK96-K96,"--") -> -1 | EN96: 16683_1 | EO96: VÄHÄ | EP96: 56 | EQ96: 2
A97: =CONCATENATE(S97,"_",T97) -> 9_307 | B97: 2 | D97: =RANK(CM97,$CM$37:$CM$984) -> 61 | E97: 61 | F97: =E97-D97 -> 0 | G97: =CM97 -> 12.18824947 | H97: =AZ97 -> 5 | I97: =BS97 -> 5.188249468 | J97: =CK97 -> 2 | K97: =CN97 -> 2 | L97: =B97-K97 -> 0 | M97: =HYPERLINK(CV97,"Gmaps") -> Gmaps | N97: =IF(Y97>$K$6,"LOPUT","VÄHÄ") -> LOPUT | O97: =IF(S97<40,"Valta",IF(S97<100,"Kanta",IF(S97<1000,"Seutu",IF(S97>999,"Yhdys")))) -> Valta | P97: Kuopiontie, Ysitie | Q97: Hankasalmi, Laukaa | S97: 9 | T97: 307 | U97: 0 | V97: 307 | W97: 5766 | X97: 5766 | Y97: 6182 | Z97: 629 | AA97: 7607 | AB97: 6182 (100 %) | AC97: 100 (80 %), 80 (19 %) | AD97: Is (99 %) | AE97: Asfalttibetoni (8 %), Kivimastiksiasfaltti (91 %) | AF97: PK1 (99 %) | AG97: 1 | AH97: 5 | AI97: 0.01723840717 | AJ97: 361 | AR97: =+IF(Y97>=$K$6,$F$5,($F$5/($K$6))*Y97) -> 9 | AS97: 74 | AV97: =+IF(AS97>=$L$15,$J$15,IF(AS97<($L$15),AS97*($J$15/($L$15)),)) -> 3 | AW97: 1525 | AX97: =+IF(AW97>=$L$11,$J$11,IF(AW97<($L$11),AW97*($J$11/($L$11)),)) -> 3 | AY97: =SUM(AR97,AV97,AX97) -> 15 | AZ97: =+AY97*$H$5 -> 5 | BA97: =+IF(Z97=0,0,IF(Z97>$K$7,$F$9,($F$9/$K$7)*Z97)) -> 8 | BB97: =+IF(AJ97=0,0,IF(AJ97>$L$6,$F$10,($F$10/$L$6)*AJ97)) -> 1 | BC97: =IF(DB97>0,$F$11,0) -> 3 | BD97: =IF(DC97>0,$F$12,0) -> 1 | BE97: =IF(DD97>0,$F$13,0) -> 0 | BF97: =IF(DF97>0,$F$14,0) -> 1 | BG97: =IF(DG97>0,$F$15,0) -> 0 | BH97: =+IF(DH97>=$L$23,$J$23,IF(DH97<($L$23),DH97*($J$23/($L$23)),)) -> 0.5 | BI97: =+IF(DI97>=$L$24,$J$24,IF(DI97<($L$24),DI97*($J$24/($L$24)),)) -> 0.24 | BJ97: =+IF(DJ97>=$L$25,$J$25,IF(DJ97<($L$25),DJ97*($J$25/($L$25)),)) -> 0 | BK97: =+IF(DK97>=$L$26,$J$26,IF(DK97<($L$26),DK97*($J$26/($L$26)),)) -> 0 | BL97: =IF(DL97>0,$F$17,0) -> 0 | BM97: =+IF(DO97>=$L$29,$J$29,IF(DO97<($L$29),DO97*($J$29/($L$29)),)) -> 0 | BO97: =IF(EB97>0,$F$19,0) -> 0 | BP97: 8.247484053 | BQ97: =+IF(BP97>=$L$19,$J$19,IF(BP97<($L$19),BP97*($J$19/($L$19)),)) -> 0.8247484053 | BR97: =SUM(BA97+BC97+BD97+BE97+BB97+BF97+BL97+BH97+BI97+BJ97+BK97+BM97+BO97+BQ97+BG97) -> 15.56474841 | BS97: =+BR97*$H$9 -> 5.188249468 | BT97: =DN97 -> 2433.22 | BU97: =BT97/X97 -> 0.4219944502 | BV97: =IF(BU97>0,IF(BU97>=$DA$28,$CY$28,IF(BU97<$DA$28,$CY$29,0)),0) -> 0.5 | BW97: 5732.13 | BX97: =BW97/X97 -> 0.9941259105 | BY97: =IF(BX97,$F$23,0) -> 1 | BZ97: =IF(DQ97>0,$F$24,0) -> 1 | CA97: =DR97 -> 846.941 | CB97: =CA97/X97 -> 0.1468853625 | CC97: =+IF(CB97>=$K$4,$F$25,0) -> 0 | CD97: 42.41380506 | CE97: =IF(CD97>0,IF(CD97>=100,$F$26,IF(CD97<100,$F$26/2)),0) -> 0.5 | CF97: =SUM(DU97) -> 1 | CG97: =IF(DY97>0,$F$28,0) -> 1 | CH97: =IF(DV97>0,$F$29,0) -> 0 | CI97: =IF(EA97=0,$F$30,0) -> 1 | CJ97: =SUM(BV97,BY97,CE97,BZ97,CC97,CF97,CG97,CH97,CI97) -> 6 | CK97: =+CJ97*$H$22 -> 2 | CL97: =SUM(AY97,BR97,CJ97) -> 36.56474841 | CM97: =SUM(AZ97,BS97,CK97) -> 12.18824947 | CN97: =IF(D97<($Z$13*$CN$28),1,IF(D97<(($Z$14+$Z$13)*$CN$28),2,IF(D97<(($Z$15+$Z$13+$Z$14)*$CN$28),3,4))) -> 2 | CO97: =VLOOKUP(A97,Taul1!$F$6:$G$953,2,FALSE) -> 1 | CQ97: =AR97+AV97+AX97+BA97+BC97+BD97+BF97+BG97+BH97+BI97+BJ97+BK97+BL97+BM97+BO97+BV97+BY97+BZ97+CF97+CI97 -> 33.24 | CR97: =AY97 -> 15 | CS97: =BA97+BC97+BD97+BF97+BG97+BH97+BI97+BJ97+BK97+BL97+BM97+BO97 -> 13.74 | CT97: =BV97+BY97+BZ97+CF97+CI97 -> 4.5 | CV97: https://www.google.com/maps/@62.25694173,26.26808404,3a,75y,90t/data=!3m3!1e1!3m1!2e0 | DA97: 3 | DB97: =SUM(CY97:DA97) -> 3 | DC97: 1 | DD97: 0 | DE97: 0 | DF97: 1 | DG97: 0 | DH97: 155 | DI97: 48 | DJ97: 0 | DK97: 0 | DL97: 0 | DN97: 2433.22 | DO97: 0 | DQ97: 1 | DR97: 846.941 | DS97: =+IF(AA97>$K$8,$F$27/2,0) -> 1 | DT97: =+IF(AA97/Y97>1.5,$F$27/2,0) -> 0 | DU97: =SUM(DS97:DT97) -> 1 | DV97: 0 | DW97: 0 | DX97: 1 | DY97: =SUM(DW97:DX97) -> 1 | EA97: 0 | EB97: 0 | EG97: =IFERROR(VLOOKUP(A97,$EN$37:$EP$992,2,FALSE),"--") -> -- | EH97: =IF(EG97="--","--",IF(N97="LOPUT",IF(EG97="VÄHÄ","--> LOPUT",""),IF(N97="VÄHÄ",IF(EG97="LOPUT","-->VÄHÄ","")))) -> -- | EI97: =IFERROR(VLOOKUP(A97,$EN$37:$EP$992,3,FALSE),"--") -> -- | EJ97: =IFERROR(EI97-D97,"--") -> -- | EK97: =IFERROR(VLOOKUP(A97,$EN$37:$EQ$992,4,FALSE),"--") -> -- | EL97: =IFERROR(EK97-K97,"--") -> -- | EN97: 16777_5 | EO97: VÄHÄ | EP97: 58 | EQ97: 2
A98: =CONCATENATE(S98,"_",T98) -> 638_3 | B98: 2 | D98: =RANK(CM98,$CM$37:$CM$984) -> 62 | E98: 62 | F98: =E98-D98 -> 0 | G98: =CM98 -> 12.17517629 | H98: =AZ98 -> 5 | I98: =BS98 -> 5.175176294 | J98: =CK98 -> 2 | K98: =CN98 -> 2 | L98: =B98-K98 -> 0 | M98: =HYPERLINK(CV98,"Gmaps") -> Gmaps | N98: =IF(Y98>$K$6,"LOPUT","VÄHÄ") -> LOPUT | O98: =IF(S98<40,"Valta",IF(S98<100,"Kanta",IF(S98<1000,"Seutu",IF(S98>999,"Yhdys")))) -> Seutu | P98: Kuukanpääntie | Q98: Jyväskylä, Laukaa | S98: 638 | T98: 3 | U98: 0 | V98: 3 | W98: 7854 | X98: 7854 | Y98: 1426 | Z98: 196 | AA98: 1739 | AB98: 1426 (100 %) | AC98: 60 (14 %), 80 (86 %) | AD98: Ib (100 %) | AE98: Asfalttibetoni (100 %) | AF98: PK2 (100 %) | AG98: 1 | AH98: 6 | AI98: 0.6850432633 | AJ98: 113 | AR98: =+IF(Y98>=$K$6,$F$5,($F$5/($K$6))*Y98) -> 9 | AS98: 195 | AV98: =+IF(AS98>=$L$15,$J$15,IF(AS98<($L$15),AS98*($J$15/($L$15)),)) -> 3 | AW98: 741 | AX98: =+IF(AW98>=$L$11,$J$11,IF(AW98<($L$11),AW98*($J$11/($L$11)),)) -> 3 | AY98: =SUM(AR98,AV98,AX98) -> 15 | AZ98: =+AY98*$H$5 -> 5 | BA98: =+IF(Z98=0,0,IF(Z98>$K$7,$F$9,($F$9/$K$7)*Z98)) -> 8 | BB98: =+IF(AJ98=0,0,IF(AJ98>$L$6,$F$10,($F$10/$L$6)*AJ98)) -> 1 | BC98: =IF(DB98>0,$F$11,0) -> 0 | BD98: =IF(DC98>0,$F$12,0) -> 1 | BE98: =IF(DD98>0,$F$13,0) -> 1 | BF98: =IF(DF98>0,$F$14,0) -> 1 | BG98: =IF(DG98>0,$F$15,0) -> 1 | BH98: =+IF(DH98>=$L$23,$J$23,IF(DH98<($L$23),DH98*($J$23/($L$23)),)) -> 0.425 | BI98: =+IF(DI98>=$L$24,$J$24,IF(DI98<($L$24),DI98*($J$24/($L$24)),)) -> 0 | BJ98: =+IF(DJ98>=$L$25,$J$25,IF(DJ98<($L$25),DJ98*($J$25/($L$25)),)) -> 0 | BK98: =+IF(DK98>=$L$26,$J$26,IF(DK98<($L$26),DK98*($J$26/($L$26)),)) -> 0 | BL98: =IF(DL98>0,$F$17,0) -> 0 | BM98: =+IF(DO98>=$L$29,$J$29,IF(DO98<($L$29),DO98*($J$29/($L$29)),)) -> 0 | BO98: =IF(EB98>0,$F$19,0) -> 2 | BP98: 1.005288821 | BQ98: =+IF(BP98>=$L$19,$J$19,IF(BP98<($L$19),BP98*($J$19/($L$19)),)) -> 0.1005288821 | BR98: =SUM(BA98+BC98+BD98+BE98+BB98+BF98+BL98+BH98+BI98+BJ98+BK98+BM98+BO98+BQ98+BG98) -> 15.52552888 | BS98: =+BR98*$H$9 -> 5.175176294 | BT98: =DN98 -> 1976.74 | BU98: =BT98/X98 -> 0.2516857652 | BV98: =IF(BU98>0,IF(BU98>=$DA$28,$CY$28,IF(BU98<$DA$28,$CY$29,0)),0) -> 0.5 | BW98: 7848.23 | BX98: =BW98/X98 -> 0.9992653425 | BY98: =IF(BX98,$F$23,0) -> 1 | BZ98: =IF(DQ98>0,$F$24,0) -> 1 | CA98: =DR98 -> 85.6913 | CB98: =CA98/X98 -> 0.01091052967 | CC98: =+IF(CB98>=$K$4,$F$25,0) -> 0 | CD98: 6.608097785 | CE98: =IF(CD98>0,IF(CD98>=100,$F$26,IF(CD98<100,$F$26/2)),0) -> 0.5 | CF98: =SUM(DU98) -> 1 | CG98: =IF(DY98>0,$F$28,0) -> 1 | CH98: =IF(DV98>0,$F$29,0) -> 0 | CI98: =IF(EA98=0,$F$30,0) -> 1 | CJ98: =SUM(BV98,BY98,CE98,BZ98,CC98,CF98,CG98,CH98,CI98) -> 6 | CK98: =+CJ98*$H$22 -> 2 | CL98: =SUM(AY98,BR98,CJ98) -> 36.52552888 | CM98: =SUM(AZ98,BS98,CK98) -> 12.17517629 | CN98: =IF(D98<($Z$13*$CN$28),1,IF(D98<(($Z$14+$Z$13)*$CN$28),2,IF(D98<(($Z$15+$Z$13+$Z$14)*$CN$28),3,4))) -> 2 | CO98: =VLOOKUP(A98,Taul1!$F$6:$G$953,2,FALSE) -> 1 | CQ98: =AR98+AV98+AX98+BA98+BC98+BD98+BF98+BG98+BH98+BI98+BJ98+BK98+BL98+BM98+BO98+BV98+BY98+BZ98+CF98+CI98 -> 32.925 | CR98: =AY98 -> 15 | CS98: =BA98+BC98+BD98+BF98+BG98+BH98+BI98+BJ98+BK98+BL98+BM98+BO98 -> 13.425 | CT98: =BV98+BY98+BZ98+CF98+CI98 -> 4.5 | CV98: https://www.google.com/maps/@62.33435101,25.86630412,3a,75y,90t/data=!3m3!1e1!3m1!2e0 | DA98: 0 | DB98: =SUM(CY98:DA98) -> 0 | DC98: 3 | DD98: 3 | DE98: 0 | DF98: 3 | DG98: 1 | DH98: 85 | DI98: 0 | DJ98: 0 | DK98: 0 | DL98: 0 | DN98: 1976.74 | DO98: 0 | DQ98: 1 | DR98: 85.6913 | DS98: =+IF(AA98>$K$8,$F$27/2,0) -> 1 | DT98: =+IF(AA98/Y98>1.5,$F$27/2,0) -> 0 | DU98: =SUM(DS98:DT98) -> 1 | DV98: 0 | DW98: 0 | DX98: 1 | DY98: =SUM(DW98:DX98) -> 1 | EA98: 0 | EB98: 1 | EG98: =IFERROR(VLOOKUP(A98,$EN$37:$EP$992,2,FALSE),"--") -> LOPUT | EH98: =IF(EG98="--","--",IF(N98="LOPUT",IF(EG98="VÄHÄ","--> LOPUT",""),IF(N98="VÄHÄ",IF(EG98="LOPUT","-->VÄHÄ","")))) ->  | EI98: =IFERROR(VLOOKUP(A98,$EN$37:$EP$992,3,FALSE),"--") -> 19 | EJ98: =IFERROR(EI98-D98,"--") -> -43 | EK98: =IFERROR(VLOOKUP(A98,$EN$37:$EQ$992,4,FALSE),"--") -> 1 | EL98: =IFERROR(EK98-K98,"--") -> -1 | EN98: 16790_1 | EO98: VÄHÄ | EP98: 59 | EQ98: 2
A99: =CONCATENATE(S99,"_",T99) -> 18_49 | B99: 2 | D99: =RANK(CM99,$CM$37:$CM$984) -> 63 | E99: 63 | F99: =E99-D99 -> 0 | G99: =CM99 -> 12.17366667 | H99: =AZ99 -> 5 | I99: =BS99 -> 4.673666667 | J99: =CK99 -> 2.5 | K99: =CN99 -> 2 | L99: =B99-K99 -> 0 | M99: =HYPERLINK(CV99,"Gmaps") -> Gmaps | N99: =IF(Y99>$K$6,"LOPUT","VÄHÄ") -> LOPUT | O99: =IF(S99<40,"Valta",IF(S99<100,"Kanta",IF(S99<1000,"Seutu",IF(S99>999,"Yhdys")))) -> Valta | P99: Keuruuntie | Q99: Jyväskylä | S99: 18 | T99: 49 | U99: 0 | V99: 49 | W99: 2377 | X99: 2377 | Y99: 6839 | Z99: 449 | AA99: 8489 | AB99: 6839 (100 %) | AC99: 60 (9 %), 80 (91 %) | AD99: Is (100 %) | AE99: Kivimastiksiasfaltti (100 %) | AF99: PK1 (100 %) | AG99: 1 | AH99: 5 | AI99: 0 | AJ99: 242 | AR99: =+IF(Y99>=$K$6,$F$5,($F$5/($K$6))*Y99) -> 9 | AS99: 112 | AV99: =+IF(AS99>=$L$15,$J$15,IF(AS99<($L$15),AS99*($J$15/($L$15)),)) -> 3 | AW99: 2339 | AX99: =+IF(AW99>=$L$11,$J$11,IF(AW99<($L$11),AW99*($J$11/($L$11)),)) -> 3 | AY99: =SUM(AR99,AV99,AX99) -> 15 | AZ99: =+AY99*$H$5 -> 5 | BA99: =+IF(Z99=0,0,IF(Z99>$K$7,$F$9,($F$9/$K$7)*Z99)) -> 8 | BB99: =+IF(AJ99=0,0,IF(AJ99>$L$6,$F$10,($F$10/$L$6)*AJ99)) -> 1 | BC99: =IF(DB99>0,$F$11,0) -> 3 | BD99: =IF(DC99>0,$F$12,0) -> 0 | BE99: =IF(DD99>0,$F$13,0) -> 0 | BF99: =IF(DF99>0,$F$14,0) -> 0 | BG99: =IF(DG99>0,$F$15,0) -> 1 | BH99: =+IF(DH99>=$L$23,$J$23,IF(DH99<($L$23),DH99*($J$23/($L$23)),)) -> 0 | BI99: =+IF(DI99>=$L$24,$J$24,IF(DI99<($L$24),DI99*($J$24/($L$24)),)) -> 0.02 | BJ99: =+IF(DJ99>=$L$25,$J$25,IF(DJ99<($L$25),DJ99*($J$25/($L$25)),)) -> 0 | BK99: =+IF(DK99>=$L$26,$J$26,IF(DK99<($L$26),DK99*($J$26/($L$26)),)) -> 0.001 | BL99: =IF(DL99>0,$F$17,0) -> 0 | BM99: =+IF(DO99>=$L$29,$J$29,IF(DO99<($L$29),DO99*($J$29/($L$29)),)) -> 0 | BO99: =IF(EB99>0,$F$19,0) -> 0 | BP99: 18.80951313 | BQ99: =+IF(BP99>=$L$19,$J$19,IF(BP99<($L$19),BP99*($J$19/($L$19)),)) -> 1 | BR99: =SUM(BA99+BC99+BD99+BE99+BB99+BF99+BL99+BH99+BI99+BJ99+BK99+BM99+BO99+BQ99+BG99) -> 14.021 | BS99: =+BR99*$H$9 -> 4.673666667 | BT99: =DN99 -> 2376.5 | BU99: =BT99/X99 -> 0.9997896508 | BV99: =IF(BU99>0,IF(BU99>=$DA$28,$CY$28,IF(BU99<$DA$28,$CY$29,0)),0) -> 1 | BW99: 2376.5 | BX99: =BW99/X99 -> 0.9997896508 | BY99: =IF(BX99,$F$23,0) -> 1 | BZ99: =IF(DQ99>0,$F$24,0) -> 1 | CA99: =DR99 -> 2107.43 | CB99: =CA99/X99 -> 0.8865923433 | CC99: =+IF(CB99>=$K$4,$F$25,0) -> 1 | CD99: 99.82793437 | CE99: =IF(CD99>0,IF(CD99>=100,$F$26,IF(CD99<100,$F$26/2)),0) -> 0.5 | CF99: =SUM(DU99) -> 1 | CG99: =IF(DY99>0,$F$28,0) -> 1 | CH99: =IF(DV99>0,$F$29,0) -> 0 | CI99: =IF(EA99=0,$F$30,0) -> 1 | CJ99: =SUM(BV99,BY99,CE99,BZ99,CC99,CF99,CG99,CH99,CI99) -> 7.5 | CK99: =+CJ99*$H$22 -> 2.5 | CL99: =SUM(AY99,BR99,CJ99) -> 36.521 | CM99: =SUM(AZ99,BS99,CK99) -> 12.17366667 | CN99: =IF(D99<($Z$13*$CN$28),1,IF(D99<(($Z$14+$Z$13)*$CN$28),2,IF(D99<(($Z$15+$Z$13+$Z$14)*$CN$28),3,4))) -> 2 | CO99: =VLOOKUP(A99,Taul1!$F$6:$G$953,2,FALSE) -> 1 | CQ99: =AR99+AV99+AX99+BA99+BC99+BD99+BF99+BG99+BH99+BI99+BJ99+BK99+BL99+BM99+BO99+BV99+BY99+BZ99+CF99+CI99 -> 32.021 | CR99: =AY99 -> 15 | CS99: =BA99+BC99+BD99+BF99+BG99+BH99+BI99+BJ99+BK99+BL99+BM99+BO99 -> 12.021 | CT99: =BV99+BY99+BZ99+CF99+CI99 -> 5 | CV99: https://www.google.com/maps/@62.26689587,25.5577263,3a,75y,90t/data=!3m3!1e1!3m1!2e0 | DA99: 5 | DB99: =SUM(CY99:DA99) -> 5 | DC99: 0 | DD99: 0 | DE99: 0 | DF99: 0 | DG99: 1 | DH99: 0 | DI99: 4 | DJ99: 0 | DK99: 2 | DL99: 0 | DN99: 2376.5 | DO99: 0 | DQ99: 1 | DR99: 2107.43 | DS99: =+IF(AA99>$K$8,$F$27/2,0) -> 1 | DT99: =+IF(AA99/Y99>1.5,$F$27/2,0) -> 0 | DU99: =SUM(DS99:DT99) -> 1 | DV99: 0 | DW99: 0 | DX99: 1 | DY99: =SUM(DW99:DX99) -> 1 | EA99: 0 | EB99: 0 | EF99: 1 | EG99: =IFERROR(VLOOKUP(A99,$EN$37:$EP$992,2,FALSE),"--") -> -- | EH99: =IF(EG99="--","--",IF(N99="LOPUT",IF(EG99="VÄHÄ","--> LOPUT",""),IF(N99="VÄHÄ",IF(EG99="LOPUT","-->VÄHÄ","")))) -> -- | EI99: =IFERROR(VLOOKUP(A99,$EN$37:$EP$992,3,FALSE),"--") -> -- | EJ99: =IFERROR(EI99-D99,"--") -> -- | EK99: =IFERROR(VLOOKUP(A99,$EN$37:$EQ$992,4,FALSE),"--") -> -- | EL99: =IFERROR(EK99-K99,"--") -> -- | EN99: 659_7 | EO99: VÄHÄ | EP99: 60 | EQ99: 2
A100: =CONCATENATE(S100,"_",T100) -> 9_308 | B100: 2 | D100: =RANK(CM100,$CM$37:$CM$984) -> 64 | E100: 64 | F100: =E100-D100 -> 0 | G100: =CM100 -> 12.16916667 | H100: =AZ100 -> 5 | I100: =BS100 -> 5.0025 | J100: =CK100 -> 2.166666667 | K100: =CN100 -> 2 | L100: =B100-K100 -> 0 | M100: =HYPERLINK(CV100,"Gmaps") -> Gmaps | N100: =IF(Y100>$K$6,"LOPUT","VÄHÄ") -> LOPUT | O100: =IF(S100<40,"Valta",IF(S100<100,"Kanta",IF(S100<1000,"Seutu",IF(S100>999,"Yhdys")))) -> Valta | P100: Ysitie | Q100: Hankasalmi | S100: 9 | T100: 308 | U100: 0 | V100: 308 | W100: 6047 | X100: 6047 | Y100: 5678.878121 | Z100: 534.9675872 | AA100: 6929 | AB100: 5663 (97 %), 6182 (3 %) | AC100: 100 (95 %), 80 (6 %) | AD100: Is (100 %) | AE100: Asfalttibetoni (8 %), Kivimastiksiasfaltti (93 %) | AF100: PK1 (100 %) | AG100: 4 | AH100: 10 | AI100: 0 | AJ100: 358.091781 | AR100: =+IF(Y100>=$K$6,$F$5,($F$5/($K$6))*Y100) -> 9 | AS100: 97 | AV100: =+IF(AS100>=$L$15,$J$15,IF(AS100<($L$15),AS100*($J$15/($L$15)),)) -> 3 | AW100: 1573 | AX100: =+IF(AW100>=$L$11,$J$11,IF(AW100<($L$11),AW100*($J$11/($L$11)),)) -> 3 | AY100: =SUM(AR100,AV100,AX100) -> 15 | AZ100: =+AY100*$H$5 -> 5 | BA100: =+IF(Z100=0,0,IF(Z100>$K$7,$F$9,($F$9/$K$7)*Z100)) -> 8 | BB100: =+IF(AJ100=0,0,IF(AJ100>$L$6,$F$10,($F$10/$L$6)*AJ100)) -> 1 | BC100: =IF(DB100>0,$F$11,0) -> 3 | BD100: =IF(DC100>0,$F$12,0) -> 0 | BE100: =IF(DD100>0,$F$13,0) -> 0 | BF100: =IF(DF100>0,$F$14,0) -> 1 | BG100: =IF(DG100>0,$F$15,0) -> 0 | BH100: =+IF(DH100>=$L$23,$J$23,IF(DH100<($L$23),DH100*($J$23/($L$23)),)) -> 0.5 | BI100: =+IF(DI100>=$L$24,$J$24,IF(DI100<($L$24),DI100*($J$24/($L$24)),)) -> 0.5 | BJ100: =+IF(DJ100>=$L$25,$J$25,IF(DJ100<($L$25),DJ100*($J$25/($L$25)),)) -> 0.0075 | BK100: =+IF(DK100>=$L$26,$J$26,IF(DK100<($L$26),DK100*($J$26/($L$26)),)) -> 0 | BL100: =IF(DL100>0,$F$17,0) -> 0 | BM100: =+IF(DO100>=$L$29,$J$29,IF(DO100<($L$29),DO100*($J$29/($L$29)),)) -> 0 | BO100: =IF(EB100>0,$F$19,0) -> 0 | BP100: 11.0305253 | BQ100: =+IF(BP100>=$L$19,$J$19,IF(BP100<($L$19),BP100*($J$19/($L$19)),)) -> 1 | BR100: =SUM(BA100+BC100+BD100+BE100+BB100+BF100+BL100+BH100+BI100+BJ100+BK100+BM100+BO100+BQ100+BG100) -> 15.0075 | BS100: =+BR100*$H$9 -> 5.0025 | BT100: =DN100 -> 3438.53 | BU100: =BT100/X100 -> 0.5686340334 | BV100: =IF(BU100>0,IF(BU100>=$DA$28,$CY$28,IF(BU100<$DA$28,$CY$29,0)),0) -> 1 | BW100: 6071.23 | BX100: =BW100/X100 -> 1.004006946 | BY100: =IF(BX100,$F$23,0) -> 1 | BZ100: =IF(DQ100>0,$F$24,0) -> 1 | CA100: =DR100 -> 583.344 | CB100: =CA100/X100 -> 0.0964683314 | CC100: =+IF(CB100>=$K$4,$F$25,0) -> 0 | CD100: 19.68943278 | CE100: =IF(CD100>0,IF(CD100>=100,$F$26,IF(CD100<100,$F$26/2)),0) -> 0.5 | CF100: =SUM(DU100) -> 1 | CG100: =IF(DY100>0,$F$28,0) -> 1 | CH100: =IF(DV100>0,$F$29,0) -> 0 | CI100: =IF(EA100=0,$F$30,0) -> 1 | CJ100: =SUM(BV100,BY100,CE100,BZ100,CC100,CF100,CG100,CH100,CI100) -> 6.5 | CK100: =+CJ100*$H$22 -> 2.166666667 | CL100: =SUM(AY100,BR100,CJ100) -> 36.5075 | CM100: =SUM(AZ100,BS100,CK100) -> 12.16916667 | CN100: =IF(D100<($Z$13*$CN$28),1,IF(D100<(($Z$14+$Z$13)*$CN$28),2,IF(D100<(($Z$15+$Z$13+$Z$14)*$CN$28),3,4))) -> 2 | CO100: =VLOOKUP(A100,Taul1!$F$6:$G$953,2,FALSE) -> 2 | CQ100: =AR100+AV100+AX100+BA100+BC100+BD100+BF100+BG100+BH100+BI100+BJ100+BK100+BL100+BM100+BO100+BV100+BY100+BZ100+CF100+CI100 -> 33.0075 | CR100: =AY100 -> 15 | CS100: =BA100+BC100+BD100+BF100+BG100+BH100+BI100+BJ100+BK100+BL100+BM100+BO100 -> 13.0075 | CT100: =BV100+BY100+BZ100+CF100+CI100 -> 5 | CV100: https://www.google.com/maps/@62.2842719,26.34567792,3a,75y,90t/data=!3m3!1e1!3m1!2e0 | DA100: 3 | DB100: =SUM(CY100:DA100) -> 3 | DC100: 0 | DD100: 0 | DE100: 2 | DF100: 16 | DG100: 0 | DH100: 329 | DI100: 193 | DJ100: 6 | DK100: 0 | DL100: 0 | DN100: 3438.53 | DO100: 0 | DQ100: 3 | DR100: 583.344 | DS100: =+IF(AA100>$K$8,$F$27/2,0) -> 1 | DT100: =+IF(AA100/Y100>1.5,$F$27/2,0) -> 0 | DU100: =SUM(DS100:DT100) -> 1 | DV100: 0 | DW100: 0 | DX100: 1 | DY100: =SUM(DW100:DX100) -> 1 | EA100: 0 | EB100: 0 | EG100: =IFERROR(VLOOKUP(A100,$EN$37:$EP$992,2,FALSE),"--") -> -- | EH100: =IF(EG100="--","--",IF(N100="LOPUT",IF(EG100="VÄHÄ","--> LOPUT",""),IF(N100="VÄHÄ",IF(EG100="LOPUT","-->VÄHÄ","")))) -> -- | EI100: =IFERROR(VLOOKUP(A100,$EN$37:$EP$992,3,FALSE),"--") -> -- | EJ100: =IFERROR(EI100-D100,"--") -> -- | EK100: =IFERROR(VLOOKUP(A100,$EN$37:$EQ$992,4,FALSE),"--") -> -- | EL100: =IFERROR(EK100-K100,"--") -> -- | EN100: 16843_1 | EO100: VÄHÄ | EP100: 61 | EQ100: 2
A101: =CONCATENATE(S101,"_",T101) -> 642_5 | B101: 2 | D101: =RANK(CM101,$CM$37:$CM$984) -> 65 | E101: 65 | F101: =E101-D101 -> 0 | G101: =CM101 -> 12.12232087 | H101: =AZ101 -> 5 | I101: =BS101 -> 4.788987537 | J101: =CK101 -> 2.333333333 | K101: =CN101 -> 2 | L101: =B101-K101 -> 0 | M101: =HYPERLINK(CV101,"Gmaps") -> Gmaps | N101: =IF(Y101>$K$6,"LOPUT","VÄHÄ") -> LOPUT | O101: =IF(S101<40,"Valta",IF(S101<100,"Kanta",IF(S101<1000,"Seutu",IF(S101>999,"Yhdys")))) -> Seutu | P101: Järvenpääntie, Äänekoskentie | Q101: Äänekoski | S101: 642 | T101: 5 | U101: 0 | V101: 5 | W101: 5884 | X101: 5884 | Y101: 3784.158906 | Z101: 162.003739 | AA101: 4252 | AB101: 3300 (75 %), 5203 (25 %) | AC101: 40 (25 %), 50 (67 %), 60 (8 %) | AD101: Is (100 %) | AE101: Asfalttibetoni (72 %), Kivimastiksiasfaltti (27 %) | AF101: PK2 (100 %) | AG101: 4 | AH101: 8 | AI101: 0.02980181791 | AJ101: 47.46651937 | AR101: =+IF(Y101>=$K$6,$F$5,($F$5/($K$6))*Y101) -> 9 | AS101: 128 | AV101: =+IF(AS101>=$L$15,$J$15,IF(AS101<($L$15),AS101*($J$15/($L$15)),)) -> 3 | AW101: 3037 | AX101: =+IF(AW101>=$L$11,$J$11,IF(AW101<($L$11),AW101*($J$11/($L$11)),)) -> 3 | AY101: =SUM(AR101,AV101,AX101) -> 15 | AZ101: =+AY101*$H$5 -> 5 | BA101: =+IF(Z101=0,0,IF(Z101>$K$7,$F$9,($F$9/$K$7)*Z101)) -> 8 | BB101: =+IF(AJ101=0,0,IF(AJ101>$L$6,$F$10,($F$10/$L$6)*AJ101)) -> 1 | BC101: =IF(DB101>0,$F$11,0) -> 0 | BD101: =IF(DC101>0,$F$12,0) -> 1 | BE101: =IF(DD101>0,$F$13,0) -> 0 | BF101: =IF(DF101>0,$F$14,0) -> 0 | BG101: =IF(DG101>0,$F$15,0) -> 0 | BH101: =+IF(DH101>=$L$23,$J$23,IF(DH101<($L$23),DH101*($J$23/($L$23)),)) -> 0 | BI101: =+IF(DI101>=$L$24,$J$24,IF(DI101<($L$24),DI101*($J$24/($L$24)),)) -> 0 | BJ101: =+IF(DJ101>=$L$25,$J$25,IF(DJ101<($L$25),DJ101*($J$25/($L$25)),)) -> 0 | BK101: =+IF(DK101>=$L$26,$J$26,IF(DK101<($L$26),DK101*($J$26/($L$26)),)) -> 0 | BL101: =IF(DL101>0,$F$17,0) -> 2 | BM101: =+IF(DO101>=$L$29,$J$29,IF(DO101<($L$29),DO101*($J$29/($L$29)),)) -> 0 | BO101: =IF(EB101>0,$F$19,0) -> 2 | BP101: 3.669626121 | BQ101: =+IF(BP101>=$L$19,$J$19,IF(BP101<($L$19),BP101*($J$19/($L$19)),)) -> 0.3669626121 | BR101: =SUM(BA101+BC101+BD101+BE101+BB101+BF101+BL101+BH101+BI101+BJ101+BK101+BM101+BO101+BQ101+BG101) -> 14.36696261 | BS101: =+BR101*$H$9 -> 4.788987537 | BT101: =DN101 -> 0 | BU101: =BT101/X101 -> 0 | BV101: =IF(BU101>0,IF(BU101>=$DA$28,$CY$28,IF(BU101<$DA$28,$CY$29,0)),0) -> 0 | BW101: 5670.28 | BX101: =BW101/X101 -> 0.9636777702 | BY101: =IF(BX101,$F$23,0) -> 1 | BZ101: =IF(DQ101>0,$F$24,0) -> 1 | CA101: =DR101 -> 4628.17 | CB101: =CA101/X101 -> 0.7865686608 | CC101: =+IF(CB101>=$K$4,$F$25,0) -> 1 | CD101: 616.1869477 | CE101: =IF(CD101>0,IF(CD101>=100,$F$26,IF(CD101<100,$F$26/2)),0) -> 1 | CF101: =SUM(DU101) -> 1 | CG101: =IF(DY101>0,$F$28,0) -> 1 | CH101: =IF(DV101>0,$F$29,0) -> 0 | CI101: =IF(EA101=0,$F$30,0) -> 1 | CJ101: =SUM(BV101,BY101,CE101,BZ101,CC101,CF101,CG101,CH101,CI101) -> 7 | CK101: =+CJ101*$H$22 -> 2.333333333 | CL101: =SUM(AY101,BR101,CJ101) -> 36.36696261 | CM101: =SUM(AZ101,BS101,CK101) -> 12.12232087 | CN101: =IF(D101<($Z$13*$CN$28),1,IF(D101<(($Z$14+$Z$13)*$CN$28),2,IF(D101<(($Z$15+$Z$13+$Z$14)*$CN$28),3,4))) -> 2 | CO101: =VLOOKUP(A101,Taul1!$F$6:$G$953,2,FALSE) -> 2 | CQ101: =AR101+AV101+AX101+BA101+BC101+BD101+BF101+BG101+BH101+BI101+BJ101+BK101+BL101+BM101+BO101+BV101+BY101+BZ101+CF101+CI101 -> 32 | CR101: =AY101 -> 15 | CS101: =BA101+BC101+BD101+BF101+BG101+BH101+BI101+BJ101+BK101+BL101+BM101+BO101 -> 13 | CT101: =BV101+BY101+BZ101+CF101+CI101 -> 4 | CV101: https://www.google.com/maps/@62.59747053,25.75420417,3a,75y,90t/data=!3m3!1e1!3m1!2e0 | DA101: 0 | DB101: =SUM(CY101:DA101) -> 0 | DC101: 1 | DD101: 0 | DE101: 0 | DF101: 0 | DG101: 0 | DH101: 0 | DI101: 0 | DJ101: 0 | DK101: 0 | DL101: 1 | DN101: 0 | DO101: 0 | DQ101: 16 | DR101: 4628.17 | DS101: =+IF(AA101>$K$8,$F$27/2,0) -> 1 | DT101: =+IF(AA101/Y101>1.5,$F$27/2,0) -> 0 | DU101: =SUM(DS101:DT101) -> 1 | DV101: 0 | DW101: 0 | DX101: 1 | DY101: =SUM(DW101:DX101) -> 1 | EA101: 0 | EB101: 3 | EG101: =IFERROR(VLOOKUP(A101,$EN$37:$EP$992,2,FALSE),"--") -> LOPUT | EH101: =IF(EG101="--","--",IF(N101="LOPUT",IF(EG101="VÄHÄ","--> LOPUT",""),IF(N101="VÄHÄ",IF(EG101="LOPUT","-->VÄHÄ","")))) ->  | EI101: =IFERROR(VLOOKUP(A101,$EN$37:$EP$992,3,FALSE),"--") -> 15 | EJ101: =IFERROR(EI101-D101,"--") -> -50 | EK101: =IFERROR(VLOOKUP(A101,$EN$37:$EQ$992,4,FALSE),"--") -> 1 | EL101: =IFERROR(EK101-K101,"--") -> -1 | EN101: 636_5 | EO101: VÄHÄ | EP101: 65 | EQ101: 2
A102: =CONCATENATE(S102,"_",T102) -> 6375_3 | B102: 2 | D102: =RANK(CM102,$CM$37:$CM$984) -> 66 | E102: 66 | F102: =E102-D102 -> 0 | G102: =CM102 -> 12.1214797 | H102: =AZ102 -> 3.9925 | I102: =BS102 -> 5.795646362 | J102: =CK102 -> 2.333333333 | K102: =CN102 -> 2 | L102: =B102-K102 -> 0 | M102: =HYPERLINK(CV102,"Gmaps") -> Gmaps | N102: =IF(Y102>$K$6,"LOPUT","VÄHÄ") -> LOPUT | O102: =IF(S102<40,"Valta",IF(S102<100,"Kanta",IF(S102<1000,"Seutu",IF(S102>999,"Yhdys")))) -> Yhdys | P102: Vehniäntie | Q102: Laukaa | S102: 6375 | T102: 3 | U102: 0 | V102: 3 | W102: 2267 | X102: 2267 | Y102: 1860 | Z102: 81 | AA102: 2104 | AB102: 1860 (100 %) | AC102: 60 (43 %), 80 (57 %) | AD102: Ic (100 %) | AE102: Asfalttibetoni (99 %) | AF102: PK2 (100 %) | AG102: 0 | AH102: 0 | AI102: 0.02955447728 | AJ102: 22 | AR102: =+IF(Y102>=$K$6,$F$5,($F$5/($K$6))*Y102) -> 9 | AS102: 2 | AV102: =+IF(AS102>=$L$15,$J$15,IF(AS102<($L$15),AS102*($J$15/($L$15)),)) -> 0.3 | AW102: 357 | AX102: =+IF(AW102>=$L$11,$J$11,IF(AW102<($L$11),AW102*($J$11/($L$11)),)) -> 2.6775 | AY102: =SUM(AR102,AV102,AX102) -> 11.9775 | AZ102: =+AY102*$H$5 -> 3.9925 | BA102: =+IF(Z102=0,0,IF(Z102>$K$7,$F$9,($F$9/$K$7)*Z102)) -> 8 | BB102: =+IF(AJ102=0,0,IF(AJ102>$L$6,$F$10,($F$10/$L$6)*AJ102)) -> 1 | BC102: =IF(DB102>0,$F$11,0) -> 3 | BD102: =IF(DC102>0,$F$12,0) -> 1 | BE102: =IF(DD102>0,$F$13,0) -> 1 | BF102: =IF(DF102>0,$F$14,0) -> 1 | BG102: =IF(DG102>0,$F$15,0) -> 0 | BH102: =+IF(DH102>=$L$23,$J$23,IF(DH102<($L$23),DH102*($J$23/($L$23)),)) -> 0.09 | BI102: =+IF(DI102>=$L$24,$J$24,IF(DI102<($L$24),DI102*($J$24/($L$24)),)) -> 0 | BJ102: =+IF(DJ102>=$L$25,$J$25,IF(DJ102<($L$25),DJ102*($J$25/($L$25)),)) -> 0 | BK102: =+IF(DK102>=$L$26,$J$26,IF(DK102<($L$26),DK102*($J$26/($L$26)),)) -> 0 | BL102: =IF(DL102>0,$F$17,0) -> 0 | BM102: =+IF(DO102>=$L$29,$J$29,IF(DO102<($L$29),DO102*($J$29/($L$29)),)) -> 0 | BO102: =IF(EB102>0,$F$19,0) -> 2 | BP102: 2.969390853 | BQ102: =+IF(BP102>=$L$19,$J$19,IF(BP102<($L$19),BP102*($J$19/($L$19)),)) -> 0.2969390853 | BR102: =SUM(BA102+BC102+BD102+BE102+BB102+BF102+BL102+BH102+BI102+BJ102+BK102+BM102+BO102+BQ102+BG102) -> 17.38693909 | BS102: =+BR102*$H$9 -> 5.795646362 | BT102: =DN102 -> 995.69 | BU102: =BT102/X102 -> 0.4392104102 | BV102: =IF(BU102>0,IF(BU102>=$DA$28,$CY$28,IF(BU102<$DA$28,$CY$29,0)),0) -> 0.5 | BW102: 2233.79 | BX102: =BW102/X102 -> 0.9853506837 | BY102: =IF(BX102,$F$23,0) -> 1 | BZ102: =IF(DQ102>0,$F$24,0) -> 1 | CA102: =DR102 -> 876.067 | CB102: =CA102/X102 -> 0.3864433172 | CC102: =+IF(CB102>=$K$4,$F$25,0) -> 0 | CD102: 77.76179974 | CE102: =IF(CD102>0,IF(CD102>=100,$F$26,IF(CD102<100,$F$26/2)),0) -> 0.5 | CF102: =SUM(DU102) -> 1 | CG102: =IF(DY102>0,$F$28,0) -> 1 | CH102: =IF(DV102>0,$F$29,0) -> 1 | CI102: =IF(EA102=0,$F$30,0) -> 1 | CJ102: =SUM(BV102,BY102,CE102,BZ102,CC102,CF102,CG102,CH102,CI102) -> 7 | CK102: =+CJ102*$H$22 -> 2.333333333 | CL102: =SUM(AY102,BR102,CJ102) -> 36.36443909 | CM102: =SUM(AZ102,BS102,CK102) -> 12.1214797 | CN102: =IF(D102<($Z$13*$CN$28),1,IF(D102<(($Z$14+$Z$13)*$CN$28),2,IF(D102<(($Z$15+$Z$13+$Z$14)*$CN$28),3,4))) -> 2 | CO102: =VLOOKUP(A102,Taul1!$F$6:$G$953,2,FALSE) -> 1 | CQ102: =AR102+AV102+AX102+BA102+BC102+BD102+BF102+BG102+BH102+BI102+BJ102+BK102+BL102+BM102+BO102+BV102+BY102+BZ102+CF102+CI102 -> 31.5675 | CR102: =AY102 -> 11.9775 | CS102: =BA102+BC102+BD102+BF102+BG102+BH102+BI102+BJ102+BK102+BL102+BM102+BO102 -> 15.09 | CT102: =BV102+BY102+BZ102+CF102+CI102 -> 4.5 | CV102: https://www.google.com/maps/@62.42896187,25.87639899,3a,75y,90t/data=!3m3!1e1!3m1!2e0 | DA102: 1 | DB102: =SUM(CY102:DA102) -> 1 | DC102: 3 | DD102: 1 | DE102: 0 | DF102: 7 | DG102: 0 | DH102: 18 | DI102: 0 | DJ102: 0 | DK102: 0 | DL102: 0 | DN102: 995.69 | DO102: 0 | DQ102: 2 | DR102: 876.067 | DS102: =+IF(AA102>$K$8,$F$27/2,0) -> 1 | DT102: =+IF(AA102/Y102>1.5,$F$27/2,0) -> 0 | DU102: =SUM(DS102:DT102) -> 1 | DV102: 1 | DW102: 0 | DX102: 1 | DY102: =SUM(DW102:DX102) -> 1 | EA102: 0 | EB102: 3 | EG102: =IFERROR(VLOOKUP(A102,$EN$37:$EP$992,2,FALSE),"--") -> LOPUT | EH102: =IF(EG102="--","--",IF(N102="LOPUT",IF(EG102="VÄHÄ","--> LOPUT",""),IF(N102="VÄHÄ",IF(EG102="LOPUT","-->VÄHÄ","")))) ->  | EI102: =IFERROR(VLOOKUP(A102,$EN$37:$EP$992,3,FALSE),"--") -> 53 | EJ102: =IFERROR(EI102-D102,"--") -> -13 | EK102: =IFERROR(VLOOKUP(A102,$EN$37:$EQ$992,4,FALSE),"--") -> 1 | EL102: =IFERROR(EK102-K102,"--") -> -1 | EN102: 636_3 | EO102: VÄHÄ | EP102: 55 | EQ102: 2
A103: =CONCATENATE(S103,"_",T103) -> 637_8 | B103: 2 | D103: =RANK(CM103,$CM$37:$CM$984) -> 67 | E103: 67 | F103: =E103-D103 -> 0 | G103: =CM103 -> 12.11605961 | H103: =AZ103 -> 4.2525 | I103: =BS103 -> 6.030226279 | J103: =CK103 -> 1.833333333 | K103: =CN103 -> 2 | L103: =B103-K103 -> 0 | M103: =HYPERLINK(CV103,"Gmaps") -> Gmaps | N103: =IF(Y103>$K$6,"LOPUT","VÄHÄ") -> LOPUT | O103: =IF(S103<40,"Valta",IF(S103<100,"Kanta",IF(S103<1000,"Seutu",IF(S103>999,"Yhdys")))) -> Seutu | P103: Äijäläntie | Q103: Laukaa | S103: 637 | T103: 8 | U103: 0 | V103: 8 | W103: 6002 | X103: 6002 | Y103: 1167 | Z103: 74 | AA103: 1488 | AB103: 1167 (100 %) | AC103: 40 (11 %), 60 (24 %), 80 (65 %) | AD103: Ic (100 %) | AE103: Asfalttibetoni (81 %), Pehmeät asfalttibetonit (PAB-B) (19 %) | AF103: PK2 (100 %) | AG103: 1 | AH103: 3 | AI103: 0.01650376542 | AJ103: 18 | AR103: =+IF(Y103>=$K$6,$F$5,($F$5/($K$6))*Y103) -> 9 | AS103: 10 | AV103: =+IF(AS103>=$L$15,$J$15,IF(AS103<($L$15),AS103*($J$15/($L$15)),)) -> 1.5 | AW103: 301 | AX103: =+IF(AW103>=$L$11,$J$11,IF(AW103<($L$11),AW103*($J$11/($L$11)),)) -> 2.2575 | AY103: =SUM(AR103,AV103,AX103) -> 12.7575 | AZ103: =+AY103*$H$5 -> 4.2525 | BA103: =+IF(Z103=0,0,IF(Z103>$K$7,$F$9,($F$9/$K$7)*Z103)) -> 8 | BB103: =+IF(AJ103=0,0,IF(AJ103>$L$6,$F$10,($F$10/$L$6)*AJ103)) -> 0.9 | BC103: =IF(DB103>0,$F$11,0) -> 3 | BD103: =IF(DC103>0,$F$12,0) -> 0 | BE103: =IF(DD103>0,$F$13,0) -> 1 | BF103: =IF(DF103>0,$F$14,0) -> 1 | BG103: =IF(DG103>0,$F$15,0) -> 1 | BH103: =+IF(DH103>=$L$23,$J$23,IF(DH103<($L$23),DH103*($J$23/($L$23)),)) -> 0.5 | BI103: =+IF(DI103>=$L$24,$J$24,IF(DI103<($L$24),DI103*($J$24/($L$24)),)) -> 0.11 | BJ103: =+IF(DJ103>=$L$25,$J$25,IF(DJ103<($L$25),DJ103*($J$25/($L$25)),)) -> 0.5 | BK103: =+IF(DK103>=$L$26,$J$26,IF(DK103<($L$26),DK103*($J$26/($L$26)),)) -> 0 | BL103: =IF(DL103>0,$F$17,0) -> 2 | BM103: =+IF(DO103>=$L$29,$J$29,IF(DO103<($L$29),DO103*($J$29/($L$29)),)) -> 0 | BO103: =IF(EB103>0,$F$19,0) -> 0 | BP103: 0.8067883702 | BQ103: =+IF(BP103>=$L$19,$J$19,IF(BP103<($L$19),BP103*($J$19/($L$19)),)) -> 0.08067883702 | BR103: =SUM(BA103+BC103+BD103+BE103+BB103+BF103+BL103+BH103+BI103+BJ103+BK103+BM103+BO103+BQ103+BG103) -> 18.09067884 | BS103: =+BR103*$H$9 -> 6.030226279 | BT103: =DN103 -> 4333.04 | BU103: =BT103/X103 -> 0.7219326891 | BV103: =IF(BU103>0,IF(BU103>=$DA$28,$CY$28,IF(BU103<$DA$28,$CY$29,0)),0) -> 1 | BW103: 0 | BX103: =BW103/X103 -> 0 | BY103: =IF(BX103,$F$23,0) -> 0 | BZ103: =IF(DQ103>0,$F$24,0) -> 1 | CA103: =DR103 -> 0 | CB103: =CA103/X103 -> 0 | CC103: =+IF(CB103>=$K$4,$F$25,0) -> 0 | CD103: 23.20159947 | CE103: =IF(CD103>0,IF(CD103>=100,$F$26,IF(CD103<100,$F$26/2)),0) -> 0.5 | CF103: =SUM(DU103) -> 1 | CG103: =IF(DY103>0,$F$28,0) -> 0 | CH103: =IF(DV103>0,$F$29,0) -> 1 | CI103: =IF(EA103=0,$F$30,0) -> 1 | CJ103: =SUM(BV103,BY103,CE103,BZ103,CC103,CF103,CG103,CH103,CI103) -> 5.5 | CK103: =+CJ103*$H$22 -> 1.833333333 | CL103: =SUM(AY103,BR103,CJ103) -> 36.34817884 | CM103: =SUM(AZ103,BS103,CK103) -> 12.11605961 | CN103: =IF(D103<($Z$13*$CN$28),1,IF(D103<(($Z$14+$Z$13)*$CN$28),2,IF(D103<(($Z$15+$Z$13+$Z$14)*$CN$28),3,4))) -> 2 | CO103: =VLOOKUP(A103,Taul1!$F$6:$G$953,2,FALSE) -> 1 | CQ103: =AR103+AV103+AX103+BA103+BC103+BD103+BF103+BG103+BH103+BI103+BJ103+BK103+BL103+BM103+BO103+BV103+BY103+BZ103+CF103+CI103 -> 32.8675 | CR103: =AY103 -> 12.7575 | CS103: =BA103+BC103+BD103+BF103+BG103+BH103+BI103+BJ103+BK103+BL103+BM103+BO103 -> 16.11 | CT103: =BV103+BY103+BZ103+CF103+CI103 -> 4 | CV103: https://www.google.com/maps/@62.48127065,26.01017434,3a,75y,90t/data=!3m3!1e1!3m1!2e0 | DA103: 1 | DB103: =SUM(CY103:DA103) -> 1 | DC103: 0 | DD103: 3 | DE103: 1 | DF103: 12 | DG103: 2 | DH103: 316 | DI103: 22 | DJ103: 1085 | DK103: 0 | DL103: 2 | DN103: 4333.04 | DO103: 0 | DQ103: 1 | DR103: 0 | DS103: =+IF(AA103>$K$8,$F$27/2,0) -> 1 | DT103: =+IF(AA103/Y103>1.5,$F$27/2,0) -> 0 | DU103: =SUM(DS103:DT103) -> 1 | DV103: 1 | DW103: 0 | DX103: 0 | DY103: =SUM(DW103:DX103) -> 0 | EA103: 0 | EB103: 0 | EG103: =IFERROR(VLOOKUP(A103,$EN$37:$EP$992,2,FALSE),"--") -> LOPUT | EH103: =IF(EG103="--","--",IF(N103="LOPUT",IF(EG103="VÄHÄ","--> LOPUT",""),IF(N103="VÄHÄ",IF(EG103="LOPUT","-->VÄHÄ","")))) ->  | EI103: =IFERROR(VLOOKUP(A103,$EN$37:$EP$992,3,FALSE),"--") -> 36 | EJ103: =IFERROR(EI103-D103,"--") -> -31 | EK103: =IFERROR(VLOOKUP(A103,$EN$37:$EQ$992,4,FALSE),"--") -> 1 | EL103: =IFERROR(EK103-K103,"--") -> -1 | EN103: 16803_3 | EO103: VÄHÄ | EP103: 71 | EQ103: 2
A104: =CONCATENATE(S104,"_",T104) -> 637_5 | B104: 2 | D104: =RANK(CM104,$CM$37:$CM$984) -> 68 | E104: 68 | F104: =E104-D104 -> 0 | G104: =CM104 -> 12.09618148 | H104: =AZ104 -> 5 | I104: =BS104 -> 4.429514815 | J104: =CK104 -> 2.666666667 | K104: =CN104 -> 2 | L104: =B104-K104 -> 0 | M104: =HYPERLINK(CV104,"Gmaps") -> Gmaps | N104: =IF(Y104>$K$6,"LOPUT","VÄHÄ") -> LOPUT | O104: =IF(S104<40,"Valta",IF(S104<100,"Kanta",IF(S104<1000,"Seutu",IF(S104>999,"Yhdys")))) -> Seutu | P104: Jyväskyläntie, Suolahdentie | Q104: Laukaa | S104: 637 | T104: 5 | U104: 0 | V104: 5 | W104: 2362 | X104: 2362 | Y104: 8021 | Z104: 448 | AA104: 8780 | AB104: 8021 (100 %) | AC104: 50 (22 %), 60 (78 %) | AD104: Ib (100 %) | AE104: Asfalttibetoni (25 %), Kivimastiksiasfaltti (75 %) | AF104: PK2 (100 %) | AG104: 2 | AH104: 2 | AI104: 0 | AJ104: 131 | AR104: =+IF(Y104>=$K$6,$F$5,($F$5/($K$6))*Y104) -> 9 | AS104: 115 | AV104: =+IF(AS104>=$L$15,$J$15,IF(AS104<($L$15),AS104*($J$15/($L$15)),)) -> 3 | AW104: 1609 | AX104: =+IF(AW104>=$L$11,$J$11,IF(AW104<($L$11),AW104*($J$11/($L$11)),)) -> 3 | AY104: =SUM(AR104,AV104,AX104) -> 15 | AZ104: =+AY104*$H$5 -> 5 | BA104: =+IF(Z104=0,0,IF(Z104>$K$7,$F$9,($F$9/$K$7)*Z104)) -> 8 | BB104: =+IF(AJ104=0,0,IF(AJ104>$L$6,$F$10,($F$10/$L$6)*AJ104)) -> 1 | BC104: =IF(DB104>0,$F$11,0) -> 0 | BD104: =IF(DC104>0,$F$12,0) -> 1 | BE104: =IF(DD104>0,$F$13,0) -> 0 | BF104: =IF(DF104>0,$F$14,0) -> 1 | BG104: =IF(DG104>0,$F$15,0) -> 0 | BH104: =+IF(DH104>=$L$23,$J$23,IF(DH104<($L$23),DH104*($J$23/($L$23)),)) -> 0 | BI104: =+IF(DI104>=$L$24,$J$24,IF(DI104<($L$24),DI104*($J$24/($L$24)),)) -> 0 | BJ104: =+IF(DJ104>=$L$25,$J$25,IF(DJ104<($L$25),DJ104*($J$25/($L$25)),)) -> 0 | BK104: =+IF(DK104>=$L$26,$J$26,IF(DK104<($L$26),DK104*($J$26/($L$26)),)) -> 0 | BL104: =IF(DL104>0,$F$17,0) -> 0 | BM104: =+IF(DO104>=$L$29,$J$29,IF(DO104<($L$29),DO104*($J$29/($L$29)),)) -> 0 | BO104: =IF(EB104>0,$F$19,0) -> 2 | BP104: 2.885444463 | BQ104: =+IF(BP104>=$L$19,$J$19,IF(BP104<($L$19),BP104*($J$19/($L$19)),)) -> 0.2885444463 | BR104: =SUM(BA104+BC104+BD104+BE104+BB104+BF104+BL104+BH104+BI104+BJ104+BK104+BM104+BO104+BQ104+BG104) -> 13.28854445 | BS104: =+BR104*$H$9 -> 4.429514815 | BT104: =DN104 -> 2371.61 | BU104: =BT104/X104 -> 1.004068586 | BV104: =IF(BU104>0,IF(BU104>=$DA$28,$CY$28,IF(BU104<$DA$28,$CY$29,0)),0) -> 1 | BW104: 2346.46 | BX104: =BW104/X104 -> 0.9934208298 | BY104: =IF(BX104,$F$23,0) -> 1 | BZ104: =IF(DQ104>0,$F$24,0) -> 1 | CA104: =DR104 -> 2342.52 | CB104: =CA104/X104 -> 0.9917527519 | CC104: =+IF(CB104>=$K$4,$F$25,0) -> 1 | CD104: 465.5783235 | CE104: =IF(CD104>0,IF(CD104>=100,$F$26,IF(CD104<100,$F$26/2)),0) -> 1 | CF104: =SUM(DU104) -> 1 | CG104: =IF(DY104>0,$F$28,0) -> 1 | CH104: =IF(DV104>0,$F$29,0) -> 0 | CI104: =IF(EA104=0,$F$30,0) -> 1 | CJ104: =SUM(BV104,BY104,CE104,BZ104,CC104,CF104,CG104,CH104,CI104) -> 8 | CK104: =+CJ104*$H$22 -> 2.666666667 | CL104: =SUM(AY104,BR104,CJ104) -> 36.28854445 | CM104: =SUM(AZ104,BS104,CK104) -> 12.09618148 | CN104: =IF(D104<($Z$13*$CN$28),1,IF(D104<(($Z$14+$Z$13)*$CN$28),2,IF(D104<(($Z$15+$Z$13+$Z$14)*$CN$28),3,4))) -> 2 | CO104: =VLOOKUP(A104,Taul1!$F$6:$G$953,2,FALSE) -> 1 | CQ104: =AR104+AV104+AX104+BA104+BC104+BD104+BF104+BG104+BH104+BI104+BJ104+BK104+BL104+BM104+BO104+BV104+BY104+BZ104+CF104+CI104 -> 32 | CR104: =AY104 -> 15 | CS104: =BA104+BC104+BD104+BF104+BG104+BH104+BI104+BJ104+BK104+BL104+BM104+BO104 -> 12 | CT104: =BV104+BY104+BZ104+CF104+CI104 -> 5 | CV104: https://www.google.com/maps/@62.41248603,25.94982874,3a,75y,90t/data=!3m3!1e1!3m1!2e0 | DA104: 0 | DB104: =SUM(CY104:DA104) -> 0 | DC104: 2 | DD104: 0 | DE104: 0 | DF104: 2 | DG104: 0 | DH104: 0 | DI104: 0 | DJ104: 0 | DK104: 0 | DL104: 0 | DN104: 2371.61 | DO104: 0 | DQ104: 10 | DR104: 2342.52 | DS104: =+IF(AA104>$K$8,$F$27/2,0) -> 1 | DT104: =+IF(AA104/Y104>1.5,$F$27/2,0) -> 0 | DU104: =SUM(DS104:DT104) -> 1 | DV104: 0 | DW104: 0 | DX104: 1 | DY104: =SUM(DW104:DX104) -> 1 | EA104: 0 | EB104: 3 | EG104: =IFERROR(VLOOKUP(A104,$EN$37:$EP$992,2,FALSE),"--") -> LOPUT | EH104: =IF(EG104="--","--",IF(N104="LOPUT",IF(EG104="VÄHÄ","--> LOPUT",""),IF(N104="VÄHÄ",IF(EG104="LOPUT","-->VÄHÄ","")))) ->  | EI104: =IFERROR(VLOOKUP(A104,$EN$37:$EP$992,3,FALSE),"--") -> 18 | EJ104: =IFERROR(EI104-D104,"--") -> -50 | EK104: =IFERROR(VLOOKUP(A104,$EN$37:$EQ$992,4,FALSE),"--") -> 1 | EL104: =IFERROR(EK104-K104,"--") -> -1 | EN104: 6250_3 | EO104: VÄHÄ | EP104: 66 | EQ104: 2
A105: =CONCATENATE(S105,"_",T105) -> 9_234 | B105: 2 | D105: =RANK(CM105,$CM$37:$CM$984) -> 69 | E105: 69 | F105: =E105-D105 -> 0 | G105: =CM105 -> 12.0371741 | H105: =AZ105 -> 5 | I105: =BS105 -> 5.037174102 | J105: =CK105 -> 2 | K105: =CN105 -> 2 | L105: =B105-K105 -> 0 | M105: =HYPERLINK(CV105,"Gmaps") -> Gmaps | N105: =IF(Y105>$K$6,"LOPUT","VÄHÄ") -> LOPUT | O105: =IF(S105<40,"Valta",IF(S105<100,"Kanta",IF(S105<1000,"Seutu",IF(S105>999,"Yhdys")))) -> Valta | P105: Ysitie | Q105: Jyväskylä, Muurame | S105: 9 | T105: 234 | U105: 0 | V105: 234 | W105: 3286 | X105: 3286 | Y105: 16234 | Z105: 1056 | AA105: 19676 | AB105: 16234 (100 %) | AC105: 100 (44 %), 80 (56 %) | AD105: Ise (100 %) | AE105: Kivimastiksiasfaltti (100 %) | AF105: PK1 (100 %) | AG105: 4 | AH105: 10 | AI105: 0 | AJ105: 477 | AR105: =+IF(Y105>=$K$6,$F$5,($F$5/($K$6))*Y105) -> 9 | AS105: 327 | AV105: =+IF(AS105>=$L$15,$J$15,IF(AS105<($L$15),AS105*($J$15/($L$15)),)) -> 3 | AW105: 6589 | AX105: =+IF(AW105>=$L$11,$J$11,IF(AW105<($L$11),AW105*($J$11/($L$11)),)) -> 3 | AY105: =SUM(AR105,AV105,AX105) -> 15 | AZ105: =+AY105*$H$5 -> 5 | BA105: =+IF(Z105=0,0,IF(Z105>$K$7,$F$9,($F$9/$K$7)*Z105)) -> 8 | BB105: =+IF(AJ105=0,0,IF(AJ105>$L$6,$F$10,($F$10/$L$6)*AJ105)) -> 1 | BC105: =IF(DB105>0,$F$11,0) -> 3 | BD105: =IF(DC105>0,$F$12,0) -> 0 | BE105: =IF(DD105>0,$F$13,0) -> 0 | BF105: =IF(DF105>0,$F$14,0) -> 0 | BG105: =IF(DG105>0,$F$15,0) -> 0 | BH105: =+IF(DH105>=$L$23,$J$23,IF(DH105<($L$23),DH105*($J$23/($L$23)),)) -> 0.29 | BI105: =+IF(DI105>=$L$24,$J$24,IF(DI105<($L$24),DI105*($J$24/($L$24)),)) -> 0 | BJ105: =+IF(DJ105>=$L$25,$J$25,IF(DJ105<($L$25),DJ105*($J$25/($L$25)),)) -> 0 | BK105: =+IF(DK105>=$L$26,$J$26,IF(DK105<($L$26),DK105*($J$26/($L$26)),)) -> 0 | BL105: =IF(DL105>0,$F$17,0) -> 0 | BM105: =+IF(DO105>=$L$29,$J$29,IF(DO105<($L$29),DO105*($J$29/($L$29)),)) -> 0 | BO105: =IF(EB105>0,$F$19,0) -> 2 | BP105: 8.215223049 | BQ105: =+IF(BP105>=$L$19,$J$19,IF(BP105<($L$19),BP105*($J$19/($L$19)),)) -> 0.8215223049 | BR105: =SUM(BA105+BC105+BD105+BE105+BB105+BF105+BL105+BH105+BI105+BJ105+BK105+BM105+BO105+BQ105+BG105) -> 15.1115223 | BS105: =+BR105*$H$9 -> 5.037174102 | BT105: =DN105 -> 1686.39 | BU105: =BT105/X105 -> 0.513204504 | BV105: =IF(BU105>0,IF(BU105>=$DA$28,$CY$28,IF(BU105<$DA$28,$CY$29,0)),0) -> 1 | BW105: 3282.25 | BX105: =BW105/X105 -> 0.9988587949 | BY105: =IF(BX105,$F$23,0) -> 1 | BZ105: =IF(DQ105>0,$F$24,0) -> 1 | CA105: =DR105 -> 1447.73 | CB105: =CA105/X105 -> 0.4405751674 | CC105: =+IF(CB105>=$K$4,$F$25,0) -> 0 | CD105: 101.1923311 | CE105: =IF(CD105>0,IF(CD105>=100,$F$26,IF(CD105<100,$F$26/2)),0) -> 1 | CF105: =SUM(DU105) -> 1 | CG105: =IF(DY105>0,$F$28,0) -> 0 | CH105: =IF(DV105>0,$F$29,0) -> 0 | CI105: =IF(EA105=0,$F$30,0) -> 1 | CJ105: =SUM(BV105,BY105,CE105,BZ105,CC105,CF105,CG105,CH105,CI105) -> 6 | CK105: =+CJ105*$H$22 -> 2 | CL105: =SUM(AY105,BR105,CJ105) -> 36.1115223 | CM105: =SUM(AZ105,BS105,CK105) -> 12.0371741 | CN105: =IF(D105<($Z$13*$CN$28),1,IF(D105<(($Z$14+$Z$13)*$CN$28),2,IF(D105<(($Z$15+$Z$13+$Z$14)*$CN$28),3,4))) -> 2 | CO105: =VLOOKUP(A105,Taul1!$F$6:$G$953,2,FALSE) -> 1 | CQ105: =AR105+AV105+AX105+BA105+BC105+BD105+BF105+BG105+BH105+BI105+BJ105+BK105+BL105+BM105+BO105+BV105+BY105+BZ105+CF105+CI105 -> 33.29 | CR105: =AY105 -> 15 | CS105: =BA105+BC105+BD105+BF105+BG105+BH105+BI105+BJ105+BK105+BL105+BM105+BO105 -> 13.29 | CT105: =BV105+BY105+BZ105+CF105+CI105 -> 5 | CV105: https://www.google.com/maps/@62.16374279,25.6819003,3a,75y,90t/data=!3m3!1e1!3m1!2e0 | DA105: 6 | DB105: =SUM(CY105:DA105) -> 6 | DC105: 0 | DD105: 0 | DE105: 0 | DF105: 0 | DG105: 0 | DH105: 58 | DI105: 0 | DJ105: 0 | DK105: 0 | DL105: 0 | DN105: 1686.39 | DO105: 0 | DQ105: 3 | DR105: 1447.73 | DS105: =+IF(AA105>$K$8,$F$27/2,0) -> 1 | DT105: =+IF(AA105/Y105>1.5,$F$27/2,0) -> 0 | DU105: =SUM(DS105:DT105) -> 1 | DV105: 0 | DW105: 0 | DX105: 0 | DY105: =SUM(DW105:DX105) -> 0 | EA105: 0 | EB105: 1 | EG105: =IFERROR(VLOOKUP(A105,$EN$37:$EP$992,2,FALSE),"--") -> -- | EH105: =IF(EG105="--","--",IF(N105="LOPUT",IF(EG105="VÄHÄ","--> LOPUT",""),IF(N105="VÄHÄ",IF(EG105="LOPUT","-->VÄHÄ","")))) -> -- | EI105: =IFERROR(VLOOKUP(A105,$EN$37:$EP$992,3,FALSE),"--") -> -- | EJ105: =IFERROR(EI105-D105,"--") -> -- | EK105: =IFERROR(VLOOKUP(A105,$EN$37:$EQ$992,4,FALSE),"--") -> -- | EL105: =IFERROR(EK105-K105,"--") -> -- | EN105: 6215_1 | EO105: VÄHÄ | EP105: 69 | EQ105: 2
